Workbook

Sheet Model Structure (hidden)
B9: Model Overview
B11: Legend
B20: Model Structure

Sheet Change Log (hidden)
C3: Change Log
C4: ='Cover Sheet'!D4 -> TasNetworks (Public Lighting Model)
C12: Change Log
G14: Net Equity ['000']
C15: Date | D15: Filename | E15: Nature of Change Made (Type below) | F15: Analyst | G15: =2018 -> 2018 | H15: =G15+1 -> 2019 | I15: 2020 | J15: 2021 | K15: 2022 | L15: 2023 | M15: 2024
C16: =NOW() -> 2017-04-26T15:19:04.380 | D16: =MID(CELL("filename"), SEARCH("[", CELL("filename")) + 1, SEARCH("]", CELL("filename")) - SEARCH("[", CELL("filename")) - 1) -> TasNetworks Public Lighting Charges Model Final Decision.xlsm | F16: mahambreyd
C17: 2015-07-18T11:17:41.560 | D17: 20150717_V10_Aurora Public Lighting Model(test databook).xlsm | F17: mahambreyd

Sheet Data Book (hidden)
C2: Assumptions Book
C3: ='Cover Sheet'!D4 -> TasNetworks (Public Lighting Model)
C10: Global Assumptions/Economic assumptions | D10: Input | E10: Units | F10: Check | G10: Data Owner | H10: Supporting Document Reference | I10: Notes

Sheet Cover Sheet
C2: Model Details
C4: Model Name: | D4: TasNetworks (Public Lighting Model)

Sheet Check Summary
B2: RAB Revenue Equals prices | C2: ='Revenue Nominal RAB'!G23 -> 2017-18 | D2: ='Revenue Nominal RAB'!H23 -> 2018-19
C3: ='Revenue Nominal RAB'!G86 -> TRUE | D3: ='Revenue Nominal RAB'!H86 -> TRUE
C4: ='Revenue Nominal RAB'!G155 -> TRUE | D4: ='Revenue Nominal RAB'!H155 -> TRUE
C5: ='Revenue Nominal RAB'!G224 -> TRUE | D5: ='Revenue Nominal RAB'!H224 -> TRUE
B7: UnSmoothed CL Volumes | C7: ='Unsmoothed Prices'!J68 -> TRUE | D7: ='Unsmoothed Prices'!K68 -> TRUE
B8: UnSmoothed PL Volumes | C8: ='Unsmoothed Prices'!J129 -> TRUE | D8: ='Unsmoothed Prices'!K129 -> TRUE
B9: UnSmoothed Total Volumes | C9: ='Unsmoothed Prices'!J131 -> TRUE | D9: ='Unsmoothed Prices'!K131 -> TRUE
B11: Smoothed CL Volumes | C11: ='Smoothed Prices'!J68 -> TRUE | D11: ='Smoothed Prices'!K68 -> TRUE
B12: Smoothed PL Volumes | C12: ='Smoothed Prices'!J129 -> TRUE | D12: ='Smoothed Prices'!K129 -> TRUE
B13: Smoothed Total Volumes | C13: ='Smoothed Prices'!J131 -> TRUE | D13: ='Smoothed Prices'!K131 -> TRUE
B15: Input Checks | C15: =Inputs!F26 -> TRUE
C16: =Inputs!F27 -> TRUE
C17: =Inputs!F28 -> TRUE
C18: =Inputs!F29 -> TRUE
C19: =Inputs!L40 -> TRUE
C20: =Inputs!L43 -> TRUE
C21: =Inputs!L47 -> TRUE
C22: =Inputs!F53 -> TRUE
C23: =Inputs!F54 -> TRUE
C24: =Inputs!F56 -> TRUE
C25: =Inputs!F57 -> TRUE
B28: build up check | C28: ='Combined Annuity Prices CL'!E5 -> 5969.241727 | D28: ='Combined Annuity Prices CL'!F5 -> 5969.241727

Sheet Model Information
B2: Process information
B3: Public lighting includes many parts that have different life cycles which also vary depending on the light type. The main parts in a light are as follow:
B5: o Light Bracket - most lights have a bracket which allows the luminaire to be attached to a power pole, this is capital expenditure. There are some lights that are on private piles that do not require brackets, these poles and built in brackets are not the responsibility of TasNetworks. Brackets are assumed to have a life cycle of 40 years
B9: o Luminaire - The luminaire is the light fitting that the lamp is within and is a capital expenditure. Luminaires are assumed to have a life cycle of 20 years
B12: o Lamp - Within the luminaire is a lamp that requires replacement depending on the light type. Normal lights have a life cycle of 4.5 years on average therefore the replacement program is every 4 years as opex expenditure. LED lights are the exception as they last 20 years and are replaced when the luminaire requires replacing.
B16: o PE Cell - Public lights are switched on and off using PE Cells which in the last 30 years have replaced overhead switch wires as a new technology. They are replaced either with the lamp on after 1o year as opex.
B19: o Installation Cost - The TasNetworks POW has inbuilt unit prices for both Opex and capex installation costs of public lights. These prices have been used for luminaire /Bracket capex installation excluding the material proportion plus actual materials from the warehouse prices. The same method has been used for Opex maintenance (Lamp & PE Cell replacement), using the POW unit rate net of materials plus actual materials for the individual light type. The 2 unit rates are determined using the Major/minor allocation of the light.
B25: Public lighting prices have previously used the annuity method rather than a RAB method. The annuity method is more accurate and produces more cost reflective prices compared to the RAB method which has some unreliable data. The opening RAB data was estimated by the business therefore its accuracy is unknown, because of this the PTRM output is used as a indicator test for the Annuity method.
B32: Assumptions
B33: Brackets
B34: A sample base for brackets has been sourced from the thread leader which aligns the light type with bracket type and cost. This sample base of 10,000 out of a total of 40,000+ lights is assumed to represent the whole fleet of brackets.
B37: Of the 40,000+ public lights there are a number of private poles for the public light that do not require a bracket. The public lighting asset management plan has the total number of brackets in the fleet (not down to type assigned to light type for costing). Therefore the cost of the brackets is weighted so that only the total number of brackets are recovered.
B41: Lamps
B42: Lamps have a assumed life cycle of 4.5 years therefore they are replaced within the POW after 4 years. LEDs do not require a lamp replacement within the 20 year life cycle of the luminaire.
B47: PE Cells
B48: There are two types of PE Cells and it is assumed that major lights have the more expensive cell installed while the minor lights have the smaller and cheaper PE Cell.
B51: PE Cells have a assumed 10 year life therefore to align with the 4 year lamp replacement program they are replaced after 8 years however with LED's they are replaced after 10 years.
B54: Installation and maintenance cost
B55: The POW assumption about what lights are major and minor for work to be completed is based on lights less than or greater than 100 watts. This results in a higher cost associated with the major lights due to higher costs performing maintenance and installation.
B58: It is assumed that the cost of performing a Lamp replacement is the same doing the PE Cell at the same time or only PE cell.
B61: It is assumed that the cost of performing a luminaire installation/replacement is the same doing the Brackett at the same time
B64: Other assumptions
B65: It is assumed that contract prices for materials are to remain consistent with the agrees 3% annual increase to remain the same.
B68: Where a warehouse price is not available due to the light type is obsolete the previous determination prices have been indexed.
B71: Indirect capex that is not included in the unit price build up is included in the annuity calculation and assumed to have a 40 year life given it is work on the street lights that have the same life.
B74: Private contract lights are owned by client and TasNetworks just performs maintenance on the light. Capital replacements are the responsibility of the owner.

Sheet AER Model Changes
A3: Item | B3: Sheet \ Location | C3: Comment
A5: 1 | B5: AER Summary | C5: New sheet created
A7: =A5+1 -> 2 | B7: Smoothed Prices'!O132:T143 | C7: Formulae to calculate X Factor 2018-19
A9: =A7+1 -> 3 | B9: Master Data'!A26:J51 | C9: AER CPI and WACC data inputs
A11: =A9+1 -> 4 | B11: CAPEX Annuity calcs'!O10:U328 | C11: Hardcoded numbers replaced with formulae
B12: CAPEX Annuity calcs'!E10:E328
A14: =A11+1 -> 5 | B14: CAPEX Annuity calcs'!O88:U88 | C14: Bracket installation costs should be Nil as they are included in the Luminaire installation costs
A16: =A14+1 -> 6 | B16: Corp Capex Annuity calcs'!C8:E38 | C16: Hardcoded numbers replaced with formulae and converted to 2016-17 dollars
B17: Corp Capex Annuity calcs'!E101 | C17: Hardcoded numbers replaced with formulae
B18: Corp Capex Annuity calcs'!E103 | C18: Hardcoded numbers replaced with formulae
B19: Corp Capex Annuity calcs'!F104:G104 | C19: Hardcoded numbers replaced with formulae
B20: Corp Capex Annuity calcs'!F108:G108 | C20: Hardcoded numbers replaced with formulae
A22: =A16+1 -> 7 | B22: Capex Weighting'!D2:H12 | C22: Costs converted to 2016-17 Dollars
A24: =A22+1 -> 8 | B24: Opex Weighting'!D1:K11 | C24: Costs converted to 2016-17 Dollars
B25: Opex Weighting'!K13
B26: Opex Weighting'!Q13
A28: =A24+1 -> 9 | B28: Building Block'!C43:D43 | C28: Costs converted to 2016-17 Dollars
B29: Building Block'!C45:D45
A31: =A28+1 -> 10 | B31: Inputs!D33:D36 | C31: Costs converted to 2016-17 Dollars
B32: Inputs!Q69:Q72
B33: Inputs!Q76
B34: Inputs!Q83:Q98
B35: Inputs!Q111:Q124
B36: Inputs!D61:D62
B37: Inputs!X69:X72
B38: Inputs!X83:X98
B39: Inputs!X101:X102
B40: Inputs!X109:X114
B41: Inputs!X116:X117,
A43: =A31+1 -> 11 | B43: Warehouse Pricing'!I106 | C43: Costs converted to 2016-17 Dollars
A45: =A43+1 -> 12 | B45: Old Prices Indexed'!I4:J27 | C45: Costs converted to 2016-17 Dollars
A47: =A45+1 -> 13 | B47: Bracket Summary'!B71:J72 | C47: Costs converted to 2016-17 Dollars

Sheet AER Summary
F2: CPI | G2: ='Master Data'!J30 -> 0.02449889904 | K2: Price Check | L2: =IF(ABS(SUM('Smoothed Prices'!S140,L8))>0.001,"Error","Ok") -> Ok
F3: X Factor | G3: ='Smoothed Prices'!S142 -> -0.006176014518
C5: Price (cents) per Light per day | F5: Price (cents) per Light per day | L5: Check
C6: (Nominal) | F6: (Nominal)
C7: 2017-18 | F7: 2018-19
B8: Private Contract Lights | L8: =SUM(L9:L54,L58:L103) -> 1.811883976e-13
B9: ='Smoothed Prices'!B10 -> 32W Compact Fluorescent | D9: ='Smoothed Prices'!G10 -> 17.7699334 | G9: =D9*(1-$G$3)*(1+$G$2) -> 18.31771326 | L9: =ABS(SUMIF('Smoothed Prices'!$B$10:$B$65,B9,'Smoothed Prices'!$H$10:$H$65)-G9) -> 0
B10: ='Smoothed Prices'!B11 -> 42W Compact Fluorescent | D10: ='Smoothed Prices'!G11 -> 17.7699334 | G10: =D10*(1-$G$3)*(1+$G$2) -> 18.31771326 | L10: =ABS(SUMIF('Smoothed Prices'!$B$10:$B$65,B10,'Smoothed Prices'!$H$10:$H$65)-G10) -> 0
B11: ='Smoothed Prices'!B12 -> 42W Compact Fluorescent - Bottom Pole Entry | D11: ='Smoothed Prices'!G12 -> 17.7699334 | G11: 18.31771326 | L11: =ABS(SUMIF('Smoothed Prices'!$B$10:$B$65,B11,'Smoothed Prices'!$H$10:$H$65)-G11) -> 0
B12: ='Smoothed Prices'!B13 -> 2x24W Compact Fluorescent | D12: ='Smoothed Prices'!G13 -> 18.08547906 | G12: 18.64298601 | L12: =ABS(SUMIF('Smoothed Prices'!$B$10:$B$65,B12,'Smoothed Prices'!$H$10:$H$65)-G12) -> 0
B13: ='Smoothed Prices'!B14 -> 1x20W Fluorescent | D13: ='Smoothed Prices'!G14 -> 17.73817394 | G13: 18.28497477 | L13: =ABS(SUMIF('Smoothed Prices'!$B$10:$B$65,B13,'Smoothed Prices'!$H$10:$H$65)-G13) -> 3.552713679e-15
B14: ='Smoothed Prices'!B15 -> 1x40W Fluorescent | D14: ='Smoothed Prices'!G15 -> 17.75661492 | G14: 18.30398422 | L14: =ABS(SUMIF('Smoothed Prices'!$B$10:$B$65,B14,'Smoothed Prices'!$H$10:$H$65)-G14) -> 0
B15: ='Smoothed Prices'!B16 -> 2x20W Fluorescent | D15: ='Smoothed Prices'!G16 -> 18.02196013 | G15: 18.57750902 | L15: =ABS(SUMIF('Smoothed Prices'!$B$10:$B$65,B15,'Smoothed Prices'!$H$10:$H$65)-G15) -> 0
B16: ='Smoothed Prices'!B17 -> 2x24W Fluorescent | D16: ='Smoothed Prices'!G17 -> 17.8672608 | G16: 18.4180409 | L16: =ABS(SUMIF('Smoothed Prices'!$B$10:$B$65,B16,'Smoothed Prices'!$H$10:$H$65)-G16) -> 7.105427358e-15
B17: ='Smoothed Prices'!B18 -> T5 Fluorescent 2 x 24W | D17: ='Smoothed Prices'!G18 -> 18.02196013 | G17: 18.57750902 | L17: =ABS(SUMIF('Smoothed Prices'!$B$10:$B$65,B17,'Smoothed Prices'!$H$10:$H$65)-G17) -> 0
B18: ='Smoothed Prices'!B19 -> 20 Fluorescent 1X20FL | D18: ='Smoothed Prices'!G19 -> 17.73817394 | G18: 18.28497477 | L18: =ABS(SUMIF('Smoothed Prices'!$B$10:$B$65,B18,'Smoothed Prices'!$H$10:$H$65)-G18) -> 3.552713679e-15
B19: ='Smoothed Prices'!B20 -> 2x40W Fluorescent | D19: ='Smoothed Prices'!G20 -> 18.05884209 | G19: 18.61552792 | L19: =ABS(SUMIF('Smoothed Prices'!$B$10:$B$65,B19,'Smoothed Prices'!$H$10:$H$65)-G19) -> 3.552713679e-15
B20: ='Smoothed Prices'!B21 -> 3x40W Fluorescent | D20: ='Smoothed Prices'!G21 -> 21.85768401 | G20: 22.53147377 | L20: =ABS(SUMIF('Smoothed Prices'!$B$10:$B$65,B20,'Smoothed Prices'!$H$10:$H$65)-G20) -> 0
B21: ='Smoothed Prices'!B22 -> 4x20 Fluorescent | D21: ='Smoothed Prices'!G22 -> 18.58850802 | G21: 19.16152145 | L21: =ABS(SUMIF('Smoothed Prices'!$B$10:$B$65,B21,'Smoothed Prices'!$H$10:$H$65)-G21) -> 3.552713679e-15
B22: ='Smoothed Prices'!B23 -> 4x40W Fluorescent | D22: ='Smoothed Prices'!G23 -> 22.15888669 | G22: 22.84196138 | L22: =ABS(SUMIF('Smoothed Prices'!$B$10:$B$65,B22,'Smoothed Prices'!$H$10:$H$65)-G22) -> 0
B23: ='Smoothed Prices'!B24 -> 100W Sodium Vapour | D23: ='Smoothed Prices'!G24 -> 22.00008936 | G23: 22.67826893 | L23: =ABS(SUMIF('Smoothed Prices'!$B$10:$B$65,B23,'Smoothed Prices'!$H$10:$H$65)-G23) -> 0
B24: ='Smoothed Prices'!B26 -> 150W Sodium Vapour | D24: ='Smoothed Prices'!G26 -> 21.99599136 | G24: 22.67404461 | L24: =ABS(SUMIF('Smoothed Prices'!$B$10:$B$65,B24,'Smoothed Prices'!$H$10:$H$65)-G24) -> 3.552713679e-15
B25: ='Smoothed Prices'!B30 -> 250W Sodium Vapour | D25: ='Smoothed Prices'!G30 -> 22.12610272 | G25: 22.80816681 | L25: =ABS(SUMIF('Smoothed Prices'!$B$10:$B$65,B25,'Smoothed Prices'!$H$10:$H$65)-G25) -> 0
B26: ='Smoothed Prices'!B34 -> 250W Sodium Vapour - Flood Light | D26: ='Smoothed Prices'!G34 -> 22.12610272 | G26: 22.80816681 | L26: =ABS(SUMIF('Smoothed Prices'!$B$10:$B$65,B26,'Smoothed Prices'!$H$10:$H$65)-G26) -> 0
B27: ='Smoothed Prices'!B35 -> 400W Sodium Vapour | D27: ='Smoothed Prices'!G35 -> 22.17015618 | G27: 22.85357827 | L27: =ABS(SUMIF('Smoothed Prices'!$B$10:$B$65,B27,'Smoothed Prices'!$H$10:$H$65)-G27) -> 0
B28: ='Smoothed Prices'!B37 -> 400W Sodium Vapour - Flood Light | D28: ='Smoothed Prices'!G37 -> 22.17015618 | G28: 22.85357827 | L28: =ABS(SUMIF('Smoothed Prices'!$B$10:$B$65,B28,'Smoothed Prices'!$H$10:$H$65)-G28) -> 0
B29: ='Smoothed Prices'!B38 -> 70W Sodium Vapour | D29: ='Smoothed Prices'!G38 -> 17.97688218 | G29: 18.53104149 | L29: =ABS(SUMIF('Smoothed Prices'!$B$10:$B$65,B29,'Smoothed Prices'!$H$10:$H$65)-G29) -> 3.552713679e-15
B30: ='Smoothed Prices'!B40 -> 100W Incandescent | D30: ='Smoothed Prices'!G40 -> 21.07394235 | G30: 21.72357232 | L30: =ABS(SUMIF('Smoothed Prices'!$B$10:$B$65,B30,'Smoothed Prices'!$H$10:$H$65)-G30) -> 0
B31: ='Smoothed Prices'!B41 -> 60W Incandescent | D31: ='Smoothed Prices'!G41 -> 17.57630311 | G31: 18.11811408 | L31: =ABS(SUMIF('Smoothed Prices'!$B$10:$B$65,B31,'Smoothed Prices'!$H$10:$H$65)-G31) -> 0
B32: ='Smoothed Prices'!B42 -> 18W LED | D32: ='Smoothed Prices'!G42 -> 12.04298456 | G32: 12.41422424 | L32: =ABS(SUMIF('Smoothed Prices'!$B$10:$B$65,B32,'Smoothed Prices'!$H$10:$H$65)-G32) -> 0
B33: ='Smoothed Prices'!B43 -> 25W LED | D33: ='Smoothed Prices'!G43 -> 12.04298456 | G33: 12.41422424 | L33: =ABS(SUMIF('Smoothed Prices'!$B$10:$B$65,B33,'Smoothed Prices'!$H$10:$H$65)-G33) -> 0
B34: ='Smoothed Prices'!B44 -> 18W LED Decorative - Bottom Pole Entry | D34: ='Smoothed Prices'!G44 -> 12.04298456 | G34: 12.41422424 | L34: =ABS(SUMIF('Smoothed Prices'!$B$10:$B$65,B34,'Smoothed Prices'!$H$10:$H$65)-G34) -> 0
B35: ='Smoothed Prices'!B45 -> 18W LED Decorative - Side Entry | D35: ='Smoothed Prices'!G45 -> 12.04298456 | G35: 12.41422424 | L35: =ABS(SUMIF('Smoothed Prices'!$B$10:$B$65,B35,'Smoothed Prices'!$H$10:$H$65)-G35) -> 0
B36: ='Smoothed Prices'!B46 -> 18W LED Decorative - Top Entry | D36: ='Smoothed Prices'!G46 -> 12.04298456 | G36: 12.41422424 | L36: =ABS(SUMIF('Smoothed Prices'!$B$10:$B$65,B36,'Smoothed Prices'!$H$10:$H$65)-G36) -> 0
B37: ='Smoothed Prices'!B47 -> 25W LED Decorative - Bottom Pole Entry | D37: ='Smoothed Prices'!G47 -> 12.04298456 | G37: 12.41422424 | L37: =ABS(SUMIF('Smoothed Prices'!$B$10:$B$65,B37,'Smoothed Prices'!$H$10:$H$65)-G37) -> 0
B38: ='Smoothed Prices'!B48 -> 25W LED Decorative - Side Entry | D38: ='Smoothed Prices'!G48 -> 12.04298456 | G38: 12.41422424 | L38: =ABS(SUMIF('Smoothed Prices'!$B$10:$B$65,B38,'Smoothed Prices'!$H$10:$H$65)-G38) -> 0
B39: ='Smoothed Prices'!B49 -> 25W LED Decorative - Top Entry | D39: ='Smoothed Prices'!G49 -> 12.04298456 | G39: 12.41422424 | L39: =ABS(SUMIF('Smoothed Prices'!$B$10:$B$65,B39,'Smoothed Prices'!$H$10:$H$65)-G39) -> 0
B40: ='Smoothed Prices'!B50 -> 30W LED | D40: ='Smoothed Prices'!G50 -> 12.04298456 | G40: 12.41422424 | L40: =ABS(SUMIF('Smoothed Prices'!$B$10:$B$65,B40,'Smoothed Prices'!$H$10:$H$65)-G40) -> 0
B41: ='Smoothed Prices'!B51 -> 88 LED Light | D41: ='Smoothed Prices'!G51 -> 12.04298456 | G41: 12.41422424 | L41: =ABS(SUMIF('Smoothed Prices'!$B$10:$B$65,B41,'Smoothed Prices'!$H$10:$H$65)-G41) -> 0
B42: ='Smoothed Prices'!B52 -> 100W Metal Halide | D42: ='Smoothed Prices'!G52 -> 21.99701586 | G42: 22.67510069 | L42: =ABS(SUMIF('Smoothed Prices'!$B$10:$B$65,B42,'Smoothed Prices'!$H$10:$H$65)-G42) -> 0
B43: ='Smoothed Prices'!B53 -> 150W Metal Halide | D43: ='Smoothed Prices'!G53 -> 22.14044571 | G43: 22.82295194 | L43: =ABS(SUMIF('Smoothed Prices'!$B$10:$B$65,B43,'Smoothed Prices'!$H$10:$H$65)-G43) -> 3.552713679e-15
B44: ='Smoothed Prices'!B54 -> 250W Metal Halide | D44: ='Smoothed Prices'!G54 -> 22.14044571 | G44: 22.82295194 | L44: =ABS(SUMIF('Smoothed Prices'!$B$10:$B$65,B44,'Smoothed Prices'!$H$10:$H$65)-G44) -> 3.552713679e-15
B45: ='Smoothed Prices'!B55 -> 400W Metal Halide | D45: ='Smoothed Prices'!G55 -> 22.82788447 | G45: 23.53158184 | L45: =ABS(SUMIF('Smoothed Prices'!$B$10:$B$65,B45,'Smoothed Prices'!$H$10:$H$65)-G45) -> 0
B46: ='Smoothed Prices'!B56 -> 70W Metal Halide | D46: ='Smoothed Prices'!G56 -> 18.48093564 | G46: 19.05063301 | L46: =ABS(SUMIF('Smoothed Prices'!$B$10:$B$65,B46,'Smoothed Prices'!$H$10:$H$65)-G46) -> 3.552713679e-15
B47: ='Smoothed Prices'!B57 -> 250W Metal Halide - Flood Light | D47: ='Smoothed Prices'!G57 -> 22.14044571 | G47: 22.82295194 | L47: =ABS(SUMIF('Smoothed Prices'!$B$10:$B$65,B47,'Smoothed Prices'!$H$10:$H$65)-G47) -> 3.552713679e-15
B48: ='Smoothed Prices'!B58 -> 400W Metal Halide - Flood Light | D48: ='Smoothed Prices'!G58 -> 22.82788447 | G48: 23.53158184 | L48: =ABS(SUMIF('Smoothed Prices'!$B$10:$B$65,B48,'Smoothed Prices'!$H$10:$H$65)-G48) -> 0
B49: ='Smoothed Prices'!B59 -> 125W Mercury Vapour | D49: ='Smoothed Prices'!G59 -> 21.10877532 | G49: 21.75947905 | L49: =ABS(SUMIF('Smoothed Prices'!$B$10:$B$65,B49,'Smoothed Prices'!$H$10:$H$65)-G49) -> 0
B50: ='Smoothed Prices'!B60 -> 250W Mercury Vapour | D50: ='Smoothed Prices'!G60 -> 21.10877532 | G50: 21.75947905 | L50: =ABS(SUMIF('Smoothed Prices'!$B$10:$B$65,B50,'Smoothed Prices'!$H$10:$H$65)-G50) -> 0
B51: ='Smoothed Prices'!B62 -> 400W Mercury Vapour | D51: ='Smoothed Prices'!G62 -> 21.25937665 | G51: 21.91472286 | L51: =ABS(SUMIF('Smoothed Prices'!$B$10:$B$65,B51,'Smoothed Prices'!$H$10:$H$65)-G51) -> 3.552713679e-15
B52: ='Smoothed Prices'!B63 -> 50W Mercury Vapour | D52: ='Smoothed Prices'!G63 -> 17.63982204 | G52: 18.18359106 | L52: =ABS(SUMIF('Smoothed Prices'!$B$10:$B$65,B52,'Smoothed Prices'!$H$10:$H$65)-G52) -> 0
B53: ='Smoothed Prices'!B64 -> 80W Mercury Vapour Art decorative | D53: ='Smoothed Prices'!G64 -> 17.60806258 | G53: 18.15085257 | L53: =ABS(SUMIF('Smoothed Prices'!$B$10:$B$65,B53,'Smoothed Prices'!$H$10:$H$65)-G53) -> 3.552713679e-15
B54: ='Smoothed Prices'!B65 -> 80W Mercury Vapour | D54: ='Smoothed Prices'!G65 -> 17.60806258 | G54: 18.15085257 | L54: =ABS(SUMIF('Smoothed Prices'!$B$10:$B$65,B54,'Smoothed Prices'!$H$10:$H$65)-G54) -> 3.552713679e-15
B57: Public Road Lights
B58: ='Smoothed Prices'!B71 -> 32W Compact Fluorescent | D58: ='Smoothed Prices'!G71 -> 35.12801825 | G58: =D58*(1-$G$3)*(1+$G$2) -> 36.21088224 | L58: =ABS(SUMIF('Smoothed Prices'!$B$71:$B$126,B58,'Smoothed Prices'!$H$71:$H$126)-G58) -> 7.105427358e-15
B59: ='Smoothed Prices'!B72 -> 42W Compact Fluorescent | D59: ='Smoothed Prices'!G72 -> 35.15260622 | G59: 36.23622817 | L59: =ABS(SUMIF('Smoothed Prices'!$B$71:$B$126,B59,'Smoothed Prices'!$H$71:$H$126)-G59) -> 0
B60: ='Smoothed Prices'!B73 -> 42W Compact Fluorescent - Bottom Pole Entry | D60: ='Smoothed Prices'!G73 -> 35.15260622 | G60: 36.23622817 | L60: =ABS(SUMIF('Smoothed Prices'!$B$71:$B$126,B60,'Smoothed Prices'!$H$71:$H$126)-G60) -> 0
B61: ='Smoothed Prices'!B74 -> 2x24W Compact Fluorescent | D61: ='Smoothed Prices'!G74 -> 35.46712739 | G61: 36.56044483 | L61: =ABS(SUMIF('Smoothed Prices'!$B$71:$B$126,B61,'Smoothed Prices'!$H$71:$H$126)-G61) -> 7.105427358e-15
B62: ='Smoothed Prices'!B75 -> 1x20W Fluorescent | D62: ='Smoothed Prices'!G75 -> 36.80614745 | G62: 37.94074181 | L62: =ABS(SUMIF('Smoothed Prices'!$B$71:$B$126,B62,'Smoothed Prices'!$H$71:$H$126)-G62) -> 7.105427358e-15
B63: ='Smoothed Prices'!B76 -> 1x40W Fluorescent | D63: ='Smoothed Prices'!G76 -> 35.67202717 | G63: 36.77166089 | L63: =ABS(SUMIF('Smoothed Prices'!$B$71:$B$126,B63,'Smoothed Prices'!$H$71:$H$126)-G63) -> 0
B64: ='Smoothed Prices'!B77 -> 2x20W Fluorescent | D64: ='Smoothed Prices'!G77 -> 37.08890914 | G64: 38.23221998 | L64: =ABS(SUMIF('Smoothed Prices'!$B$71:$B$126,B64,'Smoothed Prices'!$H$71:$H$126)-G64) -> 7.105427358e-15
B65: ='Smoothed Prices'!B78 -> 2x24W Fluorescent | D65: ='Smoothed Prices'!G78 -> 37.04075769 | G65: 38.18258421 | L65: =ABS(SUMIF('Smoothed Prices'!$B$71:$B$126,B65,'Smoothed Prices'!$H$71:$H$126)-G65) -> 7.105427358e-15
B66: ='Smoothed Prices'!B79 -> T5 Fluorescent 2 x 24W | D66: ='Smoothed Prices'!G79 -> 37.08890914 | G66: 38.23221998 | L66: =ABS(SUMIF('Smoothed Prices'!$B$71:$B$126,B66,'Smoothed Prices'!$H$71:$H$126)-G66) -> 7.105427358e-15
B67: ='Smoothed Prices'!B80 -> 20 Fluorescent 1X20FL | D67: ='Smoothed Prices'!G80 -> 36.80614745 | G67: 37.94074181 | L67: =ABS(SUMIF('Smoothed Prices'!$B$71:$B$126,B67,'Smoothed Prices'!$H$71:$H$126)-G67) -> 7.105427358e-15
B68: ='Smoothed Prices'!B81 -> 2x40W Fluorescent | D68: ='Smoothed Prices'!G81 -> 35.97322984 | G68: 37.08214851 | L68: =ABS(SUMIF('Smoothed Prices'!$B$71:$B$126,B68,'Smoothed Prices'!$H$71:$H$126)-G68) -> 0
B69: ='Smoothed Prices'!B82 -> 3x40W Fluorescent | D69: ='Smoothed Prices'!G82 -> 45.23777339 | G69: 46.6322829 | L69: =ABS(SUMIF('Smoothed Prices'!$B$71:$B$126,B69,'Smoothed Prices'!$H$71:$H$126)-G69) -> 0
B70: ='Smoothed Prices'!B83 -> 4x20 Fluorescent | D70: ='Smoothed Prices'!G83 -> 37.65545703 | G70: 38.8162324 | L70: =ABS(SUMIF('Smoothed Prices'!$B$71:$B$126,B70,'Smoothed Prices'!$H$71:$H$126)-G70) -> 0
B71: ='Smoothed Prices'!B84 -> 4x40W Fluorescent | D71: ='Smoothed Prices'!G84 -> 46.69153732 | G71: 48.13086088 | L71: =ABS(SUMIF('Smoothed Prices'!$B$71:$B$126,B71,'Smoothed Prices'!$H$71:$H$126)-G71) -> 0
B72: ='Smoothed Prices'!B85 -> 100W Sodium Vapour | D72: ='Smoothed Prices'!G85 -> 44.39256179 | G72: 45.76101663 | L72: =ABS(SUMIF('Smoothed Prices'!$B$71:$B$126,B72,'Smoothed Prices'!$H$71:$H$126)-G72) -> 7.105427358e-15
B73: ='Smoothed Prices'!B87 -> 150W Sodium Vapour | D73: ='Smoothed Prices'!G87 -> 46.69358632 | G73: 48.13297304 | L73: =ABS(SUMIF('Smoothed Prices'!$B$71:$B$126,B73,'Smoothed Prices'!$H$71:$H$126)-G73) -> 7.105427358e-15
B74: ='Smoothed Prices'!B91 -> 250W Sodium Vapour | D74: ='Smoothed Prices'!G91 -> 47.80926562 | G74: 49.28304452 | L74: =ABS(SUMIF('Smoothed Prices'!$B$71:$B$126,B74,'Smoothed Prices'!$H$71:$H$126)-G74) -> 0
B75: ='Smoothed Prices'!B95 -> 250W Sodium Vapour - Flood Light | D75: ='Smoothed Prices'!G95 -> 51.81608082 | G75: 53.41337468 | L75: =ABS(SUMIF('Smoothed Prices'!$B$71:$B$126,B75,'Smoothed Prices'!$H$71:$H$126)-G75) -> 7.105427358e-15
B76: ='Smoothed Prices'!B96 -> 400W Sodium Vapour | D76: ='Smoothed Prices'!G96 -> 48.65140372 | G76: 50.15114255 | L76: =ABS(SUMIF('Smoothed Prices'!$B$71:$B$126,B76,'Smoothed Prices'!$H$71:$H$126)-G76) -> 7.105427358e-15
B77: ='Smoothed Prices'!B98 -> 400W Sodium Vapour - Flood Light | D77: ='Smoothed Prices'!G98 -> 51.29461088 | G77: 52.87582979 | L77: =ABS(SUMIF('Smoothed Prices'!$B$71:$B$126,B77,'Smoothed Prices'!$H$71:$H$126)-G77) -> 7.105427358e-15
B78: ='Smoothed Prices'!B99 -> 70W Sodium Vapour | D78: ='Smoothed Prices'!G99 -> 34.9927844 | G78: 36.07147963 | L78: =ABS(SUMIF('Smoothed Prices'!$B$71:$B$126,B78,'Smoothed Prices'!$H$71:$H$126)-G78) -> 0
B79: ='Smoothed Prices'!B101 -> 100W Incandescent | D79: ='Smoothed Prices'!G101 -> 40.93487801 | G79: 42.19674553 | L79: =ABS(SUMIF('Smoothed Prices'!$B$71:$B$126,B79,'Smoothed Prices'!$H$71:$H$126)-G79) -> 7.105427358e-15
B80: ='Smoothed Prices'!B102 -> 60W Incandescent | D80: ='Smoothed Prices'!G102 -> 31.97358614 | G80: 32.95921091 | L80: =ABS(SUMIF('Smoothed Prices'!$B$71:$B$126,B80,'Smoothed Prices'!$H$71:$H$126)-G80) -> 7.105427358e-15
B81: ='Smoothed Prices'!B103 -> 18W LED | D81: ='Smoothed Prices'!G103 -> 33.48779551 | G81: 34.52009763 | L81: =ABS(SUMIF('Smoothed Prices'!$B$71:$B$126,B81,'Smoothed Prices'!$H$71:$H$126)-G81) -> 0
B82: ='Smoothed Prices'!B104 -> 25W LED | D82: ='Smoothed Prices'!G104 -> 33.48779551 | G82: 34.52009763 | L82: =ABS(SUMIF('Smoothed Prices'!$B$71:$B$126,B82,'Smoothed Prices'!$H$71:$H$126)-G82) -> 0
B83: ='Smoothed Prices'!B105 -> 18W LED Decorative - Bottom Pole Entry | D83: ='Smoothed Prices'!G105 -> 46.8964371 | G83: 48.34207695 | L83: =ABS(SUMIF('Smoothed Prices'!$B$71:$B$126,B83,'Smoothed Prices'!$H$71:$H$126)-G83) -> 0
B84: ='Smoothed Prices'!B106 -> 18W LED Decorative - Side Entry | D84: ='Smoothed Prices'!G106 -> 46.8964371 | G84: 48.34207695 | L84: =ABS(SUMIF('Smoothed Prices'!$B$71:$B$126,B84,'Smoothed Prices'!$H$71:$H$126)-G84) -> 0
B85: ='Smoothed Prices'!B107 -> 18W LED Decorative - Top Entry | D85: ='Smoothed Prices'!G107 -> 46.8964371 | G85: 48.34207695 | L85: =ABS(SUMIF('Smoothed Prices'!$B$71:$B$126,B85,'Smoothed Prices'!$H$71:$H$126)-G85) -> 0
B86: ='Smoothed Prices'!B108 -> 25W LED Decorative - Bottom Pole Entry | D86: ='Smoothed Prices'!G108 -> 46.8964371 | G86: 48.34207695 | L86: =ABS(SUMIF('Smoothed Prices'!$B$71:$B$126,B86,'Smoothed Prices'!$H$71:$H$126)-G86) -> 0
B87: ='Smoothed Prices'!B109 -> 25W LED Decorative - Side Entry | D87: ='Smoothed Prices'!G109 -> 46.8964371 | G87: 48.34207695 | L87: =ABS(SUMIF('Smoothed Prices'!$B$71:$B$126,B87,'Smoothed Prices'!$H$71:$H$126)-G87) -> 0
B88: ='Smoothed Prices'!B110 -> 25W LED Decorative - Top Entry | D88: ='Smoothed Prices'!G110 -> 46.8964371 | G88: 48.34207695 | L88: =ABS(SUMIF('Smoothed Prices'!$B$71:$B$126,B88,'Smoothed Prices'!$H$71:$H$126)-G88) -> 0
B89: ='Smoothed Prices'!B111 -> 30W LED | D89: ='Smoothed Prices'!G111 -> 33.48779551 | G89: 34.52009763 | L89: =ABS(SUMIF('Smoothed Prices'!$B$71:$B$126,B89,'Smoothed Prices'!$H$71:$H$126)-G89) -> 0
B90: ='Smoothed Prices'!B112 -> 88 LED Light | D90: ='Smoothed Prices'!G112 -> 33.48779551 | G90: 34.52009763 | L90: =ABS(SUMIF('Smoothed Prices'!$B$71:$B$126,B90,'Smoothed Prices'!$H$71:$H$126)-G90) -> 0
B91: ='Smoothed Prices'!B113 -> 100W Metal Halide | D91: ='Smoothed Prices'!G113 -> 44.54418763 | G91: 45.91731652 | L91: =ABS(SUMIF('Smoothed Prices'!$B$71:$B$126,B91,'Smoothed Prices'!$H$71:$H$126)-G91) -> 0
B92: ='Smoothed Prices'!B114 -> 150W Metal Halide | D92: ='Smoothed Prices'!G114 -> 47.26115871 | G92: 48.71804155 | L92: =ABS(SUMIF('Smoothed Prices'!$B$71:$B$126,B92,'Smoothed Prices'!$H$71:$H$126)-G92) -> 0
B93: ='Smoothed Prices'!B115 -> 250W Metal Halide | D93: ='Smoothed Prices'!G115 -> 48.10432131 | G93: 49.58719565 | L93: =ABS(SUMIF('Smoothed Prices'!$B$71:$B$126,B93,'Smoothed Prices'!$H$71:$H$126)-G93) -> 0
B94: ='Smoothed Prices'!B116 -> 400W Metal Halide | D94: ='Smoothed Prices'!G116 -> 53.37639264 | G94: 55.02178501 | L94: =ABS(SUMIF('Smoothed Prices'!$B$71:$B$126,B94,'Smoothed Prices'!$H$71:$H$126)-G94) -> 0
B95: ='Smoothed Prices'!B117 -> 70W Metal Halide | D95: ='Smoothed Prices'!G117 -> 33.81665966 | G95: 34.85909942 | L95: =ABS(SUMIF('Smoothed Prices'!$B$71:$B$126,B95,'Smoothed Prices'!$H$71:$H$126)-G95) -> 7.105427358e-15
B96: ='Smoothed Prices'!B118 -> 250W Metal Halide - Flood Light | D96: ='Smoothed Prices'!G118 -> 53.52289598 | G96: 55.1728045 | L96: =ABS(SUMIF('Smoothed Prices'!$B$71:$B$126,B96,'Smoothed Prices'!$H$71:$H$126)-G96) -> 7.105427358e-15
B97: ='Smoothed Prices'!B119 -> 400W Metal Halide - Flood Light | D97: ='Smoothed Prices'!G119 -> 53.37639264 | G97: 55.02178501 | L97: =ABS(SUMIF('Smoothed Prices'!$B$71:$B$126,B97,'Smoothed Prices'!$H$71:$H$126)-G97) -> 0
B98: ='Smoothed Prices'!B120 -> 125W Mercury Vapour | D98: ='Smoothed Prices'!G120 -> 44.26142594 | G98: 45.62583835 | L98: =ABS(SUMIF('Smoothed Prices'!$B$71:$B$126,B98,'Smoothed Prices'!$H$71:$H$126)-G98) -> 7.105427358e-15
B99: ='Smoothed Prices'!B121 -> 250W Mercury Vapour | D99: ='Smoothed Prices'!G121 -> 44.72757293 | G99: 46.1063549 | L99: =ABS(SUMIF('Smoothed Prices'!$B$71:$B$126,B99,'Smoothed Prices'!$H$71:$H$126)-G99) -> 0
B100: ='Smoothed Prices'!B123 -> 400W Mercury Vapour | D100: ='Smoothed Prices'!G123 -> 46.84213866 | G100: 48.28610469 | L100: =ABS(SUMIF('Smoothed Prices'!$B$71:$B$126,B100,'Smoothed Prices'!$H$71:$H$126)-G100) -> 0
B101: ='Smoothed Prices'!B124 -> 50W Mercury Vapour | D101: ='Smoothed Prices'!G124 -> 32.68766187 | G101: 33.6952989 | L101: =ABS(SUMIF('Smoothed Prices'!$B$71:$B$126,B101,'Smoothed Prices'!$H$71:$H$126)-G101) -> 7.105427358e-15
B102: ='Smoothed Prices'!B125 -> 80W Mercury Vapour Art decorative | D102: ='Smoothed Prices'!G125 -> 49.31323001 | G102: 50.83337044 | L102: =ABS(SUMIF('Smoothed Prices'!$B$71:$B$126,B102,'Smoothed Prices'!$H$71:$H$126)-G102) -> 0
B103: ='Smoothed Prices'!B126 -> 80W Mercury Vapour | D103: ='Smoothed Prices'!G126 -> 32.68868637 | G103: 33.69635498 | L103: =ABS(SUMIF('Smoothed Prices'!$B$71:$B$126,B103,'Smoothed Prices'!$H$71:$H$126)-G103) -> 0

Sheet Master Data
A1: Previous Year | B1: =EOMONTH($B$2,-12) -> 2014-06-30 | D1: =TEXT(B1,"YY") -> 14 | E1: =TEXT(B1,"YYy") -> 2014 | F1: =TEXT(B1,"mmm") -> Jun | G1: =TEXT(B1,"mmmm") -> June
A2: Current Year | B2: =EOMONTH($B$3,-1) -> 2015-06-30 | D2: =TEXT(B2,"YY") -> 15 | E2: =TEXT(B2,"YYy") -> 2015 | F2: =TEXT(B2,"mmm") -> Jun | G2: =TEXT(B2,"mmmm") -> June | H2: =E1&"-"&D2 -> 2014-15
A3: Year Start | B3: 2015-07-01 | C3: 2015 | D3: =TEXT(B3,"YY") -> 15 | E3: =TEXT(B3,"YYy") -> 2015 | F3: =TEXT(B3,"mmm") -> Jul | G3: =TEXT(B3,"mmmm") -> July
A4: Year 1 | B4: =EOMONTH($B$3,11) -> 2016-06-30 | D4: =TEXT(B4,"YY") -> 16 | E4: =TEXT(B4,"YYy") -> 2016 | F4: =TEXT(B4,"mmm") -> Jun | G4: =TEXT(B4,"mmmm") -> June | H4: =E3&"-"&D4 -> 2015-16
A5: Year 2 | B5: =EOMONTH($B$3,23) -> 2017-06-30 | D5: =TEXT(B5,"YY") -> 17 | E5: =TEXT(B5,"YYy") -> 2017 | F5: =TEXT(B5,"mmm") -> Jun | G5: =TEXT(B5,"mmmm") -> June | H5: =E4&"-"&D5 -> 2016-17
A6: Year 3 | B6: =EOMONTH($B$3,35) -> 2018-06-30 | D6: 18 | E6: 2018 | F6: Jun | G6: June | H6: 2017-18
A7: Year 4 | B7: =EOMONTH($B$3,47) -> 2019-06-30 | D7: 19 | E7: 2019 | F7: Jun | G7: June | H7: 2018-19
A8: Year 5 | B8: =EOMONTH($B$3,59) -> 2020-06-30 | D8: 20 | E8: 2020 | F8: Jun | G8: June | H8: 2019-20
A9: Year 6 | B9: =EOMONTH($B$3,71) -> 2021-06-30 | D9: 21 | E9: 2021 | F9: Jun | G9: June | H9: 2020-21
A10: Year 7 | B10: =EOMONTH($B$3,83) -> 2022-06-30 | D10: 22 | E10: 2022 | F10: Jun | G10: June | H10: 2021-22
A11: Year 8 | B11: =EOMONTH($B$3,95) -> 2023-06-30 | D11: 23 | E11: 2023 | F11: Jun | G11: June | H11: 2022-23
A12: Year 9 | B12: =EOMONTH($B$3,107) -> 2024-06-30 | D12: 24 | E12: 2024 | F12: Jun | G12: June | H12: 2023-24
A13: Year 10 | B13: =EOMONTH($B$3,119) -> 2025-06-30 | D13: 25 | E13: 2025 | F13: Jun | G13: June | H13: 2024-25
A18: Year | F18: Current | G18: =A4 -> Year 1 | H18: =A5 -> Year 2 | I18: =A6 -> Year 3 | J18: =A7 -> Year 4 | K18: =A8 -> Year 5 | L18: =A9 -> Year 6 | M18: =A10 -> Year 7 | N18: =A11 -> Year 8 | O18: =A12 -> Year 9 | P18: =A13 -> Year 10
F19: =C3 -> 2015 | G19: =F19+1 -> 2016 | H19: =G19+1 -> 2017 | I19: 2018 | J19: 2019 | K19: 2020 | L19: 2021 | M19: 2022 | N19: 2023 | O19: 2024 | P19: =O19+1 -> 2025
B20: 2010-11 | C20: 2011-12 | D20: 2012-13 | E20: 2013-14 | F20: =H2 -> 2014-15 | G20: =H4 -> 2015-16 | H20: =H5 -> 2016-17 | I20: =H6 -> 2017-18 | J20: =H7 -> 2018-19 | K20: =H8 -> 2019-20 | L20: =H9 -> 2020-21 | M20: =H10 -> 2021-22 | N20: =H11 -> 2022-23 | O20: =H12 -> 2023-24 | P20: =H13 -> 2024-25
B22: =EOMONTH(C22,-12) -> 2011-06-30 | C22: 2012-06-30 | D22: 2013-06-30 | E22: =EOMONTH(F22,-12) -> 2014-06-30 | F22: =B2 -> 2015-06-30 | G22: =B4 -> 2016-06-30 | H22: =B5 -> 2017-06-30 | I22: =B6 -> 2018-06-30 | J22: =B7 -> 2019-06-30 | K22: =B8 -> 2020-06-30 | L22: =B9 -> 2021-06-30 | M22: =B10 -> 2022-06-30 | N22: =B11 -> 2023-06-30 | O22: =B12 -> 2024-06-30 | P22: =B13 -> 2025-06-30
A23: Days in the year | C23: =C22-B22 -> 366 | D23: 365 | E23: 365 | F23: 365 | G23: =G22-F22 -> 366 | H23: =H22-G22 -> 365 | I23: =I22-H22 -> 365 | J23: 365 | K23: 366 | L23: 365 | M23: 365 | N23: 365 | O23: 366 | P23: 365
A26: AER Inputs
B28: Year -4 | C28: Year -3 | D28: Year -2 | E28: Year -1 | F28: Current | G28: Year 1 | H28: Year 2 | I28: Year 3 | J28: Year 4
B29: 2010-11 | C29: 2011-12 | D29: 2012-13 | E29: 2013-14 | F29: =F$20 -> 2014-15 | G29: =G$20 -> 2015-16 | H29: 2016-17 | I29: 2017-18 | J29: 2018-19
A30: CPI | B30: 0.02654867257 | C30: 0.03103448276 | D30: =$C$48 -> 0.025 | E30: =$C$47 -> 0.0293 | F30: =$C$46 -> 0.0133 | G30: =$C$45 -> 0.0131 | H30: =$C$44 -> 0.0213 | I30: =$B$36 -> 0.02449889904 | J30: =$B$36 -> 0.02449889904
A31: Cumulative CPI | B31: =C31-(C31*B30) -> 0.8927137191 | C31: =D31-(D31*C30) -> 0.9170604569 | D31: =E31-(E31*D30) -> 0.9464325 | E31: =F31-(F31*E30) -> 0.9707 | F31: 1 | G31: =F31*(1+G30) -> 1.0131 | H31: =G31*(1+H30) -> 1.03467903
H32: 1 | I32: =H32*(1+I30) -> 1.024498899 | J32: =I32*(1+J30) -> 1.049597994
G33: 1 | H33: =G33*(1+H30) -> 1.0213
A36: Forecast CPI | B36: 0.02449889904
A37: Nominal Vanilla WACC | B37: 0.0601771653
A38: Pre-tax Real WACC Rate | B38: 0.04185768988
A42: CPI - Weighted Av of 8 Capital Cities
B43: CPI | C43: Annual Δ in CPI
A44: 2017-03-31 | B44: 110.5 | C44: =ROUND(B44/B45-1,4) -> 0.0213
A45: 2016-03-31 | B45: 108.2 | C45: 0.0131
A46: 2015-03-31 | B46: 106.8 | C46: 0.0133
A47: 2014-03-31 | B47: 105.4 | C47: 0.0293
A48: 2013-03-31 | B48: 102.4 | C48: 0.025
A49: 2012-03-31 | B49: 99.9 | C49: 0.0163
A50: 2011-03-31 | B50: 98.3
A54: Submission Model Inputs
B56: Year -4 | C56: Year -3 | D56: Year -2 | E56: Year -1 | F56: Current | G56: Year 1 | H56: Year 2 | I56: Year 3 | J56: Year 4
B57: 2010-11 | C57: 2011-12 | D57: 2012-13 | E57: 2013-14 | F57: =F$20 -> 2014-15 | G57: =G$20 -> 2015-16 | H57: 2016-17 | I57: 2017-18 | J57: 2018-19
A58: CPI | B58: 0.02654867257 | C58: 0.03103448276 | D58: 0.026 | E58: 0.026 | F58: 0.025 | G58: 0.025 | H58: 0.025 | I58: 0.025 | J58: 0.025
A59: Cumulative CPI | B59: =C59-(C59*B58) -> 0.8948298798 | C59: =D59-(D59*C58) -> 0.919234331 | D59: =E59-(E59*D58) -> 0.948676 | E59: =F59-(F59*E58) -> 0.974 | F59: 1 | G59: =F59*(1+G$58) -> 1.025 | H59: =G59*(1+H$58) -> 1.050625 | I59: 1.076890625 | J59: 1.103812891
A60: 2017/18 dollars | I60: 1 | J60: =I60*(1+J$58) -> 1.025
G61: 1 | H61: =G61*(1+H$58) -> 1.025 | I61: =H61*(1+I$58) -> 1.050625
A62: Bracket Data | B62: 0.025 | C62: =B62 -> 0.025 | D62: =C62 -> 0.025 | E62: =D62 -> 0.025 | F62: =E62 -> 0.025 | G62: =F62 -> 0.025 | H62: =G62 -> 0.025 | I62: =H62 -> 0.025
A63: 1 | B63: =A63*(1+B$62) -> 1.025 | C63: =B63*(1+C$62) -> 1.050625 | D63: 1.076890625 | E63: 1.103812891 | F63: 1.131408213 | G63: 1.159693418 | H63: 1.188685754 | I63: 1.218402898
A67: Forecast CPI | B67: =I58 -> 0.025
A68: Nominal Vanilla WACC | B68: 0.0604
A69: Pre-tax Real WACC Rate | B69: 0.03994743024

Sheet Smoothed Prices
B4: Private Contract Lights
E6: X Factor | F6: Days | G6: ='Master Data'!I23 -> 365 | H6: ='Master Data'!J23 -> 365
E7: =S142 -> -0.006176014518 | F7: CPI | G7: ='Master Data'!I32 -> 1.024498899 | H7: ='Master Data'!J32 -> 1.049597994 | M7: =HLOOKUP(M9,'Master Data'!$B$20:$P$23,4,FALSE) -> 365 | N7: =HLOOKUP(N9,'Master Data'!$B$20:$P$23,4,FALSE) -> 365 | P7: =HLOOKUP(P9,'Master Data'!$B$20:$P$23,4,FALSE) -> 365 | Q7: =HLOOKUP(Q9,'Master Data'!$B$20:$P$23,4,FALSE) -> 365
B8: Private Contract Lights | C8: Price (cents) per Light per day Real 2016/17 Smoothed | G8: Price (cents) per Light per day Nominal Smoothed | J8: Volumes | M8: Smooth Real Cost Dollars Per Year | P8: Smooth Nominal Cost Dollars Per Year | S8: Revenue Nominal Dollars Per Year | V8: Revenue Real Dollars Per Year
C9: Offered / No Longer Offered / NA | D9: ='Master Data'!I$29 -> 2017-18 | E9: ='Master Data'!J$29 -> 2018-19 | G9: ='Master Data'!I$29 -> 2017-18 | H9: ='Master Data'!J$29 -> 2018-19 | J9: ='Master Data'!I$29 -> 2017-18 | K9: ='Master Data'!J$29 -> 2018-19 | M9: ='Master Data'!I$29 -> 2017-18 | N9: ='Master Data'!J$29 -> 2018-19 | P9: ='Master Data'!I$29 -> 2017-18 | Q9: ='Master Data'!J$29 -> 2018-19 | S9: ='Master Data'!I$29 -> 2017-18 | T9: ='Master Data'!J$29 -> 2018-19 | V9: ='Master Data'!I$29 -> 2017-18 | W9: ='Master Data'!J$29 -> 2018-19
B10: =Inputs!$C69 -> 32W Compact Fluorescent | C10: Not Offered | D10: =IF($C10="NA","",'Unsmoothed Prices'!D10) -> 17.345 | E10: =IF($C10="NA","",D10*(1-$E$7)) -> 17.45212297 | G10: =IF($C10="NA","",D10*G$7) -> 17.7699334 | H10: =IF($C10="NA","",E10*H$7) -> 18.31771326 | J10: =IFERROR(VLOOKUP($B10,Volumes!$B$4:$F$32,MATCH(J$9,Volumes!$B$4:$F$4,0),FALSE),0) -> 0 | K10: =IFERROR(VLOOKUP($B10,Volumes!$B$4:$F$32,MATCH(K$9,Volumes!$B$4:$F$4,0),FALSE),0) -> 0 | M10: =IF($C10="NA","",(D10*M$7)/100) -> 63.30925 | N10: =IF($C10="NA","",(E10*N$7)/100) -> 63.70024885 | P10: =IF($C10="NA","",(G10*P$7)/100) -> 64.86025692 | Q10: =IF($C10="NA","",(H10*Q$7)/100) -> 66.85965342 | S10: =IFERROR(P10*J10,0) -> 0 | T10: =IFERROR(Q10*K10,0) -> 0 | V10: =IFERROR(M10*J10,0) -> 0 | W10: =IFERROR(N10*K10,0) -> 0
B11: =Inputs!$C70 -> 42W Compact Fluorescent | C11: Offered | D11: =IF($C11="NA","",'Unsmoothed Prices'!D11) -> 17.345 | E11: =IF($C11="NA","",D11*(1-$E$7)) -> 17.45212297 | G11: =IF($C11="NA","",D11*G$7) -> 17.7699334 | H11: =IF($C11="NA","",E11*H$7) -> 18.31771326 | J11: =IFERROR(VLOOKUP($B11,Volumes!$B$4:$F$32,MATCH(J$9,Volumes!$B$4:$F$4,0),FALSE),0) -> 0 | K11: =IFERROR(VLOOKUP($B11,Volumes!$B$4:$F$32,MATCH(K$9,Volumes!$B$4:$F$4,0),FALSE),0) -> 0 | M11: 63.30925 | N11: 63.70024885 | P11: 64.86025692 | Q11: 66.85965342 | S11: 0 | T11: 0 | V11: 0 | W11: 0
B12: =Inputs!$C71 -> 42W Compact Fluorescent - Bottom Pole Entry | C12: Offered | D12: =IF($C12="NA","",'Unsmoothed Prices'!D12) -> 17.345 | E12: 17.45212297 | G12: 17.7699334 | H12: 18.31771326 | J12: =IFERROR(VLOOKUP($B12,Volumes!$B$4:$F$32,MATCH(J$9,Volumes!$B$4:$F$4,0),FALSE),0) -> 0 | K12: =IFERROR(VLOOKUP($B12,Volumes!$B$4:$F$32,MATCH(K$9,Volumes!$B$4:$F$4,0),FALSE),0) -> 0 | M12: 63.30925 | N12: 63.70024885 | P12: 64.86025692 | Q12: 66.85965342 | S12: 0 | T12: 0 | V12: 0 | W12: 0
B13: =Inputs!$C72 -> 2x24W Compact Fluorescent | C13: Not Offered | D13: =IF($C13="NA","",'Unsmoothed Prices'!D13) -> 17.653 | E13: 17.76202518 | G13: 18.08547906 | H13: 18.64298601 | J13: =IFERROR(VLOOKUP($B13,Volumes!$B$4:$F$32,MATCH(J$9,Volumes!$B$4:$F$4,0),FALSE),0) -> 0 | K13: =IFERROR(VLOOKUP($B13,Volumes!$B$4:$F$32,MATCH(K$9,Volumes!$B$4:$F$4,0),FALSE),0) -> 0 | M13: 64.43345 | N13: 64.83139192 | P13: 66.01199859 | Q13: 68.04689892 | S13: 0 | T13: 0 | V13: 0 | W13: 0
B14: =Inputs!$C73 -> 1x20W Fluorescent | C14: Obsolete, no new Connections | D14: =IF($C14="NA","",'Unsmoothed Prices'!D14) -> 17.314 | E14: 17.42093152 | G14: 17.73817394 | H14: 18.28497477 | J14: =IFERROR(VLOOKUP($B14,Volumes!$B$4:$F$32,MATCH(J$9,Volumes!$B$4:$F$4,0),FALSE),0) -> 0 | K14: =IFERROR(VLOOKUP($B14,Volumes!$B$4:$F$32,MATCH(K$9,Volumes!$B$4:$F$4,0),FALSE),0) -> 0 | M14: 63.1961 | N14: 63.58640003 | P14: 64.74433487 | Q14: 66.74015793 | S14: 0 | T14: 0 | V14: 0 | W14: 0
B15: =Inputs!$C74 -> 1x40W Fluorescent | C15: Obsolete, no new Connections | D15: =IF($C15="NA","",'Unsmoothed Prices'!D15) -> 17.332 | E15: 17.43904268 | G15: 17.75661492 | H15: 18.30398422 | J15: =IFERROR(VLOOKUP($B15,Volumes!$B$4:$F$32,MATCH(J$9,Volumes!$B$4:$F$4,0),FALSE),0) -> 0 | K15: =IFERROR(VLOOKUP($B15,Volumes!$B$4:$F$32,MATCH(K$9,Volumes!$B$4:$F$4,0),FALSE),0) -> 0 | M15: 63.2618 | N15: 63.6525058 | P15: 64.81164445 | Q15: 66.8095424 | S15: 0 | T15: 0 | V15: 0 | W15: 0
B16: =Inputs!$C75 -> 2x20W Fluorescent | C16: Obsolete, no new Connections | D16: =IF($C16="NA","",'Unsmoothed Prices'!D16) -> 17.591 | E16: 17.69964227 | G16: 18.02196013 | H16: 18.57750902 | J16: =IFERROR(VLOOKUP($B16,Volumes!$B$4:$F$32,MATCH(J$9,Volumes!$B$4:$F$4,0),FALSE),0) -> 0 | K16: =IFERROR(VLOOKUP($B16,Volumes!$B$4:$F$32,MATCH(K$9,Volumes!$B$4:$F$4,0),FALSE),0) -> 0 | M16: 64.20715 | N16: 64.60369429 | P16: 65.78015449 | Q16: 67.80790794 | S16: 0 | T16: 0 | V16: 0 | W16: 0
B17: =Inputs!$C76 -> 2x24W Fluorescent | C17: Obsolete, no new Connections | D17: =IF($C17="NA","",'Unsmoothed Prices'!D17) -> 17.44 | E17: 17.54770969 | G17: 17.8672608 | H17: 18.4180409 | J17: =IFERROR(VLOOKUP($B17,Volumes!$B$4:$F$32,MATCH(J$9,Volumes!$B$4:$F$4,0),FALSE),0) -> 0 | K17: =IFERROR(VLOOKUP($B17,Volumes!$B$4:$F$32,MATCH(K$9,Volumes!$B$4:$F$4,0),FALSE),0) -> 0 | M17: 63.656 | N17: 64.04914038 | P17: 65.21550192 | Q17: 67.22584927 | S17: 0 | T17: 0 | V17: 0 | W17: 0
B18: =Inputs!$C77 -> T5 Fluorescent 2 x 24W | C18: Obsolete, no new Connections | D18: =IF($C18="NA","",'Unsmoothed Prices'!D18) -> 17.591 | E18: 17.69964227 | G18: 18.02196013 | H18: 18.57750902 | J18: =IFERROR(VLOOKUP($B18,Volumes!$B$4:$F$32,MATCH(J$9,Volumes!$B$4:$F$4,0),FALSE),0) -> 0 | K18: =IFERROR(VLOOKUP($B18,Volumes!$B$4:$F$32,MATCH(K$9,Volumes!$B$4:$F$4,0),FALSE),0) -> 0 | M18: 64.20715 | N18: 64.60369429 | P18: 65.78015449 | Q18: 67.80790794 | S18: 0 | T18: 0 | V18: 0 | W18: 0
B19: =Inputs!$C78 -> 20 Fluorescent 1X20FL | C19: Obsolete, no new Connections | D19: =IF($C19="NA","",'Unsmoothed Prices'!D19) -> 17.314 | E19: 17.42093152 | G19: 17.73817394 | H19: 18.28497477 | J19: =IFERROR(VLOOKUP($B19,Volumes!$B$4:$F$32,MATCH(J$9,Volumes!$B$4:$F$4,0),FALSE),0) -> 0 | K19: =IFERROR(VLOOKUP($B19,Volumes!$B$4:$F$32,MATCH(K$9,Volumes!$B$4:$F$4,0),FALSE),0) -> 0 | M19: 63.1961 | N19: 63.58640003 | P19: 64.74433487 | Q19: 66.74015793 | S19: 0 | T19: 0 | V19: 0 | W19: 0
B20: =Inputs!$C79 -> 2x40W Fluorescent | C20: Obsolete, no new Connections | D20: =IF($C20="NA","",'Unsmoothed Prices'!D20) -> 17.627 | E20: 17.73586461 | G20: 18.05884209 | H20: 18.61552792 | J20: =IFERROR(VLOOKUP($B20,Volumes!$B$4:$F$32,MATCH(J$9,Volumes!$B$4:$F$4,0),FALSE),0) -> 0 | K20: =IFERROR(VLOOKUP($B20,Volumes!$B$4:$F$32,MATCH(K$9,Volumes!$B$4:$F$4,0),FALSE),0) -> 0 | M20: 64.33855 | N20: 64.73590582 | P20: 65.91477364 | Q20: 67.9466769 | S20: 0 | T20: 0 | V20: 0 | W20: 0
B21: =Inputs!$C80 -> 3x40W Fluorescent | C21: Obsolete, no new Connections | D21: =IF($C21="NA","",'Unsmoothed Prices'!D21) -> 21.335 | E21: 21.46676527 | G21: 21.85768401 | H21: 22.53147377 | J21: =IFERROR(VLOOKUP($B21,Volumes!$B$4:$F$32,MATCH(J$9,Volumes!$B$4:$F$4,0),FALSE),0) -> 0 | K21: =IFERROR(VLOOKUP($B21,Volumes!$B$4:$F$32,MATCH(K$9,Volumes!$B$4:$F$4,0),FALSE),0) -> 0 | M21: 77.87275 | N21: 78.35369323 | P21: 79.78054664 | Q21: 82.23987925 | S21: 0 | T21: 0 | V21: 0 | W21: 0
B22: =Inputs!$C81 -> 4x20 Fluorescent | C22: Obsolete, no new Connections | D22: =IF($C22="NA","",'Unsmoothed Prices'!D22) -> 18.144 | E22: 18.25605761 | G22: 18.58850802 | H22: 19.16152145 | J22: =IFERROR(VLOOKUP($B22,Volumes!$B$4:$F$32,MATCH(J$9,Volumes!$B$4:$F$4,0),FALSE),0) -> 0 | K22: =IFERROR(VLOOKUP($B22,Volumes!$B$4:$F$32,MATCH(K$9,Volumes!$B$4:$F$4,0),FALSE),0) -> 0 | M22: 66.2256 | N22: 66.63461027 | P22: 67.84805429 | Q22: 69.93955328 | S22: 0 | T22: 0 | V22: 0 | W22: 0
B23: =Inputs!$C82 -> 4x40W Fluorescent | C23: Obsolete, no new Connections | D23: =IF($C23="NA","",'Unsmoothed Prices'!D23) -> 21.629 | E23: 21.76258102 | G23: 22.15888669 | H23: 22.84196138 | J23: =IFERROR(VLOOKUP($B23,Volumes!$B$4:$F$32,MATCH(J$9,Volumes!$B$4:$F$4,0),FALSE),0) -> 0 | K23: =IFERROR(VLOOKUP($B23,Volumes!$B$4:$F$32,MATCH(K$9,Volumes!$B$4:$F$4,0),FALSE),0) -> 0 | M23: 78.94585 | N23: 79.43342072 | P23: 80.87993641 | Q23: 83.37315905 | S23: 0 | T23: 0 | V23: 0 | W23: 0
B24: =Inputs!$C83 -> 100W Sodium Vapour | C24: Offered | D24: =IF($C24="NA","",'Unsmoothed Prices'!D24) -> 21.474 | E24: 21.60662374 | G24: 22.00008936 | H24: 22.67826893 | J24: =IFERROR(VLOOKUP($B24,Volumes!$B$4:$F$32,MATCH(J$9,Volumes!$B$4:$F$4,0),FALSE),0) -> 5 | K24: =IFERROR(VLOOKUP($B24,Volumes!$B$4:$F$32,MATCH(K$9,Volumes!$B$4:$F$4,0),FALSE),0) -> 5 | M24: 78.3801 | N24: 78.86417664 | P24: 80.30032616 | Q24: 82.77568161 | S24: 401.5016308 | T24: 413.878408 | V24: 391.9005 | W24: 394.3208832
B25: =Inputs!$C84 -> 0 | C25: NA | D25: =IF($C25="NA","",'Unsmoothed Prices'!D25) ->  | J25: =IFERROR(VLOOKUP($B25,Volumes!$B$4:$F$32,MATCH(J$9,Volumes!$B$4:$F$4,0),FALSE),0) -> 0 | K25: =IFERROR(VLOOKUP($B25,Volumes!$B$4:$F$32,MATCH(K$9,Volumes!$B$4:$F$4,0),FALSE),0) -> 0 | S25: 0 | T25: 0 | V25: 0 | W25: 0
B26: =Inputs!$C85 -> 150W Sodium Vapour | C26: Offered | D26: =IF($C26="NA","",'Unsmoothed Prices'!D26) -> 21.47 | E26: 21.60259903 | G26: 21.99599136 | H26: 22.67404461 | J26: =IFERROR(VLOOKUP($B26,Volumes!$B$4:$F$32,MATCH(J$9,Volumes!$B$4:$F$4,0),FALSE),0) -> 163 | K26: =IFERROR(VLOOKUP($B26,Volumes!$B$4:$F$32,MATCH(K$9,Volumes!$B$4:$F$4,0),FALSE),0) -> 163 | M26: 78.3655 | N26: 78.84948647 | P26: 80.28536847 | Q26: 82.76026283 | S26: 13086.51506 | T26: 13489.92284 | V26: 12773.5765 | W26: 12852.46629
B27: =Inputs!$C86 -> 0 | C27: NA | D27: =IF($C27="NA","",'Unsmoothed Prices'!D27) ->  | J27: =IFERROR(VLOOKUP($B27,Volumes!$B$4:$F$32,MATCH(J$9,Volumes!$B$4:$F$4,0),FALSE),0) -> 0 | K27: =IFERROR(VLOOKUP($B27,Volumes!$B$4:$F$32,MATCH(K$9,Volumes!$B$4:$F$4,0),FALSE),0) -> 0 | S27: 0 | T27: 0 | V27: 0 | W27: 0
B28: =Inputs!$C87 -> 0 | C28: NA | D28: =IF($C28="NA","",'Unsmoothed Prices'!D28) ->  | J28: =IFERROR(VLOOKUP($B28,Volumes!$B$4:$F$32,MATCH(J$9,Volumes!$B$4:$F$4,0),FALSE),0) -> 0 | K28: =IFERROR(VLOOKUP($B28,Volumes!$B$4:$F$32,MATCH(K$9,Volumes!$B$4:$F$4,0),FALSE),0) -> 0 | S28: 0 | T28: 0 | V28: 0 | W28: 0
B29: =Inputs!$C88 -> 0 | C29: NA | D29: =IF($C29="NA","",'Unsmoothed Prices'!D29) ->  | J29: =IFERROR(VLOOKUP($B29,Volumes!$B$4:$F$32,MATCH(J$9,Volumes!$B$4:$F$4,0),FALSE),0) -> 0 | K29: =IFERROR(VLOOKUP($B29,Volumes!$B$4:$F$32,MATCH(K$9,Volumes!$B$4:$F$4,0),FALSE),0) -> 0 | S29: 0 | T29: 0 | V29: 0 | W29: 0
B30: =Inputs!$C89 -> 250W Sodium Vapour | C30: Offered | D30: =IF($C30="NA","",'Unsmoothed Prices'!D30) -> 21.597 | E30: 21.73038339 | G30: 22.12610272 | H30: 22.80816681 | J30: =IFERROR(VLOOKUP($B30,Volumes!$B$4:$F$32,MATCH(J$9,Volumes!$B$4:$F$4,0),FALSE),0) -> 165 | K30: =IFERROR(VLOOKUP($B30,Volumes!$B$4:$F$32,MATCH(K$9,Volumes!$B$4:$F$4,0),FALSE),0) -> 165 | M30: 78.82905 | N30: 79.31589936 | P30: 80.76027494 | Q30: 83.24980887 | S30: 13325.44536 | T30: 13736.21846 | V30: 13006.79325 | W30: 13087.12339
B31: =Inputs!$C90 -> 0 | C31: NA | D31: =IF($C31="NA","",'Unsmoothed Prices'!D31) ->  | J31: =IFERROR(VLOOKUP($B31,Volumes!$B$4:$F$32,MATCH(J$9,Volumes!$B$4:$F$4,0),FALSE),0) -> 0 | K31: =IFERROR(VLOOKUP($B31,Volumes!$B$4:$F$32,MATCH(K$9,Volumes!$B$4:$F$4,0),FALSE),0) -> 0 | S31: 0 | T31: 0 | V31: 0 | W31: 0
B32: =Inputs!$C91 -> 0 | C32: NA | D32: =IF($C32="NA","",'Unsmoothed Prices'!D32) ->  | J32: =IFERROR(VLOOKUP($B32,Volumes!$B$4:$F$32,MATCH(J$9,Volumes!$B$4:$F$4,0),FALSE),0) -> 0 | K32: =IFERROR(VLOOKUP($B32,Volumes!$B$4:$F$32,MATCH(K$9,Volumes!$B$4:$F$4,0),FALSE),0) -> 0 | S32: 0 | T32: 0 | V32: 0 | W32: 0
B33: =Inputs!$C92 -> 0 | C33: NA | D33: =IF($C33="NA","",'Unsmoothed Prices'!D33) ->  | J33: =IFERROR(VLOOKUP($B33,Volumes!$B$4:$F$32,MATCH(J$9,Volumes!$B$4:$F$4,0),FALSE),0) -> 0 | K33: =IFERROR(VLOOKUP($B33,Volumes!$B$4:$F$32,MATCH(K$9,Volumes!$B$4:$F$4,0),FALSE),0) -> 0 | S33: 0 | T33: 0 | V33: 0 | W33: 0
B34: =Inputs!$C93 -> 250W Sodium Vapour - Flood Light | C34: Offered | D34: =IF($C34="NA","",'Unsmoothed Prices'!D34) -> 21.597 | E34: 21.73038339 | G34: 22.12610272 | H34: 22.80816681 | J34: =IFERROR(VLOOKUP($B34,Volumes!$B$4:$F$32,MATCH(J$9,Volumes!$B$4:$F$4,0),FALSE),0) -> 0 | K34: =IFERROR(VLOOKUP($B34,Volumes!$B$4:$F$32,MATCH(K$9,Volumes!$B$4:$F$4,0),FALSE),0) -> 0 | M34: 78.82905 | N34: 79.31589936 | P34: =IF($C34="NA","",(G34*P$7)/100) -> 80.76027494 | Q34: =IF($C34="NA","",(H34*Q$7)/100) -> 83.24980887 | S34: 0 | T34: 0 | V34: 0 | W34: 0
B35: =Inputs!$C94 -> 400W Sodium Vapour | C35: Offered | D35: =IF($C35="NA","",'Unsmoothed Prices'!D35) -> 21.64 | E35: 21.77364895 | G35: 22.17015618 | H35: 22.85357827 | J35: =IFERROR(VLOOKUP($B35,Volumes!$B$4:$F$32,MATCH(J$9,Volumes!$B$4:$F$4,0),FALSE),0) -> 104 | K35: =IFERROR(VLOOKUP($B35,Volumes!$B$4:$F$32,MATCH(K$9,Volumes!$B$4:$F$4,0),FALSE),0) -> 104 | M35: 78.986 | N35: 79.47381868 | P35: =IF($C35="NA","",(G35*P$7)/100) -> 80.92107004 | Q35: =IF($C35="NA","",(H35*Q$7)/100) -> 83.41556067 | S35: 8415.791284 | T35: 8675.21831 | V35: 8214.544 | W35: 8265.277143
B36: =Inputs!$C95 -> 0 | C36: NA | D36: =IF($C36="NA","",'Unsmoothed Prices'!D36) ->  | J36: =IFERROR(VLOOKUP($B36,Volumes!$B$4:$F$32,MATCH(J$9,Volumes!$B$4:$F$4,0),FALSE),0) -> 0 | K36: =IFERROR(VLOOKUP($B36,Volumes!$B$4:$F$32,MATCH(K$9,Volumes!$B$4:$F$4,0),FALSE),0) -> 0 | S36: 0 | T36: 0 | V36: 0 | W36: 0
B37: =Inputs!$C96 -> 400W Sodium Vapour - Flood Light | C37: Offered | D37: =IF($C37="NA","",'Unsmoothed Prices'!D37) -> 21.64 | E37: 21.77364895 | G37: 22.17015618 | H37: 22.85357827 | J37: =IFERROR(VLOOKUP($B37,Volumes!$B$4:$F$32,MATCH(J$9,Volumes!$B$4:$F$4,0),FALSE),0) -> 0 | K37: =IFERROR(VLOOKUP($B37,Volumes!$B$4:$F$32,MATCH(K$9,Volumes!$B$4:$F$4,0),FALSE),0) -> 0 | M37: 78.986 | N37: 79.47381868 | P37: 80.92107004 | Q37: 83.41556067 | S37: 0 | T37: 0 | V37: 0 | W37: 0
B38: =Inputs!$C97 -> 70W Sodium Vapour | C38: Offered | D38: =IF($C38="NA","",'Unsmoothed Prices'!D38) -> 17.547 | E38: 17.65537053 | G38: 17.97688218 | H38: 18.53104149 | J38: =IFERROR(VLOOKUP($B38,Volumes!$B$4:$F$32,MATCH(J$9,Volumes!$B$4:$F$4,0),FALSE),0) -> 73 | K38: =IFERROR(VLOOKUP($B38,Volumes!$B$4:$F$32,MATCH(K$9,Volumes!$B$4:$F$4,0),FALSE),0) -> 73 | M38: 64.04655 | N38: 64.44210242 | P38: 65.61561996 | Q38: 67.63830144 | S38: 4789.940257 | T38: 4937.596005 | V38: 4675.39815 | W38: 4704.273477
B39: =Inputs!$C98 -> 0 | C39: NA | D39: =IF($C39="NA","",'Unsmoothed Prices'!D39) ->  | J39: =IFERROR(VLOOKUP($B39,Volumes!$B$4:$F$32,MATCH(J$9,Volumes!$B$4:$F$4,0),FALSE),0) -> 0 | K39: =IFERROR(VLOOKUP($B39,Volumes!$B$4:$F$32,MATCH(K$9,Volumes!$B$4:$F$4,0),FALSE),0) -> 0 | S39: 0 | T39: 0 | V39: 0 | W39: 0
B40: =Inputs!$C99 -> 100W Incandescent | C40: Obsolete, no new Connections | D40: =IF($C40="NA","",'Unsmoothed Prices'!D40) -> 20.57 | E40: 20.69704062 | G40: 21.07394235 | H40: 21.72357232 | J40: =IFERROR(VLOOKUP($B40,Volumes!$B$4:$F$32,MATCH(J$9,Volumes!$B$4:$F$4,0),FALSE),0) -> 0 | K40: =IFERROR(VLOOKUP($B40,Volumes!$B$4:$F$32,MATCH(K$9,Volumes!$B$4:$F$4,0),FALSE),0) -> 0 | M40: 75.0805 | N40: 75.54419826 | P40: 76.91988959 | Q40: 79.29103896 | S40: 0 | T40: 0 | V40: 0 | W40: 0
B41: =Inputs!$C100 -> 60W Incandescent | C41: Obsolete, no new Connections | D41: =IF($C41="NA","",'Unsmoothed Prices'!D41) -> 17.156 | E41: 17.26195571 | G41: 17.57630311 | H41: 18.11811408 | J41: =IFERROR(VLOOKUP($B41,Volumes!$B$4:$F$32,MATCH(J$9,Volumes!$B$4:$F$4,0),FALSE),0) -> 0 | K41: =IFERROR(VLOOKUP($B41,Volumes!$B$4:$F$32,MATCH(K$9,Volumes!$B$4:$F$4,0),FALSE),0) -> 0 | M41: 62.6194 | N41: 63.00613832 | P41: 64.15350636 | Q41: 66.1311164 | S41: 0 | T41: 0 | V41: 0 | W41: 0
B42: =Inputs!$C101 -> 18W LED | C42: Offered | D42: =IF($C42="NA","",'Unsmoothed Prices'!D42) -> 11.755 | E42: 11.82759905 | G42: 12.04298456 | H42: 12.41422424 | J42: =IFERROR(VLOOKUP($B42,Volumes!$B$4:$F$32,MATCH(J$9,Volumes!$B$4:$F$4,0),FALSE),0) -> 4762 | K42: =IFERROR(VLOOKUP($B42,Volumes!$B$4:$F$32,MATCH(K$9,Volumes!$B$4:$F$4,0),FALSE),0) -> 4810 | M42: =IF($C42="NA","",(D42*M$7)/100) -> 42.90575 | N42: =IF($C42="NA","",(E42*N$7)/100) -> 43.17073653 | P42: 43.95689364 | Q42: 45.31191847 | S42: =IFERROR(P42*J42,0) -> 209322.7275 | T42: =IFERROR(Q42*K42,0) -> 217950.3279 | V42: =IFERROR(M42*J42,0) -> 204317.1815 | W42: =IFERROR(N42*K42,0) -> 207651.2427
B43: =Inputs!$C102 -> 25W LED | C43: Offered | D43: =IF($C43="NA","",'Unsmoothed Prices'!D43) -> 11.755 | E43: 11.82759905 | G43: 12.04298456 | H43: 12.41422424 | J43: =IFERROR(VLOOKUP($B43,Volumes!$B$4:$F$32,MATCH(J$9,Volumes!$B$4:$F$4,0),FALSE),0) -> 29 | K43: =IFERROR(VLOOKUP($B43,Volumes!$B$4:$F$32,MATCH(K$9,Volumes!$B$4:$F$4,0),FALSE),0) -> 29 | M43: 42.90575 | N43: 43.17073653 | P43: 43.95689364 | Q43: 45.31191847 | S43: 1274.749915 | T43: 1314.045636 | V43: 1244.26675 | W43: 1251.95136
B44: =Inputs!$C103 -> 18W LED Decorative - Bottom Pole Entry | C44: Offered | D44: =IF($C44="NA","",'Unsmoothed Prices'!D44) -> 11.755 | E44: 11.82759905 | G44: 12.04298456 | H44: 12.41422424 | J44: =IFERROR(VLOOKUP($B44,Volumes!$B$4:$F$32,MATCH(J$9,Volumes!$B$4:$F$4,0),FALSE),0) -> 0 | K44: =IFERROR(VLOOKUP($B44,Volumes!$B$4:$F$32,MATCH(K$9,Volumes!$B$4:$F$4,0),FALSE),0) -> 0 | M44: 42.90575 | N44: 43.17073653 | P44: 43.95689364 | Q44: 45.31191847 | S44: 0 | T44: 0 | V44: 0 | W44: 0
B45: =Inputs!$C104 -> 18W LED Decorative - Side Entry | C45: Offered | D45: =IF($C45="NA","",'Unsmoothed Prices'!D45) -> 11.755 | E45: 11.82759905 | G45: 12.04298456 | H45: 12.41422424 | J45: =IFERROR(VLOOKUP($B45,Volumes!$B$4:$F$32,MATCH(J$9,Volumes!$B$4:$F$4,0),FALSE),0) -> 0 | K45: =IFERROR(VLOOKUP($B45,Volumes!$B$4:$F$32,MATCH(K$9,Volumes!$B$4:$F$4,0),FALSE),0) -> 0 | M45: 42.90575 | N45: 43.17073653 | P45: 43.95689364 | Q45: 45.31191847 | S45: 0 | T45: 0 | V45: 0 | W45: 0
B46: =Inputs!$C105 -> 18W LED Decorative - Top Entry | C46: Offered | D46: =IF($C46="NA","",'Unsmoothed Prices'!D46) -> 11.755 | E46: 11.82759905 | G46: 12.04298456 | H46: 12.41422424 | J46: =IFERROR(VLOOKUP($B46,Volumes!$B$4:$F$32,MATCH(J$9,Volumes!$B$4:$F$4,0),FALSE),0) -> 0 | K46: =IFERROR(VLOOKUP($B46,Volumes!$B$4:$F$32,MATCH(K$9,Volumes!$B$4:$F$4,0),FALSE),0) -> 0 | M46: 42.90575 | N46: 43.17073653 | P46: 43.95689364 | Q46: 45.31191847 | S46: 0 | T46: 0 | V46: 0 | W46: 0
B47: =Inputs!$C106 -> 25W LED Decorative - Bottom Pole Entry | C47: Offered | D47: =IF($C47="NA","",'Unsmoothed Prices'!D47) -> 11.755 | E47: 11.82759905 | G47: 12.04298456 | H47: 12.41422424 | J47: =IFERROR(VLOOKUP($B47,Volumes!$B$4:$F$32,MATCH(J$9,Volumes!$B$4:$F$4,0),FALSE),0) -> 0 | K47: =IFERROR(VLOOKUP($B47,Volumes!$B$4:$F$32,MATCH(K$9,Volumes!$B$4:$F$4,0),FALSE),0) -> 0 | M47: 42.90575 | N47: 43.17073653 | P47: 43.95689364 | Q47: 45.31191847 | S47: 0 | T47: 0 | V47: 0 | W47: 0
B48: =Inputs!$C107 -> 25W LED Decorative - Side Entry | C48: Offered | D48: =IF($C48="NA","",'Unsmoothed Prices'!D48) -> 11.755 | E48: 11.82759905 | G48: 12.04298456 | H48: 12.41422424 | J48: =IFERROR(VLOOKUP($B48,Volumes!$B$4:$F$32,MATCH(J$9,Volumes!$B$4:$F$4,0),FALSE),0) -> 0 | K48: =IFERROR(VLOOKUP($B48,Volumes!$B$4:$F$32,MATCH(K$9,Volumes!$B$4:$F$4,0),FALSE),0) -> 0 | M48: 42.90575 | N48: 43.17073653 | P48: 43.95689364 | Q48: 45.31191847 | S48: 0 | T48: 0 | V48: 0 | W48: 0
B49: =Inputs!$C108 -> 25W LED Decorative - Top Entry | C49: Offered | D49: =IF($C49="NA","",'Unsmoothed Prices'!D49) -> 11.755 | E49: 11.82759905 | G49: 12.04298456 | H49: 12.41422424 | J49: =IFERROR(VLOOKUP($B49,Volumes!$B$4:$F$32,MATCH(J$9,Volumes!$B$4:$F$4,0),FALSE),0) -> 0 | K49: =IFERROR(VLOOKUP($B49,Volumes!$B$4:$F$32,MATCH(K$9,Volumes!$B$4:$F$4,0),FALSE),0) -> 0 | M49: 42.90575 | N49: 43.17073653 | P49: 43.95689364 | Q49: 45.31191847 | S49: 0 | T49: 0 | V49: 0 | W49: 0
B50: =Inputs!$C109 -> 30W LED | C50: Not Offered | D50: =IF($C50="NA","",'Unsmoothed Prices'!D50) -> 11.755 | E50: 11.82759905 | G50: 12.04298456 | H50: 12.41422424 | J50: =IFERROR(VLOOKUP($B50,Volumes!$B$4:$F$32,MATCH(J$9,Volumes!$B$4:$F$4,0),FALSE),0) -> 32 | K50: =IFERROR(VLOOKUP($B50,Volumes!$B$4:$F$32,MATCH(K$9,Volumes!$B$4:$F$4,0),FALSE),0) -> 32 | M50: 42.90575 | N50: 43.17073653 | P50: 43.95689364 | Q50: 45.31191847 | S50: 1406.620596 | T50: 1449.981391 | V50: 1372.984 | W50: 1381.463569
B51: =Inputs!$C110 -> 88 LED Light | C51: Not Offered | D51: =IF($C51="NA","",'Unsmoothed Prices'!D51) -> 11.755 | E51: 11.82759905 | G51: 12.04298456 | H51: 12.41422424 | J51: =IFERROR(VLOOKUP($B51,Volumes!$B$4:$F$32,MATCH(J$9,Volumes!$B$4:$F$4,0),FALSE),0) -> 0 | K51: =IFERROR(VLOOKUP($B51,Volumes!$B$4:$F$32,MATCH(K$9,Volumes!$B$4:$F$4,0),FALSE),0) -> 0 | M51: 42.90575 | N51: 43.17073653 | P51: 43.95689364 | Q51: 45.31191847 | S51: 0 | T51: 0 | V51: 0 | W51: 0
B52: =Inputs!$C111 -> 100W Metal Halide | C52: Offered | D52: =IF($C52="NA","",'Unsmoothed Prices'!D52) -> 21.471 | E52: 21.60360521 | G52: 21.99701586 | H52: 22.67510069 | J52: =IFERROR(VLOOKUP($B52,Volumes!$B$4:$F$32,MATCH(J$9,Volumes!$B$4:$F$4,0),FALSE),0) -> 5 | K52: =IFERROR(VLOOKUP($B52,Volumes!$B$4:$F$32,MATCH(K$9,Volumes!$B$4:$F$4,0),FALSE),0) -> 5 | M52: 78.36915 | N52: 78.85315901 | P52: 80.28910789 | Q52: 82.76411753 | S52: 401.4455395 | T52: 413.8205876 | V52: 391.84575 | W52: 394.265795
B53: =Inputs!$C112 -> 150W Metal Halide | C53: Offered | D53: =IF($C53="NA","",'Unsmoothed Prices'!D53) -> 21.611 | E53: 21.74446985 | G53: 22.14044571 | H53: 22.82295194 | J53: =IFERROR(VLOOKUP($B53,Volumes!$B$4:$F$32,MATCH(J$9,Volumes!$B$4:$F$4,0),FALSE),0) -> 27 | K53: =IFERROR(VLOOKUP($B53,Volumes!$B$4:$F$32,MATCH(K$9,Volumes!$B$4:$F$4,0),FALSE),0) -> 27 | M53: 78.88015 | N53: 79.36731495 | P53: 80.81262683 | Q53: 83.30377457 | S53: 2181.940924 | T53: 2249.201913 | V53: 2129.76405 | W53: 2142.917504
B54: =Inputs!$C113 -> 250W Metal Halide | C54: Offered | D54: =IF($C54="NA","",'Unsmoothed Prices'!D54) -> 21.611 | E54: 21.74446985 | G54: 22.14044571 | H54: 22.82295194 | J54: =IFERROR(VLOOKUP($B54,Volumes!$B$4:$F$32,MATCH(J$9,Volumes!$B$4:$F$4,0),FALSE),0) -> 40 | K54: =IFERROR(VLOOKUP($B54,Volumes!$B$4:$F$32,MATCH(K$9,Volumes!$B$4:$F$4,0),FALSE),0) -> 40 | M54: 78.88015 | N54: 79.36731495 | P54: 80.81262683 | Q54: 83.30377457 | S54: 3232.505073 | T54: 3332.150983 | V54: 3155.206 | W54: 3174.692598
B55: =Inputs!$C114 -> 400W Metal Halide | C55: Offered | D55: =IF($C55="NA","",'Unsmoothed Prices'!D55) -> 22.282 | E55: 22.41961396 | G55: 22.82788447 | H55: 23.53158184 | J55: =IFERROR(VLOOKUP($B55,Volumes!$B$4:$F$32,MATCH(J$9,Volumes!$B$4:$F$4,0),FALSE),0) -> 9 | K55: =IFERROR(VLOOKUP($B55,Volumes!$B$4:$F$32,MATCH(K$9,Volumes!$B$4:$F$4,0),FALSE),0) -> 9 | M55: 81.3293 | N55: 81.83159094 | P55: 83.32177831 | Q55: 85.8902737 | S55: 749.8960048 | T55: 773.0124633 | V55: 731.9637 | W55: 736.4843184
B56: =Inputs!$C115 -> 70W Metal Halide | C56: Not Offered | D56: =IF($C56="NA","",'Unsmoothed Prices'!D56) -> 18.039 | E56: 18.15040913 | G56: 18.48093564 | H56: 19.05063301 | J56: =IFERROR(VLOOKUP($B56,Volumes!$B$4:$F$32,MATCH(J$9,Volumes!$B$4:$F$4,0),FALSE),0) -> 0 | K56: =IFERROR(VLOOKUP($B56,Volumes!$B$4:$F$32,MATCH(K$9,Volumes!$B$4:$F$4,0),FALSE),0) -> 0 | M56: 65.84235 | N56: 66.24899331 | P56: 67.45541508 | Q56: 69.53481049 | S56: 0 | T56: 0 | V56: 0 | W56: 0
B57: =Inputs!$C116 -> 250W Metal Halide - Flood Light | C57: Offered | D57: =IF($C57="NA","",'Unsmoothed Prices'!D57) -> 21.611 | E57: 21.74446985 | G57: 22.14044571 | H57: 22.82295194 | J57: =IFERROR(VLOOKUP($B57,Volumes!$B$4:$F$32,MATCH(J$9,Volumes!$B$4:$F$4,0),FALSE),0) -> 0 | K57: =IFERROR(VLOOKUP($B57,Volumes!$B$4:$F$32,MATCH(K$9,Volumes!$B$4:$F$4,0),FALSE),0) -> 0 | M57: 78.88015 | N57: 79.36731495 | P57: 80.81262683 | Q57: 83.30377457 | S57: 0 | T57: 0 | V57: 0 | W57: 0
B58: =Inputs!$C117 -> 400W Metal Halide - Flood Light | C58: Offered | D58: =IF($C58="NA","",'Unsmoothed Prices'!D58) -> 22.282 | E58: 22.41961396 | G58: 22.82788447 | H58: 23.53158184 | J58: =IFERROR(VLOOKUP($B58,Volumes!$B$4:$F$32,MATCH(J$9,Volumes!$B$4:$F$4,0),FALSE),0) -> 0 | K58: =IFERROR(VLOOKUP($B58,Volumes!$B$4:$F$32,MATCH(K$9,Volumes!$B$4:$F$4,0),FALSE),0) -> 0 | M58: 81.3293 | N58: 81.83159094 | P58: 83.32177831 | Q58: 85.8902737 | S58: 0 | T58: 0 | V58: 0 | W58: 0
B59: =Inputs!$C118 -> 125W Mercury Vapour | C59: Obsolete, no new Connections | D59: =IF($C59="NA","",'Unsmoothed Prices'!D59) -> 20.604 | E59: 20.7312506 | G59: 21.10877532 | H59: 21.75947905 | J59: =IFERROR(VLOOKUP($B59,Volumes!$B$4:$F$32,MATCH(J$9,Volumes!$B$4:$F$4,0),FALSE),0) -> 327 | K59: =IFERROR(VLOOKUP($B59,Volumes!$B$4:$F$32,MATCH(K$9,Volumes!$B$4:$F$4,0),FALSE),0) -> 320 | M59: 75.2046 | N59: 75.6690647 | P59: 77.0470299 | Q59: 79.42209853 | S59: 25194.37878 | T59: 25415.07153 | V59: 24591.9042 | W59: 24214.1007
B60: =Inputs!$C119 -> 250W Mercury Vapour | C60: Obsolete, no new Connections | D60: =IF($C60="NA","",'Unsmoothed Prices'!D60) -> 20.604 | E60: 20.7312506 | G60: 21.10877532 | H60: 21.75947905 | J60: =IFERROR(VLOOKUP($B60,Volumes!$B$4:$F$32,MATCH(J$9,Volumes!$B$4:$F$4,0),FALSE),0) -> 28 | K60: =IFERROR(VLOOKUP($B60,Volumes!$B$4:$F$32,MATCH(K$9,Volumes!$B$4:$F$4,0),FALSE),0) -> 28 | M60: 75.2046 | N60: 75.6690647 | P60: 77.0470299 | Q60: 79.42209853 | S60: 2157.316837 | T60: 2223.818759 | V60: 2105.7288 | W60: 2118.733812
B61: =Inputs!$C120 -> 0 | C61: NA | D61: =IF($C61="NA","",'Unsmoothed Prices'!D61) ->  | J61: =IFERROR(VLOOKUP($B61,Volumes!$B$4:$F$32,MATCH(J$9,Volumes!$B$4:$F$4,0),FALSE),0) -> 0 | K61: =IFERROR(VLOOKUP($B61,Volumes!$B$4:$F$32,MATCH(K$9,Volumes!$B$4:$F$4,0),FALSE),0) -> 0 | S61: 0 | T61: 0 | V61: 0 | W61: 0
B62: =Inputs!$C121 -> 400W Mercury Vapour | C62: Obsolete, no new Connections | D62: =IF($C62="NA","",'Unsmoothed Prices'!D62) -> 20.751 | E62: 20.87915848 | G62: 21.25937665 | H62: 21.91472286 | J62: =IFERROR(VLOOKUP($B62,Volumes!$B$4:$F$32,MATCH(J$9,Volumes!$B$4:$F$4,0),FALSE),0) -> 22 | K62: =IFERROR(VLOOKUP($B62,Volumes!$B$4:$F$32,MATCH(K$9,Volumes!$B$4:$F$4,0),FALSE),0) -> 21 | M62: 75.74115 | N62: 76.20892844 | P62: 77.59672479 | Q62: 79.98873843 | S62: 1707.127945 | T62: 1679.763507 | V62: 1666.3053 | W62: 1600.387497
B63: =Inputs!$C122 -> 50W Mercury Vapour | C63: Obsolete, no new Connections | D63: =IF($C63="NA","",'Unsmoothed Prices'!D63) -> 17.218 | E63: 17.32433862 | G63: 17.63982204 | H63: 18.18359106 | J63: =IFERROR(VLOOKUP($B63,Volumes!$B$4:$F$32,MATCH(J$9,Volumes!$B$4:$F$4,0),FALSE),0) -> 188 | K63: =IFERROR(VLOOKUP($B63,Volumes!$B$4:$F$32,MATCH(K$9,Volumes!$B$4:$F$4,0),FALSE),0) -> 184 | M63: 62.8457 | N63: 63.23383596 | P63: 64.38535046 | Q63: 66.37010738 | S63: 12104.44589 | T63: 12212.09976 | V63: 11814.9916 | W63: 11635.02582
B64: =Inputs!$C123 -> 80W Mercury Vapour Art decorative | C64: Obsolete, no new Connections | D64: =IF($C64="NA","",'Unsmoothed Prices'!D64) -> 17.187 | E64: 17.29314716 | G64: 17.60806258 | H64: 18.15085257 | J64: =IFERROR(VLOOKUP($B64,Volumes!$B$4:$F$32,MATCH(J$9,Volumes!$B$4:$F$4,0),FALSE),0) -> 0 | K64: =IFERROR(VLOOKUP($B64,Volumes!$B$4:$F$32,MATCH(K$9,Volumes!$B$4:$F$4,0),FALSE),0) -> 0 | M64: 62.73255 | N64: 63.11998714 | P64: 64.26942841 | Q64: 66.25061189 | S64: 0 | T64: 0 | V64: 0 | W64: 0
B65: =Inputs!$C124 -> 80W Mercury Vapour | C65: Obsolete, no new Connections | D65: =IF($C65="NA","",'Unsmoothed Prices'!D65) -> 17.187 | E65: 17.29314716 | G65: 17.60806258 | H65: 18.15085257 | J65: =IFERROR(VLOOKUP($B65,Volumes!$B$4:$F$32,MATCH(J$9,Volumes!$B$4:$F$4,0),FALSE),0) -> 350 | K65: =IFERROR(VLOOKUP($B65,Volumes!$B$4:$F$32,MATCH(K$9,Volumes!$B$4:$F$4,0),FALSE),0) -> 343 | M65: 62.73255 | N65: 63.11998714 | P65: 64.26942841 | Q65: 66.25061189 | S65: 22494.29994 | T65: 22723.95988 | V65: 21956.3925 | W65: 21650.15559
S66: 0 | T66: 0 | V66: 0 | W66: 0
J67: =SUM(J10:J66) -> 6329 | K67: 6358 | S67: =SUM(S10:S66) -> 322246.6485 | T67: =SUM(T10:T66) -> 332990.0883 | V67: =SUM(V10:V66) -> 314540.7466 | W67: 317254.8825
J68: =Volumes!E33=J67 -> TRUE | K68: =Volumes!F33=K67 -> TRUE
B69: Public Road Lights | C69: =C8 -> Price (cents) per Light per day Real 2016/17 Smoothed | G69: =G8 -> Price (cents) per Light per day Nominal Smoothed | J69: Volumes | M69: Smooth Real Cost Dollars Per Day | P69: Smooth Nominal Cost Dollars Per Day | S69: Revenue Nominal Dollars Per Year | V69: Revenue Real Dollars Per Year
C70: Offered / No Longer Offered / NA | D70: ='Master Data'!I$29 -> 2017-18 | E70: ='Master Data'!J$29 -> 2018-19 | G70: =G9 -> 2017-18 | H70: 2018-19 | J70: =J9 -> 2017-18 | K70: 2018-19 | M70: ='Master Data'!I$29 -> 2017-18 | N70: ='Master Data'!J$29 -> 2018-19 | P70: ='Master Data'!I$29 -> 2017-18 | Q70: ='Master Data'!J$29 -> 2018-19 | S70: ='Master Data'!I$29 -> 2017-18 | T70: ='Master Data'!J$29 -> 2018-19 | V70: ='Master Data'!I$29 -> 2017-18 | W70: ='Master Data'!J$29 -> 2018-19
B71: =Inputs!$C69 -> 32W Compact Fluorescent | C71: Not Offered | D71: =IF($C71="NA","",'Unsmoothed Prices'!D71) -> 34.288 | E71: =IF($C71="NA","",D71*(1-$E$7)) -> 34.49976319 | G71: =IF($C71="NA","",D71*G$7) -> 35.12801825 | H71: =IF($C71="NA","",E71*H$7) -> 36.21088224 | J71: =IFERROR(VLOOKUP($B71,Volumes!$B$38:$F$79,MATCH(J$9,Volumes!$B$4:$F$4,0),FALSE),0) -> 0 | K71: =IFERROR(VLOOKUP($B71,Volumes!$B$38:$F$79,MATCH(K$9,Volumes!$B$4:$F$4,0),FALSE),0) -> 0 | M71: =IF($C71="NA","",(D71*M$7)/100) -> 125.1512 | N71: =IF($C71="NA","",(E71*N$7)/100) -> 125.9241356 | P71: =IF($C71="NA","",(G71*P$7)/100) -> 128.2172666 | Q71: =IF($C71="NA","",(H71*Q$7)/100) -> 132.1697202 | S71: =IFERROR(P71*J71,0) -> 0 | T71: =IFERROR(Q71*K71,0) -> 0 | V71: =IFERROR(M71*J71,0) -> 0 | W71: =IFERROR(N71*K71,0) -> 0
B72: =Inputs!$C70 -> 42W Compact Fluorescent | C72: Offered | D72: =IF($C72="NA","",'Unsmoothed Prices'!D72) -> 34.312 | E72: =IF($C72="NA","",D72*(1-$E$7)) -> 34.52391141 | G72: 35.15260622 | H72: 36.23622817 | J72: =IFERROR(VLOOKUP($B72,Volumes!$B$38:$F$79,MATCH(J$9,Volumes!$B$4:$F$4,0),FALSE),0) -> 5704 | K72: =IFERROR(VLOOKUP($B72,Volumes!$B$38:$F$79,MATCH(K$9,Volumes!$B$4:$F$4,0),FALSE),0) -> 5419 | M72: 125.2388 | N72: 126.0122766 | P72: 128.3070127 | Q72: 132.2622328 | S72: 731863.2005 | T72: 716729.0396 | V72: 714362.1152 | W72: 682860.5272
B73: =Inputs!$C71 -> 42W Compact Fluorescent - Bottom Pole Entry | C73: Offered | D73: =IF($C73="NA","",'Unsmoothed Prices'!D73) -> 34.312 | E73: 34.52391141 | G73: 35.15260622 | H73: 36.23622817 | J73: =IFERROR(VLOOKUP($B73,Volumes!$B$38:$F$79,MATCH(J$9,Volumes!$B$4:$F$4,0),FALSE),0) -> 120 | K73: =IFERROR(VLOOKUP($B73,Volumes!$B$38:$F$79,MATCH(K$9,Volumes!$B$4:$F$4,0),FALSE),0) -> 170 | M73: 125.2388 | N73: 126.0122766 | P73: 128.3070127 | Q73: 132.2622328 | S73: 15396.84153 | T73: 22484.57958 | V73: 15028.656 | W73: 21422.08703
B74: =Inputs!$C72 -> 2x24W Compact Fluorescent | C74: Not Offered | D74: =IF($C74="NA","",'Unsmoothed Prices'!D74) -> 34.619 | E74: 34.83280745 | G74: 35.46712739 | H74: 36.56044483 | J74: =IFERROR(VLOOKUP($B74,Volumes!$B$38:$F$79,MATCH(J$9,Volumes!$B$4:$F$4,0),FALSE),0) -> 0 | K74: =IFERROR(VLOOKUP($B74,Volumes!$B$38:$F$79,MATCH(K$9,Volumes!$B$4:$F$4,0),FALSE),0) -> 0 | M74: 126.35935 | N74: 127.1397472 | P74: 129.455015 | Q74: 133.4456236 | S74: 0 | T74: 0 | V74: 0 | W74: 0
B75: =Inputs!$C73 -> 1x20W Fluorescent | C75: Obsolete, no new Connections | D75: =IF($C75="NA","",'Unsmoothed Prices'!D75) -> 35.926 | E75: 36.1478795 | G75: 36.80614745 | H75: 37.94074181 | J75: =IFERROR(VLOOKUP($B75,Volumes!$B$38:$F$79,MATCH(J$9,Volumes!$B$4:$F$4,0),FALSE),0) -> 0 | K75: =IFERROR(VLOOKUP($B75,Volumes!$B$38:$F$79,MATCH(K$9,Volumes!$B$4:$F$4,0),FALSE),0) -> 0 | M75: 131.1299 | N75: 131.9397602 | P75: 134.3424382 | Q75: 138.4837076 | S75: 0 | T75: 0 | V75: 0 | W75: 0
B76: =Inputs!$C74 -> 1x40W Fluorescent | C76: Abolished | D76: =IF($C76="NA","",'Unsmoothed Prices'!D76) -> 34.819 | E76: 35.03404265 | G76: 35.67202717 | H76: 36.77166089 | J76: =IFERROR(VLOOKUP($B76,Volumes!$B$38:$F$79,MATCH(J$9,Volumes!$B$4:$F$4,0),FALSE),0) -> 0 | K76: =IFERROR(VLOOKUP($B76,Volumes!$B$38:$F$79,MATCH(K$9,Volumes!$B$4:$F$4,0),FALSE),0) -> 0 | M76: 127.08935 | N76: 127.8742557 | P76: 130.2028992 | Q76: 134.2165623 | S76: 0 | T76: 0 | V76: 0 | W76: 0
B77: =Inputs!$C75 -> 2x20W Fluorescent | C77: Abolished | D77: =IF($C77="NA","",'Unsmoothed Prices'!D77) -> 36.202 | E77: 36.42558408 | G77: 37.08890914 | H77: 38.23221998 | J77: =IFERROR(VLOOKUP($B77,Volumes!$B$38:$F$79,MATCH(J$9,Volumes!$B$4:$F$4,0),FALSE),0) -> 0 | K77: =IFERROR(VLOOKUP($B77,Volumes!$B$38:$F$79,MATCH(K$9,Volumes!$B$4:$F$4,0),FALSE),0) -> 0 | M77: 132.1373 | N77: 132.9533819 | P77: 135.3745184 | Q77: 139.5476029 | S77: 0 | T77: 0 | V77: 0 | W77: 0
B78: =Inputs!$C76 -> 2x24W Fluorescent | C78: Obsolete, no new Connections | D78: =IF($C78="NA","",'Unsmoothed Prices'!D78) -> 36.155 | E78: 36.3782938 | G78: 37.04075769 | H78: 38.18258421 | J78: =IFERROR(VLOOKUP($B78,Volumes!$B$38:$F$79,MATCH(J$9,Volumes!$B$4:$F$4,0),FALSE),0) -> 0 | K78: =IFERROR(VLOOKUP($B78,Volumes!$B$38:$F$79,MATCH(K$9,Volumes!$B$4:$F$4,0),FALSE),0) -> 0 | M78: 131.96575 | N78: 132.7807724 | P78: 135.1987656 | Q78: 139.3664324 | S78: 0 | T78: 0 | V78: 0 | W78: 0
B79: =Inputs!$C77 -> T5 Fluorescent 2 x 24W | C79: Not Offered | D79: =IF($C79="NA","",'Unsmoothed Prices'!D79) -> 36.202 | E79: 36.42558408 | G79: 37.08890914 | H79: 38.23221998 | J79: =IFERROR(VLOOKUP($B79,Volumes!$B$38:$F$79,MATCH(J$9,Volumes!$B$4:$F$4,0),FALSE),0) -> 83 | K79: =IFERROR(VLOOKUP($B79,Volumes!$B$38:$F$79,MATCH(K$9,Volumes!$B$4:$F$4,0),FALSE),0) -> 83 | M79: 132.1373 | N79: 132.9533819 | P79: 135.3745184 | Q79: 139.5476029 | S79: 11236.08502 | T79: 11582.45104 | V79: 10967.3959 | W79: 11035.1307
B80: =Inputs!$C78 -> 20 Fluorescent 1X20FL | C80: Not Offered | D80: =IF($C80="NA","",'Unsmoothed Prices'!D80) -> 35.926 | E80: 36.1478795 | G80: 36.80614745 | H80: 37.94074181 | J80: =IFERROR(VLOOKUP($B80,Volumes!$B$38:$F$79,MATCH(J$9,Volumes!$B$4:$F$4,0),FALSE),0) -> 0 | K80: =IFERROR(VLOOKUP($B80,Volumes!$B$38:$F$79,MATCH(K$9,Volumes!$B$4:$F$4,0),FALSE),0) -> 0 | M80: 131.1299 | N80: 131.9397602 | P80: 134.3424382 | Q80: 138.4837076 | S80: 0 | T80: 0 | V80: 0 | W80: 0
B81: =Inputs!$C79 -> 2x40W Fluorescent | C81: Abolished | D81: =IF($C81="NA","",'Unsmoothed Prices'!D81) -> 35.113 | E81: 35.3298584 | G81: 35.97322984 | H81: 37.08214851 | J81: =IFERROR(VLOOKUP($B81,Volumes!$B$38:$F$79,MATCH(J$9,Volumes!$B$4:$F$4,0),FALSE),0) -> 0 | K81: =IFERROR(VLOOKUP($B81,Volumes!$B$38:$F$79,MATCH(K$9,Volumes!$B$4:$F$4,0),FALSE),0) -> 0 | M81: 128.16245 | N81: 128.9539832 | P81: 131.3022889 | Q81: 135.3498421 | S81: 0 | T81: 0 | V81: 0 | W81: 0
B82: =Inputs!$C80 -> 3x40W Fluorescent | C82: Not Offered | D82: =IF($C82="NA","",'Unsmoothed Prices'!D82) -> 44.156 | E82: 44.4287081 | G82: 45.23777339 | H82: 46.6322829 | J82: =IFERROR(VLOOKUP($B82,Volumes!$B$38:$F$79,MATCH(J$9,Volumes!$B$4:$F$4,0),FALSE),0) -> 0 | K82: =IFERROR(VLOOKUP($B82,Volumes!$B$38:$F$79,MATCH(K$9,Volumes!$B$4:$F$4,0),FALSE),0) -> 0 | M82: 161.1694 | N82: 162.1647846 | P82: 165.1178729 | Q82: 170.2078326 | S82: 0 | T82: 0 | V82: 0 | W82: 0
B83: =Inputs!$C81 -> 4x20 Fluorescent | C83: Abolished | D83: =IF($C83="NA","",'Unsmoothed Prices'!D83) -> 36.755 | E83: 36.98199941 | G83: 37.65545703 | H83: 38.8162324 | J83: =IFERROR(VLOOKUP($B83,Volumes!$B$38:$F$79,MATCH(J$9,Volumes!$B$4:$F$4,0),FALSE),0) -> 0 | K83: =IFERROR(VLOOKUP($B83,Volumes!$B$38:$F$79,MATCH(K$9,Volumes!$B$4:$F$4,0),FALSE),0) -> 0 | M83: 134.15575 | N83: 134.9842979 | P83: 137.4424182 | Q83: 141.6792483 | S83: 0 | T83: 0 | V83: 0 | W83: 0
B84: =Inputs!$C82 -> 4x40W Fluorescent | C84: Abolished | D84: =IF($C84="NA","",'Unsmoothed Prices'!D84) -> 45.575 | E84: 45.85647186 | G84: 46.69153732 | H84: 48.13086088 | J84: =IFERROR(VLOOKUP($B84,Volumes!$B$38:$F$79,MATCH(J$9,Volumes!$B$4:$F$4,0),FALSE),0) -> 0 | K84: =IFERROR(VLOOKUP($B84,Volumes!$B$38:$F$79,MATCH(K$9,Volumes!$B$4:$F$4,0),FALSE),0) -> 0 | M84: 166.34875 | N84: 167.3761223 | P84: 170.4241112 | Q84: 175.6776422 | S84: 0 | T84: 0 | V84: 0 | W84: 0
B85: =Inputs!$C83 -> 100W Sodium Vapour | C85: Offered | D85: =IF($C85="NA","",'Unsmoothed Prices'!D85) -> 43.331 | E85: 43.59861289 | G85: 44.39256179 | H85: 45.76101663 | J85: =IFERROR(VLOOKUP($B85,Volumes!$B$38:$F$79,MATCH(J$9,Volumes!$B$4:$F$4,0),FALSE),0) -> 403 | K85: =IFERROR(VLOOKUP($B85,Volumes!$B$38:$F$79,MATCH(K$9,Volumes!$B$4:$F$4,0),FALSE),0) -> 423 | M85: 158.15815 | N85: 159.134937 | P85: 162.0328505 | Q85: 167.0277107 | S85: 65299.23877 | T85: 70652.72163 | V85: 63737.73445 | W85: 67314.07836
B86: =Inputs!$C84 -> 0 | C86: NA | D86: =IF($C86="NA","",'Unsmoothed Prices'!D86) ->  | J86: =IFERROR(VLOOKUP($B86,Volumes!$B$38:$F$79,MATCH(J$9,Volumes!$B$4:$F$4,0),FALSE),0) -> 0 | K86: =IFERROR(VLOOKUP($B86,Volumes!$B$38:$F$79,MATCH(K$9,Volumes!$B$4:$F$4,0),FALSE),0) -> 0 | S86: 0 | T86: 0 | V86: 0 | W86: 0
B87: =Inputs!$C85 -> 150W Sodium Vapour | C87: Offered | D87: =IF($C87="NA","",'Unsmoothed Prices'!D87) -> 45.577 | E87: 45.85848421 | G87: 46.69358632 | H87: 48.13297304 | J87: =IFERROR(VLOOKUP($B87,Volumes!$B$38:$F$79,MATCH(J$9,Volumes!$B$4:$F$4,0),FALSE),0) -> 4827 | K87: =IFERROR(VLOOKUP($B87,Volumes!$B$38:$F$79,MATCH(K$9,Volumes!$B$4:$F$4,0),FALSE),0) -> 5069 | M87: 166.35605 | N87: 167.3834674 | P87: 170.4315901 | Q87: 175.6853516 | S87: 822673.2853 | T87: 890549.0473 | V87: 803000.6533 | W87: 848466.7961
B88: =Inputs!$C86 -> 0 | C88: NA | D88: =IF($C88="NA","",'Unsmoothed Prices'!D88) ->  | J88: =IFERROR(VLOOKUP($B88,Volumes!$B$38:$F$79,MATCH(J$9,Volumes!$B$4:$F$4,0),FALSE),0) -> 0 | K88: =IFERROR(VLOOKUP($B88,Volumes!$B$38:$F$79,MATCH(K$9,Volumes!$B$4:$F$4,0),FALSE),0) -> 0 | S88: 0 | T88: 0 | V88: 0 | W88: 0
B89: =Inputs!$C87 -> 0 | C89: NA | D89: =IF($C89="NA","",'Unsmoothed Prices'!D89) ->  | J89: =IFERROR(VLOOKUP($B89,Volumes!$B$38:$F$79,MATCH(J$9,Volumes!$B$4:$F$4,0),FALSE),0) -> 0 | K89: =IFERROR(VLOOKUP($B89,Volumes!$B$38:$F$79,MATCH(K$9,Volumes!$B$4:$F$4,0),FALSE),0) -> 0 | S89: 0 | T89: 0 | V89: 0 | W89: 0
B90: =Inputs!$C88 -> 0 | C90: NA | D90: =IF($C90="NA","",'Unsmoothed Prices'!D90) ->  | J90: =IFERROR(VLOOKUP($B90,Volumes!$B$38:$F$79,MATCH(J$9,Volumes!$B$4:$F$4,0),FALSE),0) -> 0 | K90: =IFERROR(VLOOKUP($B90,Volumes!$B$38:$F$79,MATCH(K$9,Volumes!$B$4:$F$4,0),FALSE),0) -> 0 | S90: 0 | T90: 0 | V90: 0 | W90: 0
B91: =Inputs!$C89 -> 250W Sodium Vapour | C91: Offered | D91: =IF($C91="NA","",'Unsmoothed Prices'!D91) -> 46.666 | E91: 46.95420989 | G91: 47.80926562 | H91: 49.28304452 | J91: =IFERROR(VLOOKUP($B91,Volumes!$B$38:$F$79,MATCH(J$9,Volumes!$B$4:$F$4,0),FALSE),0) -> 6000 | K91: =IFERROR(VLOOKUP($B91,Volumes!$B$38:$F$79,MATCH(K$9,Volumes!$B$4:$F$4,0),FALSE),0) -> 6300 | M91: 170.3309 | N91: 171.3828661 | P91: 174.5038195 | Q91: 179.8831125 | S91: 1047022.917 | T91: 1133263.609 | V91: 1021985.4 | W91: 1079712.057
B92: =Inputs!$C90 -> 0 | C92: NA | D92: =IF($C92="NA","",'Unsmoothed Prices'!D92) ->  | J92: =IFERROR(VLOOKUP($B92,Volumes!$B$38:$F$79,MATCH(J$9,Volumes!$B$4:$F$4,0),FALSE),0) -> 0 | K92: =IFERROR(VLOOKUP($B92,Volumes!$B$38:$F$79,MATCH(K$9,Volumes!$B$4:$F$4,0),FALSE),0) -> 0 | S92: 0 | T92: 0 | V92: 0 | W92: 0
B93: =Inputs!$C91 -> 0 | C93: NA | D93: =IF($C93="NA","",'Unsmoothed Prices'!D93) ->  | J93: =IFERROR(VLOOKUP($B93,Volumes!$B$38:$F$79,MATCH(J$9,Volumes!$B$4:$F$4,0),FALSE),0) -> 0 | K93: =IFERROR(VLOOKUP($B93,Volumes!$B$38:$F$79,MATCH(K$9,Volumes!$B$4:$F$4,0),FALSE),0) -> 0 | S93: 0 | T93: 0 | V93: 0 | W93: 0
B94: =Inputs!$C92 -> 0 | C94: NA | D94: =IF($C94="NA","",'Unsmoothed Prices'!D94) ->  | J94: =IFERROR(VLOOKUP($B94,Volumes!$B$38:$F$79,MATCH(J$9,Volumes!$B$4:$F$4,0),FALSE),0) -> 0 | K94: =IFERROR(VLOOKUP($B94,Volumes!$B$38:$F$79,MATCH(K$9,Volumes!$B$4:$F$4,0),FALSE),0) -> 0 | S94: 0 | T94: 0 | V94: 0 | W94: 0
B95: =Inputs!$C93 -> 250W Sodium Vapour - Flood Light | C95: Offered | D95: =IF($C95="NA","",'Unsmoothed Prices'!D95) -> 50.577 | E95: 50.88936429 | G95: 51.81608082 | H95: 53.41337468 | J95: =IFERROR(VLOOKUP($B95,Volumes!$B$38:$F$79,MATCH(J$9,Volumes!$B$4:$F$4,0),FALSE),0) -> 33 | K95: =IFERROR(VLOOKUP($B95,Volumes!$B$38:$F$79,MATCH(K$9,Volumes!$B$4:$F$4,0),FALSE),0) -> 35 | M95: 184.60605 | N95: 185.7461796 | P95: 189.128695 | Q95: 194.9588176 | S95: 6241.246934 | T95: 6823.558615 | V95: 6091.99965 | W95: 6501.116288
B96: =Inputs!$C94 -> 400W Sodium Vapour | C96: Offered | D96: =IF($C96="NA","",'Unsmoothed Prices'!D96) -> 47.488 | E96: 47.78128658 | G96: 48.65140372 | H96: 50.15114255 | J96: =IFERROR(VLOOKUP($B96,Volumes!$B$38:$F$79,MATCH(J$9,Volumes!$B$4:$F$4,0),FALSE),0) -> 611 | K96: =IFERROR(VLOOKUP($B96,Volumes!$B$38:$F$79,MATCH(K$9,Volumes!$B$4:$F$4,0),FALSE),0) -> 642 | M96: 173.3312 | N96: 174.401696 | P96: 177.5776236 | Q96: 183.0516703 | S96: 108499.928 | T96: 117519.1723 | V96: 105905.3632 | W96: 111965.8888
B97: =Inputs!$C95 -> 0 | C97: NA | D97: =IF($C97="NA","",'Unsmoothed Prices'!D97) ->  | J97: =IFERROR(VLOOKUP($B97,Volumes!$B$38:$F$79,MATCH(J$9,Volumes!$B$4:$F$4,0),FALSE),0) -> 0 | K97: =IFERROR(VLOOKUP($B97,Volumes!$B$38:$F$79,MATCH(K$9,Volumes!$B$4:$F$4,0),FALSE),0) -> 0 | S97: 0 | T97: 0 | V97: 0 | W97: 0
B98: =Inputs!$C96 -> 400W Sodium Vapour - Flood Light | C98: Offered | D98: =IF($C98="NA","",'Unsmoothed Prices'!D98) -> 50.068 | E98: 50.37722069 | G98: 51.29461088 | H98: 52.87582979 | J98: =IFERROR(VLOOKUP($B98,Volumes!$B$38:$F$79,MATCH(J$9,Volumes!$B$4:$F$4,0),FALSE),0) -> 33 | K98: =IFERROR(VLOOKUP($B98,Volumes!$B$38:$F$79,MATCH(K$9,Volumes!$B$4:$F$4,0),FALSE),0) -> 35 | M98: 182.7482 | N98: 183.8768555 | P98: 187.2253297 | Q98: 192.9967787 | S98: 6178.43588 | T98: 6754.887256 | V98: 6030.6906 | W98: 6435.689944
B99: =Inputs!$C97 -> 70W Sodium Vapour | C99: Offered | D99: =IF($C99="NA","",'Unsmoothed Prices'!D99) -> 34.156 | E99: 34.36694795 | G99: 34.9927844 | H99: 36.07147963 | J99: =IFERROR(VLOOKUP($B99,Volumes!$B$38:$F$79,MATCH(J$9,Volumes!$B$4:$F$4,0),FALSE),0) -> 214 | K99: =IFERROR(VLOOKUP($B99,Volumes!$B$38:$F$79,MATCH(K$9,Volumes!$B$4:$F$4,0),FALSE),0) -> 225 | M99: 124.6694 | N99: 125.43936 | P99: 127.723663 | Q99: 131.6609007 | S99: 27332.86389 | T99: 29623.70265 | V99: 26679.2516 | W99: 28223.85601
B100: =Inputs!$C98 -> 0 | C100: NA | D100: =IF($C100="NA","",'Unsmoothed Prices'!D100) ->  | J100: =IFERROR(VLOOKUP($B100,Volumes!$B$38:$F$79,MATCH(J$9,Volumes!$B$4:$F$4,0),FALSE),0) -> 0 | K100: =IFERROR(VLOOKUP($B100,Volumes!$B$38:$F$79,MATCH(K$9,Volumes!$B$4:$F$4,0),FALSE),0) -> 0 | S100: 0 | T100: 0 | V100: 0 | W100: 0
B101: =Inputs!$C99 -> 100W Incandescent | C101: Abolished | D101: =IF($C101="NA","",'Unsmoothed Prices'!D101) -> 39.956 | E101: 40.20276884 | G101: 40.93487801 | H101: 42.19674553 | J101: =IFERROR(VLOOKUP($B101,Volumes!$B$38:$F$79,MATCH(J$9,Volumes!$B$4:$F$4,0),FALSE),0) -> 0 | K101: =IFERROR(VLOOKUP($B101,Volumes!$B$38:$F$79,MATCH(K$9,Volumes!$B$4:$F$4,0),FALSE),0) -> 0 | M101: 145.8394 | N101: 146.7401063 | P101: 149.4123047 | Q101: 154.0181212 | S101: 0 | T101: 0 | V101: 0 | W101: 0
B102: =Inputs!$C100 -> 60W Incandescent | C102: Abolished | D102: =IF($C102="NA","",'Unsmoothed Prices'!D102) -> 31.209 | E102: 31.40174724 | G102: 31.97358614 | H102: 32.95921091 | J102: =IFERROR(VLOOKUP($B102,Volumes!$B$38:$F$79,MATCH(J$9,Volumes!$B$4:$F$4,0),FALSE),0) -> 0 | K102: =IFERROR(VLOOKUP($B102,Volumes!$B$38:$F$79,MATCH(K$9,Volumes!$B$4:$F$4,0),FALSE),0) -> 0 | M102: 113.91285 | N102: 114.6163774 | P102: 116.7035894 | Q102: 120.3011198 | S102: 0 | T102: 0 | V102: 0 | W102: 0
B103: =Inputs!$C101 -> 18W LED | C103: Offered | D103: =IF($C103="NA","",'Unsmoothed Prices'!D103) -> 32.687 | E103: 32.88887539 | G103: 33.48779551 | H103: 34.52009763 | J103: =IFERROR(VLOOKUP($B103,Volumes!$B$38:$F$79,MATCH(J$9,Volumes!$B$4:$F$4,0),FALSE),0) -> 10110 | K103: =IFERROR(VLOOKUP($B103,Volumes!$B$38:$F$79,MATCH(K$9,Volumes!$B$4:$F$4,0),FALSE),0) -> 14210 | M103: =IF($C103="NA","",(D103*M$7)/100) -> 119.30755 | N103: =IF($C103="NA","",(E103*N$7)/100) -> 120.0443952 | P103: 122.2304536 | Q103: 125.9983564 | S103: =IFERROR(P103*J103,0) -> 1235749.886 | T103: =IFERROR(Q103*K103,0) -> 1790436.644 | V103: =IFERROR(M103*J103,0) -> 1206199.33 | W103: =IFERROR(N103*K103,0) -> 1705830.855
B104: =Inputs!$C102 -> 25W LED | C104: Offered | D104: =IF($C104="NA","",'Unsmoothed Prices'!D104) -> 32.687 | E104: 32.88887539 | G104: 33.48779551 | H104: 34.52009763 | J104: =IFERROR(VLOOKUP($B104,Volumes!$B$38:$F$79,MATCH(J$9,Volumes!$B$4:$F$4,0),FALSE),0) -> 21 | K104: =IFERROR(VLOOKUP($B104,Volumes!$B$38:$F$79,MATCH(K$9,Volumes!$B$4:$F$4,0),FALSE),0) -> 21 | M104: 119.30755 | N104: 120.0443952 | P104: 122.2304536 | Q104: 125.9983564 | S104: 2566.839526 | T104: 2645.965484 | V104: 2505.45855 | W104: 2520.932298
B105: =Inputs!$C103 -> 18W LED Decorative - Bottom Pole Entry | C105: Offered | D105: =IF($C105="NA","",'Unsmoothed Prices'!D105) -> 45.775 | E105: 46.05770706 | G105: 46.8964371 | H105: 48.34207695 | J105: =IFERROR(VLOOKUP($B105,Volumes!$B$38:$F$79,MATCH(J$9,Volumes!$B$4:$F$4,0),FALSE),0) -> 33 | K105: =IFERROR(VLOOKUP($B105,Volumes!$B$38:$F$79,MATCH(K$9,Volumes!$B$4:$F$4,0),FALSE),0) -> 35 | M105: 167.07875 | N105: 168.1106308 | P105: 171.1719954 | Q105: 176.4485809 | S105: 5648.675849 | T105: 6175.70033 | V105: 5513.59875 | W105: 5883.872077
B106: =Inputs!$C104 -> 18W LED Decorative - Side Entry | C106: Offered | D106: =IF($C106="NA","",'Unsmoothed Prices'!D106) -> 45.775 | E106: 46.05770706 | G106: 46.8964371 | H106: 48.34207695 | J106: =IFERROR(VLOOKUP($B106,Volumes!$B$38:$F$79,MATCH(J$9,Volumes!$B$4:$F$4,0),FALSE),0) -> 33 | K106: =IFERROR(VLOOKUP($B106,Volumes!$B$38:$F$79,MATCH(K$9,Volumes!$B$4:$F$4,0),FALSE),0) -> 35 | M106: 167.07875 | N106: 168.1106308 | P106: 171.1719954 | Q106: 176.4485809 | S106: 5648.675849 | T106: 6175.70033 | V106: 5513.59875 | W106: 5883.872077
B107: =Inputs!$C105 -> 18W LED Decorative - Top Entry | C107: Offered | D107: =IF($C107="NA","",'Unsmoothed Prices'!D107) -> 45.775 | E107: 46.05770706 | G107: 46.8964371 | H107: 48.34207695 | J107: =IFERROR(VLOOKUP($B107,Volumes!$B$38:$F$79,MATCH(J$9,Volumes!$B$4:$F$4,0),FALSE),0) -> 33 | K107: =IFERROR(VLOOKUP($B107,Volumes!$B$38:$F$79,MATCH(K$9,Volumes!$B$4:$F$4,0),FALSE),0) -> 35 | M107: 167.07875 | N107: 168.1106308 | P107: 171.1719954 | Q107: 176.4485809 | S107: 5648.675849 | T107: 6175.70033 | V107: 5513.59875 | W107: 5883.872077
B108: =Inputs!$C106 -> 25W LED Decorative - Bottom Pole Entry | C108: Offered | D108: =IF($C108="NA","",'Unsmoothed Prices'!D108) -> 45.775 | E108: 46.05770706 | G108: 46.8964371 | H108: 48.34207695 | J108: =IFERROR(VLOOKUP($B108,Volumes!$B$38:$F$79,MATCH(J$9,Volumes!$B$4:$F$4,0),FALSE),0) -> 33 | K108: =IFERROR(VLOOKUP($B108,Volumes!$B$38:$F$79,MATCH(K$9,Volumes!$B$4:$F$4,0),FALSE),0) -> 35 | M108: 167.07875 | N108: 168.1106308 | P108: 171.1719954 | Q108: 176.4485809 | S108: 5648.675849 | T108: 6175.70033 | V108: 5513.59875 | W108: 5883.872077
B109: =Inputs!$C107 -> 25W LED Decorative - Side Entry | C109: Offered | D109: =IF($C109="NA","",'Unsmoothed Prices'!D109) -> 45.775 | E109: 46.05770706 | G109: 46.8964371 | H109: 48.34207695 | J109: =IFERROR(VLOOKUP($B109,Volumes!$B$38:$F$79,MATCH(J$9,Volumes!$B$4:$F$4,0),FALSE),0) -> 33 | K109: =IFERROR(VLOOKUP($B109,Volumes!$B$38:$F$79,MATCH(K$9,Volumes!$B$4:$F$4,0),FALSE),0) -> 35 | M109: 167.07875 | N109: 168.1106308 | P109: 171.1719954 | Q109: 176.4485809 | S109: 5648.675849 | T109: 6175.70033 | V109: 5513.59875 | W109: 5883.872077
B110: =Inputs!$C108 -> 25W LED Decorative - Top Entry | C110: Offered | D110: =IF($C110="NA","",'Unsmoothed Prices'!D110) -> 45.775 | E110: 46.05770706 | G110: 46.8964371 | H110: 48.34207695 | J110: =IFERROR(VLOOKUP($B110,Volumes!$B$38:$F$79,MATCH(J$9,Volumes!$B$4:$F$4,0),FALSE),0) -> 33 | K110: =IFERROR(VLOOKUP($B110,Volumes!$B$38:$F$79,MATCH(K$9,Volumes!$B$4:$F$4,0),FALSE),0) -> 35 | M110: 167.07875 | N110: 168.1106308 | P110: 171.1719954 | Q110: 176.4485809 | S110: 5648.675849 | T110: 6175.70033 | V110: 5513.59875 | W110: 5883.872077
B111: =Inputs!$C109 -> 30W LED | C111: Not Offered | D111: =IF($C111="NA","",'Unsmoothed Prices'!D111) -> 32.687 | E111: 32.88887539 | G111: 33.48779551 | H111: 34.52009763 | J111: =IFERROR(VLOOKUP($B111,Volumes!$B$38:$F$79,MATCH(J$9,Volumes!$B$4:$F$4,0),FALSE),0) -> 0 | K111: =IFERROR(VLOOKUP($B111,Volumes!$B$38:$F$79,MATCH(K$9,Volumes!$B$4:$F$4,0),FALSE),0) -> 0 | M111: 119.30755 | N111: 120.0443952 | P111: 122.2304536 | Q111: 125.9983564 | S111: 0 | T111: 0 | V111: 0 | W111: 0
B112: =Inputs!$C110 -> 88 LED Light | C112: Abolished | D112: =IF($C112="NA","",'Unsmoothed Prices'!D112) -> 32.687 | E112: 32.88887539 | G112: 33.48779551 | H112: 34.52009763 | J112: =IFERROR(VLOOKUP($B112,Volumes!$B$38:$F$79,MATCH(J$9,Volumes!$B$4:$F$4,0),FALSE),0) -> 0 | K112: =IFERROR(VLOOKUP($B112,Volumes!$B$38:$F$79,MATCH(K$9,Volumes!$B$4:$F$4,0),FALSE),0) -> 0 | M112: 119.30755 | N112: 120.0443952 | P112: 122.2304536 | Q112: 125.9983564 | S112: 0 | T112: 0 | V112: 0 | W112: 0
B113: =Inputs!$C111 -> 100W Metal Halide | C113: Offered | D113: =IF($C113="NA","",'Unsmoothed Prices'!D113) -> 43.479 | E113: 43.74752694 | G113: 44.54418763 | H113: 45.91731652 | J113: =IFERROR(VLOOKUP($B113,Volumes!$B$38:$F$79,MATCH(J$9,Volumes!$B$4:$F$4,0),FALSE),0) -> 17 | K113: =IFERROR(VLOOKUP($B113,Volumes!$B$38:$F$79,MATCH(K$9,Volumes!$B$4:$F$4,0),FALSE),0) -> 17 | M113: 158.69835 | N113: 159.6784733 | P113: 162.5862849 | Q113: 167.5982053 | S113: 2763.966843 | T113: 2849.16949 | V113: 2697.87195 | W113: 2714.534046
B114: =Inputs!$C112 -> 150W Metal Halide | C114: Offered | D114: =IF($C114="NA","",'Unsmoothed Prices'!D114) -> 46.131 | E114: 46.41590573 | G114: 47.26115871 | H114: 48.71804155 | J114: =IFERROR(VLOOKUP($B114,Volumes!$B$38:$F$79,MATCH(J$9,Volumes!$B$4:$F$4,0),FALSE),0) -> 14 | K114: =IFERROR(VLOOKUP($B114,Volumes!$B$38:$F$79,MATCH(K$9,Volumes!$B$4:$F$4,0),FALSE),0) -> 15 | M114: 168.37815 | N114: 169.4180559 | P114: 172.5032293 | Q114: 177.8208516 | S114: 2415.04521 | T114: 2667.312775 | V114: 2357.2941 | W114: 2541.270838
B115: =Inputs!$C113 -> 250W Metal Halide | C115: Offered | D115: =IF($C115="NA","",'Unsmoothed Prices'!D115) -> 46.954 | E115: 47.24398859 | G115: 48.10432131 | H115: 49.58719565 | J115: =IFERROR(VLOOKUP($B115,Volumes!$B$38:$F$79,MATCH(J$9,Volumes!$B$4:$F$4,0),FALSE),0) -> 88 | K115: =IFERROR(VLOOKUP($B115,Volumes!$B$38:$F$79,MATCH(K$9,Volumes!$B$4:$F$4,0),FALSE),0) -> 89 | M115: 171.3821 | N115: 172.4405583 | P115: 175.5807728 | Q115: 180.9932641 | S115: 15451.108 | T115: 16108.40051 | V115: 15081.6248 | W115: 15347.20969
B116: =Inputs!$C114 -> 400W Metal Halide | C116: Offered | D116: =IF($C116="NA","",'Unsmoothed Prices'!D116) -> 52.1 | E116: 52.42177036 | G116: 53.37639264 | H116: 55.02178501 | J116: =IFERROR(VLOOKUP($B116,Volumes!$B$38:$F$79,MATCH(J$9,Volumes!$B$4:$F$4,0),FALSE),0) -> 17 | K116: =IFERROR(VLOOKUP($B116,Volumes!$B$38:$F$79,MATCH(K$9,Volumes!$B$4:$F$4,0),FALSE),0) -> 17 | M116: 190.165 | N116: 191.3394618 | P116: 194.8238331 | Q116: 200.8295153 | S116: 3312.005163 | T116: 3414.10176 | V116: 3232.805 | W116: 3252.770851
B117: =Inputs!$C115 -> 70W Metal Halide | C117: Not Offered | D117: =IF($C117="NA","",'Unsmoothed Prices'!D117) -> 33.008 | E117: 33.21185789 | G117: 33.81665966 | H117: 34.85909942 | J117: =IFERROR(VLOOKUP($B117,Volumes!$B$38:$F$79,MATCH(J$9,Volumes!$B$4:$F$4,0),FALSE),0) -> 0 | K117: =IFERROR(VLOOKUP($B117,Volumes!$B$38:$F$79,MATCH(K$9,Volumes!$B$4:$F$4,0),FALSE),0) -> 0 | M117: 120.4792 | N117: 121.2232813 | P117: 123.4308078 | Q117: 127.2357129 | S117: 0 | T117: 0 | V117: 0 | W117: 0
B118: =Inputs!$C116 -> 250W Metal Halide - Flood Light | C118: Offered | D118: =IF($C118="NA","",'Unsmoothed Prices'!D118) -> 52.243 | E118: 52.56565353 | G118: 53.52289598 | H118: 55.1728045 | J118: =IFERROR(VLOOKUP($B118,Volumes!$B$38:$F$79,MATCH(J$9,Volumes!$B$4:$F$4,0),FALSE),0) -> 33 | K118: =IFERROR(VLOOKUP($B118,Volumes!$B$38:$F$79,MATCH(K$9,Volumes!$B$4:$F$4,0),FALSE),0) -> 35 | M118: 190.68695 | N118: 191.8646354 | P118: 195.3585703 | Q118: 201.3807364 | S118: 6446.832821 | T118: 7048.325775 | V118: 6292.66935 | W118: 6715.262238
B119: =Inputs!$C117 -> 400W Metal Halide - Flood Light | C119: Offered | D119: =IF($C119="NA","",'Unsmoothed Prices'!D119) -> 52.1 | E119: 52.42177036 | G119: 53.37639264 | H119: 55.02178501 | J119: =IFERROR(VLOOKUP($B119,Volumes!$B$38:$F$79,MATCH(J$9,Volumes!$B$4:$F$4,0),FALSE),0) -> 33 | K119: =IFERROR(VLOOKUP($B119,Volumes!$B$38:$F$79,MATCH(K$9,Volumes!$B$4:$F$4,0),FALSE),0) -> 35 | M119: 190.165 | N119: 191.3394618 | P119: 194.8238331 | Q119: 200.8295153 | S119: 6429.186493 | T119: 7029.033036 | V119: 6275.445 | W119: 6696.881163
B120: =Inputs!$C118 -> 125W Mercury Vapour | C120: Obsolete, no new Connections | D120: =IF($C120="NA","",'Unsmoothed Prices'!D120) -> 43.203 | E120: 43.46982236 | G120: 44.26142594 | H120: 45.62583835 | J120: =IFERROR(VLOOKUP($B120,Volumes!$B$38:$F$79,MATCH(J$9,Volumes!$B$4:$F$4,0),FALSE),0) -> 0 | K120: =IFERROR(VLOOKUP($B120,Volumes!$B$38:$F$79,MATCH(K$9,Volumes!$B$4:$F$4,0),FALSE),0) -> 0 | M120: 157.69095 | N120: 158.6648516 | P120: 161.5542047 | Q120: 166.53431 | S120: 0 | T120: 0 | V120: 0 | W120: 0
B121: =Inputs!$C119 -> 250W Mercury Vapour | C121: Obsolete, no new Connections | D121: =IF($C121="NA","",'Unsmoothed Prices'!D121) -> 43.658 | E121: 43.92763244 | G121: 44.72757293 | H121: 46.1063549 | J121: =IFERROR(VLOOKUP($B121,Volumes!$B$38:$F$79,MATCH(J$9,Volumes!$B$4:$F$4,0),FALSE),0) -> 427 | K121: =IFERROR(VLOOKUP($B121,Volumes!$B$38:$F$79,MATCH(K$9,Volumes!$B$4:$F$4,0),FALSE),0) -> 406 | M121: 159.3517 | N121: 160.3358584 | P121: 163.2556412 | Q121: 168.2881954 | S121: 69710.1588 | T121: 68325.00732 | V121: 68043.1759 | W121: 65096.35852
B122: =Inputs!$C120 -> 0 | C122: NA | D122: =IF($C122="NA","",'Unsmoothed Prices'!D122) ->  | J122: =IFERROR(VLOOKUP($B122,Volumes!$B$38:$F$79,MATCH(J$9,Volumes!$B$4:$F$4,0),FALSE),0) -> 0 | K122: =IFERROR(VLOOKUP($B122,Volumes!$B$38:$F$79,MATCH(K$9,Volumes!$B$4:$F$4,0),FALSE),0) -> 0 | S122: 0 | T122: 0 | V122: 0 | W122: 0
B123: =Inputs!$C121 -> 400W Mercury Vapour | C123: Obsolete, no new Connections | D123: =IF($C123="NA","",'Unsmoothed Prices'!D123) -> 45.722 | E123: 46.00437974 | G123: 46.84213866 | H123: 48.28610469 | J123: =IFERROR(VLOOKUP($B123,Volumes!$B$38:$F$79,MATCH(J$9,Volumes!$B$4:$F$4,0),FALSE),0) -> 32 | K123: =IFERROR(VLOOKUP($B123,Volumes!$B$38:$F$79,MATCH(K$9,Volumes!$B$4:$F$4,0),FALSE),0) -> 31 | M123: 166.8853 | N123: 167.915986 | P123: 170.9738061 | Q123: 176.2442821 | S123: 5471.161796 | T123: 5463.572746 | V123: 5340.3296 | W123: 5205.395567
B124: =Inputs!$C122 -> 50W Mercury Vapour | C124: Obsolete, no new Connections | D124: =IF($C124="NA","",'Unsmoothed Prices'!D124) -> 31.906 | E124: 32.10305192 | G124: 32.68766187 | H124: 33.6952989 | J124: =IFERROR(VLOOKUP($B124,Volumes!$B$38:$F$79,MATCH(J$9,Volumes!$B$4:$F$4,0),FALSE),0) -> 0 | K124: =IFERROR(VLOOKUP($B124,Volumes!$B$38:$F$79,MATCH(K$9,Volumes!$B$4:$F$4,0),FALSE),0) -> 0 | M124: 116.4569 | N124: 117.1761395 | P124: 119.3099658 | Q124: 122.987841 | S124: 0 | T124: 0 | V124: 0 | W124: 0
B125: =Inputs!$C123 -> 80W Mercury Vapour Art decorative | C125: Obsolete, no new Connections | D125: =IF($C125="NA","",'Unsmoothed Prices'!D125) -> 48.134 | E125: 48.43127628 | G125: 49.31323001 | H125: 50.83337044 | J125: =IFERROR(VLOOKUP($B125,Volumes!$B$38:$F$79,MATCH(J$9,Volumes!$B$4:$F$4,0),FALSE),0) -> 40 | K125: =IFERROR(VLOOKUP($B125,Volumes!$B$38:$F$79,MATCH(K$9,Volumes!$B$4:$F$4,0),FALSE),0) -> 40 | M125: 175.6891 | N125: 176.7741584 | P125: 179.9932895 | Q125: 185.5418021 | S125: 7199.731581 | T125: 7421.672084 | V125: 7027.564 | W125: 7070.966337
B126: =Inputs!$C124 -> 80W Mercury Vapour | C126: Obsolete, no new Connections | D126: =IF($C126="NA","",'Unsmoothed Prices'!D126) -> 31.907 | E126: 32.1040581 | G126: 32.68868637 | H126: 33.69635498 | J126: =IFERROR(VLOOKUP($B126,Volumes!$B$38:$F$79,MATCH(J$9,Volumes!$B$4:$F$4,0),FALSE),0) -> 14235 | K126: =IFERROR(VLOOKUP($B126,Volumes!$B$38:$F$79,MATCH(K$9,Volumes!$B$4:$F$4,0),FALSE),0) -> 10135 | M126: 116.46055 | N126: 117.179812 | P126: 119.3137053 | Q126: 122.9916957 | S126: 1698430.594 | T126: 1246520.836 | V126: 1657815.929 | W126: 1187617.395
J128: =SUM(J71:J127) -> 43293 | K128: 43662 | S128: =SUM(S71:S127) -> 5931582.615 | T128: =SUM(T71:T127) -> 6202967.011 | V128: =SUM(V71:V127) -> 5789740.35 | W128: =SUM(W71:W127) -> 5909850.291
J129: =Volumes!E80=J128 -> TRUE | K129: =Volumes!F80=K128 -> TRUE
B130: Total | J130: =SUM(J67,J128) -> 49622 | K130: 50020 | S130: =SUM(S67,S128) -> 6253829.263 | T130: 6535957.1 | V130: =SUM(V67,V128) -> 6104281.097 | W130: 6227105.174
J131: =Volumes!E84=J130 -> TRUE | K131: =Volumes!F84=K130 -> TRUE
Q132: ='Master Data'!A37 -> Nominal Vanilla WACC | S132: ='Master Data'!B37 -> 0.0601771653
S134: =S9 -> 2017-18 | T134: =T9 -> 2018-19
Q135: Unsmoothed Nominal Revenue | S135: ='Unsmoothed Prices'!M130*10^6 -> 6253829.263 | T135: ='Unsmoothed Prices'!N130*10^6 -> 6535957.1
Q136: NPV | S136: =NPV(S$132,S135:T135) -> 11713887.58
Q138: Smoothed Nominal Revenue | S138: =S130 -> 6253829.263 | T138: =T130 -> 6535957.1
S139: =NPV(S$132,S138:T138) -> 11713887.58
Q140: Difference in NPVs | S140: =S136-S139 -> 0
Q142: X Factor 2018-19 | S142: -0.006176014518

Sheet Unsmoothed Prices
B4: Private Contract Lights
F6: Days | G6: ='Master Data'!I23 -> 365 | H6: ='Master Data'!J23 -> 365
D7: 8 | E7: =D7+1 -> 9 | M7: ='Master Data'!I32 -> 1.024498899 | N7: ='Master Data'!J32 -> 1.049597994
B8: Private Contract Lights | C8: Price (cents) per Light per day | G8: Revenue ($m) - Real | M8: Revenue ($m) - Nominal
C9: Offered / No Longer Offered / NA | D9: ='Master Data'!I$29 -> 2017-18 | E9: ='Master Data'!J$29 -> 2018-19 | G9: =D9 -> 2017-18 | H9: =E9 -> 2018-19 | J9: =G9 -> 2017-18 | K9: =H9 -> 2018-19 | M9: ='Master Data'!I$29 -> 2017-18 | N9: ='Master Data'!J$29 -> 2018-19
B10: =Inputs!$C69 -> 32W Compact Fluorescent | C10: Not Offered | D10: =IF($C10="NA","",OFFSET('Combined Annuity Prices CL'!$B$10,MATCH($B10,'Combined Annuity Prices CL'!$B$10:$B$3811,0)+12,D$7)) -> 17.345 | E10: =IF($C10="NA","",OFFSET('Combined Annuity Prices CL'!$B$10,MATCH($B10,'Combined Annuity Prices CL'!$B$10:$B$3811,0)+12,E$7)) -> 17.374 | G10: =IF($C10="NA","",D10*J10*G$6/100/10^6) -> 0 | H10: =IF($C10="NA","",E10*K10*H$6/100/10^6) -> 0 | J10: =IFERROR(VLOOKUP($B10,Volumes!$B$4:$F$32,MATCH(J$9,Volumes!$B$4:$F$4,0),FALSE),0) -> 0 | K10: =IFERROR(VLOOKUP($B10,Volumes!$B$4:$F$32,MATCH(K$9,Volumes!$B$4:$F$4,0),FALSE),0) -> 0 | M10: =IF($C10="NA","",D10*M$7*J10*G$6/100/10^6) -> 0 | N10: =IF($C10="NA","",E10*N$7*K10*H$6/100/10^6) -> 0
B11: =Inputs!$C70 -> 42W Compact Fluorescent | C11: Offered | D11: =IF($C11="NA","",OFFSET('Combined Annuity Prices CL'!$B$10,MATCH($B11,'Combined Annuity Prices CL'!$B$10:$B$3811,0)+12,D$7)) -> 17.345 | E11: =IF($C11="NA","",OFFSET('Combined Annuity Prices CL'!$B$10,MATCH($B11,'Combined Annuity Prices CL'!$B$10:$B$3811,0)+12,E$7)) -> 17.374 | G11: 0 | H11: 0 | J11: =IFERROR(VLOOKUP($B11,Volumes!$B$4:$F$32,MATCH(J$9,Volumes!$B$4:$F$4,0),FALSE),0) -> 0 | K11: =IFERROR(VLOOKUP($B11,Volumes!$B$4:$F$32,MATCH(K$9,Volumes!$B$4:$F$4,0),FALSE),0) -> 0 | M11: 0 | N11: 0
B12: =Inputs!$C71 -> 42W Compact Fluorescent - Bottom Pole Entry | C12: Offered | D12: =IF($C12="NA","",OFFSET('Combined Annuity Prices CL'!$B$10,MATCH($B12,'Combined Annuity Prices CL'!$B$10:$B$3811,0)+12,D$7)) -> 17.345 | E12: =IF($C12="NA","",OFFSET('Combined Annuity Prices CL'!$B$10,MATCH($B12,'Combined Annuity Prices CL'!$B$10:$B$3811,0)+12,E$7)) -> 17.374 | G12: 0 | H12: 0 | J12: =IFERROR(VLOOKUP($B12,Volumes!$B$4:$F$32,MATCH(J$9,Volumes!$B$4:$F$4,0),FALSE),0) -> 0 | K12: =IFERROR(VLOOKUP($B12,Volumes!$B$4:$F$32,MATCH(K$9,Volumes!$B$4:$F$4,0),FALSE),0) -> 0 | M12: 0 | N12: 0
B13: =Inputs!$C72 -> 2x24W Compact Fluorescent | C13: Not Offered | D13: =IF($C13="NA","",OFFSET('Combined Annuity Prices CL'!$B$10,MATCH($B13,'Combined Annuity Prices CL'!$B$10:$B$3811,0)+12,D$7)) -> 17.653 | E13: =IF($C13="NA","",OFFSET('Combined Annuity Prices CL'!$B$10,MATCH($B13,'Combined Annuity Prices CL'!$B$10:$B$3811,0)+12,E$7)) -> 17.681 | G13: 0 | H13: 0 | J13: =IFERROR(VLOOKUP($B13,Volumes!$B$4:$F$32,MATCH(J$9,Volumes!$B$4:$F$4,0),FALSE),0) -> 0 | K13: =IFERROR(VLOOKUP($B13,Volumes!$B$4:$F$32,MATCH(K$9,Volumes!$B$4:$F$4,0),FALSE),0) -> 0 | M13: 0 | N13: 0
B14: =Inputs!$C73 -> 1x20W Fluorescent | C14: Obsolete, no new Connections | D14: =IF($C14="NA","",OFFSET('Combined Annuity Prices CL'!$B$10,MATCH($B14,'Combined Annuity Prices CL'!$B$10:$B$3811,0)+12,D$7)) -> 17.314 | E14: =IF($C14="NA","",OFFSET('Combined Annuity Prices CL'!$B$10,MATCH($B14,'Combined Annuity Prices CL'!$B$10:$B$3811,0)+12,E$7)) -> 17.343 | G14: 0 | H14: 0 | J14: =IFERROR(VLOOKUP($B14,Volumes!$B$4:$F$32,MATCH(J$9,Volumes!$B$4:$F$4,0),FALSE),0) -> 0 | K14: =IFERROR(VLOOKUP($B14,Volumes!$B$4:$F$32,MATCH(K$9,Volumes!$B$4:$F$4,0),FALSE),0) -> 0 | M14: 0 | N14: 0
B15: =Inputs!$C74 -> 1x40W Fluorescent | C15: Obsolete, no new Connections | D15: =IF($C15="NA","",OFFSET('Combined Annuity Prices CL'!$B$10,MATCH($B15,'Combined Annuity Prices CL'!$B$10:$B$3811,0)+12,D$7)) -> 17.332 | E15: =IF($C15="NA","",OFFSET('Combined Annuity Prices CL'!$B$10,MATCH($B15,'Combined Annuity Prices CL'!$B$10:$B$3811,0)+12,E$7)) -> 17.361 | G15: 0 | H15: 0 | J15: =IFERROR(VLOOKUP($B15,Volumes!$B$4:$F$32,MATCH(J$9,Volumes!$B$4:$F$4,0),FALSE),0) -> 0 | K15: =IFERROR(VLOOKUP($B15,Volumes!$B$4:$F$32,MATCH(K$9,Volumes!$B$4:$F$4,0),FALSE),0) -> 0 | M15: 0 | N15: 0
B16: =Inputs!$C75 -> 2x20W Fluorescent | C16: Obsolete, no new Connections | D16: =IF($C16="NA","",OFFSET('Combined Annuity Prices CL'!$B$10,MATCH($B16,'Combined Annuity Prices CL'!$B$10:$B$3811,0)+12,D$7)) -> 17.591 | E16: =IF($C16="NA","",OFFSET('Combined Annuity Prices CL'!$B$10,MATCH($B16,'Combined Annuity Prices CL'!$B$10:$B$3811,0)+12,E$7)) -> 17.619 | G16: 0 | H16: 0 | J16: =IFERROR(VLOOKUP($B16,Volumes!$B$4:$F$32,MATCH(J$9,Volumes!$B$4:$F$4,0),FALSE),0) -> 0 | K16: =IFERROR(VLOOKUP($B16,Volumes!$B$4:$F$32,MATCH(K$9,Volumes!$B$4:$F$4,0),FALSE),0) -> 0 | M16: 0 | N16: 0
B17: =Inputs!$C76 -> 2x24W Fluorescent | C17: Obsolete, no new Connections | D17: =IF($C17="NA","",OFFSET('Combined Annuity Prices CL'!$B$10,MATCH($B17,'Combined Annuity Prices CL'!$B$10:$B$3811,0)+12,D$7)) -> 17.44 | E17: =IF($C17="NA","",OFFSET('Combined Annuity Prices CL'!$B$10,MATCH($B17,'Combined Annuity Prices CL'!$B$10:$B$3811,0)+12,E$7)) -> 17.468 | G17: 0 | H17: 0 | J17: =IFERROR(VLOOKUP($B17,Volumes!$B$4:$F$32,MATCH(J$9,Volumes!$B$4:$F$4,0),FALSE),0) -> 0 | K17: =IFERROR(VLOOKUP($B17,Volumes!$B$4:$F$32,MATCH(K$9,Volumes!$B$4:$F$4,0),FALSE),0) -> 0 | M17: 0 | N17: 0
B18: =Inputs!$C77 -> T5 Fluorescent 2 x 24W | C18: Obsolete, no new Connections | D18: =IF($C18="NA","",OFFSET('Combined Annuity Prices CL'!$B$10,MATCH($B18,'Combined Annuity Prices CL'!$B$10:$B$3811,0)+12,D$7)) -> 17.591 | E18: =IF($C18="NA","",OFFSET('Combined Annuity Prices CL'!$B$10,MATCH($B18,'Combined Annuity Prices CL'!$B$10:$B$3811,0)+12,E$7)) -> 17.619 | G18: 0 | H18: 0 | J18: =IFERROR(VLOOKUP($B18,Volumes!$B$4:$F$32,MATCH(J$9,Volumes!$B$4:$F$4,0),FALSE),0) -> 0 | K18: =IFERROR(VLOOKUP($B18,Volumes!$B$4:$F$32,MATCH(K$9,Volumes!$B$4:$F$4,0),FALSE),0) -> 0 | M18: 0 | N18: 0
B19: =Inputs!$C78 -> 20 Fluorescent 1X20FL | C19: Obsolete, no new Connections | D19: =IF($C19="NA","",OFFSET('Combined Annuity Prices CL'!$B$10,MATCH($B19,'Combined Annuity Prices CL'!$B$10:$B$3811,0)+12,D$7)) -> 17.314 | E19: =IF($C19="NA","",OFFSET('Combined Annuity Prices CL'!$B$10,MATCH($B19,'Combined Annuity Prices CL'!$B$10:$B$3811,0)+12,E$7)) -> 17.343 | G19: 0 | H19: 0 | J19: =IFERROR(VLOOKUP($B19,Volumes!$B$4:$F$32,MATCH(J$9,Volumes!$B$4:$F$4,0),FALSE),0) -> 0 | K19: =IFERROR(VLOOKUP($B19,Volumes!$B$4:$F$32,MATCH(K$9,Volumes!$B$4:$F$4,0),FALSE),0) -> 0 | M19: 0 | N19: 0
B20: =Inputs!$C79 -> 2x40W Fluorescent | C20: Obsolete, no new Connections | D20: =IF($C20="NA","",OFFSET('Combined Annuity Prices CL'!$B$10,MATCH($B20,'Combined Annuity Prices CL'!$B$10:$B$3811,0)+12,D$7)) -> 17.627 | E20: =IF($C20="NA","",OFFSET('Combined Annuity Prices CL'!$B$10,MATCH($B20,'Combined Annuity Prices CL'!$B$10:$B$3811,0)+12,E$7)) -> 17.655 | G20: 0 | H20: 0 | J20: =IFERROR(VLOOKUP($B20,Volumes!$B$4:$F$32,MATCH(J$9,Volumes!$B$4:$F$4,0),FALSE),0) -> 0 | K20: =IFERROR(VLOOKUP($B20,Volumes!$B$4:$F$32,MATCH(K$9,Volumes!$B$4:$F$4,0),FALSE),0) -> 0 | M20: 0 | N20: 0
B21: =Inputs!$C80 -> 3x40W Fluorescent | C21: Obsolete, no new Connections | D21: =IF($C21="NA","",OFFSET('Combined Annuity Prices CL'!$B$10,MATCH($B21,'Combined Annuity Prices CL'!$B$10:$B$3811,0)+12,D$7)) -> 21.335 | E21: =IF($C21="NA","",OFFSET('Combined Annuity Prices CL'!$B$10,MATCH($B21,'Combined Annuity Prices CL'!$B$10:$B$3811,0)+12,E$7)) -> 21.363 | G21: 0 | H21: 0 | J21: =IFERROR(VLOOKUP($B21,Volumes!$B$4:$F$32,MATCH(J$9,Volumes!$B$4:$F$4,0),FALSE),0) -> 0 | K21: =IFERROR(VLOOKUP($B21,Volumes!$B$4:$F$32,MATCH(K$9,Volumes!$B$4:$F$4,0),FALSE),0) -> 0 | M21: 0 | N21: 0
B22: =Inputs!$C81 -> 4x20 Fluorescent | C22: Obsolete, no new Connections | D22: =IF($C22="NA","",OFFSET('Combined Annuity Prices CL'!$B$10,MATCH($B22,'Combined Annuity Prices CL'!$B$10:$B$3811,0)+12,D$7)) -> 18.144 | E22: =IF($C22="NA","",OFFSET('Combined Annuity Prices CL'!$B$10,MATCH($B22,'Combined Annuity Prices CL'!$B$10:$B$3811,0)+12,E$7)) -> 18.172 | G22: 0 | H22: 0 | J22: =IFERROR(VLOOKUP($B22,Volumes!$B$4:$F$32,MATCH(J$9,Volumes!$B$4:$F$4,0),FALSE),0) -> 0 | K22: =IFERROR(VLOOKUP($B22,Volumes!$B$4:$F$32,MATCH(K$9,Volumes!$B$4:$F$4,0),FALSE),0) -> 0 | M22: 0 | N22: 0
B23: =Inputs!$C82 -> 4x40W Fluorescent | C23: Obsolete, no new Connections | D23: =IF($C23="NA","",OFFSET('Combined Annuity Prices CL'!$B$10,MATCH($B23,'Combined Annuity Prices CL'!$B$10:$B$3811,0)+12,D$7)) -> 21.629 | E23: =IF($C23="NA","",OFFSET('Combined Annuity Prices CL'!$B$10,MATCH($B23,'Combined Annuity Prices CL'!$B$10:$B$3811,0)+12,E$7)) -> 21.658 | G23: 0 | H23: 0 | J23: =IFERROR(VLOOKUP($B23,Volumes!$B$4:$F$32,MATCH(J$9,Volumes!$B$4:$F$4,0),FALSE),0) -> 0 | K23: =IFERROR(VLOOKUP($B23,Volumes!$B$4:$F$32,MATCH(K$9,Volumes!$B$4:$F$4,0),FALSE),0) -> 0 | M23: 0 | N23: 0
B24: =Inputs!$C83 -> 100W Sodium Vapour | C24: Offered | D24: =IF($C24="NA","",OFFSET('Combined Annuity Prices CL'!$B$10,MATCH($B24,'Combined Annuity Prices CL'!$B$10:$B$3811,0)+12,D$7)) -> 21.474 | E24: =IF($C24="NA","",OFFSET('Combined Annuity Prices CL'!$B$10,MATCH($B24,'Combined Annuity Prices CL'!$B$10:$B$3811,0)+12,E$7)) -> 21.502 | G24: 0.0003919005 | H24: 0.0003924115 | J24: =IFERROR(VLOOKUP($B24,Volumes!$B$4:$F$32,MATCH(J$9,Volumes!$B$4:$F$4,0),FALSE),0) -> 5 | K24: =IFERROR(VLOOKUP($B24,Volumes!$B$4:$F$32,MATCH(K$9,Volumes!$B$4:$F$4,0),FALSE),0) -> 5 | M24: 0.0004015016308 | N24: 0.0004118743233
B25: =Inputs!$C84 -> 0 | C25: NA | D25: =IF($C25="NA","",OFFSET('Combined Annuity Prices CL'!$B$10,MATCH($B25,'Combined Annuity Prices CL'!$B$10:$B$3811,0)+12,D$7)) ->  | E25: =IF($C25="NA","",OFFSET('Combined Annuity Prices CL'!$B$10,MATCH($B25,'Combined Annuity Prices CL'!$B$10:$B$3811,0)+12,E$7)) ->  | J25: =IFERROR(VLOOKUP($B25,Volumes!$B$4:$F$32,MATCH(J$9,Volumes!$B$4:$F$4,0),FALSE),0) -> 0 | K25: =IFERROR(VLOOKUP($B25,Volumes!$B$4:$F$32,MATCH(K$9,Volumes!$B$4:$F$4,0),FALSE),0) -> 0
B26: =Inputs!$C85 -> 150W Sodium Vapour | C26: Offered | D26: =IF($C26="NA","",OFFSET('Combined Annuity Prices CL'!$B$10,MATCH($B26,'Combined Annuity Prices CL'!$B$10:$B$3811,0)+12,D$7)) -> 21.47 | E26: =IF($C26="NA","",OFFSET('Combined Annuity Prices CL'!$B$10,MATCH($B26,'Combined Annuity Prices CL'!$B$10:$B$3811,0)+12,E$7)) -> 21.498 | G26: 0.0127735765 | H26: 0.0127902351 | J26: =IFERROR(VLOOKUP($B26,Volumes!$B$4:$F$32,MATCH(J$9,Volumes!$B$4:$F$4,0),FALSE),0) -> 163 | K26: =IFERROR(VLOOKUP($B26,Volumes!$B$4:$F$32,MATCH(K$9,Volumes!$B$4:$F$4,0),FALSE),0) -> 163 | M26: 0.01308651506 | N26: 0.01342460511
B27: =Inputs!$C86 -> 0 | C27: NA | D27: =IF($C27="NA","",OFFSET('Combined Annuity Prices CL'!$B$10,MATCH($B27,'Combined Annuity Prices CL'!$B$10:$B$3811,0)+12,D$7)) ->  | E27: =IF($C27="NA","",OFFSET('Combined Annuity Prices CL'!$B$10,MATCH($B27,'Combined Annuity Prices CL'!$B$10:$B$3811,0)+12,E$7)) ->  | J27: =IFERROR(VLOOKUP($B27,Volumes!$B$4:$F$32,MATCH(J$9,Volumes!$B$4:$F$4,0),FALSE),0) -> 0 | K27: =IFERROR(VLOOKUP($B27,Volumes!$B$4:$F$32,MATCH(K$9,Volumes!$B$4:$F$4,0),FALSE),0) -> 0
B28: =Inputs!$C87 -> 0 | C28: NA | D28: =IF($C28="NA","",OFFSET('Combined Annuity Prices CL'!$B$10,MATCH($B28,'Combined Annuity Prices CL'!$B$10:$B$3811,0)+12,D$7)) ->  | E28: =IF($C28="NA","",OFFSET('Combined Annuity Prices CL'!$B$10,MATCH($B28,'Combined Annuity Prices CL'!$B$10:$B$3811,0)+12,E$7)) ->  | J28: =IFERROR(VLOOKUP($B28,Volumes!$B$4:$F$32,MATCH(J$9,Volumes!$B$4:$F$4,0),FALSE),0) -> 0 | K28: =IFERROR(VLOOKUP($B28,Volumes!$B$4:$F$32,MATCH(K$9,Volumes!$B$4:$F$4,0),FALSE),0) -> 0
B29: =Inputs!$C88 -> 0 | C29: NA | D29: =IF($C29="NA","",OFFSET('Combined Annuity Prices CL'!$B$10,MATCH($B29,'Combined Annuity Prices CL'!$B$10:$B$3811,0)+12,D$7)) ->  | E29: =IF($C29="NA","",OFFSET('Combined Annuity Prices CL'!$B$10,MATCH($B29,'Combined Annuity Prices CL'!$B$10:$B$3811,0)+12,E$7)) ->  | J29: =IFERROR(VLOOKUP($B29,Volumes!$B$4:$F$32,MATCH(J$9,Volumes!$B$4:$F$4,0),FALSE),0) -> 0 | K29: =IFERROR(VLOOKUP($B29,Volumes!$B$4:$F$32,MATCH(K$9,Volumes!$B$4:$F$4,0),FALSE),0) -> 0
B30: =Inputs!$C89 -> 250W Sodium Vapour | C30: Offered | D30: =IF($C30="NA","",OFFSET('Combined Annuity Prices CL'!$B$10,MATCH($B30,'Combined Annuity Prices CL'!$B$10:$B$3811,0)+12,D$7)) -> 21.597 | E30: =IF($C30="NA","",OFFSET('Combined Annuity Prices CL'!$B$10,MATCH($B30,'Combined Annuity Prices CL'!$B$10:$B$3811,0)+12,E$7)) -> 21.625 | G30: 0.01300679325 | H30: 0.01302365625 | J30: =IFERROR(VLOOKUP($B30,Volumes!$B$4:$F$32,MATCH(J$9,Volumes!$B$4:$F$4,0),FALSE),0) -> 165 | K30: =IFERROR(VLOOKUP($B30,Volumes!$B$4:$F$32,MATCH(K$9,Volumes!$B$4:$F$4,0),FALSE),0) -> 165 | M30: 0.01332544536 | N30: 0.01366960348
B31: =Inputs!$C90 -> 0 | C31: NA | D31: =IF($C31="NA","",OFFSET('Combined Annuity Prices CL'!$B$10,MATCH($B31,'Combined Annuity Prices CL'!$B$10:$B$3811,0)+12,D$7)) ->  | E31: =IF($C31="NA","",OFFSET('Combined Annuity Prices CL'!$B$10,MATCH($B31,'Combined Annuity Prices CL'!$B$10:$B$3811,0)+12,E$7)) ->  | J31: =IFERROR(VLOOKUP($B31,Volumes!$B$4:$F$32,MATCH(J$9,Volumes!$B$4:$F$4,0),FALSE),0) -> 0 | K31: =IFERROR(VLOOKUP($B31,Volumes!$B$4:$F$32,MATCH(K$9,Volumes!$B$4:$F$4,0),FALSE),0) -> 0
B32: =Inputs!$C91 -> 0 | C32: NA | D32: =IF($C32="NA","",OFFSET('Combined Annuity Prices CL'!$B$10,MATCH($B32,'Combined Annuity Prices CL'!$B$10:$B$3811,0)+12,D$7)) ->  | E32: =IF($C32="NA","",OFFSET('Combined Annuity Prices CL'!$B$10,MATCH($B32,'Combined Annuity Prices CL'!$B$10:$B$3811,0)+12,E$7)) ->  | J32: =IFERROR(VLOOKUP($B32,Volumes!$B$4:$F$32,MATCH(J$9,Volumes!$B$4:$F$4,0),FALSE),0) -> 0 | K32: =IFERROR(VLOOKUP($B32,Volumes!$B$4:$F$32,MATCH(K$9,Volumes!$B$4:$F$4,0),FALSE),0) -> 0
B33: =Inputs!$C92 -> 0 | C33: NA | D33: =IF($C33="NA","",OFFSET('Combined Annuity Prices CL'!$B$10,MATCH($B33,'Combined Annuity Prices CL'!$B$10:$B$3811,0)+12,D$7)) ->  | E33: =IF($C33="NA","",OFFSET('Combined Annuity Prices CL'!$B$10,MATCH($B33,'Combined Annuity Prices CL'!$B$10:$B$3811,0)+12,E$7)) ->  | J33: =IFERROR(VLOOKUP($B33,Volumes!$B$4:$F$32,MATCH(J$9,Volumes!$B$4:$F$4,0),FALSE),0) -> 0 | K33: =IFERROR(VLOOKUP($B33,Volumes!$B$4:$F$32,MATCH(K$9,Volumes!$B$4:$F$4,0),FALSE),0) -> 0
B34: =Inputs!$C93 -> 250W Sodium Vapour - Flood Light | C34: Offered | D34: =IF($C34="NA","",OFFSET('Combined Annuity Prices CL'!$B$10,MATCH($B34,'Combined Annuity Prices CL'!$B$10:$B$3811,0)+12,D$7)) -> 21.597 | E34: =IF($C34="NA","",OFFSET('Combined Annuity Prices CL'!$B$10,MATCH($B34,'Combined Annuity Prices CL'!$B$10:$B$3811,0)+12,E$7)) -> 21.625 | G34: 0 | H34: 0 | J34: =IFERROR(VLOOKUP($B34,Volumes!$B$4:$F$32,MATCH(J$9,Volumes!$B$4:$F$4,0),FALSE),0) -> 0 | K34: =IFERROR(VLOOKUP($B34,Volumes!$B$4:$F$32,MATCH(K$9,Volumes!$B$4:$F$4,0),FALSE),0) -> 0 | M34: 0 | N34: 0
B35: =Inputs!$C94 -> 400W Sodium Vapour | C35: Offered | D35: =IF($C35="NA","",OFFSET('Combined Annuity Prices CL'!$B$10,MATCH($B35,'Combined Annuity Prices CL'!$B$10:$B$3811,0)+12,D$7)) -> 21.64 | E35: =IF($C35="NA","",OFFSET('Combined Annuity Prices CL'!$B$10,MATCH($B35,'Combined Annuity Prices CL'!$B$10:$B$3811,0)+12,E$7)) -> 21.668 | G35: 0.008214544 | H35: 0.0082251728 | J35: =IFERROR(VLOOKUP($B35,Volumes!$B$4:$F$32,MATCH(J$9,Volumes!$B$4:$F$4,0),FALSE),0) -> 104 | K35: =IFERROR(VLOOKUP($B35,Volumes!$B$4:$F$32,MATCH(K$9,Volumes!$B$4:$F$4,0),FALSE),0) -> 104 | M35: 0.008415791284 | N35: 0.008633124872
B36: =Inputs!$C95 -> 0 | C36: NA | D36: =IF($C36="NA","",OFFSET('Combined Annuity Prices CL'!$B$10,MATCH($B36,'Combined Annuity Prices CL'!$B$10:$B$3811,0)+12,D$7)) ->  | E36: =IF($C36="NA","",OFFSET('Combined Annuity Prices CL'!$B$10,MATCH($B36,'Combined Annuity Prices CL'!$B$10:$B$3811,0)+12,E$7)) ->  | J36: =IFERROR(VLOOKUP($B36,Volumes!$B$4:$F$32,MATCH(J$9,Volumes!$B$4:$F$4,0),FALSE),0) -> 0 | K36: =IFERROR(VLOOKUP($B36,Volumes!$B$4:$F$32,MATCH(K$9,Volumes!$B$4:$F$4,0),FALSE),0) -> 0
B37: =Inputs!$C96 -> 400W Sodium Vapour - Flood Light | C37: Offered | D37: =IF($C37="NA","",OFFSET('Combined Annuity Prices CL'!$B$10,MATCH($B37,'Combined Annuity Prices CL'!$B$10:$B$3811,0)+12,D$7)) -> 21.64 | E37: =IF($C37="NA","",OFFSET('Combined Annuity Prices CL'!$B$10,MATCH($B37,'Combined Annuity Prices CL'!$B$10:$B$3811,0)+12,E$7)) -> 21.668 | G37: 0 | H37: 0 | J37: =IFERROR(VLOOKUP($B37,Volumes!$B$4:$F$32,MATCH(J$9,Volumes!$B$4:$F$4,0),FALSE),0) -> 0 | K37: =IFERROR(VLOOKUP($B37,Volumes!$B$4:$F$32,MATCH(K$9,Volumes!$B$4:$F$4,0),FALSE),0) -> 0 | M37: 0 | N37: 0
B38: =Inputs!$C97 -> 70W Sodium Vapour | C38: Offered | D38: =IF($C38="NA","",OFFSET('Combined Annuity Prices CL'!$B$10,MATCH($B38,'Combined Annuity Prices CL'!$B$10:$B$3811,0)+12,D$7)) -> 17.547 | E38: =IF($C38="NA","",OFFSET('Combined Annuity Prices CL'!$B$10,MATCH($B38,'Combined Annuity Prices CL'!$B$10:$B$3811,0)+12,E$7)) -> 17.576 | G38: 0.00467539815 | H38: 0.0046831252 | J38: =IFERROR(VLOOKUP($B38,Volumes!$B$4:$F$32,MATCH(J$9,Volumes!$B$4:$F$4,0),FALSE),0) -> 73 | K38: =IFERROR(VLOOKUP($B38,Volumes!$B$4:$F$32,MATCH(K$9,Volumes!$B$4:$F$4,0),FALSE),0) -> 73 | M38: 0.004789940257 | N38: 0.004915398816
B39: =Inputs!$C98 -> 0 | C39: NA | D39: =IF($C39="NA","",OFFSET('Combined Annuity Prices CL'!$B$10,MATCH($B39,'Combined Annuity Prices CL'!$B$10:$B$3811,0)+12,D$7)) ->  | E39: =IF($C39="NA","",OFFSET('Combined Annuity Prices CL'!$B$10,MATCH($B39,'Combined Annuity Prices CL'!$B$10:$B$3811,0)+12,E$7)) ->  | J39: =IFERROR(VLOOKUP($B39,Volumes!$B$4:$F$32,MATCH(J$9,Volumes!$B$4:$F$4,0),FALSE),0) -> 0 | K39: =IFERROR(VLOOKUP($B39,Volumes!$B$4:$F$32,MATCH(K$9,Volumes!$B$4:$F$4,0),FALSE),0) -> 0
B40: =Inputs!$C99 -> 100W Incandescent | C40: Obsolete, no new Connections | D40: =IF($C40="NA","",OFFSET('Combined Annuity Prices CL'!$B$10,MATCH($B40,'Combined Annuity Prices CL'!$B$10:$B$3811,0)+12,D$7)) -> 20.57 | E40: =IF($C40="NA","",OFFSET('Combined Annuity Prices CL'!$B$10,MATCH($B40,'Combined Annuity Prices CL'!$B$10:$B$3811,0)+12,E$7)) -> 20.598 | G40: 0 | H40: 0 | J40: =IFERROR(VLOOKUP($B40,Volumes!$B$4:$F$32,MATCH(J$9,Volumes!$B$4:$F$4,0),FALSE),0) -> 0 | K40: =IFERROR(VLOOKUP($B40,Volumes!$B$4:$F$32,MATCH(K$9,Volumes!$B$4:$F$4,0),FALSE),0) -> 0 | M40: 0 | N40: 0
B41: =Inputs!$C100 -> 60W Incandescent | C41: Obsolete, no new Connections | D41: =IF($C41="NA","",OFFSET('Combined Annuity Prices CL'!$B$10,MATCH($B41,'Combined Annuity Prices CL'!$B$10:$B$3811,0)+12,D$7)) -> 17.156 | E41: =IF($C41="NA","",OFFSET('Combined Annuity Prices CL'!$B$10,MATCH($B41,'Combined Annuity Prices CL'!$B$10:$B$3811,0)+12,E$7)) -> 17.184 | G41: 0 | H41: 0 | J41: =IFERROR(VLOOKUP($B41,Volumes!$B$4:$F$32,MATCH(J$9,Volumes!$B$4:$F$4,0),FALSE),0) -> 0 | K41: =IFERROR(VLOOKUP($B41,Volumes!$B$4:$F$32,MATCH(K$9,Volumes!$B$4:$F$4,0),FALSE),0) -> 0 | M41: 0 | N41: 0
B42: =Inputs!$C101 -> 18W LED | C42: Offered | D42: =IF($C42="NA","",OFFSET('Combined Annuity Prices CL'!$B$10,MATCH($B42,'Combined Annuity Prices CL'!$B$10:$B$3811,0)+12,D$7)) -> 11.755 | E42: =IF($C42="NA","",OFFSET('Combined Annuity Prices CL'!$B$10,MATCH($B42,'Combined Annuity Prices CL'!$B$10:$B$3811,0)+12,E$7)) -> 11.783 | G42: =IF($C42="NA","",D42*J42*G$6/100/10^6) -> 0.2043171815 | H42: =IF($C42="NA","",E42*K42*H$6/100/10^6) -> 0.2068682395 | J42: =IFERROR(VLOOKUP($B42,Volumes!$B$4:$F$32,MATCH(J$9,Volumes!$B$4:$F$4,0),FALSE),0) -> 4762 | K42: =IFERROR(VLOOKUP($B42,Volumes!$B$4:$F$32,MATCH(K$9,Volumes!$B$4:$F$4,0),FALSE),0) -> 4810 | M42: =IF($C42="NA","",D42*M$7*J42*G$6/100/10^6) -> 0.2093227275 | N42: =IF($C42="NA","",E42*N$7*K42*H$6/100/10^6) -> 0.2171284892
B43: =Inputs!$C102 -> 25W LED | C43: Offered | D43: =IF($C43="NA","",OFFSET('Combined Annuity Prices CL'!$B$10,MATCH($B43,'Combined Annuity Prices CL'!$B$10:$B$3811,0)+12,D$7)) -> 11.755 | E43: =IF($C43="NA","",OFFSET('Combined Annuity Prices CL'!$B$10,MATCH($B43,'Combined Annuity Prices CL'!$B$10:$B$3811,0)+12,E$7)) -> 11.783 | G43: 0.00124426675 | H43: 0.00124723055 | J43: =IFERROR(VLOOKUP($B43,Volumes!$B$4:$F$32,MATCH(J$9,Volumes!$B$4:$F$4,0),FALSE),0) -> 29 | K43: =IFERROR(VLOOKUP($B43,Volumes!$B$4:$F$32,MATCH(K$9,Volumes!$B$4:$F$4,0),FALSE),0) -> 29 | M43: 0.001274749915 | N43: 0.001309090683
B44: =Inputs!$C103 -> 18W LED Decorative - Bottom Pole Entry | C44: Offered | D44: =IF($C44="NA","",OFFSET('Combined Annuity Prices CL'!$B$10,MATCH($B44,'Combined Annuity Prices CL'!$B$10:$B$3811,0)+12,D$7)) -> 11.755 | E44: =IF($C44="NA","",OFFSET('Combined Annuity Prices CL'!$B$10,MATCH($B44,'Combined Annuity Prices CL'!$B$10:$B$3811,0)+12,E$7)) -> 11.783 | G44: 0 | H44: 0 | J44: =IFERROR(VLOOKUP($B44,Volumes!$B$4:$F$32,MATCH(J$9,Volumes!$B$4:$F$4,0),FALSE),0) -> 0 | K44: =IFERROR(VLOOKUP($B44,Volumes!$B$4:$F$32,MATCH(K$9,Volumes!$B$4:$F$4,0),FALSE),0) -> 0 | M44: 0 | N44: 0
B45: =Inputs!$C104 -> 18W LED Decorative - Side Entry | C45: Offered | D45: =IF($C45="NA","",OFFSET('Combined Annuity Prices CL'!$B$10,MATCH($B45,'Combined Annuity Prices CL'!$B$10:$B$3811,0)+12,D$7)) -> 11.755 | E45: =IF($C45="NA","",OFFSET('Combined Annuity Prices CL'!$B$10,MATCH($B45,'Combined Annuity Prices CL'!$B$10:$B$3811,0)+12,E$7)) -> 11.783 | G45: 0 | H45: 0 | J45: =IFERROR(VLOOKUP($B45,Volumes!$B$4:$F$32,MATCH(J$9,Volumes!$B$4:$F$4,0),FALSE),0) -> 0 | K45: =IFERROR(VLOOKUP($B45,Volumes!$B$4:$F$32,MATCH(K$9,Volumes!$B$4:$F$4,0),FALSE),0) -> 0 | M45: 0 | N45: 0
B46: =Inputs!$C105 -> 18W LED Decorative - Top Entry | C46: Offered | D46: =IF($C46="NA","",OFFSET('Combined Annuity Prices CL'!$B$10,MATCH($B46,'Combined Annuity Prices CL'!$B$10:$B$3811,0)+12,D$7)) -> 11.755 | E46: =IF($C46="NA","",OFFSET('Combined Annuity Prices CL'!$B$10,MATCH($B46,'Combined Annuity Prices CL'!$B$10:$B$3811,0)+12,E$7)) -> 11.783 | G46: 0 | H46: 0 | J46: =IFERROR(VLOOKUP($B46,Volumes!$B$4:$F$32,MATCH(J$9,Volumes!$B$4:$F$4,0),FALSE),0) -> 0 | K46: =IFERROR(VLOOKUP($B46,Volumes!$B$4:$F$32,MATCH(K$9,Volumes!$B$4:$F$4,0),FALSE),0) -> 0 | M46: 0 | N46: 0
B47: =Inputs!$C106 -> 25W LED Decorative - Bottom Pole Entry | C47: Offered | D47: =IF($C47="NA","",OFFSET('Combined Annuity Prices CL'!$B$10,MATCH($B47,'Combined Annuity Prices CL'!$B$10:$B$3811,0)+12,D$7)) -> 11.755 | E47: =IF($C47="NA","",OFFSET('Combined Annuity Prices CL'!$B$10,MATCH($B47,'Combined Annuity Prices CL'!$B$10:$B$3811,0)+12,E$7)) -> 11.783 | G47: 0 | H47: 0 | J47: =IFERROR(VLOOKUP($B47,Volumes!$B$4:$F$32,MATCH(J$9,Volumes!$B$4:$F$4,0),FALSE),0) -> 0 | K47: =IFERROR(VLOOKUP($B47,Volumes!$B$4:$F$32,MATCH(K$9,Volumes!$B$4:$F$4,0),FALSE),0) -> 0 | M47: 0 | N47: 0
B48: =Inputs!$C107 -> 25W LED Decorative - Side Entry | C48: Offered | D48: =IF($C48="NA","",OFFSET('Combined Annuity Prices CL'!$B$10,MATCH($B48,'Combined Annuity Prices CL'!$B$10:$B$3811,0)+12,D$7)) -> 11.755 | E48: =IF($C48="NA","",OFFSET('Combined Annuity Prices CL'!$B$10,MATCH($B48,'Combined Annuity Prices CL'!$B$10:$B$3811,0)+12,E$7)) -> 11.783 | G48: 0 | H48: 0 | J48: =IFERROR(VLOOKUP($B48,Volumes!$B$4:$F$32,MATCH(J$9,Volumes!$B$4:$F$4,0),FALSE),0) -> 0 | K48: =IFERROR(VLOOKUP($B48,Volumes!$B$4:$F$32,MATCH(K$9,Volumes!$B$4:$F$4,0),FALSE),0) -> 0 | M48: 0 | N48: 0
B49: =Inputs!$C108 -> 25W LED Decorative - Top Entry | C49: Offered | D49: =IF($C49="NA","",OFFSET('Combined Annuity Prices CL'!$B$10,MATCH($B49,'Combined Annuity Prices CL'!$B$10:$B$3811,0)+12,D$7)) -> 11.755 | E49: =IF($C49="NA","",OFFSET('Combined Annuity Prices CL'!$B$10,MATCH($B49,'Combined Annuity Prices CL'!$B$10:$B$3811,0)+12,E$7)) -> 11.783 | G49: 0 | H49: 0 | J49: =IFERROR(VLOOKUP($B49,Volumes!$B$4:$F$32,MATCH(J$9,Volumes!$B$4:$F$4,0),FALSE),0) -> 0 | K49: =IFERROR(VLOOKUP($B49,Volumes!$B$4:$F$32,MATCH(K$9,Volumes!$B$4:$F$4,0),FALSE),0) -> 0 | M49: 0 | N49: 0
B50: =Inputs!$C109 -> 30W LED | C50: Not Offered | D50: =IF($C50="NA","",OFFSET('Combined Annuity Prices CL'!$B$10,MATCH($B50,'Combined Annuity Prices CL'!$B$10:$B$3811,0)+12,D$7)) -> 11.755 | E50: =IF($C50="NA","",OFFSET('Combined Annuity Prices CL'!$B$10,MATCH($B50,'Combined Annuity Prices CL'!$B$10:$B$3811,0)+12,E$7)) -> 11.783 | G50: 0.001372984 | H50: 0.0013762544 | J50: =IFERROR(VLOOKUP($B50,Volumes!$B$4:$F$32,MATCH(J$9,Volumes!$B$4:$F$4,0),FALSE),0) -> 32 | K50: =IFERROR(VLOOKUP($B50,Volumes!$B$4:$F$32,MATCH(K$9,Volumes!$B$4:$F$4,0),FALSE),0) -> 32 | M50: 0.001406620596 | N50: 0.001444513858
B51: =Inputs!$C110 -> 88 LED Light | C51: Not Offered | D51: =IF($C51="NA","",OFFSET('Combined Annuity Prices CL'!$B$10,MATCH($B51,'Combined Annuity Prices CL'!$B$10:$B$3811,0)+12,D$7)) -> 11.755 | E51: =IF($C51="NA","",OFFSET('Combined Annuity Prices CL'!$B$10,MATCH($B51,'Combined Annuity Prices CL'!$B$10:$B$3811,0)+12,E$7)) -> 11.783 | G51: 0 | H51: 0 | J51: =IFERROR(VLOOKUP($B51,Volumes!$B$4:$F$32,MATCH(J$9,Volumes!$B$4:$F$4,0),FALSE),0) -> 0 | K51: =IFERROR(VLOOKUP($B51,Volumes!$B$4:$F$32,MATCH(K$9,Volumes!$B$4:$F$4,0),FALSE),0) -> 0 | M51: 0 | N51: 0
B52: =Inputs!$C111 -> 100W Metal Halide | C52: Offered | D52: =IF($C52="NA","",OFFSET('Combined Annuity Prices CL'!$B$10,MATCH($B52,'Combined Annuity Prices CL'!$B$10:$B$3811,0)+12,D$7)) -> 21.471 | E52: =IF($C52="NA","",OFFSET('Combined Annuity Prices CL'!$B$10,MATCH($B52,'Combined Annuity Prices CL'!$B$10:$B$3811,0)+12,E$7)) -> 21.499 | G52: 0.00039184575 | H52: 0.00039235675 | J52: =IFERROR(VLOOKUP($B52,Volumes!$B$4:$F$32,MATCH(J$9,Volumes!$B$4:$F$4,0),FALSE),0) -> 5 | K52: =IFERROR(VLOOKUP($B52,Volumes!$B$4:$F$32,MATCH(K$9,Volumes!$B$4:$F$4,0),FALSE),0) -> 5 | M52: 0.0004014455395 | N52: 0.0004118168578
B53: =Inputs!$C112 -> 150W Metal Halide | C53: Offered | D53: =IF($C53="NA","",OFFSET('Combined Annuity Prices CL'!$B$10,MATCH($B53,'Combined Annuity Prices CL'!$B$10:$B$3811,0)+12,D$7)) -> 21.611 | E53: =IF($C53="NA","",OFFSET('Combined Annuity Prices CL'!$B$10,MATCH($B53,'Combined Annuity Prices CL'!$B$10:$B$3811,0)+12,E$7)) -> 21.64 | G53: 0.00212976405 | H53: 0.002132622 | J53: =IFERROR(VLOOKUP($B53,Volumes!$B$4:$F$32,MATCH(J$9,Volumes!$B$4:$F$4,0),FALSE),0) -> 27 | K53: =IFERROR(VLOOKUP($B53,Volumes!$B$4:$F$32,MATCH(K$9,Volumes!$B$4:$F$4,0),FALSE),0) -> 27 | M53: 0.002181940924 | N53: 0.002238395773
B54: =Inputs!$C113 -> 250W Metal Halide | C54: Offered | D54: =IF($C54="NA","",OFFSET('Combined Annuity Prices CL'!$B$10,MATCH($B54,'Combined Annuity Prices CL'!$B$10:$B$3811,0)+12,D$7)) -> 21.611 | E54: =IF($C54="NA","",OFFSET('Combined Annuity Prices CL'!$B$10,MATCH($B54,'Combined Annuity Prices CL'!$B$10:$B$3811,0)+12,E$7)) -> 21.64 | G54: 0.003155206 | H54: 0.00315944 | J54: =IFERROR(VLOOKUP($B54,Volumes!$B$4:$F$32,MATCH(J$9,Volumes!$B$4:$F$4,0),FALSE),0) -> 40 | K54: =IFERROR(VLOOKUP($B54,Volumes!$B$4:$F$32,MATCH(K$9,Volumes!$B$4:$F$4,0),FALSE),0) -> 40 | M54: 0.003232505073 | N54: 0.003316141887
B55: =Inputs!$C114 -> 400W Metal Halide | C55: Offered | D55: =IF($C55="NA","",OFFSET('Combined Annuity Prices CL'!$B$10,MATCH($B55,'Combined Annuity Prices CL'!$B$10:$B$3811,0)+12,D$7)) -> 22.282 | E55: =IF($C55="NA","",OFFSET('Combined Annuity Prices CL'!$B$10,MATCH($B55,'Combined Annuity Prices CL'!$B$10:$B$3811,0)+12,E$7)) -> 22.311 | G55: 0.0007319637 | H55: 0.00073291635 | J55: =IFERROR(VLOOKUP($B55,Volumes!$B$4:$F$32,MATCH(J$9,Volumes!$B$4:$F$4,0),FALSE),0) -> 9 | K55: =IFERROR(VLOOKUP($B55,Volumes!$B$4:$F$32,MATCH(K$9,Volumes!$B$4:$F$4,0),FALSE),0) -> 9 | M55: 0.0007498960048 | N55: 0.0007692675308
B56: =Inputs!$C115 -> 70W Metal Halide | C56: Not Offered | D56: =IF($C56="NA","",OFFSET('Combined Annuity Prices CL'!$B$10,MATCH($B56,'Combined Annuity Prices CL'!$B$10:$B$3811,0)+12,D$7)) -> 18.039 | E56: =IF($C56="NA","",OFFSET('Combined Annuity Prices CL'!$B$10,MATCH($B56,'Combined Annuity Prices CL'!$B$10:$B$3811,0)+12,E$7)) -> 18.067 | G56: 0 | H56: 0 | J56: =IFERROR(VLOOKUP($B56,Volumes!$B$4:$F$32,MATCH(J$9,Volumes!$B$4:$F$4,0),FALSE),0) -> 0 | K56: =IFERROR(VLOOKUP($B56,Volumes!$B$4:$F$32,MATCH(K$9,Volumes!$B$4:$F$4,0),FALSE),0) -> 0 | M56: 0 | N56: 0
B57: =Inputs!$C116 -> 250W Metal Halide - Flood Light | C57: Offered | D57: =IF($C57="NA","",OFFSET('Combined Annuity Prices CL'!$B$10,MATCH($B57,'Combined Annuity Prices CL'!$B$10:$B$3811,0)+12,D$7)) -> 21.611 | E57: =IF($C57="NA","",OFFSET('Combined Annuity Prices CL'!$B$10,MATCH($B57,'Combined Annuity Prices CL'!$B$10:$B$3811,0)+12,E$7)) -> 21.64 | G57: 0 | H57: 0 | J57: =IFERROR(VLOOKUP($B57,Volumes!$B$4:$F$32,MATCH(J$9,Volumes!$B$4:$F$4,0),FALSE),0) -> 0 | K57: =IFERROR(VLOOKUP($B57,Volumes!$B$4:$F$32,MATCH(K$9,Volumes!$B$4:$F$4,0),FALSE),0) -> 0 | M57: 0 | N57: 0
B58: =Inputs!$C117 -> 400W Metal Halide - Flood Light | C58: Offered | D58: =IF($C58="NA","",OFFSET('Combined Annuity Prices CL'!$B$10,MATCH($B58,'Combined Annuity Prices CL'!$B$10:$B$3811,0)+12,D$7)) -> 22.282 | E58: =IF($C58="NA","",OFFSET('Combined Annuity Prices CL'!$B$10,MATCH($B58,'Combined Annuity Prices CL'!$B$10:$B$3811,0)+12,E$7)) -> 22.311 | G58: 0 | H58: 0 | J58: =IFERROR(VLOOKUP($B58,Volumes!$B$4:$F$32,MATCH(J$9,Volumes!$B$4:$F$4,0),FALSE),0) -> 0 | K58: =IFERROR(VLOOKUP($B58,Volumes!$B$4:$F$32,MATCH(K$9,Volumes!$B$4:$F$4,0),FALSE),0) -> 0 | M58: 0 | N58: 0
B59: =Inputs!$C118 -> 125W Mercury Vapour | C59: Obsolete, no new Connections | D59: =IF($C59="NA","",OFFSET('Combined Annuity Prices CL'!$B$10,MATCH($B59,'Combined Annuity Prices CL'!$B$10:$B$3811,0)+12,D$7)) -> 20.604 | E59: =IF($C59="NA","",OFFSET('Combined Annuity Prices CL'!$B$10,MATCH($B59,'Combined Annuity Prices CL'!$B$10:$B$3811,0)+12,E$7)) -> 20.633 | G59: 0.0245919042 | H59: 0.024099344 | J59: =IFERROR(VLOOKUP($B59,Volumes!$B$4:$F$32,MATCH(J$9,Volumes!$B$4:$F$4,0),FALSE),0) -> 327 | K59: =IFERROR(VLOOKUP($B59,Volumes!$B$4:$F$32,MATCH(K$9,Volumes!$B$4:$F$4,0),FALSE),0) -> 320 | M59: 0.02519437878 | N59: 0.02529462312
B60: =Inputs!$C119 -> 250W Mercury Vapour | C60: Obsolete, no new Connections | D60: =IF($C60="NA","",OFFSET('Combined Annuity Prices CL'!$B$10,MATCH($B60,'Combined Annuity Prices CL'!$B$10:$B$3811,0)+12,D$7)) -> 20.604 | E60: =IF($C60="NA","",OFFSET('Combined Annuity Prices CL'!$B$10,MATCH($B60,'Combined Annuity Prices CL'!$B$10:$B$3811,0)+12,E$7)) -> 20.633 | G60: 0.0021057288 | H60: 0.0021086926 | J60: =IFERROR(VLOOKUP($B60,Volumes!$B$4:$F$32,MATCH(J$9,Volumes!$B$4:$F$4,0),FALSE),0) -> 28 | K60: =IFERROR(VLOOKUP($B60,Volumes!$B$4:$F$32,MATCH(K$9,Volumes!$B$4:$F$4,0),FALSE),0) -> 28 | M60: 0.002157316837 | N60: 0.002213279523
B61: =Inputs!$C120 -> 0 | C61: NA | D61: =IF($C61="NA","",OFFSET('Combined Annuity Prices CL'!$B$10,MATCH($B61,'Combined Annuity Prices CL'!$B$10:$B$3811,0)+12,D$7)) ->  | E61: =IF($C61="NA","",OFFSET('Combined Annuity Prices CL'!$B$10,MATCH($B61,'Combined Annuity Prices CL'!$B$10:$B$3811,0)+12,E$7)) ->  | J61: =IFERROR(VLOOKUP($B61,Volumes!$B$4:$F$32,MATCH(J$9,Volumes!$B$4:$F$4,0),FALSE),0) -> 0 | K61: =IFERROR(VLOOKUP($B61,Volumes!$B$4:$F$32,MATCH(K$9,Volumes!$B$4:$F$4,0),FALSE),0) -> 0
B62: =Inputs!$C121 -> 400W Mercury Vapour | C62: Obsolete, no new Connections | D62: =IF($C62="NA","",OFFSET('Combined Annuity Prices CL'!$B$10,MATCH($B62,'Combined Annuity Prices CL'!$B$10:$B$3811,0)+12,D$7)) -> 20.751 | E62: =IF($C62="NA","",OFFSET('Combined Annuity Prices CL'!$B$10,MATCH($B62,'Combined Annuity Prices CL'!$B$10:$B$3811,0)+12,E$7)) -> 20.779 | G62: 0.0016663053 | H62: 0.00159271035 | J62: =IFERROR(VLOOKUP($B62,Volumes!$B$4:$F$32,MATCH(J$9,Volumes!$B$4:$F$4,0),FALSE),0) -> 22 | K62: =IFERROR(VLOOKUP($B62,Volumes!$B$4:$F$32,MATCH(K$9,Volumes!$B$4:$F$4,0),FALSE),0) -> 21 | M62: 0.001707127945 | N62: 0.001671705589
B63: =Inputs!$C122 -> 50W Mercury Vapour | C63: Obsolete, no new Connections | D63: =IF($C63="NA","",OFFSET('Combined Annuity Prices CL'!$B$10,MATCH($B63,'Combined Annuity Prices CL'!$B$10:$B$3811,0)+12,D$7)) -> 17.218 | E63: =IF($C63="NA","",OFFSET('Combined Annuity Prices CL'!$B$10,MATCH($B63,'Combined Annuity Prices CL'!$B$10:$B$3811,0)+12,E$7)) -> 17.246 | G63: 0.0118149916 | H63: 0.0115824136 | J63: =IFERROR(VLOOKUP($B63,Volumes!$B$4:$F$32,MATCH(J$9,Volumes!$B$4:$F$4,0),FALSE),0) -> 188 | K63: =IFERROR(VLOOKUP($B63,Volumes!$B$4:$F$32,MATCH(K$9,Volumes!$B$4:$F$4,0),FALSE),0) -> 184 | M63: 0.01210444589 | N63: 0.01215687808
B64: =Inputs!$C123 -> 80W Mercury Vapour Art decorative | C64: Obsolete, no new Connections | D64: =IF($C64="NA","",OFFSET('Combined Annuity Prices CL'!$B$10,MATCH($B64,'Combined Annuity Prices CL'!$B$10:$B$3811,0)+12,D$7)) -> 17.187 | E64: =IF($C64="NA","",OFFSET('Combined Annuity Prices CL'!$B$10,MATCH($B64,'Combined Annuity Prices CL'!$B$10:$B$3811,0)+12,E$7)) -> 17.216 | G64: 0 | H64: 0 | J64: =IFERROR(VLOOKUP($B64,Volumes!$B$4:$F$32,MATCH(J$9,Volumes!$B$4:$F$4,0),FALSE),0) -> 0 | K64: =IFERROR(VLOOKUP($B64,Volumes!$B$4:$F$32,MATCH(K$9,Volumes!$B$4:$F$4,0),FALSE),0) -> 0 | M64: 0 | N64: 0
B65: =Inputs!$C124 -> 80W Mercury Vapour | C65: Obsolete, no new Connections | D65: =IF($C65="NA","",OFFSET('Combined Annuity Prices CL'!$B$10,MATCH($B65,'Combined Annuity Prices CL'!$B$10:$B$3811,0)+12,D$7)) -> 17.187 | E65: =IF($C65="NA","",OFFSET('Combined Annuity Prices CL'!$B$10,MATCH($B65,'Combined Annuity Prices CL'!$B$10:$B$3811,0)+12,E$7)) -> 17.216 | G65: 0.0219563925 | H65: 0.0215535712 | J65: =IFERROR(VLOOKUP($B65,Volumes!$B$4:$F$32,MATCH(J$9,Volumes!$B$4:$F$4,0),FALSE),0) -> 350 | K65: =IFERROR(VLOOKUP($B65,Volumes!$B$4:$F$32,MATCH(K$9,Volumes!$B$4:$F$4,0),FALSE),0) -> 343 | M65: 0.02249429994 | N65: 0.0226225851
M66: 0 | N66: 0
G67: =SUM(G10:G66) -> 0.3145407466 | H67: 0.3159603922 | J67: =SUM(J10:J66) -> 6329 | K67: 6358 | M67: =SUM(M10:M66) -> 0.3222466485 | N67: 0.3316313938
J68: =Volumes!E33=J67 -> TRUE | K68: =Volumes!F33=K67 -> TRUE
B69: Public Road Lights | C69: =C8 -> Price (cents) per Light per day | G69: =G8 -> Revenue ($m) - Real | M69: Revenue ($m) - Nominal
C70: Offered / No Longer Offered / NA | D70: ='Master Data'!I$29 -> 2017-18 | E70: ='Master Data'!J$29 -> 2018-19 | G70: =G9 -> 2017-18 | H70: 2018-19 | J70: =J9 -> 2017-18 | K70: 2018-19 | M70: ='Master Data'!I$29 -> 2017-18 | N70: ='Master Data'!J$29 -> 2018-19
B71: =Inputs!$C69 -> 32W Compact Fluorescent | C71: Not Offered | D71: =IF($C71="NA","",IF($B71=0,"",OFFSET('Combined Annuity Prices PL'!$B$10,MATCH($B71,'Combined Annuity Prices PL'!$B$10:$B$3811,0)+12,D$7))) -> 34.288 | E71: =IF($C71="NA","",IF($B71=0,"",OFFSET('Combined Annuity Prices PL'!$B$10,MATCH($B71,'Combined Annuity Prices PL'!$B$10:$B$3811,0)+12,E$7))) -> 34.523 | G71: =IF($C71="NA","",D71*J71*G$6/100/10^6) -> 0 | H71: =IF($C71="NA","",E71*K71*H$6/100/10^6) -> 0 | J71: =IFERROR(VLOOKUP($B71,Volumes!$B$38:$F$79,MATCH(J$9,Volumes!$B$4:$F$4,0),FALSE),0) -> 0 | K71: =IFERROR(VLOOKUP($B71,Volumes!$B$38:$F$79,MATCH(K$9,Volumes!$B$4:$F$4,0),FALSE),0) -> 0 | M71: =IF($C71="NA","",D71*M$7*J71*G$6/100/10^6) -> 0 | N71: =IF($C71="NA","",E71*N$7*K71*H$6/100/10^6) -> 0
B72: =Inputs!$C70 -> 42W Compact Fluorescent | C72: Offered | D72: =IF($C72="NA","",IF($B72=0,"",OFFSET('Combined Annuity Prices PL'!$B$10,MATCH($B72,'Combined Annuity Prices PL'!$B$10:$B$3811,0)+12,D$7))) -> 34.312 | E72: =IF($C72="NA","",IF($B72=0,"",OFFSET('Combined Annuity Prices PL'!$B$10,MATCH($B72,'Combined Annuity Prices PL'!$B$10:$B$3811,0)+12,E$7))) -> 34.548 | G72: 0.7143621152 | H72: 0.6833369838 | J72: =IFERROR(VLOOKUP($B72,Volumes!$B$38:$F$79,MATCH(J$9,Volumes!$B$4:$F$4,0),FALSE),0) -> 5704 | K72: =IFERROR(VLOOKUP($B72,Volumes!$B$38:$F$79,MATCH(K$9,Volumes!$B$4:$F$4,0),FALSE),0) -> 5419 | M72: 0.7318632005 | N72: 0.7172291275
B73: =Inputs!$C71 -> 42W Compact Fluorescent - Bottom Pole Entry | C73: Offered | D73: =IF($C73="NA","",IF($B73=0,"",OFFSET('Combined Annuity Prices PL'!$B$10,MATCH($B73,'Combined Annuity Prices PL'!$B$10:$B$3811,0)+12,D$7))) -> 34.312 | E73: =IF($C73="NA","",IF($B73=0,"",OFFSET('Combined Annuity Prices PL'!$B$10,MATCH($B73,'Combined Annuity Prices PL'!$B$10:$B$3811,0)+12,E$7))) -> 34.548 | G73: 0.015028656 | H73: 0.021437034 | J73: =IFERROR(VLOOKUP($B73,Volumes!$B$38:$F$79,MATCH(J$9,Volumes!$B$4:$F$4,0),FALSE),0) -> 120 | K73: =IFERROR(VLOOKUP($B73,Volumes!$B$38:$F$79,MATCH(K$9,Volumes!$B$4:$F$4,0),FALSE),0) -> 170 | M73: 0.01539684153 | N73: 0.02250026789
B74: =Inputs!$C72 -> 2x24W Compact Fluorescent | C74: Not Offered | D74: =IF($C74="NA","",IF($B74=0,"",OFFSET('Combined Annuity Prices PL'!$B$10,MATCH($B74,'Combined Annuity Prices PL'!$B$10:$B$3811,0)+12,D$7))) -> 34.619 | E74: =IF($C74="NA","",IF($B74=0,"",OFFSET('Combined Annuity Prices PL'!$B$10,MATCH($B74,'Combined Annuity Prices PL'!$B$10:$B$3811,0)+12,E$7))) -> 34.855 | G74: 0 | H74: 0 | J74: =IFERROR(VLOOKUP($B74,Volumes!$B$38:$F$79,MATCH(J$9,Volumes!$B$4:$F$4,0),FALSE),0) -> 0 | K74: =IFERROR(VLOOKUP($B74,Volumes!$B$38:$F$79,MATCH(K$9,Volumes!$B$4:$F$4,0),FALSE),0) -> 0 | M74: 0 | N74: 0
B75: =Inputs!$C73 -> 1x20W Fluorescent | C75: Obsolete, no new Connections | D75: =IF($C75="NA","",IF($B75=0,"",OFFSET('Combined Annuity Prices PL'!$B$10,MATCH($B75,'Combined Annuity Prices PL'!$B$10:$B$3811,0)+12,D$7))) -> 35.926 | E75: =IF($C75="NA","",IF($B75=0,"",OFFSET('Combined Annuity Prices PL'!$B$10,MATCH($B75,'Combined Annuity Prices PL'!$B$10:$B$3811,0)+12,E$7))) -> 36.161 | G75: 0 | H75: 0 | J75: =IFERROR(VLOOKUP($B75,Volumes!$B$38:$F$79,MATCH(J$9,Volumes!$B$4:$F$4,0),FALSE),0) -> 0 | K75: =IFERROR(VLOOKUP($B75,Volumes!$B$38:$F$79,MATCH(K$9,Volumes!$B$4:$F$4,0),FALSE),0) -> 0 | M75: 0 | N75: 0
B76: =Inputs!$C74 -> 1x40W Fluorescent | C76: Abolished | D76: =IF($C76="NA","",IF($B76=0,"",OFFSET('Combined Annuity Prices PL'!$B$10,MATCH($B76,'Combined Annuity Prices PL'!$B$10:$B$3811,0)+12,D$7))) -> 34.819 | E76: =IF($C76="NA","",IF($B76=0,"",OFFSET('Combined Annuity Prices PL'!$B$10,MATCH($B76,'Combined Annuity Prices PL'!$B$10:$B$3811,0)+12,E$7))) -> 35.055 | G76: 0 | H76: 0 | J76: =IFERROR(VLOOKUP($B76,Volumes!$B$38:$F$79,MATCH(J$9,Volumes!$B$4:$F$4,0),FALSE),0) -> 0 | K76: =IFERROR(VLOOKUP($B76,Volumes!$B$38:$F$79,MATCH(K$9,Volumes!$B$4:$F$4,0),FALSE),0) -> 0 | M76: 0 | N76: 0
B77: =Inputs!$C75 -> 2x20W Fluorescent | C77: Abolished | D77: =IF($C77="NA","",IF($B77=0,"",OFFSET('Combined Annuity Prices PL'!$B$10,MATCH($B77,'Combined Annuity Prices PL'!$B$10:$B$3811,0)+12,D$7))) -> 36.202 | E77: =IF($C77="NA","",IF($B77=0,"",OFFSET('Combined Annuity Prices PL'!$B$10,MATCH($B77,'Combined Annuity Prices PL'!$B$10:$B$3811,0)+12,E$7))) -> 36.438 | G77: 0 | H77: 0 | J77: =IFERROR(VLOOKUP($B77,Volumes!$B$38:$F$79,MATCH(J$9,Volumes!$B$4:$F$4,0),FALSE),0) -> 0 | K77: =IFERROR(VLOOKUP($B77,Volumes!$B$38:$F$79,MATCH(K$9,Volumes!$B$4:$F$4,0),FALSE),0) -> 0 | M77: 0 | N77: 0
B78: =Inputs!$C76 -> 2x24W Fluorescent | C78: Obsolete, no new Connections | D78: =IF($C78="NA","",IF($B78=0,"",OFFSET('Combined Annuity Prices PL'!$B$10,MATCH($B78,'Combined Annuity Prices PL'!$B$10:$B$3811,0)+12,D$7))) -> 36.155 | E78: =IF($C78="NA","",IF($B78=0,"",OFFSET('Combined Annuity Prices PL'!$B$10,MATCH($B78,'Combined Annuity Prices PL'!$B$10:$B$3811,0)+12,E$7))) -> 36.39 | G78: 0 | H78: 0 | J78: =IFERROR(VLOOKUP($B78,Volumes!$B$38:$F$79,MATCH(J$9,Volumes!$B$4:$F$4,0),FALSE),0) -> 0 | K78: =IFERROR(VLOOKUP($B78,Volumes!$B$38:$F$79,MATCH(K$9,Volumes!$B$4:$F$4,0),FALSE),0) -> 0 | M78: 0 | N78: 0
B79: =Inputs!$C77 -> T5 Fluorescent 2 x 24W | C79: Not Offered | D79: =IF($C79="NA","",IF($B79=0,"",OFFSET('Combined Annuity Prices PL'!$B$10,MATCH($B79,'Combined Annuity Prices PL'!$B$10:$B$3811,0)+12,D$7))) -> 36.202 | E79: =IF($C79="NA","",IF($B79=0,"",OFFSET('Combined Annuity Prices PL'!$B$10,MATCH($B79,'Combined Annuity Prices PL'!$B$10:$B$3811,0)+12,E$7))) -> 36.438 | G79: 0.0109673959 | H79: 0.0110388921 | J79: =IFERROR(VLOOKUP($B79,Volumes!$B$38:$F$79,MATCH(J$9,Volumes!$B$4:$F$4,0),FALSE),0) -> 83 | K79: =IFERROR(VLOOKUP($B79,Volumes!$B$38:$F$79,MATCH(K$9,Volumes!$B$4:$F$4,0),FALSE),0) -> 83 | M79: 0.01123608502 | N79: 0.01158639901
B80: =Inputs!$C78 -> 20 Fluorescent 1X20FL | C80: Not Offered | D80: =IF($C80="NA","",IF($B80=0,"",OFFSET('Combined Annuity Prices PL'!$B$10,MATCH($B80,'Combined Annuity Prices PL'!$B$10:$B$3811,0)+12,D$7))) -> 35.926 | E80: =IF($C80="NA","",IF($B80=0,"",OFFSET('Combined Annuity Prices PL'!$B$10,MATCH($B80,'Combined Annuity Prices PL'!$B$10:$B$3811,0)+12,E$7))) -> 36.161 | G80: 0 | H80: 0 | J80: =IFERROR(VLOOKUP($B80,Volumes!$B$38:$F$79,MATCH(J$9,Volumes!$B$4:$F$4,0),FALSE),0) -> 0 | K80: =IFERROR(VLOOKUP($B80,Volumes!$B$38:$F$79,MATCH(K$9,Volumes!$B$4:$F$4,0),FALSE),0) -> 0 | M80: 0 | N80: 0
B81: =Inputs!$C79 -> 2x40W Fluorescent | C81: Abolished | D81: =IF($C81="NA","",IF($B81=0,"",OFFSET('Combined Annuity Prices PL'!$B$10,MATCH($B81,'Combined Annuity Prices PL'!$B$10:$B$3811,0)+12,D$7))) -> 35.113 | E81: =IF($C81="NA","",IF($B81=0,"",OFFSET('Combined Annuity Prices PL'!$B$10,MATCH($B81,'Combined Annuity Prices PL'!$B$10:$B$3811,0)+12,E$7))) -> 35.349 | G81: 0 | H81: 0 | J81: =IFERROR(VLOOKUP($B81,Volumes!$B$38:$F$79,MATCH(J$9,Volumes!$B$4:$F$4,0),FALSE),0) -> 0 | K81: =IFERROR(VLOOKUP($B81,Volumes!$B$38:$F$79,MATCH(K$9,Volumes!$B$4:$F$4,0),FALSE),0) -> 0 | M81: 0 | N81: 0
B82: =Inputs!$C80 -> 3x40W Fluorescent | C82: Not Offered | D82: =IF($C82="NA","",IF($B82=0,"",OFFSET('Combined Annuity Prices PL'!$B$10,MATCH($B82,'Combined Annuity Prices PL'!$B$10:$B$3811,0)+12,D$7))) -> 44.156 | E82: =IF($C82="NA","",IF($B82=0,"",OFFSET('Combined Annuity Prices PL'!$B$10,MATCH($B82,'Combined Annuity Prices PL'!$B$10:$B$3811,0)+12,E$7))) -> 44.391 | G82: 0 | H82: 0 | J82: =IFERROR(VLOOKUP($B82,Volumes!$B$38:$F$79,MATCH(J$9,Volumes!$B$4:$F$4,0),FALSE),0) -> 0 | K82: =IFERROR(VLOOKUP($B82,Volumes!$B$38:$F$79,MATCH(K$9,Volumes!$B$4:$F$4,0),FALSE),0) -> 0 | M82: 0 | N82: 0
B83: =Inputs!$C81 -> 4x20 Fluorescent | C83: Abolished | D83: =IF($C83="NA","",IF($B83=0,"",OFFSET('Combined Annuity Prices PL'!$B$10,MATCH($B83,'Combined Annuity Prices PL'!$B$10:$B$3811,0)+12,D$7))) -> 36.755 | E83: =IF($C83="NA","",IF($B83=0,"",OFFSET('Combined Annuity Prices PL'!$B$10,MATCH($B83,'Combined Annuity Prices PL'!$B$10:$B$3811,0)+12,E$7))) -> 36.991 | G83: 0 | H83: 0 | J83: =IFERROR(VLOOKUP($B83,Volumes!$B$38:$F$79,MATCH(J$9,Volumes!$B$4:$F$4,0),FALSE),0) -> 0 | K83: =IFERROR(VLOOKUP($B83,Volumes!$B$38:$F$79,MATCH(K$9,Volumes!$B$4:$F$4,0),FALSE),0) -> 0 | M83: 0 | N83: 0
B84: =Inputs!$C82 -> 4x40W Fluorescent | C84: Abolished | D84: =IF($C84="NA","",IF($B84=0,"",OFFSET('Combined Annuity Prices PL'!$B$10,MATCH($B84,'Combined Annuity Prices PL'!$B$10:$B$3811,0)+12,D$7))) -> 45.575 | E84: =IF($C84="NA","",IF($B84=0,"",OFFSET('Combined Annuity Prices PL'!$B$10,MATCH($B84,'Combined Annuity Prices PL'!$B$10:$B$3811,0)+12,E$7))) -> 45.81 | G84: 0 | H84: 0 | J84: =IFERROR(VLOOKUP($B84,Volumes!$B$38:$F$79,MATCH(J$9,Volumes!$B$4:$F$4,0),FALSE),0) -> 0 | K84: =IFERROR(VLOOKUP($B84,Volumes!$B$38:$F$79,MATCH(K$9,Volumes!$B$4:$F$4,0),FALSE),0) -> 0 | M84: 0 | N84: 0
B85: =Inputs!$C83 -> 100W Sodium Vapour | C85: Offered | D85: =IF($C85="NA","",IF($B85=0,"",OFFSET('Combined Annuity Prices PL'!$B$10,MATCH($B85,'Combined Annuity Prices PL'!$B$10:$B$3811,0)+12,D$7))) -> 43.331 | E85: =IF($C85="NA","",IF($B85=0,"",OFFSET('Combined Annuity Prices PL'!$B$10,MATCH($B85,'Combined Annuity Prices PL'!$B$10:$B$3811,0)+12,E$7))) -> 43.566 | G85: 0.06373773445 | H85: 0.0672637257 | J85: =IFERROR(VLOOKUP($B85,Volumes!$B$38:$F$79,MATCH(J$9,Volumes!$B$4:$F$4,0),FALSE),0) -> 403 | K85: =IFERROR(VLOOKUP($B85,Volumes!$B$38:$F$79,MATCH(K$9,Volumes!$B$4:$F$4,0),FALSE),0) -> 423 | M85: 0.06529923877 | N85: 0.07059987157
B86: =Inputs!$C84 -> 0 | C86: NA | D86: =IF($C86="NA","",IF($B86=0,"",OFFSET('Combined Annuity Prices PL'!$B$10,MATCH($B86,'Combined Annuity Prices PL'!$B$10:$B$3811,0)+12,D$7))) ->  | E86: =IF($C86="NA","",IF($B86=0,"",OFFSET('Combined Annuity Prices PL'!$B$10,MATCH($B86,'Combined Annuity Prices PL'!$B$10:$B$3811,0)+12,E$7))) ->  | J86: =IFERROR(VLOOKUP($B86,Volumes!$B$38:$F$79,MATCH(J$9,Volumes!$B$4:$F$4,0),FALSE),0) -> 0 | K86: =IFERROR(VLOOKUP($B86,Volumes!$B$38:$F$79,MATCH(K$9,Volumes!$B$4:$F$4,0),FALSE),0) -> 0
B87: =Inputs!$C85 -> 150W Sodium Vapour | C87: Offered | D87: =IF($C87="NA","",IF($B87=0,"",OFFSET('Combined Annuity Prices PL'!$B$10,MATCH($B87,'Combined Annuity Prices PL'!$B$10:$B$3811,0)+12,D$7))) -> 45.577 | E87: =IF($C87="NA","",IF($B87=0,"",OFFSET('Combined Annuity Prices PL'!$B$10,MATCH($B87,'Combined Annuity Prices PL'!$B$10:$B$3811,0)+12,E$7))) -> 45.813 | G87: 0.8030006534 | H87: 0.847625254 | J87: =IFERROR(VLOOKUP($B87,Volumes!$B$38:$F$79,MATCH(J$9,Volumes!$B$4:$F$4,0),FALSE),0) -> 4827 | K87: =IFERROR(VLOOKUP($B87,Volumes!$B$38:$F$79,MATCH(K$9,Volumes!$B$4:$F$4,0),FALSE),0) -> 5069 | M87: 0.8226732853 | N87: 0.8896657664
B88: =Inputs!$C86 -> 0 | C88: NA | D88: =IF($C88="NA","",IF($B88=0,"",OFFSET('Combined Annuity Prices PL'!$B$10,MATCH($B88,'Combined Annuity Prices PL'!$B$10:$B$3811,0)+12,D$7))) ->  | E88: =IF($C88="NA","",IF($B88=0,"",OFFSET('Combined Annuity Prices PL'!$B$10,MATCH($B88,'Combined Annuity Prices PL'!$B$10:$B$3811,0)+12,E$7))) ->  | J88: =IFERROR(VLOOKUP($B88,Volumes!$B$38:$F$79,MATCH(J$9,Volumes!$B$4:$F$4,0),FALSE),0) -> 0 | K88: =IFERROR(VLOOKUP($B88,Volumes!$B$38:$F$79,MATCH(K$9,Volumes!$B$4:$F$4,0),FALSE),0) -> 0
B89: =Inputs!$C87 -> 0 | C89: NA | D89: =IF($C89="NA","",IF($B89=0,"",OFFSET('Combined Annuity Prices PL'!$B$10,MATCH($B89,'Combined Annuity Prices PL'!$B$10:$B$3811,0)+12,D$7))) ->  | E89: =IF($C89="NA","",IF($B89=0,"",OFFSET('Combined Annuity Prices PL'!$B$10,MATCH($B89,'Combined Annuity Prices PL'!$B$10:$B$3811,0)+12,E$7))) ->  | J89: =IFERROR(VLOOKUP($B89,Volumes!$B$38:$F$79,MATCH(J$9,Volumes!$B$4:$F$4,0),FALSE),0) -> 0 | K89: =IFERROR(VLOOKUP($B89,Volumes!$B$38:$F$79,MATCH(K$9,Volumes!$B$4:$F$4,0),FALSE),0) -> 0
B90: =Inputs!$C88 -> 0 | C90: NA | D90: =IF($C90="NA","",IF($B90=0,"",OFFSET('Combined Annuity Prices PL'!$B$10,MATCH($B90,'Combined Annuity Prices PL'!$B$10:$B$3811,0)+12,D$7))) ->  | E90: =IF($C90="NA","",IF($B90=0,"",OFFSET('Combined Annuity Prices PL'!$B$10,MATCH($B90,'Combined Annuity Prices PL'!$B$10:$B$3811,0)+12,E$7))) ->  | J90: =IFERROR(VLOOKUP($B90,Volumes!$B$38:$F$79,MATCH(J$9,Volumes!$B$4:$F$4,0),FALSE),0) -> 0 | K90: =IFERROR(VLOOKUP($B90,Volumes!$B$38:$F$79,MATCH(K$9,Volumes!$B$4:$F$4,0),FALSE),0) -> 0
B91: =Inputs!$C89 -> 250W Sodium Vapour | C91: Offered | D91: =IF($C91="NA","",IF($B91=0,"",OFFSET('Combined Annuity Prices PL'!$B$10,MATCH($B91,'Combined Annuity Prices PL'!$B$10:$B$3811,0)+12,D$7))) -> 46.666 | E91: =IF($C91="NA","",IF($B91=0,"",OFFSET('Combined Annuity Prices PL'!$B$10,MATCH($B91,'Combined Annuity Prices PL'!$B$10:$B$3811,0)+12,E$7))) -> 46.902 | G91: 1.0219854 | H91: 1.07851149 | J91: =IFERROR(VLOOKUP($B91,Volumes!$B$38:$F$79,MATCH(J$9,Volumes!$B$4:$F$4,0),FALSE),0) -> 6000 | K91: =IFERROR(VLOOKUP($B91,Volumes!$B$38:$F$79,MATCH(K$9,Volumes!$B$4:$F$4,0),FALSE),0) -> 6300 | M91: 1.047022917 | N91: 1.132003497
B92: =Inputs!$C90 -> 0 | C92: NA | D92: =IF($C92="NA","",IF($B92=0,"",OFFSET('Combined Annuity Prices PL'!$B$10,MATCH($B92,'Combined Annuity Prices PL'!$B$10:$B$3811,0)+12,D$7))) ->  | E92: =IF($C92="NA","",IF($B92=0,"",OFFSET('Combined Annuity Prices PL'!$B$10,MATCH($B92,'Combined Annuity Prices PL'!$B$10:$B$3811,0)+12,E$7))) ->  | J92: =IFERROR(VLOOKUP($B92,Volumes!$B$38:$F$79,MATCH(J$9,Volumes!$B$4:$F$4,0),FALSE),0) -> 0 | K92: =IFERROR(VLOOKUP($B92,Volumes!$B$38:$F$79,MATCH(K$9,Volumes!$B$4:$F$4,0),FALSE),0) -> 0
B93: =Inputs!$C91 -> 0 | C93: NA | D93: =IF($C93="NA","",IF($B93=0,"",OFFSET('Combined Annuity Prices PL'!$B$10,MATCH($B93,'Combined Annuity Prices PL'!$B$10:$B$3811,0)+12,D$7))) ->  | E93: =IF($C93="NA","",IF($B93=0,"",OFFSET('Combined Annuity Prices PL'!$B$10,MATCH($B93,'Combined Annuity Prices PL'!$B$10:$B$3811,0)+12,E$7))) ->  | J93: =IFERROR(VLOOKUP($B93,Volumes!$B$38:$F$79,MATCH(J$9,Volumes!$B$4:$F$4,0),FALSE),0) -> 0 | K93: =IFERROR(VLOOKUP($B93,Volumes!$B$38:$F$79,MATCH(K$9,Volumes!$B$4:$F$4,0),FALSE),0) -> 0
B94: =Inputs!$C92 -> 0 | C94: NA | D94: =IF($C94="NA","",IF($B94=0,"",OFFSET('Combined Annuity Prices PL'!$B$10,MATCH($B94,'Combined Annuity Prices PL'!$B$10:$B$3811,0)+12,D$7))) ->  | E94: =IF($C94="NA","",IF($B94=0,"",OFFSET('Combined Annuity Prices PL'!$B$10,MATCH($B94,'Combined Annuity Prices PL'!$B$10:$B$3811,0)+12,E$7))) ->  | J94: =IFERROR(VLOOKUP($B94,Volumes!$B$38:$F$79,MATCH(J$9,Volumes!$B$4:$F$4,0),FALSE),0) -> 0 | K94: =IFERROR(VLOOKUP($B94,Volumes!$B$38:$F$79,MATCH(K$9,Volumes!$B$4:$F$4,0),FALSE),0) -> 0
B95: =Inputs!$C93 -> 250W Sodium Vapour - Flood Light | C95: Offered | D95: =IF($C95="NA","",IF($B95=0,"",OFFSET('Combined Annuity Prices PL'!$B$10,MATCH($B95,'Combined Annuity Prices PL'!$B$10:$B$3811,0)+12,D$7))) -> 50.577 | E95: =IF($C95="NA","",IF($B95=0,"",OFFSET('Combined Annuity Prices PL'!$B$10,MATCH($B95,'Combined Annuity Prices PL'!$B$10:$B$3811,0)+12,E$7))) -> 50.813 | G95: 0.00609199965 | H95: 0.00649136075 | J95: =IFERROR(VLOOKUP($B95,Volumes!$B$38:$F$79,MATCH(J$9,Volumes!$B$4:$F$4,0),FALSE),0) -> 33 | K95: =IFERROR(VLOOKUP($B95,Volumes!$B$38:$F$79,MATCH(K$9,Volumes!$B$4:$F$4,0),FALSE),0) -> 35 | M95: 0.006241246934 | N95: 0.006813319222
B96: =Inputs!$C94 -> 400W Sodium Vapour | C96: Offered | D96: =IF($C96="NA","",IF($B96=0,"",OFFSET('Combined Annuity Prices PL'!$B$10,MATCH($B96,'Combined Annuity Prices PL'!$B$10:$B$3811,0)+12,D$7))) -> 47.488 | E96: =IF($C96="NA","",IF($B96=0,"",OFFSET('Combined Annuity Prices PL'!$B$10,MATCH($B96,'Combined Annuity Prices PL'!$B$10:$B$3811,0)+12,E$7))) -> 47.724 | G96: 0.1059053632 | H96: 0.1118316492 | J96: =IFERROR(VLOOKUP($B96,Volumes!$B$38:$F$79,MATCH(J$9,Volumes!$B$4:$F$4,0),FALSE),0) -> 611 | K96: =IFERROR(VLOOKUP($B96,Volumes!$B$38:$F$79,MATCH(K$9,Volumes!$B$4:$F$4,0),FALSE),0) -> 642 | M96: 0.108499928 | N96: 0.1173782747
B97: =Inputs!$C95 -> 0 | C97: NA | D97: =IF($C97="NA","",IF($B97=0,"",OFFSET('Combined Annuity Prices PL'!$B$10,MATCH($B97,'Combined Annuity Prices PL'!$B$10:$B$3811,0)+12,D$7))) ->  | E97: =IF($C97="NA","",IF($B97=0,"",OFFSET('Combined Annuity Prices PL'!$B$10,MATCH($B97,'Combined Annuity Prices PL'!$B$10:$B$3811,0)+12,E$7))) ->  | J97: =IFERROR(VLOOKUP($B97,Volumes!$B$38:$F$79,MATCH(J$9,Volumes!$B$4:$F$4,0),FALSE),0) -> 0 | K97: =IFERROR(VLOOKUP($B97,Volumes!$B$38:$F$79,MATCH(K$9,Volumes!$B$4:$F$4,0),FALSE),0) -> 0
B98: =Inputs!$C96 -> 400W Sodium Vapour - Flood Light | C98: Offered | D98: =IF($C98="NA","",IF($B98=0,"",OFFSET('Combined Annuity Prices PL'!$B$10,MATCH($B98,'Combined Annuity Prices PL'!$B$10:$B$3811,0)+12,D$7))) -> 50.068 | E98: =IF($C98="NA","",IF($B98=0,"",OFFSET('Combined Annuity Prices PL'!$B$10,MATCH($B98,'Combined Annuity Prices PL'!$B$10:$B$3811,0)+12,E$7))) -> 50.303 | G98: 0.0060306906 | H98: 0.00642620825 | J98: =IFERROR(VLOOKUP($B98,Volumes!$B$38:$F$79,MATCH(J$9,Volumes!$B$4:$F$4,0),FALSE),0) -> 33 | K98: =IFERROR(VLOOKUP($B98,Volumes!$B$38:$F$79,MATCH(K$9,Volumes!$B$4:$F$4,0),FALSE),0) -> 35 | M98: 0.00617843588 | N98: 0.006744935289
B99: =Inputs!$C97 -> 70W Sodium Vapour | C99: Offered | D99: =IF($C99="NA","",IF($B99=0,"",OFFSET('Combined Annuity Prices PL'!$B$10,MATCH($B99,'Combined Annuity Prices PL'!$B$10:$B$3811,0)+12,D$7))) -> 34.156 | E99: =IF($C99="NA","",IF($B99=0,"",OFFSET('Combined Annuity Prices PL'!$B$10,MATCH($B99,'Combined Annuity Prices PL'!$B$10:$B$3811,0)+12,E$7))) -> 34.392 | G99: 0.0266792516 | H99: 0.02824443 | J99: =IFERROR(VLOOKUP($B99,Volumes!$B$38:$F$79,MATCH(J$9,Volumes!$B$4:$F$4,0),FALSE),0) -> 214 | K99: =IFERROR(VLOOKUP($B99,Volumes!$B$38:$F$79,MATCH(K$9,Volumes!$B$4:$F$4,0),FALSE),0) -> 225 | M99: 0.02733286389 | N99: 0.02964529707
B100: =Inputs!$C98 -> 0 | C100: NA | D100: =IF($C100="NA","",IF($B100=0,"",OFFSET('Combined Annuity Prices PL'!$B$10,MATCH($B100,'Combined Annuity Prices PL'!$B$10:$B$3811,0)+12,D$7))) ->  | E100: =IF($C100="NA","",IF($B100=0,"",OFFSET('Combined Annuity Prices PL'!$B$10,MATCH($B100,'Combined Annuity Prices PL'!$B$10:$B$3811,0)+12,E$7))) ->  | J100: =IFERROR(VLOOKUP($B100,Volumes!$B$38:$F$79,MATCH(J$9,Volumes!$B$4:$F$4,0),FALSE),0) -> 0 | K100: =IFERROR(VLOOKUP($B100,Volumes!$B$38:$F$79,MATCH(K$9,Volumes!$B$4:$F$4,0),FALSE),0) -> 0
B101: =Inputs!$C99 -> 100W Incandescent | C101: Abolished | D101: =IF($C101="NA","",IF($B101=0,"",OFFSET('Combined Annuity Prices PL'!$B$10,MATCH($B101,'Combined Annuity Prices PL'!$B$10:$B$3811,0)+12,D$7))) -> 39.956 | E101: =IF($C101="NA","",IF($B101=0,"",OFFSET('Combined Annuity Prices PL'!$B$10,MATCH($B101,'Combined Annuity Prices PL'!$B$10:$B$3811,0)+12,E$7))) -> 40.192 | G101: 0 | H101: 0 | J101: =IFERROR(VLOOKUP($B101,Volumes!$B$38:$F$79,MATCH(J$9,Volumes!$B$4:$F$4,0),FALSE),0) -> 0 | K101: =IFERROR(VLOOKUP($B101,Volumes!$B$38:$F$79,MATCH(K$9,Volumes!$B$4:$F$4,0),FALSE),0) -> 0 | M101: 0 | N101: 0
B102: =Inputs!$C100 -> 60W Incandescent | C102: Abolished | D102: =IF($C102="NA","",IF($B102=0,"",OFFSET('Combined Annuity Prices PL'!$B$10,MATCH($B102,'Combined Annuity Prices PL'!$B$10:$B$3811,0)+12,D$7))) -> 31.209 | E102: =IF($C102="NA","",IF($B102=0,"",OFFSET('Combined Annuity Prices PL'!$B$10,MATCH($B102,'Combined Annuity Prices PL'!$B$10:$B$3811,0)+12,E$7))) -> 31.444 | G102: 0 | H102: 0 | J102: =IFERROR(VLOOKUP($B102,Volumes!$B$38:$F$79,MATCH(J$9,Volumes!$B$4:$F$4,0),FALSE),0) -> 0 | K102: =IFERROR(VLOOKUP($B102,Volumes!$B$38:$F$79,MATCH(K$9,Volumes!$B$4:$F$4,0),FALSE),0) -> 0 | M102: 0 | N102: 0
B103: =Inputs!$C101 -> 18W LED | C103: Offered | D103: =IF($C103="NA","",IF($B103=0,"",OFFSET('Combined Annuity Prices PL'!$B$10,MATCH($B103,'Combined Annuity Prices PL'!$B$10:$B$3811,0)+12,D$7))) -> 32.687 | E103: =IF($C103="NA","",IF($B103=0,"",OFFSET('Combined Annuity Prices PL'!$B$10,MATCH($B103,'Combined Annuity Prices PL'!$B$10:$B$3811,0)+12,E$7))) -> 32.923 | G103: =IF($C103="NA","",D103*J103*G$6/100/10^6) -> 1.20619933 | H103: =IF($C103="NA","",E103*K103*H$6/100/10^6) -> 1.70760078 | J103: =IFERROR(VLOOKUP($B103,Volumes!$B$38:$F$79,MATCH(J$9,Volumes!$B$4:$F$4,0),FALSE),0) -> 10110 | K103: =IFERROR(VLOOKUP($B103,Volumes!$B$38:$F$79,MATCH(K$9,Volumes!$B$4:$F$4,0),FALSE),0) -> 14210 | M103: =IF($C103="NA","",D103*M$7*J103*G$6/100/10^6) -> 1.235749886 | N103: =IF($C103="NA","",E103*N$7*K103*H$6/100/10^6) -> 1.792294353
B104: =Inputs!$C102 -> 25W LED | C104: Offered | D104: =IF($C104="NA","",IF($B104=0,"",OFFSET('Combined Annuity Prices PL'!$B$10,MATCH($B104,'Combined Annuity Prices PL'!$B$10:$B$3811,0)+12,D$7))) -> 32.687 | E104: =IF($C104="NA","",IF($B104=0,"",OFFSET('Combined Annuity Prices PL'!$B$10,MATCH($B104,'Combined Annuity Prices PL'!$B$10:$B$3811,0)+12,E$7))) -> 32.923 | G104: 0.00250545855 | H104: 0.00252354795 | J104: =IFERROR(VLOOKUP($B104,Volumes!$B$38:$F$79,MATCH(J$9,Volumes!$B$4:$F$4,0),FALSE),0) -> 21 | K104: =IFERROR(VLOOKUP($B104,Volumes!$B$38:$F$79,MATCH(K$9,Volumes!$B$4:$F$4,0),FALSE),0) -> 21 | M104: 0.002566839526 | N104: 0.002648710866
B105: =Inputs!$C103 -> 18W LED Decorative - Bottom Pole Entry | C105: Offered | D105: =IF($C105="NA","",IF($B105=0,"",OFFSET('Combined Annuity Prices PL'!$B$10,MATCH($B105,'Combined Annuity Prices PL'!$B$10:$B$3811,0)+12,D$7))) -> 45.775 | E105: =IF($C105="NA","",IF($B105=0,"",OFFSET('Combined Annuity Prices PL'!$B$10,MATCH($B105,'Combined Annuity Prices PL'!$B$10:$B$3811,0)+12,E$7))) -> 46.011 | G105: 0.00551359875 | H105: 0.00587790525 | J105: =IFERROR(VLOOKUP($B105,Volumes!$B$38:$F$79,MATCH(J$9,Volumes!$B$4:$F$4,0),FALSE),0) -> 33 | K105: =IFERROR(VLOOKUP($B105,Volumes!$B$38:$F$79,MATCH(K$9,Volumes!$B$4:$F$4,0),FALSE),0) -> 35 | M105: 0.005648675849 | N105: 0.00616943756
B106: =Inputs!$C104 -> 18W LED Decorative - Side Entry | C106: Offered | D106: =IF($C106="NA","",IF($B106=0,"",OFFSET('Combined Annuity Prices PL'!$B$10,MATCH($B106,'Combined Annuity Prices PL'!$B$10:$B$3811,0)+12,D$7))) -> 45.775 | E106: =IF($C106="NA","",IF($B106=0,"",OFFSET('Combined Annuity Prices PL'!$B$10,MATCH($B106,'Combined Annuity Prices PL'!$B$10:$B$3811,0)+12,E$7))) -> 46.011 | G106: 0.00551359875 | H106: 0.00587790525 | J106: =IFERROR(VLOOKUP($B106,Volumes!$B$38:$F$79,MATCH(J$9,Volumes!$B$4:$F$4,0),FALSE),0) -> 33 | K106: =IFERROR(VLOOKUP($B106,Volumes!$B$38:$F$79,MATCH(K$9,Volumes!$B$4:$F$4,0),FALSE),0) -> 35 | M106: 0.005648675849 | N106: 0.00616943756
B107: =Inputs!$C105 -> 18W LED Decorative - Top Entry | C107: Offered | D107: =IF($C107="NA","",IF($B107=0,"",OFFSET('Combined Annuity Prices PL'!$B$10,MATCH($B107,'Combined Annuity Prices PL'!$B$10:$B$3811,0)+12,D$7))) -> 45.775 | E107: =IF($C107="NA","",IF($B107=0,"",OFFSET('Combined Annuity Prices PL'!$B$10,MATCH($B107,'Combined Annuity Prices PL'!$B$10:$B$3811,0)+12,E$7))) -> 46.011 | G107: 0.00551359875 | H107: 0.00587790525 | J107: =IFERROR(VLOOKUP($B107,Volumes!$B$38:$F$79,MATCH(J$9,Volumes!$B$4:$F$4,0),FALSE),0) -> 33 | K107: =IFERROR(VLOOKUP($B107,Volumes!$B$38:$F$79,MATCH(K$9,Volumes!$B$4:$F$4,0),FALSE),0) -> 35 | M107: 0.005648675849 | N107: 0.00616943756
B108: =Inputs!$C106 -> 25W LED Decorative - Bottom Pole Entry | C108: Offered | D108: =IF($C108="NA","",IF($B108=0,"",OFFSET('Combined Annuity Prices PL'!$B$10,MATCH($B108,'Combined Annuity Prices PL'!$B$10:$B$3811,0)+12,D$7))) -> 45.775 | E108: =IF($C108="NA","",IF($B108=0,"",OFFSET('Combined Annuity Prices PL'!$B$10,MATCH($B108,'Combined Annuity Prices PL'!$B$10:$B$3811,0)+12,E$7))) -> 46.011 | G108: 0.00551359875 | H108: 0.00587790525 | J108: =IFERROR(VLOOKUP($B108,Volumes!$B$38:$F$79,MATCH(J$9,Volumes!$B$4:$F$4,0),FALSE),0) -> 33 | K108: =IFERROR(VLOOKUP($B108,Volumes!$B$38:$F$79,MATCH(K$9,Volumes!$B$4:$F$4,0),FALSE),0) -> 35 | M108: 0.005648675849 | N108: 0.00616943756
B109: =Inputs!$C107 -> 25W LED Decorative - Side Entry | C109: Offered | D109: =IF($C109="NA","",IF($B109=0,"",OFFSET('Combined Annuity Prices PL'!$B$10,MATCH($B109,'Combined Annuity Prices PL'!$B$10:$B$3811,0)+12,D$7))) -> 45.775 | E109: =IF($C109="NA","",IF($B109=0,"",OFFSET('Combined Annuity Prices PL'!$B$10,MATCH($B109,'Combined Annuity Prices PL'!$B$10:$B$3811,0)+12,E$7))) -> 46.011 | G109: 0.00551359875 | H109: 0.00587790525 | J109: =IFERROR(VLOOKUP($B109,Volumes!$B$38:$F$79,MATCH(J$9,Volumes!$B$4:$F$4,0),FALSE),0) -> 33 | K109: =IFERROR(VLOOKUP($B109,Volumes!$B$38:$F$79,MATCH(K$9,Volumes!$B$4:$F$4,0),FALSE),0) -> 35 | M109: 0.005648675849 | N109: 0.00616943756
B110: =Inputs!$C108 -> 25W LED Decorative - Top Entry | C110: Offered | D110: =IF($C110="NA","",IF($B110=0,"",OFFSET('Combined Annuity Prices PL'!$B$10,MATCH($B110,'Combined Annuity Prices PL'!$B$10:$B$3811,0)+12,D$7))) -> 45.775 | E110: =IF($C110="NA","",IF($B110=0,"",OFFSET('Combined Annuity Prices PL'!$B$10,MATCH($B110,'Combined Annuity Prices PL'!$B$10:$B$3811,0)+12,E$7))) -> 46.011 | G110: 0.00551359875 | H110: 0.00587790525 | J110: =IFERROR(VLOOKUP($B110,Volumes!$B$38:$F$79,MATCH(J$9,Volumes!$B$4:$F$4,0),FALSE),0) -> 33 | K110: =IFERROR(VLOOKUP($B110,Volumes!$B$38:$F$79,MATCH(K$9,Volumes!$B$4:$F$4,0),FALSE),0) -> 35 | M110: 0.005648675849 | N110: 0.00616943756
B111: =Inputs!$C109 -> 30W LED | C111: Not Offered | D111: =IF($C111="NA","",IF($B111=0,"",OFFSET('Combined Annuity Prices PL'!$B$10,MATCH($B111,'Combined Annuity Prices PL'!$B$10:$B$3811,0)+12,D$7))) -> 32.687 | E111: =IF($C111="NA","",IF($B111=0,"",OFFSET('Combined Annuity Prices PL'!$B$10,MATCH($B111,'Combined Annuity Prices PL'!$B$10:$B$3811,0)+12,E$7))) -> 32.923 | G111: 0 | H111: 0 | J111: =IFERROR(VLOOKUP($B111,Volumes!$B$38:$F$79,MATCH(J$9,Volumes!$B$4:$F$4,0),FALSE),0) -> 0 | K111: =IFERROR(VLOOKUP($B111,Volumes!$B$38:$F$79,MATCH(K$9,Volumes!$B$4:$F$4,0),FALSE),0) -> 0 | M111: 0 | N111: 0
B112: =Inputs!$C110 -> 88 LED Light | C112: Abolished | D112: =IF($C112="NA","",IF($B112=0,"",OFFSET('Combined Annuity Prices PL'!$B$10,MATCH($B112,'Combined Annuity Prices PL'!$B$10:$B$3811,0)+12,D$7))) -> 32.687 | E112: =IF($C112="NA","",IF($B112=0,"",OFFSET('Combined Annuity Prices PL'!$B$10,MATCH($B112,'Combined Annuity Prices PL'!$B$10:$B$3811,0)+12,E$7))) -> 32.923 | G112: 0 | H112: 0 | J112: =IFERROR(VLOOKUP($B112,Volumes!$B$38:$F$79,MATCH(J$9,Volumes!$B$4:$F$4,0),FALSE),0) -> 0 | K112: =IFERROR(VLOOKUP($B112,Volumes!$B$38:$F$79,MATCH(K$9,Volumes!$B$4:$F$4,0),FALSE),0) -> 0 | M112: 0 | N112: 0
B113: =Inputs!$C111 -> 100W Metal Halide | C113: Offered | D113: =IF($C113="NA","",IF($B113=0,"",OFFSET('Combined Annuity Prices PL'!$B$10,MATCH($B113,'Combined Annuity Prices PL'!$B$10:$B$3811,0)+12,D$7))) -> 43.479 | E113: =IF($C113="NA","",IF($B113=0,"",OFFSET('Combined Annuity Prices PL'!$B$10,MATCH($B113,'Combined Annuity Prices PL'!$B$10:$B$3811,0)+12,E$7))) -> 43.714 | G113: 0.00269787195 | H113: 0.0027124537 | J113: =IFERROR(VLOOKUP($B113,Volumes!$B$38:$F$79,MATCH(J$9,Volumes!$B$4:$F$4,0),FALSE),0) -> 17 | K113: =IFERROR(VLOOKUP($B113,Volumes!$B$38:$F$79,MATCH(K$9,Volumes!$B$4:$F$4,0),FALSE),0) -> 17 | M113: 0.002763966843 | N113: 0.002846985963
B114: =Inputs!$C112 -> 150W Metal Halide | C114: Offered | D114: =IF($C114="NA","",IF($B114=0,"",OFFSET('Combined Annuity Prices PL'!$B$10,MATCH($B114,'Combined Annuity Prices PL'!$B$10:$B$3811,0)+12,D$7))) -> 46.131 | E114: =IF($C114="NA","",IF($B114=0,"",OFFSET('Combined Annuity Prices PL'!$B$10,MATCH($B114,'Combined Annuity Prices PL'!$B$10:$B$3811,0)+12,E$7))) -> 46.367 | G114: 0.0023572941 | H114: 0.00253859325 | J114: =IFERROR(VLOOKUP($B114,Volumes!$B$38:$F$79,MATCH(J$9,Volumes!$B$4:$F$4,0),FALSE),0) -> 14 | K114: =IFERROR(VLOOKUP($B114,Volumes!$B$38:$F$79,MATCH(K$9,Volumes!$B$4:$F$4,0),FALSE),0) -> 15 | M114: 0.00241504521 | N114: 0.002664502383
B115: =Inputs!$C113 -> 250W Metal Halide | C115: Offered | D115: =IF($C115="NA","",IF($B115=0,"",OFFSET('Combined Annuity Prices PL'!$B$10,MATCH($B115,'Combined Annuity Prices PL'!$B$10:$B$3811,0)+12,D$7))) -> 46.954 | E115: =IF($C115="NA","",IF($B115=0,"",OFFSET('Combined Annuity Prices PL'!$B$10,MATCH($B115,'Combined Annuity Prices PL'!$B$10:$B$3811,0)+12,E$7))) -> 47.19 | G115: 0.0150816248 | H115: 0.0153296715 | J115: =IFERROR(VLOOKUP($B115,Volumes!$B$38:$F$79,MATCH(J$9,Volumes!$B$4:$F$4,0),FALSE),0) -> 88 | K115: =IFERROR(VLOOKUP($B115,Volumes!$B$38:$F$79,MATCH(K$9,Volumes!$B$4:$F$4,0),FALSE),0) -> 89 | M115: 0.015451108 | N115: 0.01608999246
B116: =Inputs!$C114 -> 400W Metal Halide | C116: Offered | D116: =IF($C116="NA","",IF($B116=0,"",OFFSET('Combined Annuity Prices PL'!$B$10,MATCH($B116,'Combined Annuity Prices PL'!$B$10:$B$3811,0)+12,D$7))) -> 52.1 | E116: =IF($C116="NA","",IF($B116=0,"",OFFSET('Combined Annuity Prices PL'!$B$10,MATCH($B116,'Combined Annuity Prices PL'!$B$10:$B$3811,0)+12,E$7))) -> 52.335 | G116: 0.003232805 | H116: 0.00324738675 | J116: =IFERROR(VLOOKUP($B116,Volumes!$B$38:$F$79,MATCH(J$9,Volumes!$B$4:$F$4,0),FALSE),0) -> 17 | K116: =IFERROR(VLOOKUP($B116,Volumes!$B$38:$F$79,MATCH(K$9,Volumes!$B$4:$F$4,0),FALSE),0) -> 17 | M116: 0.003312005163 | N116: 0.003408450619
B117: =Inputs!$C115 -> 70W Metal Halide | C117: Not Offered | D117: =IF($C117="NA","",IF($B117=0,"",OFFSET('Combined Annuity Prices PL'!$B$10,MATCH($B117,'Combined Annuity Prices PL'!$B$10:$B$3811,0)+12,D$7))) -> 33.008 | E117: =IF($C117="NA","",IF($B117=0,"",OFFSET('Combined Annuity Prices PL'!$B$10,MATCH($B117,'Combined Annuity Prices PL'!$B$10:$B$3811,0)+12,E$7))) -> 33.244 | G117: 0 | H117: 0 | J117: =IFERROR(VLOOKUP($B117,Volumes!$B$38:$F$79,MATCH(J$9,Volumes!$B$4:$F$4,0),FALSE),0) -> 0 | K117: =IFERROR(VLOOKUP($B117,Volumes!$B$38:$F$79,MATCH(K$9,Volumes!$B$4:$F$4,0),FALSE),0) -> 0 | M117: 0 | N117: 0
B118: =Inputs!$C116 -> 250W Metal Halide - Flood Light | C118: Offered | D118: =IF($C118="NA","",IF($B118=0,"",OFFSET('Combined Annuity Prices PL'!$B$10,MATCH($B118,'Combined Annuity Prices PL'!$B$10:$B$3811,0)+12,D$7))) -> 52.243 | E118: =IF($C118="NA","",IF($B118=0,"",OFFSET('Combined Annuity Prices PL'!$B$10,MATCH($B118,'Combined Annuity Prices PL'!$B$10:$B$3811,0)+12,E$7))) -> 52.478 | G118: 0.00629266935 | H118: 0.0067040645 | J118: =IFERROR(VLOOKUP($B118,Volumes!$B$38:$F$79,MATCH(J$9,Volumes!$B$4:$F$4,0),FALSE),0) -> 33 | K118: =IFERROR(VLOOKUP($B118,Volumes!$B$38:$F$79,MATCH(K$9,Volumes!$B$4:$F$4,0),FALSE),0) -> 35 | M118: 0.006446832821 | N118: 0.007036572652
B119: =Inputs!$C117 -> 400W Metal Halide - Flood Light | C119: Offered | D119: =IF($C119="NA","",IF($B119=0,"",OFFSET('Combined Annuity Prices PL'!$B$10,MATCH($B119,'Combined Annuity Prices PL'!$B$10:$B$3811,0)+12,D$7))) -> 52.1 | E119: =IF($C119="NA","",IF($B119=0,"",OFFSET('Combined Annuity Prices PL'!$B$10,MATCH($B119,'Combined Annuity Prices PL'!$B$10:$B$3811,0)+12,E$7))) -> 52.335 | G119: 0.006275445 | H119: 0.00668579625 | J119: =IFERROR(VLOOKUP($B119,Volumes!$B$38:$F$79,MATCH(J$9,Volumes!$B$4:$F$4,0),FALSE),0) -> 33 | K119: =IFERROR(VLOOKUP($B119,Volumes!$B$38:$F$79,MATCH(K$9,Volumes!$B$4:$F$4,0),FALSE),0) -> 35 | M119: 0.006429186493 | N119: 0.007017398333
B120: =Inputs!$C118 -> 125W Mercury Vapour | C120: Obsolete, no new Connections | D120: =IF($C120="NA","",IF($B120=0,"",OFFSET('Combined Annuity Prices PL'!$B$10,MATCH($B120,'Combined Annuity Prices PL'!$B$10:$B$3811,0)+12,D$7))) -> 43.203 | E120: =IF($C120="NA","",IF($B120=0,"",OFFSET('Combined Annuity Prices PL'!$B$10,MATCH($B120,'Combined Annuity Prices PL'!$B$10:$B$3811,0)+12,E$7))) -> 43.439 | G120: 0 | H120: 0 | J120: =IFERROR(VLOOKUP($B120,Volumes!$B$38:$F$79,MATCH(J$9,Volumes!$B$4:$F$4,0),FALSE),0) -> 0 | K120: =IFERROR(VLOOKUP($B120,Volumes!$B$38:$F$79,MATCH(K$9,Volumes!$B$4:$F$4,0),FALSE),0) -> 0 | M120: 0 | N120: 0
B121: =Inputs!$C119 -> 250W Mercury Vapour | C121: Obsolete, no new Connections | D121: =IF($C121="NA","",IF($B121=0,"",OFFSET('Combined Annuity Prices PL'!$B$10,MATCH($B121,'Combined Annuity Prices PL'!$B$10:$B$3811,0)+12,D$7))) -> 43.658 | E121: =IF($C121="NA","",IF($B121=0,"",OFFSET('Combined Annuity Prices PL'!$B$10,MATCH($B121,'Combined Annuity Prices PL'!$B$10:$B$3811,0)+12,E$7))) -> 43.893 | G121: 0.0680431759 | H121: 0.0650450367 | J121: =IFERROR(VLOOKUP($B121,Volumes!$B$38:$F$79,MATCH(J$9,Volumes!$B$4:$F$4,0),FALSE),0) -> 427 | K121: =IFERROR(VLOOKUP($B121,Volumes!$B$38:$F$79,MATCH(K$9,Volumes!$B$4:$F$4,0),FALSE),0) -> 406 | M121: 0.0697101588 | N121: 0.06827114005
B122: =Inputs!$C120 -> 0 | C122: NA | D122: =IF($C122="NA","",IF($B122=0,"",OFFSET('Combined Annuity Prices PL'!$B$10,MATCH($B122,'Combined Annuity Prices PL'!$B$10:$B$3811,0)+12,D$7))) ->  | E122: =IF($C122="NA","",IF($B122=0,"",OFFSET('Combined Annuity Prices PL'!$B$10,MATCH($B122,'Combined Annuity Prices PL'!$B$10:$B$3811,0)+12,E$7))) ->  | J122: =IFERROR(VLOOKUP($B122,Volumes!$B$38:$F$79,MATCH(J$9,Volumes!$B$4:$F$4,0),FALSE),0) -> 0 | K122: =IFERROR(VLOOKUP($B122,Volumes!$B$38:$F$79,MATCH(K$9,Volumes!$B$4:$F$4,0),FALSE),0) -> 0
B123: =Inputs!$C121 -> 400W Mercury Vapour | C123: Obsolete, no new Connections | D123: =IF($C123="NA","",IF($B123=0,"",OFFSET('Combined Annuity Prices PL'!$B$10,MATCH($B123,'Combined Annuity Prices PL'!$B$10:$B$3811,0)+12,D$7))) -> 45.722 | E123: =IF($C123="NA","",IF($B123=0,"",OFFSET('Combined Annuity Prices PL'!$B$10,MATCH($B123,'Combined Annuity Prices PL'!$B$10:$B$3811,0)+12,E$7))) -> 45.958 | G123: 0.0053403296 | H123: 0.0052001477 | J123: =IFERROR(VLOOKUP($B123,Volumes!$B$38:$F$79,MATCH(J$9,Volumes!$B$4:$F$4,0),FALSE),0) -> 32 | K123: =IFERROR(VLOOKUP($B123,Volumes!$B$38:$F$79,MATCH(K$9,Volumes!$B$4:$F$4,0),FALSE),0) -> 31 | M123: 0.005471161796 | N123: 0.005458064595
B124: =Inputs!$C122 -> 50W Mercury Vapour | C124: Obsolete, no new Connections | D124: =IF($C124="NA","",IF($B124=0,"",OFFSET('Combined Annuity Prices PL'!$B$10,MATCH($B124,'Combined Annuity Prices PL'!$B$10:$B$3811,0)+12,D$7))) -> 31.906 | E124: =IF($C124="NA","",IF($B124=0,"",OFFSET('Combined Annuity Prices PL'!$B$10,MATCH($B124,'Combined Annuity Prices PL'!$B$10:$B$3811,0)+12,E$7))) -> 32.142 | G124: 0 | H124: 0 | J124: =IFERROR(VLOOKUP($B124,Volumes!$B$38:$F$79,MATCH(J$9,Volumes!$B$4:$F$4,0),FALSE),0) -> 0 | K124: =IFERROR(VLOOKUP($B124,Volumes!$B$38:$F$79,MATCH(K$9,Volumes!$B$4:$F$4,0),FALSE),0) -> 0 | M124: 0 | N124: 0
B125: =Inputs!$C123 -> 80W Mercury Vapour Art decorative | C125: Obsolete, no new Connections | D125: =IF($C125="NA","",IF($B125=0,"",OFFSET('Combined Annuity Prices PL'!$B$10,MATCH($B125,'Combined Annuity Prices PL'!$B$10:$B$3811,0)+12,D$7))) -> 48.134 | E125: =IF($C125="NA","",IF($B125=0,"",OFFSET('Combined Annuity Prices PL'!$B$10,MATCH($B125,'Combined Annuity Prices PL'!$B$10:$B$3811,0)+12,E$7))) -> 48.369 | G125: 0.007027564 | H125: 0.007061874 | J125: =IFERROR(VLOOKUP($B125,Volumes!$B$38:$F$79,MATCH(J$9,Volumes!$B$4:$F$4,0),FALSE),0) -> 40 | K125: =IFERROR(VLOOKUP($B125,Volumes!$B$38:$F$79,MATCH(K$9,Volumes!$B$4:$F$4,0),FALSE),0) -> 40 | M125: =IF($C125="NA","",D125*M$7*J125*G$6/100/10^6) -> 0.007199731581 | N125: 0.007412128785
B126: =Inputs!$C124 -> 80W Mercury Vapour | C126: Obsolete, no new Connections | D126: =IF($C126="NA","",IF($B126=0,"",OFFSET('Combined Annuity Prices PL'!$B$10,MATCH($B126,'Combined Annuity Prices PL'!$B$10:$B$3811,0)+12,D$7))) -> 31.907 | E126: =IF($C126="NA","",IF($B126=0,"",OFFSET('Combined Annuity Prices PL'!$B$10,MATCH($B126,'Combined Annuity Prices PL'!$B$10:$B$3811,0)+12,E$7))) -> 32.142 | G126: 1.657815929 | H126: 1.189020971 | J126: =IFERROR(VLOOKUP($B126,Volumes!$B$38:$F$79,MATCH(J$9,Volumes!$B$4:$F$4,0),FALSE),0) -> 14235 | K126: =IFERROR(VLOOKUP($B126,Volumes!$B$38:$F$79,MATCH(K$9,Volumes!$B$4:$F$4,0),FALSE),0) -> 10135 | M126: 1.698430594 | N126: 1.247994026
M127: 0 | N127: 0
G128: =SUM(G71:G127) -> 5.78974035 | H128: =SUM(H71:H127) -> 5.911144782 | J128: =SUM(J71:J127) -> 43293 | K128: 43662 | M128: =SUM(M71:M127) -> 5.931582615 | N128: =SUM(N71:N127) -> 6.204325706
J129: =Volumes!E80=J128 -> TRUE | K129: =Volumes!F80=K128 -> TRUE
B130: Total | F130: =G8 -> Revenue ($m) - Real | G130: =SUM(G67,G128) -> 6.104281097 | H130: =SUM(H67,H128) -> 6.227105174 | J130: =SUM(J67,J128) -> 49622 | K130: 50020 | M130: =SUM(M67,M128) -> 6.253829263 | N130: =SUM(N67,N128) -> 6.5359571
J131: =Volumes!E84=J130 -> TRUE | K131: =Volumes!F84=K130 -> TRUE
F133: Nominal ($m Nominal) | G133: =G130*'Master Data'!I32 -> 6.253829263 | H133: =H130*'Master Data'!J32 -> 6.5359571
F134: Check | G134: =G133-M130 -> 0 | H134: =H133-N130 -> 0

Sheet Combined Annuity Prices CL
I1: ='Master Data'!H$22 -> 2017-06-30 | J1: ='Master Data'!I$22 -> 2018-06-30 | K1: ='Master Data'!J$22 -> 2019-06-30
J2: =HLOOKUP(J1,'Master Data'!$B$22:$P$23,2,FALSE) -> 365 | K2: =HLOOKUP(K1,'Master Data'!$B$22:$P$23,2,FALSE) -> 365
E3: ='Master Data'!I29 -> 2017-18 | F3: ='Master Data'!J29 -> 2018-19 | J3: ='Master Data'!I29 -> 2017-18 | K3: ='Master Data'!J29 -> 2018-19
E4: Cost $ Per year | J4: Cost Cents per Day
D5: Check errors | E5: =SUBTOTAL(9,$E$10:$E$758) -> 5969.241727 | F5: =SUBTOTAL(9,$E$10:$E$758) -> 5969.241727
B6: Lookup/Offset | D6: Offset | E6: 13 | F6: =E6+1 -> 14
B7: =Inputs!$C$68 -> Light Description | D7: Useful Life
B8: Private Contract Lighting
A10: 1 | B10: =IFERROR(VLOOKUP($A10,Inputs!$B$68:$AK$129,MATCH($B$7,Inputs!$B$68:$AK$68,0),FALSE),"Blank") -> 32W Compact Fluorescent | I10: =IFERROR(VLOOKUP($A10,Inputs!$B$68:$AK$129,MATCH($B$7,Inputs!$B$68:$AK$68,0),FALSE),"Blank") -> 32W Compact Fluorescent
B11: =Inputs!$R$68 -> Lamp UNIT price Annualised Cost | C11: =Inputs!$P$68 -> Lamp Maintenance cycle | E11: =IF($B10="Blank",0,VLOOKUP($B10,Inputs!$C$68:$AK$129,MATCH($B11,Inputs!$C$68:$AK$68,0),FALSE)) -> 1.121861245 | F11: =IF($B10="Blank",0,VLOOKUP($B10,Inputs!$C$68:$AK$129,MATCH($B11,Inputs!$C$68:$AK$68,0),FALSE)) -> 1.121861245 | I11: =B11 -> Lamp UNIT price Annualised Cost | J11: =IF(E11="NA","",E11/J$2*100) -> 0.3073592452 | K11: =IF(F11="NA","",F11/K$2*100) -> 0.3073592452
B12: =Inputs!$K$68 -> PE Cell UNIT price Annualised Cost | C12: =Inputs!$I$68 -> PE Cell Maintenance Cycle | E12: =IF($B10="Blank",0,VLOOKUP($B10,Inputs!$C$68:$AK$129,MATCH($B12,Inputs!$C$68:$AK$68,0),FALSE)) -> 0.5936945092 | F12: =IF($B10="Blank",0,VLOOKUP($B10,Inputs!$C$68:$AK$129,MATCH($B12,Inputs!$C$68:$AK$68,0),FALSE)) -> 0.5936945092 | I12: PE Cell UNIT price Annualised Cost | J12: 0.1626560299 | K12: 0.1626560299
B13: Corp capex annuity per light | E13: =IF($B10="Blank",0,'Corp Capex Annuity calcs'!F$109) -> 11.54925178 | F13: =IF($B10="Blank",0,'Corp Capex Annuity calcs'!G$109) -> 11.45735649 | I13: Corp capex annuity per light | J13: 3.164178569 | K13: 3.139001778
B14: =Inputs!$T$68 -> Lamp Service costs Annualised | E14: =IF($B10="Blank",0,VLOOKUP($B10,Inputs!$C$68:$AK$129,MATCH($B14,Inputs!$C$68:$AK$68,0),FALSE)) -> 25.31461639 | F14: =IF($B10="Blank",0,VLOOKUP($B10,Inputs!$C$68:$AK$129,MATCH($B14,Inputs!$C$68:$AK$68,0),FALSE)) -> 25.31461639 | I14: Lamp Service costs Annualised | J14: 6.935511339 | K14: 6.935511339
B15: =Inputs!$M$68 -> PE Cell Service costs Annualised | E15: =IF($B10="Blank",0,VLOOKUP($B10,Inputs!$C$68:$AK$129,MATCH($B15,Inputs!$C$68:$AK$68,0),FALSE)) -> 0 | F15: =IF($B10="Blank",0,VLOOKUP($B10,Inputs!$C$68:$AK$129,MATCH($B15,Inputs!$C$68:$AK$68,0),FALSE)) -> 0 | I15: PE Cell Service costs Annualised | J15: 0 | K15: 0
B16: Indirect Opex | E16: =IF($B10="Blank",0,IF($B$8="Private Contract Lighting",'Opex Weighting'!D$113,'Opex Weighting'!D$111)) -> 13.11908872 | F16: =IF($B10="Blank",0,IF($B$8="Private Contract Lighting",'Opex Weighting'!E$113,'Opex Weighting'!E$111)) -> 13.01470253 | I16: Indirect Opex | J16: 3.594270881 | K16: 3.565671925
B17: Indirect Capex | E17: =IF($B11="Blank",0,IF($B$8="Private Contract Lighting",'Capex Weighting'!D$115,'Capex Weighting'!D$117)) -> 0 | F17: =IF($B11="Blank",0,IF($B$8="Private Contract Lighting",'Capex Weighting'!E$115,'Capex Weighting'!E$117)) -> 0 | I17: Indirect Capex | J17: 0 | K17: 0
B18: Overhead Costs per light | E18: =IF($B10="Blank",0,IF($B$8="Private Contract Lighting",'Building Block'!C$49,'Building Block'!C$48)) -> 11.61153349 | F18: =IF($B10="Blank",0,IF($B$8="Private Contract Lighting",'Building Block'!D$49,'Building Block'!D$48)) -> 11.91135356 | I18: Overhead Costs per light | J18: 3.181242052 | K18: 3.263384537
B19: =Inputs!$AH$68 -> Bracket UNIT price | C19: 0 | E19: NA | F19: NA | I19: Bracket UNIT price
B20: =Inputs!$Y$68 -> CAPEX Installation costs | C20: =C19+1 -> 1 | E20: NA | F20: NA | I20: CAPEX Installation costs
B21: =Inputs!$X$68 -> Luminaire UNIT price | C21: =C20+1 -> 2 | E21: NA | F21: NA | I21: Luminaire UNIT price
B22: =Inputs!$Y$68 -> CAPEX Installation costs | C22: =C21+1 -> 3 | E22: NA | F22: NA | I22: CAPEX Installation costs
E23: =SUM(E11:E22) -> 63.31004612 | F23: =SUM(F11:F22) -> 63.41358472 | J23: =ROUND(E23/J$2*100,3) -> 17.345 | K23: =ROUND(F23/K$2*100,3) -> 17.374
A25: =A10+1 -> 2 | B25: =IFERROR(VLOOKUP($A25,Inputs!$B$68:$AK$129,MATCH($B$7,Inputs!$B$68:$AK$68,0),FALSE),"Blank") -> 42W Compact Fluorescent | I25: =IFERROR(VLOOKUP($A25,Inputs!$B$68:$AK$129,MATCH($B$7,Inputs!$B$68:$AK$68,0),FALSE),"Blank") -> 42W Compact Fluorescent
B26: =Inputs!$R$68 -> Lamp UNIT price Annualised Cost | C26: =Inputs!$P$68 -> Lamp Maintenance cycle | E26: =IF($B25="Blank",0,VLOOKUP($B25,Inputs!$C$68:$AK$129,MATCH($B26,Inputs!$C$68:$AK$68,0),FALSE)) -> 1.121861245 | F26: =IF($B25="Blank",0,VLOOKUP($B25,Inputs!$C$68:$AK$129,MATCH($B26,Inputs!$C$68:$AK$68,0),FALSE)) -> 1.121861245 | I26: =B26 -> Lamp UNIT price Annualised Cost | J26: =IF(E26="NA","",E26/J$2*100) -> 0.3073592452 | K26: =IF(F26="NA","",F26/K$2*100) -> 0.3073592452
B27: =Inputs!$K$68 -> PE Cell UNIT price Annualised Cost | C27: =Inputs!$I$68 -> PE Cell Maintenance Cycle | E27: =IF($B25="Blank",0,VLOOKUP($B25,Inputs!$C$68:$AK$129,MATCH($B27,Inputs!$C$68:$AK$68,0),FALSE)) -> 0.5936945092 | F27: =IF($B25="Blank",0,VLOOKUP($B25,Inputs!$C$68:$AK$129,MATCH($B27,Inputs!$C$68:$AK$68,0),FALSE)) -> 0.5936945092 | I27: PE Cell UNIT price Annualised Cost | J27: 0.1626560299 | K27: 0.1626560299
B28: Corp capex annuity per light | E28: =IF($B25="Blank",0,'Corp Capex Annuity calcs'!F$109) -> 11.54925178 | F28: =IF($B25="Blank",0,'Corp Capex Annuity calcs'!G$109) -> 11.45735649 | I28: Corp capex annuity per light | J28: 3.164178569 | K28: 3.139001778
B29: =Inputs!$T$68 -> Lamp Service costs Annualised | E29: =IF($B25="Blank",0,VLOOKUP($B25,Inputs!$C$68:$AK$129,MATCH($B29,Inputs!$C$68:$AK$68,0),FALSE)) -> 25.31461639 | F29: =IF($B25="Blank",0,VLOOKUP($B25,Inputs!$C$68:$AK$129,MATCH($B29,Inputs!$C$68:$AK$68,0),FALSE)) -> 25.31461639 | I29: Lamp Service costs Annualised | J29: 6.935511339 | K29: 6.935511339
B30: =Inputs!$M$68 -> PE Cell Service costs Annualised | E30: =IF($B25="Blank",0,VLOOKUP($B25,Inputs!$C$68:$AK$129,MATCH($B30,Inputs!$C$68:$AK$68,0),FALSE)) -> 0 | F30: =IF($B25="Blank",0,VLOOKUP($B25,Inputs!$C$68:$AK$129,MATCH($B30,Inputs!$C$68:$AK$68,0),FALSE)) -> 0 | I30: PE Cell Service costs Annualised | J30: 0 | K30: 0
B31: Indirect Opex | E31: =IF($B25="Blank",0,IF($B$8="Private Contract Lighting",'Opex Weighting'!D$113,'Opex Weighting'!D$111)) -> 13.11908872 | F31: =IF($B25="Blank",0,IF($B$8="Private Contract Lighting",'Opex Weighting'!E$113,'Opex Weighting'!E$111)) -> 13.01470253 | I31: Indirect Opex | J31: 3.594270881 | K31: 3.565671925
B32: Indirect Capex | E32: =IF($B26="Blank",0,IF($B$8="Private Contract Lighting",'Capex Weighting'!D$115,'Capex Weighting'!D$117)) -> 0 | F32: =IF($B26="Blank",0,IF($B$8="Private Contract Lighting",'Capex Weighting'!E$115,'Capex Weighting'!E$117)) -> 0 | I32: Indirect Capex | J32: 0 | K32: 0
B33: Overhead Costs per light | E33: =IF($B25="Blank",0,IF($B$8="Private Contract Lighting",'Building Block'!C$49,'Building Block'!C$48)) -> 11.61153349 | F33: =IF($B25="Blank",0,IF($B$8="Private Contract Lighting",'Building Block'!D$49,'Building Block'!D$48)) -> 11.91135356 | I33: Overhead Costs per light | J33: 3.181242052 | K33: 3.263384537
B34: =Inputs!$AH$68 -> Bracket UNIT price | C34: 0 | E34: NA | F34: NA | I34: Bracket UNIT price
B35: =Inputs!$Y$68 -> CAPEX Installation costs | C35: =C34+1 -> 1 | E35: NA | F35: NA | I35: CAPEX Installation costs
B36: =Inputs!$X$68 -> Luminaire UNIT price | C36: =C35+1 -> 2 | E36: NA | F36: NA | I36: Luminaire UNIT price
B37: =Inputs!$Y$68 -> CAPEX Installation costs | C37: 3 | E37: NA | F37: NA | I37: CAPEX Installation costs
E38: =SUM(E26:E37) -> 63.31004612 | F38: =SUM(F26:F37) -> 63.41358472 | J38: =ROUND(E38/J$2*100,3) -> 17.345 | K38: =ROUND(F38/K$2*100,3) -> 17.374
A40: =A25+1 -> 3 | B40: =IFERROR(VLOOKUP($A40,Inputs!$B$68:$AK$129,MATCH($B$7,Inputs!$B$68:$AK$68,0),FALSE),"Blank") -> 42W Compact Fluorescent - Bottom Pole Entry | I40: =IFERROR(VLOOKUP($A40,Inputs!$B$68:$AK$129,MATCH($B$7,Inputs!$B$68:$AK$68,0),FALSE),"Blank") -> 42W Compact Fluorescent - Bottom Pole Entry
B41: =Inputs!$R$68 -> Lamp UNIT price Annualised Cost | C41: =Inputs!$P$68 -> Lamp Maintenance cycle | E41: =IF($B40="Blank",0,VLOOKUP($B40,Inputs!$C$68:$AK$129,MATCH($B41,Inputs!$C$68:$AK$68,0),FALSE)) -> 1.121861245 | F41: =IF($B40="Blank",0,VLOOKUP($B40,Inputs!$C$68:$AK$129,MATCH($B41,Inputs!$C$68:$AK$68,0),FALSE)) -> 1.121861245 | I41: =B41 -> Lamp UNIT price Annualised Cost | J41: =IF(E41="NA","",E41/J$2*100) -> 0.3073592452 | K41: =IF(F41="NA","",F41/K$2*100) -> 0.3073592452
B42: =Inputs!$K$68 -> PE Cell UNIT price Annualised Cost | C42: =Inputs!$I$68 -> PE Cell Maintenance Cycle | E42: =IF($B40="Blank",0,VLOOKUP($B40,Inputs!$C$68:$AK$129,MATCH($B42,Inputs!$C$68:$AK$68,0),FALSE)) -> 0.5936945092 | F42: =IF($B40="Blank",0,VLOOKUP($B40,Inputs!$C$68:$AK$129,MATCH($B42,Inputs!$C$68:$AK$68,0),FALSE)) -> 0.5936945092 | I42: PE Cell UNIT price Annualised Cost | J42: 0.1626560299 | K42: 0.1626560299
B43: Corp capex annuity per light | E43: =IF($B40="Blank",0,'Corp Capex Annuity calcs'!F$109) -> 11.54925178 | F43: =IF($B40="Blank",0,'Corp Capex Annuity calcs'!G$109) -> 11.45735649 | I43: Corp capex annuity per light | J43: 3.164178569 | K43: 3.139001778
B44: =Inputs!$T$68 -> Lamp Service costs Annualised | E44: =IF($B40="Blank",0,VLOOKUP($B40,Inputs!$C$68:$AK$129,MATCH($B44,Inputs!$C$68:$AK$68,0),FALSE)) -> 25.31461639 | F44: =IF($B40="Blank",0,VLOOKUP($B40,Inputs!$C$68:$AK$129,MATCH($B44,Inputs!$C$68:$AK$68,0),FALSE)) -> 25.31461639 | I44: Lamp Service costs Annualised | J44: 6.935511339 | K44: 6.935511339
B45: =Inputs!$M$68 -> PE Cell Service costs Annualised | E45: =IF($B40="Blank",0,VLOOKUP($B40,Inputs!$C$68:$AK$129,MATCH($B45,Inputs!$C$68:$AK$68,0),FALSE)) -> 0 | F45: =IF($B40="Blank",0,VLOOKUP($B40,Inputs!$C$68:$AK$129,MATCH($B45,Inputs!$C$68:$AK$68,0),FALSE)) -> 0 | I45: PE Cell Service costs Annualised | J45: 0 | K45: 0
B46: Indirect Opex | E46: =IF($B40="Blank",0,IF($B$8="Private Contract Lighting",'Opex Weighting'!D$113,'Opex Weighting'!D$111)) -> 13.11908872 | F46: =IF($B40="Blank",0,IF($B$8="Private Contract Lighting",'Opex Weighting'!E$113,'Opex Weighting'!E$111)) -> 13.01470253 | I46: Indirect Opex | J46: 3.594270881 | K46: 3.565671925
B47: Indirect Capex | E47: =IF($B41="Blank",0,IF($B$8="Private Contract Lighting",'Capex Weighting'!D$115,'Capex Weighting'!D$117)) -> 0 | F47: =IF($B41="Blank",0,IF($B$8="Private Contract Lighting",'Capex Weighting'!E$115,'Capex Weighting'!E$117)) -> 0 | I47: Indirect Capex | J47: 0 | K47: 0
B48: Overhead Costs per light | E48: =IF($B40="Blank",0,IF($B$8="Private Contract Lighting",'Building Block'!C$49,'Building Block'!C$48)) -> 11.61153349 | F48: =IF($B40="Blank",0,IF($B$8="Private Contract Lighting",'Building Block'!D$49,'Building Block'!D$48)) -> 11.91135356 | I48: Overhead Costs per light | J48: 3.181242052 | K48: 3.263384537
B49: =Inputs!$AH$68 -> Bracket UNIT price | C49: 0 | E49: NA | F49: NA | I49: Bracket UNIT price
B50: =Inputs!$Y$68 -> CAPEX Installation costs | C50: =C49+1 -> 1 | E50: NA | F50: NA | I50: CAPEX Installation costs
B51: =Inputs!$X$68 -> Luminaire UNIT price | C51: =C50+1 -> 2 | E51: NA | F51: NA | I51: Luminaire UNIT price
B52: =Inputs!$Y$68 -> CAPEX Installation costs | C52: 3 | E52: NA | F52: NA | I52: CAPEX Installation costs
E53: =SUM(E41:E52) -> 63.31004612 | F53: =SUM(F41:F52) -> 63.41358472 | J53: =ROUND(E53/J$2*100,3) -> 17.345 | K53: =ROUND(F53/K$2*100,3) -> 17.374
A55: =A40+1 -> 4 | B55: =IFERROR(VLOOKUP($A55,Inputs!$B$68:$AK$129,MATCH($B$7,Inputs!$B$68:$AK$68,0),FALSE),"Blank") -> 2x24W Compact Fluorescent | I55: =IFERROR(VLOOKUP($A55,Inputs!$B$68:$AK$129,MATCH($B$7,Inputs!$B$68:$AK$68,0),FALSE),"Blank") -> 2x24W Compact Fluorescent
B56: =Inputs!$R$68 -> Lamp UNIT price Annualised Cost | C56: =Inputs!$P$68 -> Lamp Maintenance cycle | E56: =IF($B55="Blank",0,VLOOKUP($B55,Inputs!$C$68:$AK$129,MATCH($B56,Inputs!$C$68:$AK$68,0),FALSE)) -> 2.24372249 | F56: =IF($B55="Blank",0,VLOOKUP($B55,Inputs!$C$68:$AK$129,MATCH($B56,Inputs!$C$68:$AK$68,0),FALSE)) -> 2.24372249 | I56: =B56 -> Lamp UNIT price Annualised Cost | J56: =IF(E56="NA","",E56/J$2*100) -> 0.6147184903 | K56: =IF(F56="NA","",F56/K$2*100) -> 0.6147184903
B57: =Inputs!$K$68 -> PE Cell UNIT price Annualised Cost | C57: =Inputs!$I$68 -> PE Cell Maintenance Cycle | E57: =IF($B55="Blank",0,VLOOKUP($B55,Inputs!$C$68:$AK$129,MATCH($B57,Inputs!$C$68:$AK$68,0),FALSE)) -> 0.5936945092 | F57: =IF($B55="Blank",0,VLOOKUP($B55,Inputs!$C$68:$AK$129,MATCH($B57,Inputs!$C$68:$AK$68,0),FALSE)) -> 0.5936945092 | I57: PE Cell UNIT price Annualised Cost | J57: 0.1626560299 | K57: 0.1626560299
B58: Corp capex annuity per light | E58: =IF($B55="Blank",0,'Corp Capex Annuity calcs'!F$109) -> 11.54925178 | F58: =IF($B55="Blank",0,'Corp Capex Annuity calcs'!G$109) -> 11.45735649 | I58: Corp capex annuity per light | J58: 3.164178569 | K58: 3.139001778
B59: =Inputs!$T$68 -> Lamp Service costs Annualised | E59: =IF($B55="Blank",0,VLOOKUP($B55,Inputs!$C$68:$AK$129,MATCH($B59,Inputs!$C$68:$AK$68,0),FALSE)) -> 25.31461639 | F59: =IF($B55="Blank",0,VLOOKUP($B55,Inputs!$C$68:$AK$129,MATCH($B59,Inputs!$C$68:$AK$68,0),FALSE)) -> 25.31461639 | I59: Lamp Service costs Annualised | J59: 6.935511339 | K59: 6.935511339
B60: =Inputs!$M$68 -> PE Cell Service costs Annualised | E60: =IF($B55="Blank",0,VLOOKUP($B55,Inputs!$C$68:$AK$129,MATCH($B60,Inputs!$C$68:$AK$68,0),FALSE)) -> 0 | F60: =IF($B55="Blank",0,VLOOKUP($B55,Inputs!$C$68:$AK$129,MATCH($B60,Inputs!$C$68:$AK$68,0),FALSE)) -> 0 | I60: PE Cell Service costs Annualised | J60: 0 | K60: 0
B61: Indirect Opex | E61: =IF($B55="Blank",0,IF($B$8="Private Contract Lighting",'Opex Weighting'!D$113,'Opex Weighting'!D$111)) -> 13.11908872 | F61: =IF($B55="Blank",0,IF($B$8="Private Contract Lighting",'Opex Weighting'!E$113,'Opex Weighting'!E$111)) -> 13.01470253 | I61: Indirect Opex | J61: 3.594270881 | K61: 3.565671925
B62: Indirect Capex | E62: =IF($B56="Blank",0,IF($B$8="Private Contract Lighting",'Capex Weighting'!D$115,'Capex Weighting'!D$117)) -> 0 | F62: =IF($B56="Blank",0,IF($B$8="Private Contract Lighting",'Capex Weighting'!E$115,'Capex Weighting'!E$117)) -> 0 | I62: Indirect Capex | J62: 0 | K62: 0
B63: Overhead Costs per light | E63: =IF($B55="Blank",0,IF($B$8="Private Contract Lighting",'Building Block'!C$49,'Building Block'!C$48)) -> 11.61153349 | F63: =IF($B55="Blank",0,IF($B$8="Private Contract Lighting",'Building Block'!D$49,'Building Block'!D$48)) -> 11.91135356 | I63: Overhead Costs per light | J63: 3.181242052 | K63: 3.263384537
B64: =Inputs!$AH$68 -> Bracket UNIT price | C64: 0 | E64: NA | F64: NA | I64: Bracket UNIT price
B65: =Inputs!$Y$68 -> CAPEX Installation costs | C65: =C64+1 -> 1 | E65: NA | F65: NA | I65: CAPEX Installation costs
B66: =Inputs!$X$68 -> Luminaire UNIT price | C66: =C65+1 -> 2 | E66: NA | F66: NA | I66: Luminaire UNIT price
B67: =Inputs!$Y$68 -> CAPEX Installation costs | C67: 3 | E67: NA | F67: NA | I67: CAPEX Installation costs
E68: =SUM(E56:E67) -> 64.43190737 | F68: =SUM(F56:F67) -> 64.53544596 | J68: =ROUND(E68/J$2*100,3) -> 17.653 | K68: =ROUND(F68/K$2*100,3) -> 17.681
A70: =A55+1 -> 5 | B70: =IFERROR(VLOOKUP($A70,Inputs!$B$68:$AK$129,MATCH($B$7,Inputs!$B$68:$AK$68,0),FALSE),"Blank") -> 1x20W Fluorescent | I70: =IFERROR(VLOOKUP($A70,Inputs!$B$68:$AK$129,MATCH($B$7,Inputs!$B$68:$AK$68,0),FALSE),"Blank") -> 1x20W Fluorescent
B71: =Inputs!$R$68 -> Lamp UNIT price Annualised Cost | C71: =Inputs!$P$68 -> Lamp Maintenance cycle | E71: =IF($B70="Blank",0,VLOOKUP($B70,Inputs!$C$68:$AK$129,MATCH($B71,Inputs!$C$68:$AK$68,0),FALSE)) -> 1.00918208 | F71: =IF($B70="Blank",0,VLOOKUP($B70,Inputs!$C$68:$AK$129,MATCH($B71,Inputs!$C$68:$AK$68,0),FALSE)) -> 1.00918208 | I71: =B71 -> Lamp UNIT price Annualised Cost | J71: =IF(E71="NA","",E71/J$2*100) -> 0.276488241 | K71: =IF(F71="NA","",F71/K$2*100) -> 0.276488241
B72: =Inputs!$K$68 -> PE Cell UNIT price Annualised Cost | C72: =Inputs!$I$68 -> PE Cell Maintenance Cycle | E72: =IF($B70="Blank",0,VLOOKUP($B70,Inputs!$C$68:$AK$129,MATCH($B72,Inputs!$C$68:$AK$68,0),FALSE)) -> 0.5936945092 | F72: =IF($B70="Blank",0,VLOOKUP($B70,Inputs!$C$68:$AK$129,MATCH($B72,Inputs!$C$68:$AK$68,0),FALSE)) -> 0.5936945092 | I72: PE Cell UNIT price Annualised Cost | J72: 0.1626560299 | K72: 0.1626560299
B73: Corp capex annuity per light | E73: =IF($B70="Blank",0,'Corp Capex Annuity calcs'!F$109) -> 11.54925178 | F73: =IF($B70="Blank",0,'Corp Capex Annuity calcs'!G$109) -> 11.45735649 | I73: Corp capex annuity per light | J73: 3.164178569 | K73: 3.139001778
B74: =Inputs!$T$68 -> Lamp Service costs Annualised | E74: =IF($B70="Blank",0,VLOOKUP($B70,Inputs!$C$68:$AK$129,MATCH($B74,Inputs!$C$68:$AK$68,0),FALSE)) -> 25.31461639 | F74: =IF($B70="Blank",0,VLOOKUP($B70,Inputs!$C$68:$AK$129,MATCH($B74,Inputs!$C$68:$AK$68,0),FALSE)) -> 25.31461639 | I74: Lamp Service costs Annualised | J74: 6.935511339 | K74: 6.935511339
B75: =Inputs!$M$68 -> PE Cell Service costs Annualised | E75: =IF($B70="Blank",0,VLOOKUP($B70,Inputs!$C$68:$AK$129,MATCH($B75,Inputs!$C$68:$AK$68,0),FALSE)) -> 0 | F75: =IF($B70="Blank",0,VLOOKUP($B70,Inputs!$C$68:$AK$129,MATCH($B75,Inputs!$C$68:$AK$68,0),FALSE)) -> 0 | I75: PE Cell Service costs Annualised | J75: 0 | K75: 0
B76: Indirect Opex | E76: =IF($B70="Blank",0,IF($B$8="Private Contract Lighting",'Opex Weighting'!D$113,'Opex Weighting'!D$111)) -> 13.11908872 | F76: =IF($B70="Blank",0,IF($B$8="Private Contract Lighting",'Opex Weighting'!E$113,'Opex Weighting'!E$111)) -> 13.01470253 | I76: Indirect Opex | J76: 3.594270881 | K76: 3.565671925
B77: Indirect Capex | E77: =IF($B71="Blank",0,IF($B$8="Private Contract Lighting",'Capex Weighting'!D$115,'Capex Weighting'!D$117)) -> 0 | F77: =IF($B71="Blank",0,IF($B$8="Private Contract Lighting",'Capex Weighting'!E$115,'Capex Weighting'!E$117)) -> 0 | I77: Indirect Capex | J77: 0 | K77: 0
B78: Overhead Costs per light | E78: =IF($B70="Blank",0,IF($B$8="Private Contract Lighting",'Building Block'!C$49,'Building Block'!C$48)) -> 11.61153349 | F78: =IF($B70="Blank",0,IF($B$8="Private Contract Lighting",'Building Block'!D$49,'Building Block'!D$48)) -> 11.91135356 | I78: Overhead Costs per light | J78: 3.181242052 | K78: 3.263384537
B79: =Inputs!$AH$68 -> Bracket UNIT price | C79: 0 | E79: NA | F79: NA | I79: Bracket UNIT price
B80: =Inputs!$Y$68 -> CAPEX Installation costs | C80: =C79+1 -> 1 | E80: NA | F80: NA | I80: CAPEX Installation costs
B81: =Inputs!$X$68 -> Luminaire UNIT price | C81: =C80+1 -> 2 | E81: NA | F81: NA | I81: Luminaire UNIT price
B82: =Inputs!$Y$68 -> CAPEX Installation costs | C82: 3 | E82: NA | F82: NA | I82: CAPEX Installation costs
E83: =SUM(E71:E82) -> 63.19736696 | F83: =SUM(F71:F82) -> 63.30090555 | J83: =ROUND(E83/J$2*100,3) -> 17.314 | K83: =ROUND(F83/K$2*100,3) -> 17.343
A85: =A70+1 -> 6 | B85: =IFERROR(VLOOKUP($A85,Inputs!$B$68:$AK$129,MATCH($B$7,Inputs!$B$68:$AK$68,0),FALSE),"Blank") -> 1x40W Fluorescent | I85: =IFERROR(VLOOKUP($A85,Inputs!$B$68:$AK$129,MATCH($B$7,Inputs!$B$68:$AK$68,0),FALSE),"Blank") -> 1x40W Fluorescent
B86: =Inputs!$R$68 -> Lamp UNIT price Annualised Cost | C86: =Inputs!$P$68 -> Lamp Maintenance cycle | E86: =IF($B85="Blank",0,VLOOKUP($B85,Inputs!$C$68:$AK$129,MATCH($B86,Inputs!$C$68:$AK$68,0),FALSE)) -> 1.074743793 | F86: =IF($B85="Blank",0,VLOOKUP($B85,Inputs!$C$68:$AK$129,MATCH($B86,Inputs!$C$68:$AK$68,0),FALSE)) -> 1.074743793 | I86: =B86 -> Lamp UNIT price Annualised Cost | J86: =IF(E86="NA","",E86/J$2*100) -> 0.2944503541 | K86: =IF(F86="NA","",F86/K$2*100) -> 0.2944503541
B87: =Inputs!$K$68 -> PE Cell UNIT price Annualised Cost | C87: =Inputs!$I$68 -> PE Cell Maintenance Cycle | E87: =IF($B85="Blank",0,VLOOKUP($B85,Inputs!$C$68:$AK$129,MATCH($B87,Inputs!$C$68:$AK$68,0),FALSE)) -> 0.5936945092 | F87: =IF($B85="Blank",0,VLOOKUP($B85,Inputs!$C$68:$AK$129,MATCH($B87,Inputs!$C$68:$AK$68,0),FALSE)) -> 0.5936945092 | I87: PE Cell UNIT price Annualised Cost | J87: 0.1626560299 | K87: 0.1626560299
B88: Corp capex annuity per light | E88: =IF($B85="Blank",0,'Corp Capex Annuity calcs'!F$109) -> 11.54925178 | F88: =IF($B85="Blank",0,'Corp Capex Annuity calcs'!G$109) -> 11.45735649 | I88: Corp capex annuity per light | J88: 3.164178569 | K88: 3.139001778
B89: =Inputs!$T$68 -> Lamp Service costs Annualised | E89: =IF($B85="Blank",0,VLOOKUP($B85,Inputs!$C$68:$AK$129,MATCH($B89,Inputs!$C$68:$AK$68,0),FALSE)) -> 25.31461639 | F89: =IF($B85="Blank",0,VLOOKUP($B85,Inputs!$C$68:$AK$129,MATCH($B89,Inputs!$C$68:$AK$68,0),FALSE)) -> 25.31461639 | I89: Lamp Service costs Annualised | J89: 6.935511339 | K89: 6.935511339
B90: =Inputs!$M$68 -> PE Cell Service costs Annualised | E90: =IF($B85="Blank",0,VLOOKUP($B85,Inputs!$C$68:$AK$129,MATCH($B90,Inputs!$C$68:$AK$68,0),FALSE)) -> 0 | F90: =IF($B85="Blank",0,VLOOKUP($B85,Inputs!$C$68:$AK$129,MATCH($B90,Inputs!$C$68:$AK$68,0),FALSE)) -> 0 | I90: PE Cell Service costs Annualised | J90: 0 | K90: 0
B91: Indirect Opex | E91: =IF($B85="Blank",0,IF($B$8="Private Contract Lighting",'Opex Weighting'!D$113,'Opex Weighting'!D$111)) -> 13.11908872 | F91: =IF($B85="Blank",0,IF($B$8="Private Contract Lighting",'Opex Weighting'!E$113,'Opex Weighting'!E$111)) -> 13.01470253 | I91: Indirect Opex | J91: 3.594270881 | K91: 3.565671925
B92: Indirect Capex | E92: =IF($B86="Blank",0,IF($B$8="Private Contract Lighting",'Capex Weighting'!D$115,'Capex Weighting'!D$117)) -> 0 | F92: =IF($B86="Blank",0,IF($B$8="Private Contract Lighting",'Capex Weighting'!E$115,'Capex Weighting'!E$117)) -> 0 | I92: Indirect Capex | J92: 0 | K92: 0
B93: Overhead Costs per light | E93: =IF($B85="Blank",0,IF($B$8="Private Contract Lighting",'Building Block'!C$49,'Building Block'!C$48)) -> 11.61153349 | F93: =IF($B85="Blank",0,IF($B$8="Private Contract Lighting",'Building Block'!D$49,'Building Block'!D$48)) -> 11.91135356 | I93: Overhead Costs per light | J93: 3.181242052 | K93: 3.263384537
B94: =Inputs!$AH$68 -> Bracket UNIT price | C94: 0 | E94: NA | F94: NA | I94: Bracket UNIT price
B95: =Inputs!$Y$68 -> CAPEX Installation costs | C95: =C94+1 -> 1 | E95: NA | F95: NA | I95: CAPEX Installation costs
B96: =Inputs!$X$68 -> Luminaire UNIT price | C96: =C95+1 -> 2 | E96: NA | F96: NA | I96: Luminaire UNIT price
B97: =Inputs!$Y$68 -> CAPEX Installation costs | C97: 3 | E97: NA | F97: NA | I97: CAPEX Installation costs
E98: =SUM(E86:E97) -> 63.26292867 | F98: =SUM(F86:F97) -> 63.36646726 | J98: =ROUND(E98/J$2*100,3) -> 17.332 | K98: =ROUND(F98/K$2*100,3) -> 17.361
A100: =A85+1 -> 7 | B100: =IFERROR(VLOOKUP($A100,Inputs!$B$68:$AK$129,MATCH($B$7,Inputs!$B$68:$AK$68,0),FALSE),"Blank") -> 2x20W Fluorescent | I100: =IFERROR(VLOOKUP($A100,Inputs!$B$68:$AK$129,MATCH($B$7,Inputs!$B$68:$AK$68,0),FALSE),"Blank") -> 2x20W Fluorescent
B101: =Inputs!$R$68 -> Lamp UNIT price Annualised Cost | C101: =Inputs!$P$68 -> Lamp Maintenance cycle | E101: =IF($B100="Blank",0,VLOOKUP($B100,Inputs!$C$68:$AK$129,MATCH($B101,Inputs!$C$68:$AK$68,0),FALSE)) -> 2.01836416 | F101: =IF($B100="Blank",0,VLOOKUP($B100,Inputs!$C$68:$AK$129,MATCH($B101,Inputs!$C$68:$AK$68,0),FALSE)) -> 2.01836416 | I101: =B101 -> Lamp UNIT price Annualised Cost | J101: =IF(E101="NA","",E101/J$2*100) -> 0.5529764821 | K101: =IF(F101="NA","",F101/K$2*100) -> 0.5529764821
B102: =Inputs!$K$68 -> PE Cell UNIT price Annualised Cost | C102: =Inputs!$I$68 -> PE Cell Maintenance Cycle | E102: =IF($B100="Blank",0,VLOOKUP($B100,Inputs!$C$68:$AK$129,MATCH($B102,Inputs!$C$68:$AK$68,0),FALSE)) -> 0.5936945092 | F102: =IF($B100="Blank",0,VLOOKUP($B100,Inputs!$C$68:$AK$129,MATCH($B102,Inputs!$C$68:$AK$68,0),FALSE)) -> 0.5936945092 | I102: PE Cell UNIT price Annualised Cost | J102: 0.1626560299 | K102: 0.1626560299
B103: Corp capex annuity per light | E103: =IF($B100="Blank",0,'Corp Capex Annuity calcs'!F$109) -> 11.54925178 | F103: =IF($B100="Blank",0,'Corp Capex Annuity calcs'!G$109) -> 11.45735649 | I103: Corp capex annuity per light | J103: 3.164178569 | K103: 3.139001778
B104: =Inputs!$T$68 -> Lamp Service costs Annualised | E104: =IF($B100="Blank",0,VLOOKUP($B100,Inputs!$C$68:$AK$129,MATCH($B104,Inputs!$C$68:$AK$68,0),FALSE)) -> 25.31461639 | F104: =IF($B100="Blank",0,VLOOKUP($B100,Inputs!$C$68:$AK$129,MATCH($B104,Inputs!$C$68:$AK$68,0),FALSE)) -> 25.31461639 | I104: Lamp Service costs Annualised | J104: 6.935511339 | K104: 6.935511339
B105: =Inputs!$M$68 -> PE Cell Service costs Annualised | E105: =IF($B100="Blank",0,VLOOKUP($B100,Inputs!$C$68:$AK$129,MATCH($B105,Inputs!$C$68:$AK$68,0),FALSE)) -> 0 | F105: =IF($B100="Blank",0,VLOOKUP($B100,Inputs!$C$68:$AK$129,MATCH($B105,Inputs!$C$68:$AK$68,0),FALSE)) -> 0 | I105: PE Cell Service costs Annualised | J105: 0 | K105: 0
B106: Indirect Opex | E106: =IF($B100="Blank",0,IF($B$8="Private Contract Lighting",'Opex Weighting'!D$113,'Opex Weighting'!D$111)) -> 13.11908872 | F106: =IF($B100="Blank",0,IF($B$8="Private Contract Lighting",'Opex Weighting'!E$113,'Opex Weighting'!E$111)) -> 13.01470253 | I106: Indirect Opex | J106: 3.594270881 | K106: 3.565671925
B107: Indirect Capex | E107: =IF($B101="Blank",0,IF($B$8="Private Contract Lighting",'Capex Weighting'!D$115,'Capex Weighting'!D$117)) -> 0 | F107: =IF($B101="Blank",0,IF($B$8="Private Contract Lighting",'Capex Weighting'!E$115,'Capex Weighting'!E$117)) -> 0 | I107: Indirect Capex | J107: 0 | K107: 0
B108: Overhead Costs per light | E108: =IF($B100="Blank",0,IF($B$8="Private Contract Lighting",'Building Block'!C$49,'Building Block'!C$48)) -> 11.61153349 | F108: =IF($B100="Blank",0,IF($B$8="Private Contract Lighting",'Building Block'!D$49,'Building Block'!D$48)) -> 11.91135356 | I108: Overhead Costs per light | J108: 3.181242052 | K108: 3.263384537
B109: =Inputs!$AH$68 -> Bracket UNIT price | C109: 0 | E109: NA | F109: NA | I109: Bracket UNIT price
B110: =Inputs!$Y$68 -> CAPEX Installation costs | C110: =C109+1 -> 1 | E110: NA | F110: NA | I110: CAPEX Installation costs
B111: =Inputs!$X$68 -> Luminaire UNIT price | C111: =C110+1 -> 2 | E111: NA | F111: NA | I111: Luminaire UNIT price
B112: =Inputs!$Y$68 -> CAPEX Installation costs | C112: 3 | E112: NA | F112: NA | I112: CAPEX Installation costs
E113: =SUM(E101:E112) -> 64.20654904 | F113: =SUM(F101:F112) -> 64.31008763 | J113: =ROUND(E113/J$2*100,3) -> 17.591 | K113: =ROUND(F113/K$2*100,3) -> 17.619
A115: =A100+1 -> 8 | B115: =IFERROR(VLOOKUP($A115,Inputs!$B$68:$AK$129,MATCH($B$7,Inputs!$B$68:$AK$68,0),FALSE),"Blank") -> 2x24W Fluorescent | I115: =IFERROR(VLOOKUP($A115,Inputs!$B$68:$AK$129,MATCH($B$7,Inputs!$B$68:$AK$68,0),FALSE),"Blank") -> 2x24W Fluorescent
B116: =Inputs!$R$68 -> Lamp UNIT price Annualised Cost | C116: =Inputs!$P$68 -> Lamp Maintenance cycle | E116: =IF($B115="Blank",0,VLOOKUP($B115,Inputs!$C$68:$AK$129,MATCH($B116,Inputs!$C$68:$AK$68,0),FALSE)) -> 1.467612827 | F116: =IF($B115="Blank",0,VLOOKUP($B115,Inputs!$C$68:$AK$129,MATCH($B116,Inputs!$C$68:$AK$68,0),FALSE)) -> 1.467612827 | I116: =B116 -> Lamp UNIT price Annualised Cost | J116: =IF(E116="NA","",E116/J$2*100) -> 0.402085706 | K116: =IF(F116="NA","",F116/K$2*100) -> 0.402085706
B117: =Inputs!$K$68 -> PE Cell UNIT price Annualised Cost | C117: =Inputs!$I$68 -> PE Cell Maintenance Cycle | E117: =IF($B115="Blank",0,VLOOKUP($B115,Inputs!$C$68:$AK$129,MATCH($B117,Inputs!$C$68:$AK$68,0),FALSE)) -> 0.5936945092 | F117: =IF($B115="Blank",0,VLOOKUP($B115,Inputs!$C$68:$AK$129,MATCH($B117,Inputs!$C$68:$AK$68,0),FALSE)) -> 0.5936945092 | I117: PE Cell UNIT price Annualised Cost | J117: 0.1626560299 | K117: 0.1626560299
B118: Corp capex annuity per light | E118: =IF($B115="Blank",0,'Corp Capex Annuity calcs'!F$109) -> 11.54925178 | F118: =IF($B115="Blank",0,'Corp Capex Annuity calcs'!G$109) -> 11.45735649 | I118: Corp capex annuity per light | J118: 3.164178569 | K118: 3.139001778
B119: =Inputs!$T$68 -> Lamp Service costs Annualised | E119: =IF($B115="Blank",0,VLOOKUP($B115,Inputs!$C$68:$AK$129,MATCH($B119,Inputs!$C$68:$AK$68,0),FALSE)) -> 25.31461639 | F119: =IF($B115="Blank",0,VLOOKUP($B115,Inputs!$C$68:$AK$129,MATCH($B119,Inputs!$C$68:$AK$68,0),FALSE)) -> 25.31461639 | I119: Lamp Service costs Annualised | J119: 6.935511339 | K119: 6.935511339
B120: =Inputs!$M$68 -> PE Cell Service costs Annualised | E120: =IF($B115="Blank",0,VLOOKUP($B115,Inputs!$C$68:$AK$129,MATCH($B120,Inputs!$C$68:$AK$68,0),FALSE)) -> 0 | F120: =IF($B115="Blank",0,VLOOKUP($B115,Inputs!$C$68:$AK$129,MATCH($B120,Inputs!$C$68:$AK$68,0),FALSE)) -> 0 | I120: PE Cell Service costs Annualised | J120: 0 | K120: 0
B121: Indirect Opex | E121: =IF($B115="Blank",0,IF($B$8="Private Contract Lighting",'Opex Weighting'!D$113,'Opex Weighting'!D$111)) -> 13.11908872 | F121: =IF($B115="Blank",0,IF($B$8="Private Contract Lighting",'Opex Weighting'!E$113,'Opex Weighting'!E$111)) -> 13.01470253 | I121: Indirect Opex | J121: 3.594270881 | K121: 3.565671925
B122: Indirect Capex | E122: =IF($B116="Blank",0,IF($B$8="Private Contract Lighting",'Capex Weighting'!D$115,'Capex Weighting'!D$117)) -> 0 | F122: =IF($B116="Blank",0,IF($B$8="Private Contract Lighting",'Capex Weighting'!E$115,'Capex Weighting'!E$117)) -> 0 | I122: Indirect Capex | J122: 0 | K122: 0
B123: Overhead Costs per light | E123: =IF($B115="Blank",0,IF($B$8="Private Contract Lighting",'Building Block'!C$49,'Building Block'!C$48)) -> 11.61153349 | F123: =IF($B115="Blank",0,IF($B$8="Private Contract Lighting",'Building Block'!D$49,'Building Block'!D$48)) -> 11.91135356 | I123: Overhead Costs per light | J123: 3.181242052 | K123: 3.263384537
B124: =Inputs!$AH$68 -> Bracket UNIT price | C124: 0 | E124: NA | F124: NA | I124: Bracket UNIT price
B125: =Inputs!$Y$68 -> CAPEX Installation costs | C125: =C124+1 -> 1 | E125: NA | F125: NA | I125: CAPEX Installation costs
B126: =Inputs!$X$68 -> Luminaire UNIT price | C126: =C125+1 -> 2 | E126: NA | F126: NA | I126: Luminaire UNIT price
B127: =Inputs!$Y$68 -> CAPEX Installation costs | C127: 3 | E127: NA | F127: NA | I127: CAPEX Installation costs
E128: =SUM(E116:E127) -> 63.65579771 | F128: =SUM(F116:F127) -> 63.7593363 | J128: =ROUND(E128/J$2*100,3) -> 17.44 | K128: =ROUND(F128/K$2*100,3) -> 17.468
A130: =A115+1 -> 9 | B130: =IFERROR(VLOOKUP($A130,Inputs!$B$68:$AK$129,MATCH($B$7,Inputs!$B$68:$AK$68,0),FALSE),"Blank") -> T5 Fluorescent 2 x 24W | I130: =IFERROR(VLOOKUP($A130,Inputs!$B$68:$AK$129,MATCH($B$7,Inputs!$B$68:$AK$68,0),FALSE),"Blank") -> T5 Fluorescent 2 x 24W
B131: =Inputs!$R$68 -> Lamp UNIT price Annualised Cost | C131: =Inputs!$P$68 -> Lamp Maintenance cycle | E131: =IF($B130="Blank",0,VLOOKUP($B130,Inputs!$C$68:$AK$129,MATCH($B131,Inputs!$C$68:$AK$68,0),FALSE)) -> 2.01836416 | F131: =IF($B130="Blank",0,VLOOKUP($B130,Inputs!$C$68:$AK$129,MATCH($B131,Inputs!$C$68:$AK$68,0),FALSE)) -> 2.01836416 | I131: =B131 -> Lamp UNIT price Annualised Cost | J131: =IF(E131="NA","",E131/J$2*100) -> 0.5529764821 | K131: =IF(F131="NA","",F131/K$2*100) -> 0.5529764821
B132: =Inputs!$K$68 -> PE Cell UNIT price Annualised Cost | C132: =Inputs!$I$68 -> PE Cell Maintenance Cycle | E132: =IF($B130="Blank",0,VLOOKUP($B130,Inputs!$C$68:$AK$129,MATCH($B132,Inputs!$C$68:$AK$68,0),FALSE)) -> 0.5936945092 | F132: =IF($B130="Blank",0,VLOOKUP($B130,Inputs!$C$68:$AK$129,MATCH($B132,Inputs!$C$68:$AK$68,0),FALSE)) -> 0.5936945092 | I132: PE Cell UNIT price Annualised Cost | J132: 0.1626560299 | K132: 0.1626560299
B133: Corp capex annuity per light | E133: =IF($B130="Blank",0,'Corp Capex Annuity calcs'!F$109) -> 11.54925178 | F133: =IF($B130="Blank",0,'Corp Capex Annuity calcs'!G$109) -> 11.45735649 | I133: Corp capex annuity per light | J133: 3.164178569 | K133: 3.139001778
B134: =Inputs!$T$68 -> Lamp Service costs Annualised | E134: =IF($B130="Blank",0,VLOOKUP($B130,Inputs!$C$68:$AK$129,MATCH($B134,Inputs!$C$68:$AK$68,0),FALSE)) -> 25.31461639 | F134: =IF($B130="Blank",0,VLOOKUP($B130,Inputs!$C$68:$AK$129,MATCH($B134,Inputs!$C$68:$AK$68,0),FALSE)) -> 25.31461639 | I134: Lamp Service costs Annualised | J134: 6.935511339 | K134: 6.935511339
B135: =Inputs!$M$68 -> PE Cell Service costs Annualised | E135: =IF($B130="Blank",0,VLOOKUP($B130,Inputs!$C$68:$AK$129,MATCH($B135,Inputs!$C$68:$AK$68,0),FALSE)) -> 0 | F135: =IF($B130="Blank",0,VLOOKUP($B130,Inputs!$C$68:$AK$129,MATCH($B135,Inputs!$C$68:$AK$68,0),FALSE)) -> 0 | I135: PE Cell Service costs Annualised | J135: 0 | K135: 0
B136: Indirect Opex | E136: =IF($B130="Blank",0,IF($B$8="Private Contract Lighting",'Opex Weighting'!D$113,'Opex Weighting'!D$111)) -> 13.11908872 | F136: =IF($B130="Blank",0,IF($B$8="Private Contract Lighting",'Opex Weighting'!E$113,'Opex Weighting'!E$111)) -> 13.01470253 | I136: Indirect Opex | J136: 3.594270881 | K136: 3.565671925
B137: Indirect Capex | E137: =IF($B131="Blank",0,IF($B$8="Private Contract Lighting",'Capex Weighting'!D$115,'Capex Weighting'!D$117)) -> 0 | F137: =IF($B131="Blank",0,IF($B$8="Private Contract Lighting",'Capex Weighting'!E$115,'Capex Weighting'!E$117)) -> 0 | I137: Indirect Capex | J137: 0 | K137: 0
B138: Overhead Costs per light | E138: =IF($B130="Blank",0,IF($B$8="Private Contract Lighting",'Building Block'!C$49,'Building Block'!C$48)) -> 11.61153349 | F138: =IF($B130="Blank",0,IF($B$8="Private Contract Lighting",'Building Block'!D$49,'Building Block'!D$48)) -> 11.91135356 | I138: Overhead Costs per light | J138: 3.181242052 | K138: 3.263384537
B139: =Inputs!$AH$68 -> Bracket UNIT price | C139: 0 | E139: NA | F139: NA | I139: Bracket UNIT price
B140: =Inputs!$Y$68 -> CAPEX Installation costs | C140: =C139+1 -> 1 | E140: NA | F140: NA | I140: CAPEX Installation costs
B141: =Inputs!$X$68 -> Luminaire UNIT price | C141: =C140+1 -> 2 | E141: NA | F141: NA | I141: Luminaire UNIT price
B142: =Inputs!$Y$68 -> CAPEX Installation costs | C142: 3 | E142: NA | F142: NA | I142: CAPEX Installation costs
E143: =SUM(E131:E142) -> 64.20654904 | F143: =SUM(F131:F142) -> 64.31008763 | J143: =ROUND(E143/J$2*100,3) -> 17.591 | K143: =ROUND(F143/K$2*100,3) -> 17.619
A145: =A130+1 -> 10 | B145: =IFERROR(VLOOKUP($A145,Inputs!$B$68:$AK$129,MATCH($B$7,Inputs!$B$68:$AK$68,0),FALSE),"Blank") -> 20 Fluorescent 1X20FL | I145: =IFERROR(VLOOKUP($A145,Inputs!$B$68:$AK$129,MATCH($B$7,Inputs!$B$68:$AK$68,0),FALSE),"Blank") -> 20 Fluorescent 1X20FL
B146: =Inputs!$R$68 -> Lamp UNIT price Annualised Cost | C146: =Inputs!$P$68 -> Lamp Maintenance cycle | E146: =IF($B145="Blank",0,VLOOKUP($B145,Inputs!$C$68:$AK$129,MATCH($B146,Inputs!$C$68:$AK$68,0),FALSE)) -> 1.00918208 | F146: =IF($B145="Blank",0,VLOOKUP($B145,Inputs!$C$68:$AK$129,MATCH($B146,Inputs!$C$68:$AK$68,0),FALSE)) -> 1.00918208 | I146: =B146 -> Lamp UNIT price Annualised Cost | J146: =IF(E146="NA","",E146/J$2*100) -> 0.276488241 | K146: =IF(F146="NA","",F146/K$2*100) -> 0.276488241
B147: =Inputs!$K$68 -> PE Cell UNIT price Annualised Cost | C147: =Inputs!$I$68 -> PE Cell Maintenance Cycle | E147: =IF($B145="Blank",0,VLOOKUP($B145,Inputs!$C$68:$AK$129,MATCH($B147,Inputs!$C$68:$AK$68,0),FALSE)) -> 0.5936945092 | F147: =IF($B145="Blank",0,VLOOKUP($B145,Inputs!$C$68:$AK$129,MATCH($B147,Inputs!$C$68:$AK$68,0),FALSE)) -> 0.5936945092 | I147: PE Cell UNIT price Annualised Cost | J147: 0.1626560299 | K147: 0.1626560299
B148: Corp capex annuity per light | E148: =IF($B145="Blank",0,'Corp Capex Annuity calcs'!F$109) -> 11.54925178 | F148: =IF($B145="Blank",0,'Corp Capex Annuity calcs'!G$109) -> 11.45735649 | I148: Corp capex annuity per light | J148: 3.164178569 | K148: 3.139001778
B149: =Inputs!$T$68 -> Lamp Service costs Annualised | E149: =IF($B145="Blank",0,VLOOKUP($B145,Inputs!$C$68:$AK$129,MATCH($B149,Inputs!$C$68:$AK$68,0),FALSE)) -> 25.31461639 | F149: =IF($B145="Blank",0,VLOOKUP($B145,Inputs!$C$68:$AK$129,MATCH($B149,Inputs!$C$68:$AK$68,0),FALSE)) -> 25.31461639 | I149: Lamp Service costs Annualised | J149: 6.935511339 | K149: 6.935511339
B150: =Inputs!$M$68 -> PE Cell Service costs Annualised | E150: =IF($B145="Blank",0,VLOOKUP($B145,Inputs!$C$68:$AK$129,MATCH($B150,Inputs!$C$68:$AK$68,0),FALSE)) -> 0 | F150: =IF($B145="Blank",0,VLOOKUP($B145,Inputs!$C$68:$AK$129,MATCH($B150,Inputs!$C$68:$AK$68,0),FALSE)) -> 0 | I150: PE Cell Service costs Annualised | J150: 0 | K150: 0
B151: Indirect Opex | E151: =IF($B145="Blank",0,IF($B$8="Private Contract Lighting",'Opex Weighting'!D$113,'Opex Weighting'!D$111)) -> 13.11908872 | F151: =IF($B145="Blank",0,IF($B$8="Private Contract Lighting",'Opex Weighting'!E$113,'Opex Weighting'!E$111)) -> 13.01470253 | I151: Indirect Opex | J151: 3.594270881 | K151: 3.565671925
B152: Indirect Capex | E152: =IF($B146="Blank",0,IF($B$8="Private Contract Lighting",'Capex Weighting'!D$115,'Capex Weighting'!D$117)) -> 0 | F152: =IF($B146="Blank",0,IF($B$8="Private Contract Lighting",'Capex Weighting'!E$115,'Capex Weighting'!E$117)) -> 0 | I152: Indirect Capex | J152: 0 | K152: 0
B153: Overhead Costs per light | E153: =IF($B145="Blank",0,IF($B$8="Private Contract Lighting",'Building Block'!C$49,'Building Block'!C$48)) -> 11.61153349 | F153: =IF($B145="Blank",0,IF($B$8="Private Contract Lighting",'Building Block'!D$49,'Building Block'!D$48)) -> 11.91135356 | I153: Overhead Costs per light | J153: 3.181242052 | K153: 3.263384537
B154: =Inputs!$AH$68 -> Bracket UNIT price | C154: 0 | E154: NA | F154: NA | I154: Bracket UNIT price
B155: =Inputs!$Y$68 -> CAPEX Installation costs | C155: =C154+1 -> 1 | E155: NA | F155: NA | I155: CAPEX Installation costs
B156: =Inputs!$X$68 -> Luminaire UNIT price | C156: =C155+1 -> 2 | E156: NA | F156: NA | I156: Luminaire UNIT price
B157: =Inputs!$Y$68 -> CAPEX Installation costs | C157: 3 | E157: NA | F157: NA | I157: CAPEX Installation costs
E158: =SUM(E146:E157) -> 63.19736696 | F158: =SUM(F146:F157) -> 63.30090555 | J158: =ROUND(E158/J$2*100,3) -> 17.314 | K158: =ROUND(F158/K$2*100,3) -> 17.343
A160: =A145+1 -> 11 | B160: =IFERROR(VLOOKUP($A160,Inputs!$B$68:$AK$129,MATCH($B$7,Inputs!$B$68:$AK$68,0),FALSE),"Blank") -> 2x40W Fluorescent | I160: =IFERROR(VLOOKUP($A160,Inputs!$B$68:$AK$129,MATCH($B$7,Inputs!$B$68:$AK$68,0),FALSE),"Blank") -> 2x40W Fluorescent
B161: =Inputs!$R$68 -> Lamp UNIT price Annualised Cost | C161: =Inputs!$P$68 -> Lamp Maintenance cycle | E161: =IF($B160="Blank",0,VLOOKUP($B160,Inputs!$C$68:$AK$129,MATCH($B161,Inputs!$C$68:$AK$68,0),FALSE)) -> 2.149487585 | F161: =IF($B160="Blank",0,VLOOKUP($B160,Inputs!$C$68:$AK$129,MATCH($B161,Inputs!$C$68:$AK$68,0),FALSE)) -> 2.149487585 | I161: =B161 -> Lamp UNIT price Annualised Cost | J161: =IF(E161="NA","",E161/J$2*100) -> 0.5889007083 | K161: =IF(F161="NA","",F161/K$2*100) -> 0.5889007083
B162: =Inputs!$K$68 -> PE Cell UNIT price Annualised Cost | C162: =Inputs!$I$68 -> PE Cell Maintenance Cycle | E162: =IF($B160="Blank",0,VLOOKUP($B160,Inputs!$C$68:$AK$129,MATCH($B162,Inputs!$C$68:$AK$68,0),FALSE)) -> 0.5936945092 | F162: =IF($B160="Blank",0,VLOOKUP($B160,Inputs!$C$68:$AK$129,MATCH($B162,Inputs!$C$68:$AK$68,0),FALSE)) -> 0.5936945092 | I162: PE Cell UNIT price Annualised Cost | J162: 0.1626560299 | K162: 0.1626560299
B163: Corp capex annuity per light | E163: =IF($B160="Blank",0,'Corp Capex Annuity calcs'!F$109) -> 11.54925178 | F163: =IF($B160="Blank",0,'Corp Capex Annuity calcs'!G$109) -> 11.45735649 | I163: Corp capex annuity per light | J163: 3.164178569 | K163: 3.139001778
B164: =Inputs!$T$68 -> Lamp Service costs Annualised | E164: =IF($B160="Blank",0,VLOOKUP($B160,Inputs!$C$68:$AK$129,MATCH($B164,Inputs!$C$68:$AK$68,0),FALSE)) -> 25.31461639 | F164: =IF($B160="Blank",0,VLOOKUP($B160,Inputs!$C$68:$AK$129,MATCH($B164,Inputs!$C$68:$AK$68,0),FALSE)) -> 25.31461639 | I164: Lamp Service costs Annualised | J164: 6.935511339 | K164: 6.935511339
B165: =Inputs!$M$68 -> PE Cell Service costs Annualised | E165: =IF($B160="Blank",0,VLOOKUP($B160,Inputs!$C$68:$AK$129,MATCH($B165,Inputs!$C$68:$AK$68,0),FALSE)) -> 0 | F165: =IF($B160="Blank",0,VLOOKUP($B160,Inputs!$C$68:$AK$129,MATCH($B165,Inputs!$C$68:$AK$68,0),FALSE)) -> 0 | I165: PE Cell Service costs Annualised | J165: 0 | K165: 0
B166: Indirect Opex | E166: =IF($B160="Blank",0,IF($B$8="Private Contract Lighting",'Opex Weighting'!D$113,'Opex Weighting'!D$111)) -> 13.11908872 | F166: =IF($B160="Blank",0,IF($B$8="Private Contract Lighting",'Opex Weighting'!E$113,'Opex Weighting'!E$111)) -> 13.01470253 | I166: Indirect Opex | J166: 3.594270881 | K166: 3.565671925
B167: Indirect Capex | E167: =IF($B161="Blank",0,IF($B$8="Private Contract Lighting",'Capex Weighting'!D$115,'Capex Weighting'!D$117)) -> 0 | F167: =IF($B161="Blank",0,IF($B$8="Private Contract Lighting",'Capex Weighting'!E$115,'Capex Weighting'!E$117)) -> 0 | I167: Indirect Capex | J167: 0 | K167: 0
B168: Overhead Costs per light | E168: =IF($B160="Blank",0,IF($B$8="Private Contract Lighting",'Building Block'!C$49,'Building Block'!C$48)) -> 11.61153349 | F168: =IF($B160="Blank",0,IF($B$8="Private Contract Lighting",'Building Block'!D$49,'Building Block'!D$48)) -> 11.91135356 | I168: Overhead Costs per light | J168: 3.181242052 | K168: 3.263384537
B169: =Inputs!$AH$68 -> Bracket UNIT price | C169: 0 | E169: NA | F169: NA | I169: Bracket UNIT price
B170: =Inputs!$Y$68 -> CAPEX Installation costs | C170: =C169+1 -> 1 | E170: NA | F170: NA | I170: CAPEX Installation costs
B171: =Inputs!$X$68 -> Luminaire UNIT price | C171: =C170+1 -> 2 | E171: NA | F171: NA | I171: Luminaire UNIT price
B172: =Inputs!$Y$68 -> CAPEX Installation costs | C172: 3 | E172: NA | F172: NA | I172: CAPEX Installation costs
E173: =SUM(E161:E172) -> 64.33767246 | F173: =SUM(F161:F172) -> 64.44121106 | J173: =ROUND(E173/J$2*100,3) -> 17.627 | K173: =ROUND(F173/K$2*100,3) -> 17.655
A175: =A160+1 -> 12 | B175: =IFERROR(VLOOKUP($A175,Inputs!$B$68:$AK$129,MATCH($B$7,Inputs!$B$68:$AK$68,0),FALSE),"Blank") -> 3x40W Fluorescent | I175: =IFERROR(VLOOKUP($A175,Inputs!$B$68:$AK$129,MATCH($B$7,Inputs!$B$68:$AK$68,0),FALSE),"Blank") -> 3x40W Fluorescent
B176: =Inputs!$R$68 -> Lamp UNIT price Annualised Cost | C176: =Inputs!$P$68 -> Lamp Maintenance cycle | E176: =IF($B175="Blank",0,VLOOKUP($B175,Inputs!$C$68:$AK$129,MATCH($B176,Inputs!$C$68:$AK$68,0),FALSE)) -> 3.224231378 | F176: =IF($B175="Blank",0,VLOOKUP($B175,Inputs!$C$68:$AK$129,MATCH($B176,Inputs!$C$68:$AK$68,0),FALSE)) -> 3.224231378 | I176: =B176 -> Lamp UNIT price Annualised Cost | J176: =IF(E176="NA","",E176/J$2*100) -> 0.8833510624 | K176: =IF(F176="NA","",F176/K$2*100) -> 0.8833510624
B177: =Inputs!$K$68 -> PE Cell UNIT price Annualised Cost | C177: =Inputs!$I$68 -> PE Cell Maintenance Cycle | E177: =IF($B175="Blank",0,VLOOKUP($B175,Inputs!$C$68:$AK$129,MATCH($B177,Inputs!$C$68:$AK$68,0),FALSE)) -> 1.729160415 | F177: =IF($B175="Blank",0,VLOOKUP($B175,Inputs!$C$68:$AK$129,MATCH($B177,Inputs!$C$68:$AK$68,0),FALSE)) -> 1.729160415 | I177: PE Cell UNIT price Annualised Cost | J177: 0.4737425794 | K177: 0.4737425794
B178: Corp capex annuity per light | E178: =IF($B175="Blank",0,'Corp Capex Annuity calcs'!F$109) -> 11.54925178 | F178: =IF($B175="Blank",0,'Corp Capex Annuity calcs'!G$109) -> 11.45735649 | I178: Corp capex annuity per light | J178: 3.164178569 | K178: 3.139001778
B179: =Inputs!$T$68 -> Lamp Service costs Annualised | E179: =IF($B175="Blank",0,VLOOKUP($B175,Inputs!$C$68:$AK$129,MATCH($B179,Inputs!$C$68:$AK$68,0),FALSE)) -> 36.63957635 | F179: =IF($B175="Blank",0,VLOOKUP($B175,Inputs!$C$68:$AK$129,MATCH($B179,Inputs!$C$68:$AK$68,0),FALSE)) -> 36.63957635 | I179: Lamp Service costs Annualised | J179: 10.0382401 | K179: 10.0382401
B180: =Inputs!$M$68 -> PE Cell Service costs Annualised | E180: =IF($B175="Blank",0,VLOOKUP($B175,Inputs!$C$68:$AK$129,MATCH($B180,Inputs!$C$68:$AK$68,0),FALSE)) -> 0 | F180: =IF($B175="Blank",0,VLOOKUP($B175,Inputs!$C$68:$AK$129,MATCH($B180,Inputs!$C$68:$AK$68,0),FALSE)) -> 0 | I180: PE Cell Service costs Annualised | J180: 0 | K180: 0
B181: Indirect Opex | E181: =IF($B175="Blank",0,IF($B$8="Private Contract Lighting",'Opex Weighting'!D$113,'Opex Weighting'!D$111)) -> 13.11908872 | F181: =IF($B175="Blank",0,IF($B$8="Private Contract Lighting",'Opex Weighting'!E$113,'Opex Weighting'!E$111)) -> 13.01470253 | I181: Indirect Opex | J181: 3.594270881 | K181: 3.565671925
B182: Indirect Capex | E182: =IF($B176="Blank",0,IF($B$8="Private Contract Lighting",'Capex Weighting'!D$115,'Capex Weighting'!D$117)) -> 0 | F182: =IF($B176="Blank",0,IF($B$8="Private Contract Lighting",'Capex Weighting'!E$115,'Capex Weighting'!E$117)) -> 0 | I182: Indirect Capex | J182: 0 | K182: 0
B183: Overhead Costs per light | E183: =IF($B175="Blank",0,IF($B$8="Private Contract Lighting",'Building Block'!C$49,'Building Block'!C$48)) -> 11.61153349 | F183: =IF($B175="Blank",0,IF($B$8="Private Contract Lighting",'Building Block'!D$49,'Building Block'!D$48)) -> 11.91135356 | I183: Overhead Costs per light | J183: 3.181242052 | K183: 3.263384537
B184: =Inputs!$AH$68 -> Bracket UNIT price | C184: 0 | E184: NA | F184: NA | I184: Bracket UNIT price
B185: =Inputs!$Y$68 -> CAPEX Installation costs | C185: =C184+1 -> 1 | E185: NA | F185: NA | I185: CAPEX Installation costs
B186: =Inputs!$X$68 -> Luminaire UNIT price | C186: =C185+1 -> 2 | E186: NA | F186: NA | I186: Luminaire UNIT price
B187: =Inputs!$Y$68 -> CAPEX Installation costs | C187: 3 | E187: NA | F187: NA | I187: CAPEX Installation costs
E188: =SUM(E176:E187) -> 77.87284213 | F188: =SUM(F176:F187) -> 77.97638072 | J188: =ROUND(E188/J$2*100,3) -> 21.335 | K188: =ROUND(F188/K$2*100,3) -> 21.363
A190: =A175+1 -> 13 | B190: =IFERROR(VLOOKUP($A190,Inputs!$B$68:$AK$129,MATCH($B$7,Inputs!$B$68:$AK$68,0),FALSE),"Blank") -> 4x20 Fluorescent | I190: =IFERROR(VLOOKUP($A190,Inputs!$B$68:$AK$129,MATCH($B$7,Inputs!$B$68:$AK$68,0),FALSE),"Blank") -> 4x20 Fluorescent
B191: =Inputs!$R$68 -> Lamp UNIT price Annualised Cost | C191: =Inputs!$P$68 -> Lamp Maintenance cycle | E191: =IF($B190="Blank",0,VLOOKUP($B190,Inputs!$C$68:$AK$129,MATCH($B191,Inputs!$C$68:$AK$68,0),FALSE)) -> 4.036728319 | F191: =IF($B190="Blank",0,VLOOKUP($B190,Inputs!$C$68:$AK$129,MATCH($B191,Inputs!$C$68:$AK$68,0),FALSE)) -> 4.036728319 | I191: =B191 -> Lamp UNIT price Annualised Cost | J191: =IF(E191="NA","",E191/J$2*100) -> 1.105952964 | K191: =IF(F191="NA","",F191/K$2*100) -> 1.105952964
B192: =Inputs!$K$68 -> PE Cell UNIT price Annualised Cost | C192: =Inputs!$I$68 -> PE Cell Maintenance Cycle | E192: =IF($B190="Blank",0,VLOOKUP($B190,Inputs!$C$68:$AK$129,MATCH($B192,Inputs!$C$68:$AK$68,0),FALSE)) -> 0.5936945092 | F192: =IF($B190="Blank",0,VLOOKUP($B190,Inputs!$C$68:$AK$129,MATCH($B192,Inputs!$C$68:$AK$68,0),FALSE)) -> 0.5936945092 | I192: PE Cell UNIT price Annualised Cost | J192: 0.1626560299 | K192: 0.1626560299
B193: Corp capex annuity per light | E193: =IF($B190="Blank",0,'Corp Capex Annuity calcs'!F$109) -> 11.54925178 | F193: =IF($B190="Blank",0,'Corp Capex Annuity calcs'!G$109) -> 11.45735649 | I193: Corp capex annuity per light | J193: 3.164178569 | K193: 3.139001778
B194: =Inputs!$T$68 -> Lamp Service costs Annualised | E194: =IF($B190="Blank",0,VLOOKUP($B190,Inputs!$C$68:$AK$129,MATCH($B194,Inputs!$C$68:$AK$68,0),FALSE)) -> 25.31461639 | F194: =IF($B190="Blank",0,VLOOKUP($B190,Inputs!$C$68:$AK$129,MATCH($B194,Inputs!$C$68:$AK$68,0),FALSE)) -> 25.31461639 | I194: Lamp Service costs Annualised | J194: 6.935511339 | K194: 6.935511339
B195: =Inputs!$M$68 -> PE Cell Service costs Annualised | E195: =IF($B190="Blank",0,VLOOKUP($B190,Inputs!$C$68:$AK$129,MATCH($B195,Inputs!$C$68:$AK$68,0),FALSE)) -> 0 | F195: =IF($B190="Blank",0,VLOOKUP($B190,Inputs!$C$68:$AK$129,MATCH($B195,Inputs!$C$68:$AK$68,0),FALSE)) -> 0 | I195: PE Cell Service costs Annualised | J195: 0 | K195: 0
B196: Indirect Opex | E196: =IF($B190="Blank",0,IF($B$8="Private Contract Lighting",'Opex Weighting'!D$113,'Opex Weighting'!D$111)) -> 13.11908872 | F196: =IF($B190="Blank",0,IF($B$8="Private Contract Lighting",'Opex Weighting'!E$113,'Opex Weighting'!E$111)) -> 13.01470253 | I196: Indirect Opex | J196: 3.594270881 | K196: 3.565671925
B197: Indirect Capex | E197: =IF($B191="Blank",0,IF($B$8="Private Contract Lighting",'Capex Weighting'!D$115,'Capex Weighting'!D$117)) -> 0 | F197: =IF($B191="Blank",0,IF($B$8="Private Contract Lighting",'Capex Weighting'!E$115,'Capex Weighting'!E$117)) -> 0 | I197: Indirect Capex | J197: 0 | K197: 0
B198: Overhead Costs per light | E198: =IF($B190="Blank",0,IF($B$8="Private Contract Lighting",'Building Block'!C$49,'Building Block'!C$48)) -> 11.61153349 | F198: =IF($B190="Blank",0,IF($B$8="Private Contract Lighting",'Building Block'!D$49,'Building Block'!D$48)) -> 11.91135356 | I198: Overhead Costs per light | J198: 3.181242052 | K198: 3.263384537
B199: =Inputs!$AH$68 -> Bracket UNIT price | C199: 0 | E199: NA | F199: NA | I199: Bracket UNIT price
B200: =Inputs!$Y$68 -> CAPEX Installation costs | C200: =C199+1 -> 1 | E200: NA | F200: NA | I200: CAPEX Installation costs
B201: =Inputs!$X$68 -> Luminaire UNIT price | C201: =C200+1 -> 2 | E201: NA | F201: NA | I201: Luminaire UNIT price
B202: =Inputs!$Y$68 -> CAPEX Installation costs | C202: 3 | E202: NA | F202: NA | I202: CAPEX Installation costs
E203: =SUM(E191:E202) -> 66.2249132 | F203: =SUM(F191:F202) -> 66.32845179 | J203: =ROUND(E203/J$2*100,3) -> 18.144 | K203: =ROUND(F203/K$2*100,3) -> 18.172
A205: =A190+1 -> 14 | B205: =IFERROR(VLOOKUP($A205,Inputs!$B$68:$AK$129,MATCH($B$7,Inputs!$B$68:$AK$68,0),FALSE),"Blank") -> 4x40W Fluorescent | I205: =IFERROR(VLOOKUP($A205,Inputs!$B$68:$AK$129,MATCH($B$7,Inputs!$B$68:$AK$68,0),FALSE),"Blank") -> 4x40W Fluorescent
B206: =Inputs!$R$68 -> Lamp UNIT price Annualised Cost | C206: =Inputs!$P$68 -> Lamp Maintenance cycle | E206: =IF($B205="Blank",0,VLOOKUP($B205,Inputs!$C$68:$AK$129,MATCH($B206,Inputs!$C$68:$AK$68,0),FALSE)) -> 4.298975171 | F206: =IF($B205="Blank",0,VLOOKUP($B205,Inputs!$C$68:$AK$129,MATCH($B206,Inputs!$C$68:$AK$68,0),FALSE)) -> 4.298975171 | I206: =B206 -> Lamp UNIT price Annualised Cost | J206: =IF(E206="NA","",E206/J$2*100) -> 1.177801417 | K206: =IF(F206="NA","",F206/K$2*100) -> 1.177801417
B207: =Inputs!$K$68 -> PE Cell UNIT price Annualised Cost | C207: =Inputs!$I$68 -> PE Cell Maintenance Cycle | E207: =IF($B205="Blank",0,VLOOKUP($B205,Inputs!$C$68:$AK$129,MATCH($B207,Inputs!$C$68:$AK$68,0),FALSE)) -> 1.729160415 | F207: =IF($B205="Blank",0,VLOOKUP($B205,Inputs!$C$68:$AK$129,MATCH($B207,Inputs!$C$68:$AK$68,0),FALSE)) -> 1.729160415 | I207: PE Cell UNIT price Annualised Cost | J207: 0.4737425794 | K207: 0.4737425794
B208: Corp capex annuity per light | E208: =IF($B205="Blank",0,'Corp Capex Annuity calcs'!F$109) -> 11.54925178 | F208: =IF($B205="Blank",0,'Corp Capex Annuity calcs'!G$109) -> 11.45735649 | I208: Corp capex annuity per light | J208: 3.164178569 | K208: 3.139001778
B209: =Inputs!$T$68 -> Lamp Service costs Annualised | E209: =IF($B205="Blank",0,VLOOKUP($B205,Inputs!$C$68:$AK$129,MATCH($B209,Inputs!$C$68:$AK$68,0),FALSE)) -> 36.63957635 | F209: =IF($B205="Blank",0,VLOOKUP($B205,Inputs!$C$68:$AK$129,MATCH($B209,Inputs!$C$68:$AK$68,0),FALSE)) -> 36.63957635 | I209: Lamp Service costs Annualised | J209: 10.0382401 | K209: 10.0382401
B210: =Inputs!$M$68 -> PE Cell Service costs Annualised | E210: =IF($B205="Blank",0,VLOOKUP($B205,Inputs!$C$68:$AK$129,MATCH($B210,Inputs!$C$68:$AK$68,0),FALSE)) -> 0 | F210: =IF($B205="Blank",0,VLOOKUP($B205,Inputs!$C$68:$AK$129,MATCH($B210,Inputs!$C$68:$AK$68,0),FALSE)) -> 0 | I210: PE Cell Service costs Annualised | J210: 0 | K210: 0
B211: Indirect Opex | E211: =IF($B205="Blank",0,IF($B$8="Private Contract Lighting",'Opex Weighting'!D$113,'Opex Weighting'!D$111)) -> 13.11908872 | F211: =IF($B205="Blank",0,IF($B$8="Private Contract Lighting",'Opex Weighting'!E$113,'Opex Weighting'!E$111)) -> 13.01470253 | I211: Indirect Opex | J211: 3.594270881 | K211: 3.565671925
B212: Indirect Capex | E212: =IF($B206="Blank",0,IF($B$8="Private Contract Lighting",'Capex Weighting'!D$115,'Capex Weighting'!D$117)) -> 0 | F212: =IF($B206="Blank",0,IF($B$8="Private Contract Lighting",'Capex Weighting'!E$115,'Capex Weighting'!E$117)) -> 0 | I212: Indirect Capex | J212: 0 | K212: 0
B213: Overhead Costs per light | E213: =IF($B205="Blank",0,IF($B$8="Private Contract Lighting",'Building Block'!C$49,'Building Block'!C$48)) -> 11.61153349 | F213: =IF($B205="Blank",0,IF($B$8="Private Contract Lighting",'Building Block'!D$49,'Building Block'!D$48)) -> 11.91135356 | I213: Overhead Costs per light | J213: 3.181242052 | K213: 3.263384537
B214: =Inputs!$AH$68 -> Bracket UNIT price | C214: 0 | E214: NA | F214: NA | I214: Bracket UNIT price
... 508 more rows

Sheet Combined Annuity Prices PL
I1: ='Master Data'!H$22 -> 2017-06-30 | J1: ='Master Data'!I$22 -> 2018-06-30 | K1: ='Master Data'!J$22 -> 2019-06-30
J2: =HLOOKUP(J1,'Master Data'!$B$22:$P$23,2,FALSE) -> 365 | K2: =HLOOKUP(K1,'Master Data'!$B$22:$P$23,2,FALSE) -> 365
E3: ='Master Data'!I29 -> 2017-18 | F3: ='Master Data'!J29 -> 2018-19 | J3: ='Master Data'!I29 -> 2017-18 | K3: ='Master Data'!J29 -> 2018-19
E4: Cost $ Per year | J4: Cost Cents per Day
B6: Lookup/Offset | D6: Offset | E6: 13 | F6: =E6+1 -> 14
B7: =Inputs!$C$68 -> Light Description | D7: Useful Life
B8: Public Lighting
A10: 1 | B10: =IFERROR(VLOOKUP($A10,Inputs!$B$68:$AK$129,MATCH($B$7,Inputs!$B$68:$AK$68,0),FALSE),"Blank") -> 32W Compact Fluorescent | I10: =IFERROR(VLOOKUP($A10,Inputs!$B$68:$AK$129,MATCH($B$7,Inputs!$B$68:$AK$68,0),FALSE),"Blank") -> 32W Compact Fluorescent
B11: =Inputs!$R$68 -> Lamp UNIT price Annualised Cost | C11: =Inputs!$P$68 -> Lamp Maintenance cycle | E11: =IF($B10="Blank",0,VLOOKUP($B10,Inputs!$C$68:$AK$129,MATCH($B11,Inputs!$C$68:$AK$68,0),FALSE)) -> 1.121861245 | F11: =IF($B10="Blank",0,VLOOKUP($B10,Inputs!$C$68:$AK$129,MATCH($B11,Inputs!$C$68:$AK$68,0),FALSE)) -> 1.121861245 | I11: =B11 -> Lamp UNIT price Annualised Cost | J11: =IF(E11="NA","",E11/J$2*100) -> 0.3073592452 | K11: =IF(F11="NA","",F11/K$2*100) -> 0.3073592452
B12: =Inputs!$K$68 -> PE Cell UNIT price Annualised Cost | C12: =Inputs!$I$68 -> PE Cell Maintenance Cycle | E12: =IF($B10="Blank",0,VLOOKUP($B10,Inputs!$C$68:$AK$129,MATCH($B12,Inputs!$C$68:$AK$68,0),FALSE)) -> 0.5936945092 | F12: =IF($B10="Blank",0,VLOOKUP($B10,Inputs!$C$68:$AK$129,MATCH($B12,Inputs!$C$68:$AK$68,0),FALSE)) -> 0.5936945092 | I12: PE Cell UNIT price Annualised Cost | J12: 0.1626560299 | K12: 0.1626560299
B13: Corp capex annuity per light | E13: =IF($B10="Blank",0,'Corp Capex Annuity calcs'!F$109) -> 11.54925178 | F13: =IF($B10="Blank",0,'Corp Capex Annuity calcs'!G$109) -> 11.45735649 | I13: Corp capex annuity per light | J13: 3.164178569 | K13: 3.139001778
B14: =Inputs!$T$68 -> Lamp Service costs Annualised | E14: =IF($B10="Blank",0,VLOOKUP($B10,Inputs!$C$68:$AK$129,MATCH($B14,Inputs!$C$68:$AK$68,0),FALSE)) -> 25.31461639 | F14: =IF($B10="Blank",0,VLOOKUP($B10,Inputs!$C$68:$AK$129,MATCH($B14,Inputs!$C$68:$AK$68,0),FALSE)) -> 25.31461639 | I14: Lamp Service costs Annualised | J14: 6.935511339 | K14: 6.935511339
B15: =Inputs!$M$68 -> PE Cell Service costs Annualised | E15: =IF($B10="Blank",0,VLOOKUP($B10,Inputs!$C$68:$AK$129,MATCH($B15,Inputs!$C$68:$AK$68,0),FALSE)) -> 0 | F15: =IF($B10="Blank",0,VLOOKUP($B10,Inputs!$C$68:$AK$129,MATCH($B15,Inputs!$C$68:$AK$68,0),FALSE)) -> 0 | I15: PE Cell Service costs Annualised | J15: 0 | K15: 0
B16: Indirect Opex | E16: =IF($B10="Blank",0,IF($B$8="Private Contract Lighting",'Opex Weighting'!D$113,'Opex Weighting'!D$111)) -> 23.13788316 | F16: =IF($B10="Blank",0,IF($B$8="Private Contract Lighting",'Opex Weighting'!E$113,'Opex Weighting'!E$111)) -> 24.14940747 | I16: Indirect Opex | J16: 6.339146071 | K16: 6.616276019
B17: Indirect Capex | E17: ='Capex Weighting'!D$115 -> 0 | F17: ='Capex Weighting'!E$114 -> 0 | I17: Indirect Capex | J17: 0 | K17: 0
B18: Overhead Costs per light | E18: =IF($B10="Blank",0,IF($B$8="Private Contract Lighting",'Building Block'!C$49,'Building Block'!C$48)) -> 28.46222504 | F18: =IF($B10="Blank",0,IF($B$8="Private Contract Lighting",'Building Block'!D$49,'Building Block'!D$48)) -> 28.40239728 | I18: Overhead Costs per light | J18: 7.797869874 | K18: 7.781478708
B19: =Inputs!$AH$68 -> Bracket UNIT price | C19: 0 | E19: =IF($B10="Blank",0,OFFSET('CAPEX Annuity calcs'!$B$9,MATCH($B10,'CAPEX Annuity calcs'!$B$9:$B$500,0)+$C19,E$6)) -> 3.767394364 | F19: =IF($B10="Blank",0,OFFSET('CAPEX Annuity calcs'!$B$9,MATCH($B10,'CAPEX Annuity calcs'!$B$9:$B$500,0)+$C19,F$6)) -> 3.767394364 | I19: Bracket UNIT price | J19: 1.03216284 | K19: 1.03216284
B20: =Inputs!$Y$68 -> CAPEX Installation costs | C20: =C19+1 -> 1 | E20: =IF($B10="Blank",0,OFFSET('CAPEX Annuity calcs'!$B$9,MATCH($B10,'CAPEX Annuity calcs'!$B$9:$B$500,0)+$C20,E$6)) -> 0 | F20: =IF($B10="Blank",0,OFFSET('CAPEX Annuity calcs'!$B$9,MATCH($B10,'CAPEX Annuity calcs'!$B$9:$B$500,0)+$C20,F$6)) -> 0 | I20: CAPEX Installation costs | J20: 0 | K20: 0
B21: =Inputs!$X$68 -> Luminaire UNIT price | C21: =C20+1 -> 2 | E21: =IF($B10="Blank",0,OFFSET('CAPEX Annuity calcs'!$B$9,MATCH($B10,'CAPEX Annuity calcs'!$B$9:$B$500,0)+$C21,E$6)) -> 14.43069516 | F21: =IF($B10="Blank",0,OFFSET('CAPEX Annuity calcs'!$B$9,MATCH($B10,'CAPEX Annuity calcs'!$B$9:$B$500,0)+$C21,F$6)) -> 14.43069516 | I21: Luminaire UNIT price | J21: 3.953615113 | K21: 3.953615113
B22: =Inputs!$Y$68 -> CAPEX Installation costs | C22: 3 | E22: =IF($B10="Blank",0,OFFSET('CAPEX Annuity calcs'!$B$9,MATCH($B10,'CAPEX Annuity calcs'!$B$9:$B$500,0)+$C22,E$6)) -> 16.77265211 | F22: =IF($B10="Blank",0,OFFSET('CAPEX Annuity calcs'!$B$9,MATCH($B10,'CAPEX Annuity calcs'!$B$9:$B$500,0)+$C22,F$6)) -> 16.77265211 | I22: CAPEX Installation costs | J22: 4.595247154 | K22: 4.595247154
E23: =SUM(E11:E22) -> 125.1502738 | F23: =SUM(F11:F22) -> 126.010075 | J23: =ROUND(E23/J$2*100,3) -> 34.288 | K23: =ROUND(F23/K$2*100,3) -> 34.523
A25: =A10+1 -> 2 | B25: =IFERROR(VLOOKUP($A25,Inputs!$B$68:$AK$129,MATCH($B$7,Inputs!$B$68:$AK$68,0),FALSE),"Blank") -> 42W Compact Fluorescent | I25: =IFERROR(VLOOKUP($A25,Inputs!$B$68:$AK$129,MATCH($B$7,Inputs!$B$68:$AK$68,0),FALSE),"Blank") -> 42W Compact Fluorescent
B26: =Inputs!$R$68 -> Lamp UNIT price Annualised Cost | C26: =Inputs!$P$68 -> Lamp Maintenance cycle | E26: =IF($B25="Blank",0,VLOOKUP($B25,Inputs!$C$68:$AK$129,MATCH($B26,Inputs!$C$68:$AK$68,0),FALSE)) -> 1.121861245 | F26: =IF($B25="Blank",0,VLOOKUP($B25,Inputs!$C$68:$AK$129,MATCH($B26,Inputs!$C$68:$AK$68,0),FALSE)) -> 1.121861245 | I26: =B26 -> Lamp UNIT price Annualised Cost | J26: =IF(E26="NA","",E26/J$2*100) -> 0.3073592452 | K26: =IF(F26="NA","",F26/K$2*100) -> 0.3073592452
B27: =Inputs!$K$68 -> PE Cell UNIT price Annualised Cost | C27: =Inputs!$I$68 -> PE Cell Maintenance Cycle | E27: =IF($B25="Blank",0,VLOOKUP($B25,Inputs!$C$68:$AK$129,MATCH($B27,Inputs!$C$68:$AK$68,0),FALSE)) -> 0.5936945092 | F27: =IF($B25="Blank",0,VLOOKUP($B25,Inputs!$C$68:$AK$129,MATCH($B27,Inputs!$C$68:$AK$68,0),FALSE)) -> 0.5936945092 | I27: PE Cell UNIT price Annualised Cost | J27: 0.1626560299 | K27: 0.1626560299
B28: Corp capex annuity per light | E28: =IF($B25="Blank",0,'Corp Capex Annuity calcs'!F$109) -> 11.54925178 | F28: =IF($B25="Blank",0,'Corp Capex Annuity calcs'!G$109) -> 11.45735649 | I28: Corp capex annuity per light | J28: 3.164178569 | K28: 3.139001778
B29: =Inputs!$T$68 -> Lamp Service costs Annualised | E29: =IF($B25="Blank",0,VLOOKUP($B25,Inputs!$C$68:$AK$129,MATCH($B29,Inputs!$C$68:$AK$68,0),FALSE)) -> 25.31461639 | F29: =IF($B25="Blank",0,VLOOKUP($B25,Inputs!$C$68:$AK$129,MATCH($B29,Inputs!$C$68:$AK$68,0),FALSE)) -> 25.31461639 | I29: Lamp Service costs Annualised | J29: 6.935511339 | K29: 6.935511339
B30: =Inputs!$M$68 -> PE Cell Service costs Annualised | E30: =IF($B25="Blank",0,VLOOKUP($B25,Inputs!$C$68:$AK$129,MATCH($B30,Inputs!$C$68:$AK$68,0),FALSE)) -> 0 | F30: =IF($B25="Blank",0,VLOOKUP($B25,Inputs!$C$68:$AK$129,MATCH($B30,Inputs!$C$68:$AK$68,0),FALSE)) -> 0 | I30: PE Cell Service costs Annualised | J30: 0 | K30: 0
B31: Indirect Opex | E31: =IF($B25="Blank",0,IF($B$8="Private Contract Lighting",'Opex Weighting'!D$113,'Opex Weighting'!D$111)) -> 23.13788316 | F31: =IF($B25="Blank",0,IF($B$8="Private Contract Lighting",'Opex Weighting'!E$113,'Opex Weighting'!E$111)) -> 24.14940747 | I31: Indirect Opex | J31: 6.339146071 | K31: 6.616276019
B32: Indirect Capex | E32: ='Capex Weighting'!D$115 -> 0 | F32: ='Capex Weighting'!E$114 -> 0 | I32: Indirect Capex | J32: 0 | K32: 0
B33: Overhead Costs per light | E33: =IF($B25="Blank",0,IF($B$8="Private Contract Lighting",'Building Block'!C$49,'Building Block'!C$48)) -> 28.46222504 | F33: =IF($B25="Blank",0,IF($B$8="Private Contract Lighting",'Building Block'!D$49,'Building Block'!D$48)) -> 28.40239728 | I33: Overhead Costs per light | J33: 7.797869874 | K33: 7.781478708
B34: =Inputs!$AH$68 -> Bracket UNIT price | C34: 0 | E34: =IF($B25="Blank",0,OFFSET('CAPEX Annuity calcs'!$B$9,MATCH($B25,'CAPEX Annuity calcs'!$B$9:$B$500,0)+$C34,E$6)) -> 3.85599068 | F34: =IF($B25="Blank",0,OFFSET('CAPEX Annuity calcs'!$B$9,MATCH($B25,'CAPEX Annuity calcs'!$B$9:$B$500,0)+$C34,F$6)) -> 3.85599068 | I34: Bracket UNIT price | J34: 1.056435803 | K34: 1.056435803
B35: =Inputs!$Y$68 -> CAPEX Installation costs | C35: =C34+1 -> 1 | E35: =IF($B25="Blank",0,OFFSET('CAPEX Annuity calcs'!$B$9,MATCH($B25,'CAPEX Annuity calcs'!$B$9:$B$500,0)+$C35,E$6)) -> 0 | F35: =IF($B25="Blank",0,OFFSET('CAPEX Annuity calcs'!$B$9,MATCH($B25,'CAPEX Annuity calcs'!$B$9:$B$500,0)+$C35,F$6)) -> 0 | I35: CAPEX Installation costs | J35: 0 | K35: 0
B36: =Inputs!$X$68 -> Luminaire UNIT price | C36: =C35+1 -> 2 | E36: =IF($B25="Blank",0,OFFSET('CAPEX Annuity calcs'!$B$9,MATCH($B25,'CAPEX Annuity calcs'!$B$9:$B$500,0)+$C36,E$6)) -> 14.43069516 | F36: =IF($B25="Blank",0,OFFSET('CAPEX Annuity calcs'!$B$9,MATCH($B25,'CAPEX Annuity calcs'!$B$9:$B$500,0)+$C36,F$6)) -> 14.43069516 | I36: Luminaire UNIT price | J36: 3.953615113 | K36: 3.953615113
B37: =Inputs!$Y$68 -> CAPEX Installation costs | C37: 3 | E37: =IF($B25="Blank",0,OFFSET('CAPEX Annuity calcs'!$B$9,MATCH($B25,'CAPEX Annuity calcs'!$B$9:$B$500,0)+$C37,E$6)) -> 16.77265211 | F37: =IF($B25="Blank",0,OFFSET('CAPEX Annuity calcs'!$B$9,MATCH($B25,'CAPEX Annuity calcs'!$B$9:$B$500,0)+$C37,F$6)) -> 16.77265211 | I37: CAPEX Installation costs | J37: 4.595247154 | K37: 4.595247154
E38: =SUM(E26:E37) -> 125.2388701 | F38: =SUM(F26:F37) -> 126.0986713 | J38: =ROUND(E38/J$2*100,3) -> 34.312 | K38: =ROUND(F38/K$2*100,3) -> 34.548
A40: =A25+1 -> 3 | B40: =IFERROR(VLOOKUP($A40,Inputs!$B$68:$AK$129,MATCH($B$7,Inputs!$B$68:$AK$68,0),FALSE),"Blank") -> 42W Compact Fluorescent - Bottom Pole Entry | I40: =IFERROR(VLOOKUP($A40,Inputs!$B$68:$AK$129,MATCH($B$7,Inputs!$B$68:$AK$68,0),FALSE),"Blank") -> 42W Compact Fluorescent - Bottom Pole Entry
B41: =Inputs!$R$68 -> Lamp UNIT price Annualised Cost | C41: =Inputs!$P$68 -> Lamp Maintenance cycle | E41: =IF($B40="Blank",0,VLOOKUP($B40,Inputs!$C$68:$AK$129,MATCH($B41,Inputs!$C$68:$AK$68,0),FALSE)) -> 1.121861245 | F41: =IF($B40="Blank",0,VLOOKUP($B40,Inputs!$C$68:$AK$129,MATCH($B41,Inputs!$C$68:$AK$68,0),FALSE)) -> 1.121861245 | I41: =B41 -> Lamp UNIT price Annualised Cost | J41: =IF(E41="NA","",E41/J$2*100) -> 0.3073592452 | K41: =IF(F41="NA","",F41/K$2*100) -> 0.3073592452
B42: =Inputs!$K$68 -> PE Cell UNIT price Annualised Cost | C42: =Inputs!$I$68 -> PE Cell Maintenance Cycle | E42: =IF($B40="Blank",0,VLOOKUP($B40,Inputs!$C$68:$AK$129,MATCH($B42,Inputs!$C$68:$AK$68,0),FALSE)) -> 0.5936945092 | F42: =IF($B40="Blank",0,VLOOKUP($B40,Inputs!$C$68:$AK$129,MATCH($B42,Inputs!$C$68:$AK$68,0),FALSE)) -> 0.5936945092 | I42: PE Cell UNIT price Annualised Cost | J42: 0.1626560299 | K42: 0.1626560299
B43: Corp capex annuity per light | E43: =IF($B40="Blank",0,'Corp Capex Annuity calcs'!F$109) -> 11.54925178 | F43: =IF($B40="Blank",0,'Corp Capex Annuity calcs'!G$109) -> 11.45735649 | I43: Corp capex annuity per light | J43: 3.164178569 | K43: 3.139001778
B44: =Inputs!$T$68 -> Lamp Service costs Annualised | E44: =IF($B40="Blank",0,VLOOKUP($B40,Inputs!$C$68:$AK$129,MATCH($B44,Inputs!$C$68:$AK$68,0),FALSE)) -> 25.31461639 | F44: =IF($B40="Blank",0,VLOOKUP($B40,Inputs!$C$68:$AK$129,MATCH($B44,Inputs!$C$68:$AK$68,0),FALSE)) -> 25.31461639 | I44: Lamp Service costs Annualised | J44: 6.935511339 | K44: 6.935511339
B45: =Inputs!$M$68 -> PE Cell Service costs Annualised | E45: =IF($B40="Blank",0,VLOOKUP($B40,Inputs!$C$68:$AK$129,MATCH($B45,Inputs!$C$68:$AK$68,0),FALSE)) -> 0 | F45: =IF($B40="Blank",0,VLOOKUP($B40,Inputs!$C$68:$AK$129,MATCH($B45,Inputs!$C$68:$AK$68,0),FALSE)) -> 0 | I45: PE Cell Service costs Annualised | J45: 0 | K45: 0
B46: Indirect Opex | E46: =IF($B40="Blank",0,IF($B$8="Private Contract Lighting",'Opex Weighting'!D$113,'Opex Weighting'!D$111)) -> 23.13788316 | F46: =IF($B40="Blank",0,IF($B$8="Private Contract Lighting",'Opex Weighting'!E$113,'Opex Weighting'!E$111)) -> 24.14940747 | I46: Indirect Opex | J46: 6.339146071 | K46: 6.616276019
B47: Indirect Capex | E47: ='Capex Weighting'!D$115 -> 0 | F47: ='Capex Weighting'!E$114 -> 0 | I47: Indirect Capex | J47: 0 | K47: 0
B48: Overhead Costs per light | E48: =IF($B40="Blank",0,IF($B$8="Private Contract Lighting",'Building Block'!C$49,'Building Block'!C$48)) -> 28.46222504 | F48: =IF($B40="Blank",0,IF($B$8="Private Contract Lighting",'Building Block'!D$49,'Building Block'!D$48)) -> 28.40239728 | I48: Overhead Costs per light | J48: 7.797869874 | K48: 7.781478708
B49: =Inputs!$AH$68 -> Bracket UNIT price | C49: 0 | E49: =IF($B40="Blank",0,OFFSET('CAPEX Annuity calcs'!$B$9,MATCH($B40,'CAPEX Annuity calcs'!$B$9:$B$500,0)+$C49,E$6)) -> 3.85599068 | F49: =IF($B40="Blank",0,OFFSET('CAPEX Annuity calcs'!$B$9,MATCH($B40,'CAPEX Annuity calcs'!$B$9:$B$500,0)+$C49,F$6)) -> 3.85599068 | I49: Bracket UNIT price | J49: 1.056435803 | K49: 1.056435803
B50: =Inputs!$Y$68 -> CAPEX Installation costs | C50: =C49+1 -> 1 | E50: =IF($B40="Blank",0,OFFSET('CAPEX Annuity calcs'!$B$9,MATCH($B40,'CAPEX Annuity calcs'!$B$9:$B$500,0)+$C50,E$6)) -> 0 | F50: =IF($B40="Blank",0,OFFSET('CAPEX Annuity calcs'!$B$9,MATCH($B40,'CAPEX Annuity calcs'!$B$9:$B$500,0)+$C50,F$6)) -> 0 | I50: CAPEX Installation costs | J50: 0 | K50: 0
B51: =Inputs!$X$68 -> Luminaire UNIT price | C51: =C50+1 -> 2 | E51: =IF($B40="Blank",0,OFFSET('CAPEX Annuity calcs'!$B$9,MATCH($B40,'CAPEX Annuity calcs'!$B$9:$B$500,0)+$C51,E$6)) -> 14.43069516 | F51: =IF($B40="Blank",0,OFFSET('CAPEX Annuity calcs'!$B$9,MATCH($B40,'CAPEX Annuity calcs'!$B$9:$B$500,0)+$C51,F$6)) -> 14.43069516 | I51: Luminaire UNIT price | J51: 3.953615113 | K51: 3.953615113
B52: =Inputs!$Y$68 -> CAPEX Installation costs | C52: 3 | E52: =IF($B40="Blank",0,OFFSET('CAPEX Annuity calcs'!$B$9,MATCH($B40,'CAPEX Annuity calcs'!$B$9:$B$500,0)+$C52,E$6)) -> 16.77265211 | F52: =IF($B40="Blank",0,OFFSET('CAPEX Annuity calcs'!$B$9,MATCH($B40,'CAPEX Annuity calcs'!$B$9:$B$500,0)+$C52,F$6)) -> 16.77265211 | I52: CAPEX Installation costs | J52: 4.595247154 | K52: 4.595247154
E53: =SUM(E41:E52) -> 125.2388701 | F53: =SUM(F41:F52) -> 126.0986713 | J53: =ROUND(E53/J$2*100,3) -> 34.312 | K53: =ROUND(F53/K$2*100,3) -> 34.548
A55: =A40+1 -> 4 | B55: =IFERROR(VLOOKUP($A55,Inputs!$B$68:$AK$129,MATCH($B$7,Inputs!$B$68:$AK$68,0),FALSE),"Blank") -> 2x24W Compact Fluorescent | I55: =IFERROR(VLOOKUP($A55,Inputs!$B$68:$AK$129,MATCH($B$7,Inputs!$B$68:$AK$68,0),FALSE),"Blank") -> 2x24W Compact Fluorescent
B56: =Inputs!$R$68 -> Lamp UNIT price Annualised Cost | C56: =Inputs!$P$68 -> Lamp Maintenance cycle | E56: =IF($B55="Blank",0,VLOOKUP($B55,Inputs!$C$68:$AK$129,MATCH($B56,Inputs!$C$68:$AK$68,0),FALSE)) -> 2.24372249 | F56: =IF($B55="Blank",0,VLOOKUP($B55,Inputs!$C$68:$AK$129,MATCH($B56,Inputs!$C$68:$AK$68,0),FALSE)) -> 2.24372249 | I56: =B56 -> Lamp UNIT price Annualised Cost | J56: =IF(E56="NA","",E56/J$2*100) -> 0.6147184903 | K56: =IF(F56="NA","",F56/K$2*100) -> 0.6147184903
B57: =Inputs!$K$68 -> PE Cell UNIT price Annualised Cost | C57: =Inputs!$I$68 -> PE Cell Maintenance Cycle | E57: =IF($B55="Blank",0,VLOOKUP($B55,Inputs!$C$68:$AK$129,MATCH($B57,Inputs!$C$68:$AK$68,0),FALSE)) -> 0.5936945092 | F57: =IF($B55="Blank",0,VLOOKUP($B55,Inputs!$C$68:$AK$129,MATCH($B57,Inputs!$C$68:$AK$68,0),FALSE)) -> 0.5936945092 | I57: PE Cell UNIT price Annualised Cost | J57: 0.1626560299 | K57: 0.1626560299
B58: Corp capex annuity per light | E58: =IF($B55="Blank",0,'Corp Capex Annuity calcs'!F$109) -> 11.54925178 | F58: =IF($B55="Blank",0,'Corp Capex Annuity calcs'!G$109) -> 11.45735649 | I58: Corp capex annuity per light | J58: 3.164178569 | K58: 3.139001778
B59: =Inputs!$T$68 -> Lamp Service costs Annualised | E59: =IF($B55="Blank",0,VLOOKUP($B55,Inputs!$C$68:$AK$129,MATCH($B59,Inputs!$C$68:$AK$68,0),FALSE)) -> 25.31461639 | F59: =IF($B55="Blank",0,VLOOKUP($B55,Inputs!$C$68:$AK$129,MATCH($B59,Inputs!$C$68:$AK$68,0),FALSE)) -> 25.31461639 | I59: Lamp Service costs Annualised | J59: 6.935511339 | K59: 6.935511339
B60: =Inputs!$M$68 -> PE Cell Service costs Annualised | E60: =IF($B55="Blank",0,VLOOKUP($B55,Inputs!$C$68:$AK$129,MATCH($B60,Inputs!$C$68:$AK$68,0),FALSE)) -> 0 | F60: =IF($B55="Blank",0,VLOOKUP($B55,Inputs!$C$68:$AK$129,MATCH($B60,Inputs!$C$68:$AK$68,0),FALSE)) -> 0 | I60: PE Cell Service costs Annualised | J60: 0 | K60: 0
B61: Indirect Opex | E61: =IF($B55="Blank",0,IF($B$8="Private Contract Lighting",'Opex Weighting'!D$113,'Opex Weighting'!D$111)) -> 23.13788316 | F61: =IF($B55="Blank",0,IF($B$8="Private Contract Lighting",'Opex Weighting'!E$113,'Opex Weighting'!E$111)) -> 24.14940747 | I61: Indirect Opex | J61: 6.339146071 | K61: 6.616276019
B62: Indirect Capex | E62: ='Capex Weighting'!D$115 -> 0 | F62: ='Capex Weighting'!E$114 -> 0 | I62: Indirect Capex | J62: 0 | K62: 0
B63: Overhead Costs per light | E63: =IF($B55="Blank",0,IF($B$8="Private Contract Lighting",'Building Block'!C$49,'Building Block'!C$48)) -> 28.46222504 | F63: =IF($B55="Blank",0,IF($B$8="Private Contract Lighting",'Building Block'!D$49,'Building Block'!D$48)) -> 28.40239728 | I63: Overhead Costs per light | J63: 7.797869874 | K63: 7.781478708
B64: =Inputs!$AH$68 -> Bracket UNIT price | C64: 0 | E64: =IF($B55="Blank",0,OFFSET('CAPEX Annuity calcs'!$B$9,MATCH($B55,'CAPEX Annuity calcs'!$B$9:$B$500,0)+$C64,E$6)) -> 3.855650905 | F64: =IF($B55="Blank",0,OFFSET('CAPEX Annuity calcs'!$B$9,MATCH($B55,'CAPEX Annuity calcs'!$B$9:$B$500,0)+$C64,F$6)) -> 3.855650905 | I64: Bracket UNIT price | J64: 1.056342714 | K64: 1.056342714
B65: =Inputs!$Y$68 -> CAPEX Installation costs | C65: =C64+1 -> 1 | E65: =IF($B55="Blank",0,OFFSET('CAPEX Annuity calcs'!$B$9,MATCH($B55,'CAPEX Annuity calcs'!$B$9:$B$500,0)+$C65,E$6)) -> 0 | F65: =IF($B55="Blank",0,OFFSET('CAPEX Annuity calcs'!$B$9,MATCH($B55,'CAPEX Annuity calcs'!$B$9:$B$500,0)+$C65,F$6)) -> 0 | I65: CAPEX Installation costs | J65: 0 | K65: 0
B66: =Inputs!$X$68 -> Luminaire UNIT price | C66: =C65+1 -> 2 | E66: =IF($B55="Blank",0,OFFSET('CAPEX Annuity calcs'!$B$9,MATCH($B55,'CAPEX Annuity calcs'!$B$9:$B$500,0)+$C66,E$6)) -> 14.43069516 | F66: =IF($B55="Blank",0,OFFSET('CAPEX Annuity calcs'!$B$9,MATCH($B55,'CAPEX Annuity calcs'!$B$9:$B$500,0)+$C66,F$6)) -> 14.43069516 | I66: Luminaire UNIT price | J66: 3.953615113 | K66: 3.953615113
B67: =Inputs!$Y$68 -> CAPEX Installation costs | C67: 3 | E67: =IF($B55="Blank",0,OFFSET('CAPEX Annuity calcs'!$B$9,MATCH($B55,'CAPEX Annuity calcs'!$B$9:$B$500,0)+$C67,E$6)) -> 16.77265211 | F67: =IF($B55="Blank",0,OFFSET('CAPEX Annuity calcs'!$B$9,MATCH($B55,'CAPEX Annuity calcs'!$B$9:$B$500,0)+$C67,F$6)) -> 16.77265211 | I67: CAPEX Installation costs | J67: 4.595247154 | K67: 4.595247154
E68: =SUM(E56:E67) -> 126.3603915 | F68: =SUM(F56:F67) -> 127.2201928 | J68: =ROUND(E68/J$2*100,3) -> 34.619 | K68: =ROUND(F68/K$2*100,3) -> 34.855
A70: =A55+1 -> 5 | B70: =IFERROR(VLOOKUP($A70,Inputs!$B$68:$AK$129,MATCH($B$7,Inputs!$B$68:$AK$68,0),FALSE),"Blank") -> 1x20W Fluorescent | I70: =IFERROR(VLOOKUP($A70,Inputs!$B$68:$AK$129,MATCH($B$7,Inputs!$B$68:$AK$68,0),FALSE),"Blank") -> 1x20W Fluorescent
B71: =Inputs!$R$68 -> Lamp UNIT price Annualised Cost | C71: =Inputs!$P$68 -> Lamp Maintenance cycle | E71: =IF($B70="Blank",0,VLOOKUP($B70,Inputs!$C$68:$AK$129,MATCH($B71,Inputs!$C$68:$AK$68,0),FALSE)) -> 1.00918208 | F71: =IF($B70="Blank",0,VLOOKUP($B70,Inputs!$C$68:$AK$129,MATCH($B71,Inputs!$C$68:$AK$68,0),FALSE)) -> 1.00918208 | I71: =B71 -> Lamp UNIT price Annualised Cost | J71: =IF(E71="NA","",E71/J$2*100) -> 0.276488241 | K71: =IF(F71="NA","",F71/K$2*100) -> 0.276488241
B72: =Inputs!$K$68 -> PE Cell UNIT price Annualised Cost | C72: =Inputs!$I$68 -> PE Cell Maintenance Cycle | E72: =IF($B70="Blank",0,VLOOKUP($B70,Inputs!$C$68:$AK$129,MATCH($B72,Inputs!$C$68:$AK$68,0),FALSE)) -> 0.5936945092 | F72: =IF($B70="Blank",0,VLOOKUP($B70,Inputs!$C$68:$AK$129,MATCH($B72,Inputs!$C$68:$AK$68,0),FALSE)) -> 0.5936945092 | I72: PE Cell UNIT price Annualised Cost | J72: 0.1626560299 | K72: 0.1626560299
B73: Corp capex annuity per light | E73: =IF($B70="Blank",0,'Corp Capex Annuity calcs'!F$109) -> 11.54925178 | F73: =IF($B70="Blank",0,'Corp Capex Annuity calcs'!G$109) -> 11.45735649 | I73: Corp capex annuity per light | J73: 3.164178569 | K73: 3.139001778
B74: =Inputs!$T$68 -> Lamp Service costs Annualised | E74: =IF($B70="Blank",0,VLOOKUP($B70,Inputs!$C$68:$AK$129,MATCH($B74,Inputs!$C$68:$AK$68,0),FALSE)) -> 25.31461639 | F74: =IF($B70="Blank",0,VLOOKUP($B70,Inputs!$C$68:$AK$129,MATCH($B74,Inputs!$C$68:$AK$68,0),FALSE)) -> 25.31461639 | I74: Lamp Service costs Annualised | J74: 6.935511339 | K74: 6.935511339
B75: =Inputs!$M$68 -> PE Cell Service costs Annualised | E75: =IF($B70="Blank",0,VLOOKUP($B70,Inputs!$C$68:$AK$129,MATCH($B75,Inputs!$C$68:$AK$68,0),FALSE)) -> 0 | F75: =IF($B70="Blank",0,VLOOKUP($B70,Inputs!$C$68:$AK$129,MATCH($B75,Inputs!$C$68:$AK$68,0),FALSE)) -> 0 | I75: PE Cell Service costs Annualised | J75: 0 | K75: 0
B76: Indirect Opex | E76: =IF($B70="Blank",0,IF($B$8="Private Contract Lighting",'Opex Weighting'!D$113,'Opex Weighting'!D$111)) -> 23.13788316 | F76: =IF($B70="Blank",0,IF($B$8="Private Contract Lighting",'Opex Weighting'!E$113,'Opex Weighting'!E$111)) -> 24.14940747 | I76: Indirect Opex | J76: 6.339146071 | K76: 6.616276019
B77: Indirect Capex | E77: ='Capex Weighting'!D$115 -> 0 | F77: ='Capex Weighting'!E$114 -> 0 | I77: Indirect Capex | J77: 0 | K77: 0
B78: Overhead Costs per light | E78: =IF($B70="Blank",0,IF($B$8="Private Contract Lighting",'Building Block'!C$49,'Building Block'!C$48)) -> 28.46222504 | F78: =IF($B70="Blank",0,IF($B$8="Private Contract Lighting",'Building Block'!D$49,'Building Block'!D$48)) -> 28.40239728 | I78: Overhead Costs per light | J78: 7.797869874 | K78: 7.781478708
B79: =Inputs!$AH$68 -> Bracket UNIT price | C79: 0 | E79: =IF($B70="Blank",0,OFFSET('CAPEX Annuity calcs'!$B$9,MATCH($B70,'CAPEX Annuity calcs'!$B$9:$B$500,0)+$C79,E$6)) -> 5.324060786 | F79: =IF($B70="Blank",0,OFFSET('CAPEX Annuity calcs'!$B$9,MATCH($B70,'CAPEX Annuity calcs'!$B$9:$B$500,0)+$C79,F$6)) -> 5.324060786 | I79: Bracket UNIT price | J79: 1.458646791 | K79: 1.458646791
B80: =Inputs!$Y$68 -> CAPEX Installation costs | C80: =C79+1 -> 1 | E80: =IF($B70="Blank",0,OFFSET('CAPEX Annuity calcs'!$B$9,MATCH($B70,'CAPEX Annuity calcs'!$B$9:$B$500,0)+$C80,E$6)) -> 0 | F80: =IF($B70="Blank",0,OFFSET('CAPEX Annuity calcs'!$B$9,MATCH($B70,'CAPEX Annuity calcs'!$B$9:$B$500,0)+$C80,F$6)) -> 0 | I80: CAPEX Installation costs | J80: 0 | K80: 0
B81: =Inputs!$X$68 -> Luminaire UNIT price | C81: =C80+1 -> 2 | E81: =IF($B70="Blank",0,OFFSET('CAPEX Annuity calcs'!$B$9,MATCH($B70,'CAPEX Annuity calcs'!$B$9:$B$500,0)+$C81,E$6)) -> 18.96557833 | F81: =IF($B70="Blank",0,OFFSET('CAPEX Annuity calcs'!$B$9,MATCH($B70,'CAPEX Annuity calcs'!$B$9:$B$500,0)+$C81,F$6)) -> 18.96557833 | I81: Luminaire UNIT price | J81: 5.196048857 | K81: 5.196048857
B82: =Inputs!$Y$68 -> CAPEX Installation costs | C82: 3 | E82: =IF($B70="Blank",0,OFFSET('CAPEX Annuity calcs'!$B$9,MATCH($B70,'CAPEX Annuity calcs'!$B$9:$B$500,0)+$C82,E$6)) -> 16.77265211 | F82: =IF($B70="Blank",0,OFFSET('CAPEX Annuity calcs'!$B$9,MATCH($B70,'CAPEX Annuity calcs'!$B$9:$B$500,0)+$C82,F$6)) -> 16.77265211 | I82: CAPEX Installation costs | J82: 4.595247154 | K82: 4.595247154
E83: =SUM(E71:E82) -> 131.1291442 | F83: =SUM(F71:F82) -> 131.9889454 | J83: =ROUND(E83/J$2*100,3) -> 35.926 | K83: =ROUND(F83/K$2*100,3) -> 36.161
A85: =A70+1 -> 6 | B85: =IFERROR(VLOOKUP($A85,Inputs!$B$68:$AK$129,MATCH($B$7,Inputs!$B$68:$AK$68,0),FALSE),"Blank") -> 1x40W Fluorescent | I85: =IFERROR(VLOOKUP($A85,Inputs!$B$68:$AK$129,MATCH($B$7,Inputs!$B$68:$AK$68,0),FALSE),"Blank") -> 1x40W Fluorescent
B86: =Inputs!$R$68 -> Lamp UNIT price Annualised Cost | C86: =Inputs!$P$68 -> Lamp Maintenance cycle | E86: =IF($B85="Blank",0,VLOOKUP($B85,Inputs!$C$68:$AK$129,MATCH($B86,Inputs!$C$68:$AK$68,0),FALSE)) -> 1.074743793 | F86: =IF($B85="Blank",0,VLOOKUP($B85,Inputs!$C$68:$AK$129,MATCH($B86,Inputs!$C$68:$AK$68,0),FALSE)) -> 1.074743793 | I86: =B86 -> Lamp UNIT price Annualised Cost | J86: =IF(E86="NA","",E86/J$2*100) -> 0.2944503541 | K86: =IF(F86="NA","",F86/K$2*100) -> 0.2944503541
B87: =Inputs!$K$68 -> PE Cell UNIT price Annualised Cost | C87: =Inputs!$I$68 -> PE Cell Maintenance Cycle | E87: =IF($B85="Blank",0,VLOOKUP($B85,Inputs!$C$68:$AK$129,MATCH($B87,Inputs!$C$68:$AK$68,0),FALSE)) -> 0.5936945092 | F87: =IF($B85="Blank",0,VLOOKUP($B85,Inputs!$C$68:$AK$129,MATCH($B87,Inputs!$C$68:$AK$68,0),FALSE)) -> 0.5936945092 | I87: PE Cell UNIT price Annualised Cost | J87: 0.1626560299 | K87: 0.1626560299
B88: Corp capex annuity per light | E88: =IF($B85="Blank",0,'Corp Capex Annuity calcs'!F$109) -> 11.54925178 | F88: =IF($B85="Blank",0,'Corp Capex Annuity calcs'!G$109) -> 11.45735649 | I88: Corp capex annuity per light | J88: 3.164178569 | K88: 3.139001778
B89: =Inputs!$T$68 -> Lamp Service costs Annualised | E89: =IF($B85="Blank",0,VLOOKUP($B85,Inputs!$C$68:$AK$129,MATCH($B89,Inputs!$C$68:$AK$68,0),FALSE)) -> 25.31461639 | F89: =IF($B85="Blank",0,VLOOKUP($B85,Inputs!$C$68:$AK$129,MATCH($B89,Inputs!$C$68:$AK$68,0),FALSE)) -> 25.31461639 | I89: Lamp Service costs Annualised | J89: 6.935511339 | K89: 6.935511339
B90: =Inputs!$M$68 -> PE Cell Service costs Annualised | E90: =IF($B85="Blank",0,VLOOKUP($B85,Inputs!$C$68:$AK$129,MATCH($B90,Inputs!$C$68:$AK$68,0),FALSE)) -> 0 | F90: =IF($B85="Blank",0,VLOOKUP($B85,Inputs!$C$68:$AK$129,MATCH($B90,Inputs!$C$68:$AK$68,0),FALSE)) -> 0 | I90: PE Cell Service costs Annualised | J90: 0 | K90: 0
B91: Indirect Opex | E91: =IF($B85="Blank",0,IF($B$8="Private Contract Lighting",'Opex Weighting'!D$113,'Opex Weighting'!D$111)) -> 23.13788316 | F91: =IF($B85="Blank",0,IF($B$8="Private Contract Lighting",'Opex Weighting'!E$113,'Opex Weighting'!E$111)) -> 24.14940747 | I91: Indirect Opex | J91: 6.339146071 | K91: 6.616276019
B92: Indirect Capex | E92: ='Capex Weighting'!D$115 -> 0 | F92: ='Capex Weighting'!E$114 -> 0 | I92: Indirect Capex | J92: 0 | K92: 0
B93: Overhead Costs per light | E93: =IF($B85="Blank",0,IF($B$8="Private Contract Lighting",'Building Block'!C$49,'Building Block'!C$48)) -> 28.46222504 | F93: =IF($B85="Blank",0,IF($B$8="Private Contract Lighting",'Building Block'!D$49,'Building Block'!D$48)) -> 28.40239728 | I93: Overhead Costs per light | J93: 7.797869874 | K93: 7.781478708
B94: =Inputs!$AH$68 -> Bracket UNIT price | C94: 0 | E94: =IF($B85="Blank",0,OFFSET('CAPEX Annuity calcs'!$B$9,MATCH($B85,'CAPEX Annuity calcs'!$B$9:$B$500,0)+$C94,E$6)) -> 5.324060786 | F94: =IF($B85="Blank",0,OFFSET('CAPEX Annuity calcs'!$B$9,MATCH($B85,'CAPEX Annuity calcs'!$B$9:$B$500,0)+$C94,F$6)) -> 5.324060786 | I94: Bracket UNIT price | J94: 1.458646791 | K94: 1.458646791
B95: =Inputs!$Y$68 -> CAPEX Installation costs | C95: =C94+1 -> 1 | E95: =IF($B85="Blank",0,OFFSET('CAPEX Annuity calcs'!$B$9,MATCH($B85,'CAPEX Annuity calcs'!$B$9:$B$500,0)+$C95,E$6)) -> 0 | F95: =IF($B85="Blank",0,OFFSET('CAPEX Annuity calcs'!$B$9,MATCH($B85,'CAPEX Annuity calcs'!$B$9:$B$500,0)+$C95,F$6)) -> 0 | I95: CAPEX Installation costs | J95: 0 | K95: 0
B96: =Inputs!$X$68 -> Luminaire UNIT price | C96: =C95+1 -> 2 | E96: =IF($B85="Blank",0,OFFSET('CAPEX Annuity calcs'!$B$9,MATCH($B85,'CAPEX Annuity calcs'!$B$9:$B$500,0)+$C96,E$6)) -> 14.86036865 | F96: =IF($B85="Blank",0,OFFSET('CAPEX Annuity calcs'!$B$9,MATCH($B85,'CAPEX Annuity calcs'!$B$9:$B$500,0)+$C96,F$6)) -> 14.86036865 | I96: Luminaire UNIT price | J96: 4.071333876 | K96: 4.071333876
B97: =Inputs!$Y$68 -> CAPEX Installation costs | C97: 3 | E97: =IF($B85="Blank",0,OFFSET('CAPEX Annuity calcs'!$B$9,MATCH($B85,'CAPEX Annuity calcs'!$B$9:$B$500,0)+$C97,E$6)) -> 16.77265211 | F97: =IF($B85="Blank",0,OFFSET('CAPEX Annuity calcs'!$B$9,MATCH($B85,'CAPEX Annuity calcs'!$B$9:$B$500,0)+$C97,F$6)) -> 16.77265211 | I97: CAPEX Installation costs | J97: 4.595247154 | K97: 4.595247154
E98: =SUM(E86:E97) -> 127.0894962 | F98: =SUM(F86:F97) -> 127.9492975 | J98: =ROUND(E98/J$2*100,3) -> 34.819 | K98: =ROUND(F98/K$2*100,3) -> 35.055
A100: =A85+1 -> 7 | B100: =IFERROR(VLOOKUP($A100,Inputs!$B$68:$AK$129,MATCH($B$7,Inputs!$B$68:$AK$68,0),FALSE),"Blank") -> 2x20W Fluorescent | I100: =IFERROR(VLOOKUP($A100,Inputs!$B$68:$AK$129,MATCH($B$7,Inputs!$B$68:$AK$68,0),FALSE),"Blank") -> 2x20W Fluorescent
B101: =Inputs!$R$68 -> Lamp UNIT price Annualised Cost | C101: =Inputs!$P$68 -> Lamp Maintenance cycle | E101: =IF($B100="Blank",0,VLOOKUP($B100,Inputs!$C$68:$AK$129,MATCH($B101,Inputs!$C$68:$AK$68,0),FALSE)) -> 2.01836416 | F101: =IF($B100="Blank",0,VLOOKUP($B100,Inputs!$C$68:$AK$129,MATCH($B101,Inputs!$C$68:$AK$68,0),FALSE)) -> 2.01836416 | I101: =B101 -> Lamp UNIT price Annualised Cost | J101: =IF(E101="NA","",E101/J$2*100) -> 0.5529764821 | K101: =IF(F101="NA","",F101/K$2*100) -> 0.5529764821
B102: =Inputs!$K$68 -> PE Cell UNIT price Annualised Cost | C102: =Inputs!$I$68 -> PE Cell Maintenance Cycle | E102: =IF($B100="Blank",0,VLOOKUP($B100,Inputs!$C$68:$AK$129,MATCH($B102,Inputs!$C$68:$AK$68,0),FALSE)) -> 0.5936945092 | F102: =IF($B100="Blank",0,VLOOKUP($B100,Inputs!$C$68:$AK$129,MATCH($B102,Inputs!$C$68:$AK$68,0),FALSE)) -> 0.5936945092 | I102: PE Cell UNIT price Annualised Cost | J102: 0.1626560299 | K102: 0.1626560299
B103: Corp capex annuity per light | E103: =IF($B100="Blank",0,'Corp Capex Annuity calcs'!F$109) -> 11.54925178 | F103: =IF($B100="Blank",0,'Corp Capex Annuity calcs'!G$109) -> 11.45735649 | I103: Corp capex annuity per light | J103: 3.164178569 | K103: 3.139001778
B104: =Inputs!$T$68 -> Lamp Service costs Annualised | E104: =IF($B100="Blank",0,VLOOKUP($B100,Inputs!$C$68:$AK$129,MATCH($B104,Inputs!$C$68:$AK$68,0),FALSE)) -> 25.31461639 | F104: =IF($B100="Blank",0,VLOOKUP($B100,Inputs!$C$68:$AK$129,MATCH($B104,Inputs!$C$68:$AK$68,0),FALSE)) -> 25.31461639 | I104: Lamp Service costs Annualised | J104: 6.935511339 | K104: 6.935511339
B105: =Inputs!$M$68 -> PE Cell Service costs Annualised | E105: =IF($B100="Blank",0,VLOOKUP($B100,Inputs!$C$68:$AK$129,MATCH($B105,Inputs!$C$68:$AK$68,0),FALSE)) -> 0 | F105: =IF($B100="Blank",0,VLOOKUP($B100,Inputs!$C$68:$AK$129,MATCH($B105,Inputs!$C$68:$AK$68,0),FALSE)) -> 0 | I105: PE Cell Service costs Annualised | J105: 0 | K105: 0
B106: Indirect Opex | E106: =IF($B100="Blank",0,IF($B$8="Private Contract Lighting",'Opex Weighting'!D$113,'Opex Weighting'!D$111)) -> 23.13788316 | F106: =IF($B100="Blank",0,IF($B$8="Private Contract Lighting",'Opex Weighting'!E$113,'Opex Weighting'!E$111)) -> 24.14940747 | I106: Indirect Opex | J106: 6.339146071 | K106: 6.616276019
B107: Indirect Capex | E107: ='Capex Weighting'!D$115 -> 0 | F107: ='Capex Weighting'!E$114 -> 0 | I107: Indirect Capex | J107: 0 | K107: 0
B108: Overhead Costs per light | E108: =IF($B100="Blank",0,IF($B$8="Private Contract Lighting",'Building Block'!C$49,'Building Block'!C$48)) -> 28.46222504 | F108: =IF($B100="Blank",0,IF($B$8="Private Contract Lighting",'Building Block'!D$49,'Building Block'!D$48)) -> 28.40239728 | I108: Overhead Costs per light | J108: 7.797869874 | K108: 7.781478708
B109: =Inputs!$AH$68 -> Bracket UNIT price | C109: 0 | E109: =IF($B100="Blank",0,OFFSET('CAPEX Annuity calcs'!$B$9,MATCH($B100,'CAPEX Annuity calcs'!$B$9:$B$500,0)+$C109,E$6)) -> 5.324060786 | F109: =IF($B100="Blank",0,OFFSET('CAPEX Annuity calcs'!$B$9,MATCH($B100,'CAPEX Annuity calcs'!$B$9:$B$500,0)+$C109,F$6)) -> 5.324060786 | I109: Bracket UNIT price | J109: 1.458646791 | K109: 1.458646791
B110: =Inputs!$Y$68 -> CAPEX Installation costs | C110: =C109+1 -> 1 | E110: =IF($B100="Blank",0,OFFSET('CAPEX Annuity calcs'!$B$9,MATCH($B100,'CAPEX Annuity calcs'!$B$9:$B$500,0)+$C110,E$6)) -> 0 | F110: =IF($B100="Blank",0,OFFSET('CAPEX Annuity calcs'!$B$9,MATCH($B100,'CAPEX Annuity calcs'!$B$9:$B$500,0)+$C110,F$6)) -> 0 | I110: CAPEX Installation costs | J110: 0 | K110: 0
B111: =Inputs!$X$68 -> Luminaire UNIT price | C111: =C110+1 -> 2 | E111: =IF($B100="Blank",0,OFFSET('CAPEX Annuity calcs'!$B$9,MATCH($B100,'CAPEX Annuity calcs'!$B$9:$B$500,0)+$C111,E$6)) -> 18.96557833 | F111: =IF($B100="Blank",0,OFFSET('CAPEX Annuity calcs'!$B$9,MATCH($B100,'CAPEX Annuity calcs'!$B$9:$B$500,0)+$C111,F$6)) -> 18.96557833 | I111: Luminaire UNIT price | J111: 5.196048857 | K111: 5.196048857
B112: =Inputs!$Y$68 -> CAPEX Installation costs | C112: 3 | E112: =IF($B100="Blank",0,OFFSET('CAPEX Annuity calcs'!$B$9,MATCH($B100,'CAPEX Annuity calcs'!$B$9:$B$500,0)+$C112,E$6)) -> 16.77265211 | F112: =IF($B100="Blank",0,OFFSET('CAPEX Annuity calcs'!$B$9,MATCH($B100,'CAPEX Annuity calcs'!$B$9:$B$500,0)+$C112,F$6)) -> 16.77265211 | I112: CAPEX Installation costs | J112: 4.595247154 | K112: 4.595247154
E113: =SUM(E101:E112) -> 132.1383263 | F113: =SUM(F101:F112) -> 132.9981275 | J113: =ROUND(E113/J$2*100,3) -> 36.202 | K113: =ROUND(F113/K$2*100,3) -> 36.438
A115: =A100+1 -> 8 | B115: =IFERROR(VLOOKUP($A115,Inputs!$B$68:$AK$129,MATCH($B$7,Inputs!$B$68:$AK$68,0),FALSE),"Blank") -> 2x24W Fluorescent | I115: =IFERROR(VLOOKUP($A115,Inputs!$B$68:$AK$129,MATCH($B$7,Inputs!$B$68:$AK$68,0),FALSE),"Blank") -> 2x24W Fluorescent
B116: =Inputs!$R$68 -> Lamp UNIT price Annualised Cost | C116: =Inputs!$P$68 -> Lamp Maintenance cycle | E116: =IF($B115="Blank",0,VLOOKUP($B115,Inputs!$C$68:$AK$129,MATCH($B116,Inputs!$C$68:$AK$68,0),FALSE)) -> 1.467612827 | F116: =IF($B115="Blank",0,VLOOKUP($B115,Inputs!$C$68:$AK$129,MATCH($B116,Inputs!$C$68:$AK$68,0),FALSE)) -> 1.467612827 | I116: =B116 -> Lamp UNIT price Annualised Cost | J116: =IF(E116="NA","",E116/J$2*100) -> 0.402085706 | K116: =IF(F116="NA","",F116/K$2*100) -> 0.402085706
B117: =Inputs!$K$68 -> PE Cell UNIT price Annualised Cost | C117: =Inputs!$I$68 -> PE Cell Maintenance Cycle | E117: =IF($B115="Blank",0,VLOOKUP($B115,Inputs!$C$68:$AK$129,MATCH($B117,Inputs!$C$68:$AK$68,0),FALSE)) -> 0.5936945092 | F117: =IF($B115="Blank",0,VLOOKUP($B115,Inputs!$C$68:$AK$129,MATCH($B117,Inputs!$C$68:$AK$68,0),FALSE)) -> 0.5936945092 | I117: PE Cell UNIT price Annualised Cost | J117: 0.1626560299 | K117: 0.1626560299
B118: Corp capex annuity per light | E118: =IF($B115="Blank",0,'Corp Capex Annuity calcs'!F$109) -> 11.54925178 | F118: =IF($B115="Blank",0,'Corp Capex Annuity calcs'!G$109) -> 11.45735649 | I118: Corp capex annuity per light | J118: 3.164178569 | K118: 3.139001778
B119: =Inputs!$T$68 -> Lamp Service costs Annualised | E119: =IF($B115="Blank",0,VLOOKUP($B115,Inputs!$C$68:$AK$129,MATCH($B119,Inputs!$C$68:$AK$68,0),FALSE)) -> 25.31461639 | F119: =IF($B115="Blank",0,VLOOKUP($B115,Inputs!$C$68:$AK$129,MATCH($B119,Inputs!$C$68:$AK$68,0),FALSE)) -> 25.31461639 | I119: Lamp Service costs Annualised | J119: 6.935511339 | K119: 6.935511339
B120: =Inputs!$M$68 -> PE Cell Service costs Annualised | E120: =IF($B115="Blank",0,VLOOKUP($B115,Inputs!$C$68:$AK$129,MATCH($B120,Inputs!$C$68:$AK$68,0),FALSE)) -> 0 | F120: =IF($B115="Blank",0,VLOOKUP($B115,Inputs!$C$68:$AK$129,MATCH($B120,Inputs!$C$68:$AK$68,0),FALSE)) -> 0 | I120: PE Cell Service costs Annualised | J120: 0 | K120: 0
B121: Indirect Opex | E121: =IF($B115="Blank",0,IF($B$8="Private Contract Lighting",'Opex Weighting'!D$113,'Opex Weighting'!D$111)) -> 23.13788316 | F121: =IF($B115="Blank",0,IF($B$8="Private Contract Lighting",'Opex Weighting'!E$113,'Opex Weighting'!E$111)) -> 24.14940747 | I121: Indirect Opex | J121: 6.339146071 | K121: 6.616276019
B122: Indirect Capex | E122: ='Capex Weighting'!D$115 -> 0 | F122: ='Capex Weighting'!E$114 -> 0 | I122: Indirect Capex | J122: 0 | K122: 0
B123: Overhead Costs per light | E123: =IF($B115="Blank",0,IF($B$8="Private Contract Lighting",'Building Block'!C$49,'Building Block'!C$48)) -> 28.46222504 | F123: =IF($B115="Blank",0,IF($B$8="Private Contract Lighting",'Building Block'!D$49,'Building Block'!D$48)) -> 28.40239728 | I123: Overhead Costs per light | J123: 7.797869874 | K123: 7.781478708
B124: =Inputs!$AH$68 -> Bracket UNIT price | C124: 0 | E124: =IF($B115="Blank",0,OFFSET('CAPEX Annuity calcs'!$B$9,MATCH($B115,'CAPEX Annuity calcs'!$B$9:$B$500,0)+$C124,E$6)) -> 5.324060786 | F124: =IF($B115="Blank",0,OFFSET('CAPEX Annuity calcs'!$B$9,MATCH($B115,'CAPEX Annuity calcs'!$B$9:$B$500,0)+$C124,F$6)) -> 5.324060786 | I124: Bracket UNIT price | J124: 1.458646791 | K124: 1.458646791
B125: =Inputs!$Y$68 -> CAPEX Installation costs | C125: =C124+1 -> 1 | E125: =IF($B115="Blank",0,OFFSET('CAPEX Annuity calcs'!$B$9,MATCH($B115,'CAPEX Annuity calcs'!$B$9:$B$500,0)+$C125,E$6)) -> 0 | F125: =IF($B115="Blank",0,OFFSET('CAPEX Annuity calcs'!$B$9,MATCH($B115,'CAPEX Annuity calcs'!$B$9:$B$500,0)+$C125,F$6)) -> 0 | I125: CAPEX Installation costs | J125: 0 | K125: 0
B126: =Inputs!$X$68 -> Luminaire UNIT price | C126: =C125+1 -> 2 | E126: =IF($B115="Blank",0,OFFSET('CAPEX Annuity calcs'!$B$9,MATCH($B115,'CAPEX Annuity calcs'!$B$9:$B$500,0)+$C126,E$6)) -> 19.34299841 | F126: =IF($B115="Blank",0,OFFSET('CAPEX Annuity calcs'!$B$9,MATCH($B115,'CAPEX Annuity calcs'!$B$9:$B$500,0)+$C126,F$6)) -> 19.34299841 | I126: Luminaire UNIT price | J126: 5.29945162 | K126: 5.29945162
B127: =Inputs!$Y$68 -> CAPEX Installation costs | C127: 3 | E127: =IF($B115="Blank",0,OFFSET('CAPEX Annuity calcs'!$B$9,MATCH($B115,'CAPEX Annuity calcs'!$B$9:$B$500,0)+$C127,E$6)) -> 16.77265211 | F127: =IF($B115="Blank",0,OFFSET('CAPEX Annuity calcs'!$B$9,MATCH($B115,'CAPEX Annuity calcs'!$B$9:$B$500,0)+$C127,F$6)) -> 16.77265211 | I127: CAPEX Installation costs | J127: 4.595247154 | K127: 4.595247154
E128: =SUM(E116:E127) -> 131.964995 | F128: =SUM(F116:F127) -> 132.8247963 | J128: =ROUND(E128/J$2*100,3) -> 36.155 | K128: =ROUND(F128/K$2*100,3) -> 36.39
A130: =A115+1 -> 9 | B130: =IFERROR(VLOOKUP($A130,Inputs!$B$68:$AK$129,MATCH($B$7,Inputs!$B$68:$AK$68,0),FALSE),"Blank") -> T5 Fluorescent 2 x 24W | I130: =IFERROR(VLOOKUP($A130,Inputs!$B$68:$AK$129,MATCH($B$7,Inputs!$B$68:$AK$68,0),FALSE),"Blank") -> T5 Fluorescent 2 x 24W
B131: =Inputs!$R$68 -> Lamp UNIT price Annualised Cost | C131: =Inputs!$P$68 -> Lamp Maintenance cycle | E131: =IF($B130="Blank",0,VLOOKUP($B130,Inputs!$C$68:$AK$129,MATCH($B131,Inputs!$C$68:$AK$68,0),FALSE)) -> 2.01836416 | F131: =IF($B130="Blank",0,VLOOKUP($B130,Inputs!$C$68:$AK$129,MATCH($B131,Inputs!$C$68:$AK$68,0),FALSE)) -> 2.01836416 | I131: =B131 -> Lamp UNIT price Annualised Cost | J131: =IF(E131="NA","",E131/J$2*100) -> 0.5529764821 | K131: =IF(F131="NA","",F131/K$2*100) -> 0.5529764821
B132: =Inputs!$K$68 -> PE Cell UNIT price Annualised Cost | C132: =Inputs!$I$68 -> PE Cell Maintenance Cycle | E132: =IF($B130="Blank",0,VLOOKUP($B130,Inputs!$C$68:$AK$129,MATCH($B132,Inputs!$C$68:$AK$68,0),FALSE)) -> 0.5936945092 | F132: =IF($B130="Blank",0,VLOOKUP($B130,Inputs!$C$68:$AK$129,MATCH($B132,Inputs!$C$68:$AK$68,0),FALSE)) -> 0.5936945092 | I132: PE Cell UNIT price Annualised Cost | J132: 0.1626560299 | K132: 0.1626560299
B133: Corp capex annuity per light | E133: =IF($B130="Blank",0,'Corp Capex Annuity calcs'!F$109) -> 11.54925178 | F133: =IF($B130="Blank",0,'Corp Capex Annuity calcs'!G$109) -> 11.45735649 | I133: Corp capex annuity per light | J133: 3.164178569 | K133: 3.139001778
B134: =Inputs!$T$68 -> Lamp Service costs Annualised | E134: =IF($B130="Blank",0,VLOOKUP($B130,Inputs!$C$68:$AK$129,MATCH($B134,Inputs!$C$68:$AK$68,0),FALSE)) -> 25.31461639 | F134: =IF($B130="Blank",0,VLOOKUP($B130,Inputs!$C$68:$AK$129,MATCH($B134,Inputs!$C$68:$AK$68,0),FALSE)) -> 25.31461639 | I134: Lamp Service costs Annualised | J134: 6.935511339 | K134: 6.935511339
B135: =Inputs!$M$68 -> PE Cell Service costs Annualised | E135: =IF($B130="Blank",0,VLOOKUP($B130,Inputs!$C$68:$AK$129,MATCH($B135,Inputs!$C$68:$AK$68,0),FALSE)) -> 0 | F135: =IF($B130="Blank",0,VLOOKUP($B130,Inputs!$C$68:$AK$129,MATCH($B135,Inputs!$C$68:$AK$68,0),FALSE)) -> 0 | I135: PE Cell Service costs Annualised | J135: 0 | K135: 0
B136: Indirect Opex | E136: =IF($B130="Blank",0,IF($B$8="Private Contract Lighting",'Opex Weighting'!D$113,'Opex Weighting'!D$111)) -> 23.13788316 | F136: =IF($B130="Blank",0,IF($B$8="Private Contract Lighting",'Opex Weighting'!E$113,'Opex Weighting'!E$111)) -> 24.14940747 | I136: Indirect Opex | J136: 6.339146071 | K136: 6.616276019
B137: Indirect Capex | E137: ='Capex Weighting'!D$115 -> 0 | F137: ='Capex Weighting'!E$114 -> 0 | I137: Indirect Capex | J137: 0 | K137: 0
B138: Overhead Costs per light | E138: =IF($B130="Blank",0,IF($B$8="Private Contract Lighting",'Building Block'!C$49,'Building Block'!C$48)) -> 28.46222504 | F138: =IF($B130="Blank",0,IF($B$8="Private Contract Lighting",'Building Block'!D$49,'Building Block'!D$48)) -> 28.40239728 | I138: Overhead Costs per light | J138: 7.797869874 | K138: 7.781478708
B139: =Inputs!$AH$68 -> Bracket UNIT price | C139: 0 | E139: =IF($B130="Blank",0,OFFSET('CAPEX Annuity calcs'!$B$9,MATCH($B130,'CAPEX Annuity calcs'!$B$9:$B$500,0)+$C139,E$6)) -> 5.324060786 | F139: =IF($B130="Blank",0,OFFSET('CAPEX Annuity calcs'!$B$9,MATCH($B130,'CAPEX Annuity calcs'!$B$9:$B$500,0)+$C139,F$6)) -> 5.324060786 | I139: Bracket UNIT price | J139: 1.458646791 | K139: 1.458646791
B140: =Inputs!$Y$68 -> CAPEX Installation costs | C140: =C139+1 -> 1 | E140: =IF($B130="Blank",0,OFFSET('CAPEX Annuity calcs'!$B$9,MATCH($B130,'CAPEX Annuity calcs'!$B$9:$B$500,0)+$C140,E$6)) -> 0 | F140: =IF($B130="Blank",0,OFFSET('CAPEX Annuity calcs'!$B$9,MATCH($B130,'CAPEX Annuity calcs'!$B$9:$B$500,0)+$C140,F$6)) -> 0 | I140: CAPEX Installation costs | J140: 0 | K140: 0
B141: =Inputs!$X$68 -> Luminaire UNIT price | C141: =C140+1 -> 2 | E141: =IF($B130="Blank",0,OFFSET('CAPEX Annuity calcs'!$B$9,MATCH($B130,'CAPEX Annuity calcs'!$B$9:$B$500,0)+$C141,E$6)) -> 18.96557833 | F141: =IF($B130="Blank",0,OFFSET('CAPEX Annuity calcs'!$B$9,MATCH($B130,'CAPEX Annuity calcs'!$B$9:$B$500,0)+$C141,F$6)) -> 18.96557833 | I141: Luminaire UNIT price | J141: 5.196048857 | K141: 5.196048857
B142: =Inputs!$Y$68 -> CAPEX Installation costs | C142: 3 | E142: =IF($B130="Blank",0,OFFSET('CAPEX Annuity calcs'!$B$9,MATCH($B130,'CAPEX Annuity calcs'!$B$9:$B$500,0)+$C142,E$6)) -> 16.77265211 | F142: =IF($B130="Blank",0,OFFSET('CAPEX Annuity calcs'!$B$9,MATCH($B130,'CAPEX Annuity calcs'!$B$9:$B$500,0)+$C142,F$6)) -> 16.77265211 | I142: CAPEX Installation costs | J142: 4.595247154 | K142: 4.595247154
E143: =SUM(E131:E142) -> 132.1383263 | F143: =SUM(F131:F142) -> 132.9981275 | J143: =ROUND(E143/J$2*100,3) -> 36.202 | K143: =ROUND(F143/K$2*100,3) -> 36.438
A145: =A130+1 -> 10 | B145: =IFERROR(VLOOKUP($A145,Inputs!$B$68:$AK$129,MATCH($B$7,Inputs!$B$68:$AK$68,0),FALSE),"Blank") -> 20 Fluorescent 1X20FL | I145: =IFERROR(VLOOKUP($A145,Inputs!$B$68:$AK$129,MATCH($B$7,Inputs!$B$68:$AK$68,0),FALSE),"Blank") -> 20 Fluorescent 1X20FL
B146: =Inputs!$R$68 -> Lamp UNIT price Annualised Cost | C146: =Inputs!$P$68 -> Lamp Maintenance cycle | E146: =IF($B145="Blank",0,VLOOKUP($B145,Inputs!$C$68:$AK$129,MATCH($B146,Inputs!$C$68:$AK$68,0),FALSE)) -> 1.00918208 | F146: =IF($B145="Blank",0,VLOOKUP($B145,Inputs!$C$68:$AK$129,MATCH($B146,Inputs!$C$68:$AK$68,0),FALSE)) -> 1.00918208 | I146: =B146 -> Lamp UNIT price Annualised Cost | J146: =IF(E146="NA","",E146/J$2*100) -> 0.276488241 | K146: =IF(F146="NA","",F146/K$2*100) -> 0.276488241
B147: =Inputs!$K$68 -> PE Cell UNIT price Annualised Cost | C147: =Inputs!$I$68 -> PE Cell Maintenance Cycle | E147: =IF($B145="Blank",0,VLOOKUP($B145,Inputs!$C$68:$AK$129,MATCH($B147,Inputs!$C$68:$AK$68,0),FALSE)) -> 0.5936945092 | F147: =IF($B145="Blank",0,VLOOKUP($B145,Inputs!$C$68:$AK$129,MATCH($B147,Inputs!$C$68:$AK$68,0),FALSE)) -> 0.5936945092 | I147: PE Cell UNIT price Annualised Cost | J147: 0.1626560299 | K147: 0.1626560299
B148: Corp capex annuity per light | E148: =IF($B145="Blank",0,'Corp Capex Annuity calcs'!F$109) -> 11.54925178 | F148: =IF($B145="Blank",0,'Corp Capex Annuity calcs'!G$109) -> 11.45735649 | I148: Corp capex annuity per light | J148: 3.164178569 | K148: 3.139001778
B149: =Inputs!$T$68 -> Lamp Service costs Annualised | E149: =IF($B145="Blank",0,VLOOKUP($B145,Inputs!$C$68:$AK$129,MATCH($B149,Inputs!$C$68:$AK$68,0),FALSE)) -> 25.31461639 | F149: =IF($B145="Blank",0,VLOOKUP($B145,Inputs!$C$68:$AK$129,MATCH($B149,Inputs!$C$68:$AK$68,0),FALSE)) -> 25.31461639 | I149: Lamp Service costs Annualised | J149: 6.935511339 | K149: 6.935511339
B150: =Inputs!$M$68 -> PE Cell Service costs Annualised | E150: =IF($B145="Blank",0,VLOOKUP($B145,Inputs!$C$68:$AK$129,MATCH($B150,Inputs!$C$68:$AK$68,0),FALSE)) -> 0 | F150: =IF($B145="Blank",0,VLOOKUP($B145,Inputs!$C$68:$AK$129,MATCH($B150,Inputs!$C$68:$AK$68,0),FALSE)) -> 0 | I150: PE Cell Service costs Annualised | J150: 0 | K150: 0
B151: Indirect Opex | E151: =IF($B145="Blank",0,IF($B$8="Private Contract Lighting",'Opex Weighting'!D$113,'Opex Weighting'!D$111)) -> 23.13788316 | F151: =IF($B145="Blank",0,IF($B$8="Private Contract Lighting",'Opex Weighting'!E$113,'Opex Weighting'!E$111)) -> 24.14940747 | I151: Indirect Opex | J151: 6.339146071 | K151: 6.616276019
B152: Indirect Capex | E152: ='Capex Weighting'!D$115 -> 0 | F152: ='Capex Weighting'!E$114 -> 0 | I152: Indirect Capex | J152: 0 | K152: 0
B153: Overhead Costs per light | E153: =IF($B145="Blank",0,IF($B$8="Private Contract Lighting",'Building Block'!C$49,'Building Block'!C$48)) -> 28.46222504 | F153: =IF($B145="Blank",0,IF($B$8="Private Contract Lighting",'Building Block'!D$49,'Building Block'!D$48)) -> 28.40239728 | I153: Overhead Costs per light | J153: 7.797869874 | K153: 7.781478708
B154: =Inputs!$AH$68 -> Bracket UNIT price | C154: 0 | E154: =IF($B145="Blank",0,OFFSET('CAPEX Annuity calcs'!$B$9,MATCH($B145,'CAPEX Annuity calcs'!$B$9:$B$500,0)+$C154,E$6)) -> 5.324060786 | F154: =IF($B145="Blank",0,OFFSET('CAPEX Annuity calcs'!$B$9,MATCH($B145,'CAPEX Annuity calcs'!$B$9:$B$500,0)+$C154,F$6)) -> 5.324060786 | I154: Bracket UNIT price | J154: 1.458646791 | K154: 1.458646791
B155: =Inputs!$Y$68 -> CAPEX Installation costs | C155: =C154+1 -> 1 | E155: =IF($B145="Blank",0,OFFSET('CAPEX Annuity calcs'!$B$9,MATCH($B145,'CAPEX Annuity calcs'!$B$9:$B$500,0)+$C155,E$6)) -> 0 | F155: =IF($B145="Blank",0,OFFSET('CAPEX Annuity calcs'!$B$9,MATCH($B145,'CAPEX Annuity calcs'!$B$9:$B$500,0)+$C155,F$6)) -> 0 | I155: CAPEX Installation costs | J155: 0 | K155: 0
B156: =Inputs!$X$68 -> Luminaire UNIT price | C156: =C155+1 -> 2 | E156: =IF($B145="Blank",0,OFFSET('CAPEX Annuity calcs'!$B$9,MATCH($B145,'CAPEX Annuity calcs'!$B$9:$B$500,0)+$C156,E$6)) -> 18.96557833 | F156: =IF($B145="Blank",0,OFFSET('CAPEX Annuity calcs'!$B$9,MATCH($B145,'CAPEX Annuity calcs'!$B$9:$B$500,0)+$C156,F$6)) -> 18.96557833 | I156: Luminaire UNIT price | J156: 5.196048857 | K156: 5.196048857
B157: =Inputs!$Y$68 -> CAPEX Installation costs | C157: 3 | E157: =IF($B145="Blank",0,OFFSET('CAPEX Annuity calcs'!$B$9,MATCH($B145,'CAPEX Annuity calcs'!$B$9:$B$500,0)+$C157,E$6)) -> 16.77265211 | F157: =IF($B145="Blank",0,OFFSET('CAPEX Annuity calcs'!$B$9,MATCH($B145,'CAPEX Annuity calcs'!$B$9:$B$500,0)+$C157,F$6)) -> 16.77265211 | I157: CAPEX Installation costs | J157: 4.595247154 | K157: 4.595247154
E158: =SUM(E146:E157) -> 131.1291442 | F158: =SUM(F146:F157) -> 131.9889454 | J158: =ROUND(E158/J$2*100,3) -> 35.926 | K158: =ROUND(F158/K$2*100,3) -> 36.161
A160: =A145+1 -> 11 | B160: =IFERROR(VLOOKUP($A160,Inputs!$B$68:$AK$129,MATCH($B$7,Inputs!$B$68:$AK$68,0),FALSE),"Blank") -> 2x40W Fluorescent | I160: =IFERROR(VLOOKUP($A160,Inputs!$B$68:$AK$129,MATCH($B$7,Inputs!$B$68:$AK$68,0),FALSE),"Blank") -> 2x40W Fluorescent
B161: =Inputs!$R$68 -> Lamp UNIT price Annualised Cost | C161: =Inputs!$P$68 -> Lamp Maintenance cycle | E161: =IF($B160="Blank",0,VLOOKUP($B160,Inputs!$C$68:$AK$129,MATCH($B161,Inputs!$C$68:$AK$68,0),FALSE)) -> 2.149487585 | F161: =IF($B160="Blank",0,VLOOKUP($B160,Inputs!$C$68:$AK$129,MATCH($B161,Inputs!$C$68:$AK$68,0),FALSE)) -> 2.149487585 | I161: =B161 -> Lamp UNIT price Annualised Cost | J161: =IF(E161="NA","",E161/J$2*100) -> 0.5889007083 | K161: =IF(F161="NA","",F161/K$2*100) -> 0.5889007083
B162: =Inputs!$K$68 -> PE Cell UNIT price Annualised Cost | C162: =Inputs!$I$68 -> PE Cell Maintenance Cycle | E162: =IF($B160="Blank",0,VLOOKUP($B160,Inputs!$C$68:$AK$129,MATCH($B162,Inputs!$C$68:$AK$68,0),FALSE)) -> 0.5936945092 | F162: =IF($B160="Blank",0,VLOOKUP($B160,Inputs!$C$68:$AK$129,MATCH($B162,Inputs!$C$68:$AK$68,0),FALSE)) -> 0.5936945092 | I162: PE Cell UNIT price Annualised Cost | J162: 0.1626560299 | K162: 0.1626560299
B163: Corp capex annuity per light | E163: =IF($B160="Blank",0,'Corp Capex Annuity calcs'!F$109) -> 11.54925178 | F163: =IF($B160="Blank",0,'Corp Capex Annuity calcs'!G$109) -> 11.45735649 | I163: Corp capex annuity per light | J163: 3.164178569 | K163: 3.139001778
B164: =Inputs!$T$68 -> Lamp Service costs Annualised | E164: =IF($B160="Blank",0,VLOOKUP($B160,Inputs!$C$68:$AK$129,MATCH($B164,Inputs!$C$68:$AK$68,0),FALSE)) -> 25.31461639 | F164: =IF($B160="Blank",0,VLOOKUP($B160,Inputs!$C$68:$AK$129,MATCH($B164,Inputs!$C$68:$AK$68,0),FALSE)) -> 25.31461639 | I164: Lamp Service costs Annualised | J164: 6.935511339 | K164: 6.935511339
B165: =Inputs!$M$68 -> PE Cell Service costs Annualised | E165: =IF($B160="Blank",0,VLOOKUP($B160,Inputs!$C$68:$AK$129,MATCH($B165,Inputs!$C$68:$AK$68,0),FALSE)) -> 0 | F165: =IF($B160="Blank",0,VLOOKUP($B160,Inputs!$C$68:$AK$129,MATCH($B165,Inputs!$C$68:$AK$68,0),FALSE)) -> 0 | I165: PE Cell Service costs Annualised | J165: 0 | K165: 0
B166: Indirect Opex | E166: =IF($B160="Blank",0,IF($B$8="Private Contract Lighting",'Opex Weighting'!D$113,'Opex Weighting'!D$111)) -> 23.13788316 | F166: =IF($B160="Blank",0,IF($B$8="Private Contract Lighting",'Opex Weighting'!E$113,'Opex Weighting'!E$111)) -> 24.14940747 | I166: Indirect Opex | J166: 6.339146071 | K166: 6.616276019
B167: Indirect Capex | E167: ='Capex Weighting'!D$115 -> 0 | F167: ='Capex Weighting'!E$114 -> 0 | I167: Indirect Capex | J167: 0 | K167: 0
B168: Overhead Costs per light | E168: =IF($B160="Blank",0,IF($B$8="Private Contract Lighting",'Building Block'!C$49,'Building Block'!C$48)) -> 28.46222504 | F168: =IF($B160="Blank",0,IF($B$8="Private Contract Lighting",'Building Block'!D$49,'Building Block'!D$48)) -> 28.40239728 | I168: Overhead Costs per light | J168: 7.797869874 | K168: 7.781478708
B169: =Inputs!$AH$68 -> Bracket UNIT price | C169: 0 | E169: =IF($B160="Blank",0,OFFSET('CAPEX Annuity calcs'!$B$9,MATCH($B160,'CAPEX Annuity calcs'!$B$9:$B$500,0)+$C169,E$6)) -> 5.324060786 | F169: =IF($B160="Blank",0,OFFSET('CAPEX Annuity calcs'!$B$9,MATCH($B160,'CAPEX Annuity calcs'!$B$9:$B$500,0)+$C169,F$6)) -> 5.324060786 | I169: Bracket UNIT price | J169: 1.458646791 | K169: 1.458646791
B170: =Inputs!$Y$68 -> CAPEX Installation costs | C170: =C169+1 -> 1 | E170: =IF($B160="Blank",0,OFFSET('CAPEX Annuity calcs'!$B$9,MATCH($B160,'CAPEX Annuity calcs'!$B$9:$B$500,0)+$C170,E$6)) -> 0 | F170: =IF($B160="Blank",0,OFFSET('CAPEX Annuity calcs'!$B$9,MATCH($B160,'CAPEX Annuity calcs'!$B$9:$B$500,0)+$C170,F$6)) -> 0 | I170: CAPEX Installation costs | J170: 0 | K170: 0
B171: =Inputs!$X$68 -> Luminaire UNIT price | C171: =C170+1 -> 2 | E171: =IF($B160="Blank",0,OFFSET('CAPEX Annuity calcs'!$B$9,MATCH($B160,'CAPEX Annuity calcs'!$B$9:$B$500,0)+$C171,E$6)) -> 14.86036865 | F171: =IF($B160="Blank",0,OFFSET('CAPEX Annuity calcs'!$B$9,MATCH($B160,'CAPEX Annuity calcs'!$B$9:$B$500,0)+$C171,F$6)) -> 14.86036865 | I171: Luminaire UNIT price | J171: 4.071333876 | K171: 4.071333876
B172: =Inputs!$Y$68 -> CAPEX Installation costs | C172: 3 | E172: =IF($B160="Blank",0,OFFSET('CAPEX Annuity calcs'!$B$9,MATCH($B160,'CAPEX Annuity calcs'!$B$9:$B$500,0)+$C172,E$6)) -> 16.77265211 | F172: =IF($B160="Blank",0,OFFSET('CAPEX Annuity calcs'!$B$9,MATCH($B160,'CAPEX Annuity calcs'!$B$9:$B$500,0)+$C172,F$6)) -> 16.77265211 | I172: CAPEX Installation costs | J172: 4.595247154 | K172: 4.595247154
E173: =SUM(E161:E172) -> 128.16424 | F173: =SUM(F161:F172) -> 129.0240413 | J173: =ROUND(E173/J$2*100,3) -> 35.113 | K173: =ROUND(F173/K$2*100,3) -> 35.349
A175: =A160+1 -> 12 | B175: =IFERROR(VLOOKUP($A175,Inputs!$B$68:$AK$129,MATCH($B$7,Inputs!$B$68:$AK$68,0),FALSE),"Blank") -> 3x40W Fluorescent | I175: =IFERROR(VLOOKUP($A175,Inputs!$B$68:$AK$129,MATCH($B$7,Inputs!$B$68:$AK$68,0),FALSE),"Blank") -> 3x40W Fluorescent
B176: =Inputs!$R$68 -> Lamp UNIT price Annualised Cost | C176: =Inputs!$P$68 -> Lamp Maintenance cycle | E176: =IF($B175="Blank",0,VLOOKUP($B175,Inputs!$C$68:$AK$129,MATCH($B176,Inputs!$C$68:$AK$68,0),FALSE)) -> 3.224231378 | F176: =IF($B175="Blank",0,VLOOKUP($B175,Inputs!$C$68:$AK$129,MATCH($B176,Inputs!$C$68:$AK$68,0),FALSE)) -> 3.224231378 | I176: =B176 -> Lamp UNIT price Annualised Cost | J176: =IF(E176="NA","",E176/J$2*100) -> 0.8833510624 | K176: =IF(F176="NA","",F176/K$2*100) -> 0.8833510624
B177: =Inputs!$K$68 -> PE Cell UNIT price Annualised Cost | C177: =Inputs!$I$68 -> PE Cell Maintenance Cycle | E177: =IF($B175="Blank",0,VLOOKUP($B175,Inputs!$C$68:$AK$129,MATCH($B177,Inputs!$C$68:$AK$68,0),FALSE)) -> 1.729160415 | F177: =IF($B175="Blank",0,VLOOKUP($B175,Inputs!$C$68:$AK$129,MATCH($B177,Inputs!$C$68:$AK$68,0),FALSE)) -> 1.729160415 | I177: PE Cell UNIT price Annualised Cost | J177: 0.4737425794 | K177: 0.4737425794
B178: Corp capex annuity per light | E178: =IF($B175="Blank",0,'Corp Capex Annuity calcs'!F$109) -> 11.54925178 | F178: =IF($B175="Blank",0,'Corp Capex Annuity calcs'!G$109) -> 11.45735649 | I178: Corp capex annuity per light | J178: 3.164178569 | K178: 3.139001778
B179: =Inputs!$T$68 -> Lamp Service costs Annualised | E179: =IF($B175="Blank",0,VLOOKUP($B175,Inputs!$C$68:$AK$129,MATCH($B179,Inputs!$C$68:$AK$68,0),FALSE)) -> 36.63957635 | F179: =IF($B175="Blank",0,VLOOKUP($B175,Inputs!$C$68:$AK$129,MATCH($B179,Inputs!$C$68:$AK$68,0),FALSE)) -> 36.63957635 | I179: Lamp Service costs Annualised | J179: 10.0382401 | K179: 10.0382401
B180: =Inputs!$M$68 -> PE Cell Service costs Annualised | E180: =IF($B175="Blank",0,VLOOKUP($B175,Inputs!$C$68:$AK$129,MATCH($B180,Inputs!$C$68:$AK$68,0),FALSE)) -> 0 | F180: =IF($B175="Blank",0,VLOOKUP($B175,Inputs!$C$68:$AK$129,MATCH($B180,Inputs!$C$68:$AK$68,0),FALSE)) -> 0 | I180: PE Cell Service costs Annualised | J180: 0 | K180: 0
B181: Indirect Opex | E181: =IF($B175="Blank",0,IF($B$8="Private Contract Lighting",'Opex Weighting'!D$113,'Opex Weighting'!D$111)) -> 23.13788316 | F181: =IF($B175="Blank",0,IF($B$8="Private Contract Lighting",'Opex Weighting'!E$113,'Opex Weighting'!E$111)) -> 24.14940747 | I181: Indirect Opex | J181: 6.339146071 | K181: 6.616276019
B182: Indirect Capex | E182: ='Capex Weighting'!D$115 -> 0 | F182: ='Capex Weighting'!E$114 -> 0 | I182: Indirect Capex | J182: 0 | K182: 0
B183: Overhead Costs per light | E183: =IF($B175="Blank",0,IF($B$8="Private Contract Lighting",'Building Block'!C$49,'Building Block'!C$48)) -> 28.46222504 | F183: =IF($B175="Blank",0,IF($B$8="Private Contract Lighting",'Building Block'!D$49,'Building Block'!D$48)) -> 28.40239728 | I183: Overhead Costs per light | J183: 7.797869874 | K183: 7.781478708
B184: =Inputs!$AH$68 -> Bracket UNIT price | C184: 0 | E184: =IF($B175="Blank",0,OFFSET('CAPEX Annuity calcs'!$B$9,MATCH($B175,'CAPEX Annuity calcs'!$B$9:$B$500,0)+$C184,E$6)) -> 5.324060786 | F184: =IF($B175="Blank",0,OFFSET('CAPEX Annuity calcs'!$B$9,MATCH($B175,'CAPEX Annuity calcs'!$B$9:$B$500,0)+$C184,F$6)) -> 5.324060786 | I184: Bracket UNIT price | J184: 1.458646791 | K184: 1.458646791
B185: =Inputs!$Y$68 -> CAPEX Installation costs | C185: =C184+1 -> 1 | E185: =IF($B175="Blank",0,OFFSET('CAPEX Annuity calcs'!$B$9,MATCH($B175,'CAPEX Annuity calcs'!$B$9:$B$500,0)+$C185,E$6)) -> 0 | F185: =IF($B175="Blank",0,OFFSET('CAPEX Annuity calcs'!$B$9,MATCH($B175,'CAPEX Annuity calcs'!$B$9:$B$500,0)+$C185,F$6)) -> 0 | I185: CAPEX Installation costs | J185: 0 | K185: 0
B186: =Inputs!$X$68 -> Luminaire UNIT price | C186: =C185+1 -> 2 | E186: =IF($B175="Blank",0,OFFSET('CAPEX Annuity calcs'!$B$9,MATCH($B175,'CAPEX Annuity calcs'!$B$9:$B$500,0)+$C186,E$6)) -> 14.86036865 | F186: =IF($B175="Blank",0,OFFSET('CAPEX Annuity calcs'!$B$9,MATCH($B175,'CAPEX Annuity calcs'!$B$9:$B$500,0)+$C186,F$6)) -> 14.86036865 | I186: Luminaire UNIT price | J186: 4.071333876 | K186: 4.071333876
B187: =Inputs!$Y$68 -> CAPEX Installation costs | C187: 3 | E187: =IF($B175="Blank",0,OFFSET('CAPEX Annuity calcs'!$B$9,MATCH($B175,'CAPEX Annuity calcs'!$B$9:$B$500,0)+$C187,E$6)) -> 36.24131454 | F187: =IF($B175="Blank",0,OFFSET('CAPEX Annuity calcs'!$B$9,MATCH($B175,'CAPEX Annuity calcs'!$B$9:$B$500,0)+$C187,F$6)) -> 36.24131454 | I187: CAPEX Installation costs | J187: 9.929127272 | K187: 9.929127272
E188: =SUM(E176:E187) -> 161.1680721 | F188: =SUM(F176:F187) -> 162.0278734 | J188: =ROUND(E188/J$2*100,3) -> 44.156 | K188: =ROUND(F188/K$2*100,3) -> 44.391
A190: =A175+1 -> 13 | B190: =IFERROR(VLOOKUP($A190,Inputs!$B$68:$AK$129,MATCH($B$7,Inputs!$B$68:$AK$68,0),FALSE),"Blank") -> 4x20 Fluorescent | I190: =IFERROR(VLOOKUP($A190,Inputs!$B$68:$AK$129,MATCH($B$7,Inputs!$B$68:$AK$68,0),FALSE),"Blank") -> 4x20 Fluorescent
B191: =Inputs!$R$68 -> Lamp UNIT price Annualised Cost | C191: =Inputs!$P$68 -> Lamp Maintenance cycle | E191: =IF($B190="Blank",0,VLOOKUP($B190,Inputs!$C$68:$AK$129,MATCH($B191,Inputs!$C$68:$AK$68,0),FALSE)) -> 4.036728319 | F191: =IF($B190="Blank",0,VLOOKUP($B190,Inputs!$C$68:$AK$129,MATCH($B191,Inputs!$C$68:$AK$68,0),FALSE)) -> 4.036728319 | I191: =B191 -> Lamp UNIT price Annualised Cost | J191: =IF(E191="NA","",E191/J$2*100) -> 1.105952964 | K191: =IF(F191="NA","",F191/K$2*100) -> 1.105952964
B192: =Inputs!$K$68 -> PE Cell UNIT price Annualised Cost | C192: =Inputs!$I$68 -> PE Cell Maintenance Cycle | E192: =IF($B190="Blank",0,VLOOKUP($B190,Inputs!$C$68:$AK$129,MATCH($B192,Inputs!$C$68:$AK$68,0),FALSE)) -> 0.5936945092 | F192: =IF($B190="Blank",0,VLOOKUP($B190,Inputs!$C$68:$AK$129,MATCH($B192,Inputs!$C$68:$AK$68,0),FALSE)) -> 0.5936945092 | I192: PE Cell UNIT price Annualised Cost | J192: 0.1626560299 | K192: 0.1626560299
B193: Corp capex annuity per light | E193: =IF($B190="Blank",0,'Corp Capex Annuity calcs'!F$109) -> 11.54925178 | F193: =IF($B190="Blank",0,'Corp Capex Annuity calcs'!G$109) -> 11.45735649 | I193: Corp capex annuity per light | J193: 3.164178569 | K193: 3.139001778
B194: =Inputs!$T$68 -> Lamp Service costs Annualised | E194: =IF($B190="Blank",0,VLOOKUP($B190,Inputs!$C$68:$AK$129,MATCH($B194,Inputs!$C$68:$AK$68,0),FALSE)) -> 25.31461639 | F194: =IF($B190="Blank",0,VLOOKUP($B190,Inputs!$C$68:$AK$129,MATCH($B194,Inputs!$C$68:$AK$68,0),FALSE)) -> 25.31461639 | I194: Lamp Service costs Annualised | J194: 6.935511339 | K194: 6.935511339
B195: =Inputs!$M$68 -> PE Cell Service costs Annualised | E195: =IF($B190="Blank",0,VLOOKUP($B190,Inputs!$C$68:$AK$129,MATCH($B195,Inputs!$C$68:$AK$68,0),FALSE)) -> 0 | F195: =IF($B190="Blank",0,VLOOKUP($B190,Inputs!$C$68:$AK$129,MATCH($B195,Inputs!$C$68:$AK$68,0),FALSE)) -> 0 | I195: PE Cell Service costs Annualised | J195: 0 | K195: 0
B196: Indirect Opex | E196: =IF($B190="Blank",0,IF($B$8="Private Contract Lighting",'Opex Weighting'!D$113,'Opex Weighting'!D$111)) -> 23.13788316 | F196: =IF($B190="Blank",0,IF($B$8="Private Contract Lighting",'Opex Weighting'!E$113,'Opex Weighting'!E$111)) -> 24.14940747 | I196: Indirect Opex | J196: 6.339146071 | K196: 6.616276019
B197: Indirect Capex | E197: ='Capex Weighting'!D$115 -> 0 | F197: ='Capex Weighting'!E$114 -> 0 | I197: Indirect Capex | J197: 0 | K197: 0
B198: Overhead Costs per light | E198: =IF($B190="Blank",0,IF($B$8="Private Contract Lighting",'Building Block'!C$49,'Building Block'!C$48)) -> 28.46222504 | F198: =IF($B190="Blank",0,IF($B$8="Private Contract Lighting",'Building Block'!D$49,'Building Block'!D$48)) -> 28.40239728 | I198: Overhead Costs per light | J198: 7.797869874 | K198: 7.781478708
B199: =Inputs!$AH$68 -> Bracket UNIT price | C199: 0 | E199: =IF($B190="Blank",0,OFFSET('CAPEX Annuity calcs'!$B$9,MATCH($B190,'CAPEX Annuity calcs'!$B$9:$B$500,0)+$C199,E$6)) -> 5.324060786 | F199: =IF($B190="Blank",0,OFFSET('CAPEX Annuity calcs'!$B$9,MATCH($B190,'CAPEX Annuity calcs'!$B$9:$B$500,0)+$C199,F$6)) -> 5.324060786 | I199: Bracket UNIT price | J199: 1.458646791 | K199: 1.458646791
B200: =Inputs!$Y$68 -> CAPEX Installation costs | C200: =C199+1 -> 1 | E200: =IF($B190="Blank",0,OFFSET('CAPEX Annuity calcs'!$B$9,MATCH($B190,'CAPEX Annuity calcs'!$B$9:$B$500,0)+$C200,E$6)) -> 0 | F200: =IF($B190="Blank",0,OFFSET('CAPEX Annuity calcs'!$B$9,MATCH($B190,'CAPEX Annuity calcs'!$B$9:$B$500,0)+$C200,F$6)) -> 0 | I200: CAPEX Installation costs | J200: 0 | K200: 0
B201: =Inputs!$X$68 -> Luminaire UNIT price | C201: =C200+1 -> 2 | E201: =IF($B190="Blank",0,OFFSET('CAPEX Annuity calcs'!$B$9,MATCH($B190,'CAPEX Annuity calcs'!$B$9:$B$500,0)+$C201,E$6)) -> 18.96557833 | F201: =IF($B190="Blank",0,OFFSET('CAPEX Annuity calcs'!$B$9,MATCH($B190,'CAPEX Annuity calcs'!$B$9:$B$500,0)+$C201,F$6)) -> 18.96557833 | I201: Luminaire UNIT price | J201: 5.196048857 | K201: 5.196048857
B202: =Inputs!$Y$68 -> CAPEX Installation costs | C202: 3 | E202: =IF($B190="Blank",0,OFFSET('CAPEX Annuity calcs'!$B$9,MATCH($B190,'CAPEX Annuity calcs'!$B$9:$B$500,0)+$C202,E$6)) -> 16.77265211 | F202: =IF($B190="Blank",0,OFFSET('CAPEX Annuity calcs'!$B$9,MATCH($B190,'CAPEX Annuity calcs'!$B$9:$B$500,0)+$C202,F$6)) -> 16.77265211 | I202: CAPEX Installation costs | J202: 4.595247154 | K202: 4.595247154
E203: =SUM(E191:E202) -> 134.1566904 | F203: =SUM(F191:F202) -> 135.0164917 | J203: =ROUND(E203/J$2*100,3) -> 36.755 | K203: =ROUND(F203/K$2*100,3) -> 36.991
A205: =A190+1 -> 14 | B205: =IFERROR(VLOOKUP($A205,Inputs!$B$68:$AK$129,MATCH($B$7,Inputs!$B$68:$AK$68,0),FALSE),"Blank") -> 4x40W Fluorescent | I205: =IFERROR(VLOOKUP($A205,Inputs!$B$68:$AK$129,MATCH($B$7,Inputs!$B$68:$AK$68,0),FALSE),"Blank") -> 4x40W Fluorescent
B206: =Inputs!$R$68 -> Lamp UNIT price Annualised Cost | C206: =Inputs!$P$68 -> Lamp Maintenance cycle | E206: =IF($B205="Blank",0,VLOOKUP($B205,Inputs!$C$68:$AK$129,MATCH($B206,Inputs!$C$68:$AK$68,0),FALSE)) -> 4.298975171 | F206: =IF($B205="Blank",0,VLOOKUP($B205,Inputs!$C$68:$AK$129,MATCH($B206,Inputs!$C$68:$AK$68,0),FALSE)) -> 4.298975171 | I206: =B206 -> Lamp UNIT price Annualised Cost | J206: =IF(E206="NA","",E206/J$2*100) -> 1.177801417 | K206: =IF(F206="NA","",F206/K$2*100) -> 1.177801417
B207: =Inputs!$K$68 -> PE Cell UNIT price Annualised Cost | C207: =Inputs!$I$68 -> PE Cell Maintenance Cycle | E207: =IF($B205="Blank",0,VLOOKUP($B205,Inputs!$C$68:$AK$129,MATCH($B207,Inputs!$C$68:$AK$68,0),FALSE)) -> 1.729160415 | F207: =IF($B205="Blank",0,VLOOKUP($B205,Inputs!$C$68:$AK$129,MATCH($B207,Inputs!$C$68:$AK$68,0),FALSE)) -> 1.729160415 | I207: PE Cell UNIT price Annualised Cost | J207: 0.4737425794 | K207: 0.4737425794
B208: Corp capex annuity per light | E208: =IF($B205="Blank",0,'Corp Capex Annuity calcs'!F$109) -> 11.54925178 | F208: =IF($B205="Blank",0,'Corp Capex Annuity calcs'!G$109) -> 11.45735649 | I208: Corp capex annuity per light | J208: 3.164178569 | K208: 3.139001778
B209: =Inputs!$T$68 -> Lamp Service costs Annualised | E209: =IF($B205="Blank",0,VLOOKUP($B205,Inputs!$C$68:$AK$129,MATCH($B209,Inputs!$C$68:$AK$68,0),FALSE)) -> 36.63957635 | F209: =IF($B205="Blank",0,VLOOKUP($B205,Inputs!$C$68:$AK$129,MATCH($B209,Inputs!$C$68:$AK$68,0),FALSE)) -> 36.63957635 | I209: Lamp Service costs Annualised | J209: 10.0382401 | K209: 10.0382401
B210: =Inputs!$M$68 -> PE Cell Service costs Annualised | E210: =IF($B205="Blank",0,VLOOKUP($B205,Inputs!$C$68:$AK$129,MATCH($B210,Inputs!$C$68:$AK$68,0),FALSE)) -> 0 | F210: =IF($B205="Blank",0,VLOOKUP($B205,Inputs!$C$68:$AK$129,MATCH($B210,Inputs!$C$68:$AK$68,0),FALSE)) -> 0 | I210: PE Cell Service costs Annualised | J210: 0 | K210: 0
B211: Indirect Opex | E211: =IF($B205="Blank",0,IF($B$8="Private Contract Lighting",'Opex Weighting'!D$113,'Opex Weighting'!D$111)) -> 23.13788316 | F211: =IF($B205="Blank",0,IF($B$8="Private Contract Lighting",'Opex Weighting'!E$113,'Opex Weighting'!E$111)) -> 24.14940747 | I211: Indirect Opex | J211: 6.339146071 | K211: 6.616276019
B212: Indirect Capex | E212: ='Capex Weighting'!D$115 -> 0 | F212: ='Capex Weighting'!E$114 -> 0 | I212: Indirect Capex | J212: 0 | K212: 0
B213: Overhead Costs per light | E213: =IF($B205="Blank",0,IF($B$8="Private Contract Lighting",'Building Block'!C$49,'Building Block'!C$48)) -> 28.46222504 | F213: =IF($B205="Blank",0,IF($B$8="Private Contract Lighting",'Building Block'!D$49,'Building Block'!D$48)) -> 28.40239728 | I213: Overhead Costs per light | J213: 7.797869874 | K213: 7.781478708
B214: =Inputs!$AH$68 -> Bracket UNIT price | C214: 0 | E214: =IF($B205="Blank",0,OFFSET('CAPEX Annuity calcs'!$B$9,MATCH($B205,'CAPEX Annuity calcs'!$B$9:$B$500,0)+$C214,E$6)) -> 5.324060786 | F214: =IF($B205="Blank",0,OFFSET('CAPEX Annuity calcs'!$B$9,MATCH($B205,'CAPEX Annuity calcs'!$B$9:$B$500,0)+$C214,F$6)) -> 5.324060786 | I214: Bracket UNIT price | J214: 1.458646791 | K214: 1.458646791
B215: =Inputs!$Y$68 -> CAPEX Installation costs | C215: =C214+1 -> 1 | E215: =IF($B205="Blank",0,OFFSET('CAPEX Annuity calcs'!$B$9,MATCH($B205,'CAPEX Annuity calcs'!$B$9:$B$500,0)+$C215,E$6)) -> 0 | F215: =IF($B205="Blank",0,OFFSET('CAPEX Annuity calcs'!$B$9,MATCH($B205,'CAPEX Annuity calcs'!$B$9:$B$500,0)+$C215,F$6)) -> 0 | I215: CAPEX Installation costs | J215: 0 | K215: 0
... 507 more rows

Sheet CAPEX Annuity calcs
B5: Public Lighting Capital Cost | E5: Base Costs $2016/17 | N5: Public Lighting Capital Cost | O5: Annuity calculation
B7: Light Description | C7: Major/Minor size | D7: Useful Life | E7: 2017-18 | F7: 2018-19 | G7: 2019-20 | H7: 2020-21 | I7: 2021-22 | J7: 2022-23 | K7: 2023-24 | N7: Light Description | O7: 2017-18 | P7: 2018-19 | Q7: 2019-20 | R7: 2020-21 | S7: 2021-22 | T7: 2022-23 | U7: 2023-24
A9: 1 | B9: 32W Compact Fluorescent | C9: RLMIN | N9: 32W Compact Fluorescent
B10: Bracket UNIT price | D10: 40 | E10: =SUMIF(Inputs!$C$69:$C$124,B9,Inputs!$AH$69:$AH$124) -> 72.54943407 | F10: =E10 -> 72.54943407 | N10: =B10 -> Bracket UNIT price | O10: =-PMT(Inputs!$D$4,$D10,E10) -> 3.767394364 | P10: =-PMT(Inputs!$D$4,$D10,F10) -> 3.767394364
B11: CAPEX Installation costs | C11: Bracket (40yrs) | D11: 40 | F11: 0 | N11: =B11 -> CAPEX Installation costs | O11: =-PMT(Inputs!$D$4,$D11,E11) -> 0 | P11: =-PMT(Inputs!$D$4,$D11,F11) -> 0
B12: Luminaire UNIT price | D12: 20 | E12: =SUMIF(Inputs!$C$69:$C$124,B9,Inputs!$X$69:$X$124) -> 192.9308936 | F12: 192.9308936 | N12: =B12 -> Luminaire UNIT price | O12: =-PMT(Inputs!$D$4,$D12,E12) -> 14.43069516 | P12: =-PMT(Inputs!$D$4,$D12,F12) -> 14.43069516
B13: CAPEX Installation costs | C13: Luminaire (20yrs) | D13: 20 | E13: =SUMIF(Inputs!$C$69:$C$124,B9,Inputs!$Y$69:$Y$124) -> 224.2416407 | F13: 224.2416407 | N13: =B13 -> CAPEX Installation costs | O13: =-PMT(Inputs!$D$4,$D13,E13) -> 16.77265211 | P13: =-PMT(Inputs!$D$4,$D13,F13) -> 16.77265211
A16: =A9+1 -> 2 | B16: 42W Compact Fluorescent | C16: RLMIN | N16: 42W Compact Fluorescent
B17: Bracket UNIT price | D17: 40 | E17: =SUMIF(Inputs!$C$69:$C$124,B16,Inputs!$AH$69:$AH$124) -> 74.25555028 | F17: =E17 -> 74.25555028 | N17: =B17 -> Bracket UNIT price | O17: =-PMT(Inputs!$D$4,$D17,E17) -> 3.85599068 | P17: =-PMT(Inputs!$D$4,$D17,F17) -> 3.85599068
B18: CAPEX Installation costs | C18: Bracket (40yrs) | D18: 40 | F18: 0 | N18: =B18 -> CAPEX Installation costs | O18: =-PMT(Inputs!$D$4,$D18,E18) -> 0 | P18: =-PMT(Inputs!$D$4,$D18,F18) -> 0
B19: Luminaire UNIT price | D19: 20 | E19: =SUMIF(Inputs!$C$69:$C$124,B16,Inputs!$X$69:$X$124) -> 192.9308936 | F19: 192.9308936 | N19: =B19 -> Luminaire UNIT price | O19: =-PMT(Inputs!$D$4,$D19,E19) -> 14.43069516 | P19: =-PMT(Inputs!$D$4,$D19,F19) -> 14.43069516
B20: CAPEX Installation costs | C20: Luminaire (20yrs) | D20: 20 | E20: =SUMIF(Inputs!$C$69:$C$124,B16,Inputs!$Y$69:$Y$124) -> 224.2416407 | F20: 224.2416407 | N20: =B20 -> CAPEX Installation costs | O20: =-PMT(Inputs!$D$4,$D20,E20) -> 16.77265211 | P20: =-PMT(Inputs!$D$4,$D20,F20) -> 16.77265211
A23: =A16+1 -> 3 | B23: 42W Compact Fluorescent - Bottom Pole Entry | C23: RLMIN | N23: 42W Compact Fluorescent - Bottom Pole Entry
B24: Bracket UNIT price | D24: 40 | E24: =SUMIF(Inputs!$C$69:$C$124,B23,Inputs!$AH$69:$AH$124) -> 74.25555028 | F24: =E24 -> 74.25555028 | N24: =B24 -> Bracket UNIT price | O24: =-PMT(Inputs!$D$4,$D24,E24) -> 3.85599068 | P24: =-PMT(Inputs!$D$4,$D24,F24) -> 3.85599068
B25: CAPEX Installation costs | C25: Bracket (40yrs) | D25: 40 | F25: 0 | N25: =B25 -> CAPEX Installation costs | O25: =-PMT(Inputs!$D$4,$D25,E25) -> 0 | P25: =-PMT(Inputs!$D$4,$D25,F25) -> 0
B26: Luminaire UNIT price | D26: 20 | E26: =SUMIF(Inputs!$C$69:$C$124,B23,Inputs!$X$69:$X$124) -> 192.9308936 | F26: 192.9308936 | N26: =B26 -> Luminaire UNIT price | O26: =-PMT(Inputs!$D$4,$D26,E26) -> 14.43069516 | P26: =-PMT(Inputs!$D$4,$D26,F26) -> 14.43069516
B27: CAPEX Installation costs | C27: Luminaire (20yrs) | D27: 20 | E27: =SUMIF(Inputs!$C$69:$C$124,B23,Inputs!$Y$69:$Y$124) -> 224.2416407 | F27: 224.2416407 | N27: =B27 -> CAPEX Installation costs | O27: =-PMT(Inputs!$D$4,$D27,E27) -> 16.77265211 | P27: =-PMT(Inputs!$D$4,$D27,F27) -> 16.77265211
A30: =A23+1 -> 4 | B30: 2x24W Compact Fluorescent | C30: RLMIN | N30: 2x24W Compact Fluorescent
B31: Bracket UNIT price | D31: 40 | E31: =SUMIF(Inputs!$C$69:$C$124,B30,Inputs!$AH$69:$AH$124) -> 74.24900716 | F31: =E31 -> 74.24900716 | N31: =B31 -> Bracket UNIT price | O31: =-PMT(Inputs!$D$4,$D31,E31) -> 3.855650905 | P31: =-PMT(Inputs!$D$4,$D31,F31) -> 3.855650905
B32: CAPEX Installation costs | C32: Bracket (40yrs) | D32: 40 | F32: 0 | N32: =B32 -> CAPEX Installation costs | O32: =-PMT(Inputs!$D$4,$D32,E32) -> 0 | P32: =-PMT(Inputs!$D$4,$D32,F32) -> 0
B33: Luminaire UNIT price | D33: 20 | E33: =SUMIF(Inputs!$C$69:$C$124,B30,Inputs!$X$69:$X$124) -> 192.9308936 | F33: 192.9308936 | N33: =B33 -> Luminaire UNIT price | O33: =-PMT(Inputs!$D$4,$D33,E33) -> 14.43069516 | P33: =-PMT(Inputs!$D$4,$D33,F33) -> 14.43069516
B34: CAPEX Installation costs | C34: Luminaire (20yrs) | D34: 20 | E34: =SUMIF(Inputs!$C$69:$C$124,B30,Inputs!$Y$69:$Y$124) -> 224.2416407 | F34: 224.2416407 | N34: =B34 -> CAPEX Installation costs | O34: =-PMT(Inputs!$D$4,$D34,E34) -> 16.77265211 | P34: =-PMT(Inputs!$D$4,$D34,F34) -> 16.77265211
A37: =A30+1 -> 5 | B37: 1x20W Fluorescent | C37: RLMIN | N37: 1x20W Fluorescent
B38: Bracket UNIT price | D38: 40 | E38: =SUMIF(Inputs!$C$69:$C$124,B37,Inputs!$AH$69:$AH$124) -> 102.5264572 | F38: =E38 -> 102.5264572 | N38: =B38 -> Bracket UNIT price | O38: =-PMT(Inputs!$D$4,$D38,E38) -> 5.324060786 | P38: =-PMT(Inputs!$D$4,$D38,F38) -> 5.324060786
B39: CAPEX Installation costs | C39: Bracket (40yrs) | D39: 40 | F39: 0 | N39: =B39 -> CAPEX Installation costs | O39: =-PMT(Inputs!$D$4,$D39,E39) -> 0 | P39: =-PMT(Inputs!$D$4,$D39,F39) -> 0
B40: Luminaire UNIT price | D40: 20 | E40: =SUMIF(Inputs!$C$69:$C$124,B37,Inputs!$X$69:$X$124) -> 253.5599244 | F40: 253.5599244 | N40: =B40 -> Luminaire UNIT price | O40: =-PMT(Inputs!$D$4,$D40,E40) -> 18.96557833 | P40: =-PMT(Inputs!$D$4,$D40,F40) -> 18.96557833
B41: CAPEX Installation costs | C41: Luminaire (20yrs) | D41: 20 | E41: =SUMIF(Inputs!$C$69:$C$124,B37,Inputs!$Y$69:$Y$124) -> 224.2416407 | F41: 224.2416407 | N41: =B41 -> CAPEX Installation costs | O41: =-PMT(Inputs!$D$4,$D41,E41) -> 16.77265211 | P41: =-PMT(Inputs!$D$4,$D41,F41) -> 16.77265211
A44: =A37+1 -> 6 | B44: 1x40W Fluorescent | C44: RLMIN | N44: 1x40W Fluorescent
B45: Bracket UNIT price | D45: 40 | E45: =SUMIF(Inputs!$C$69:$C$124,B44,Inputs!$AH$69:$AH$124) -> 102.5264572 | F45: =E45 -> 102.5264572 | N45: =B45 -> Bracket UNIT price | O45: =-PMT(Inputs!$D$4,$D45,E45) -> 5.324060786 | P45: =-PMT(Inputs!$D$4,$D45,F45) -> 5.324060786
B46: CAPEX Installation costs | C46: Bracket (40yrs) | D46: 40 | F46: 0 | N46: =B46 -> CAPEX Installation costs | O46: =-PMT(Inputs!$D$4,$D46,E46) -> 0 | P46: =-PMT(Inputs!$D$4,$D46,F46) -> 0
B47: Luminaire UNIT price | D47: 20 | E47: =SUMIF(Inputs!$C$69:$C$124,B44,Inputs!$X$69:$X$124) -> 198.6754048 | F47: 198.6754048 | N47: =B47 -> Luminaire UNIT price | O47: =-PMT(Inputs!$D$4,$D47,E47) -> 14.86036865 | P47: =-PMT(Inputs!$D$4,$D47,F47) -> 14.86036865
B48: CAPEX Installation costs | C48: Luminaire (20yrs) | D48: 20 | E48: =SUMIF(Inputs!$C$69:$C$124,B44,Inputs!$Y$69:$Y$124) -> 224.2416407 | F48: 224.2416407 | N48: =B48 -> CAPEX Installation costs | O48: =-PMT(Inputs!$D$4,$D48,E48) -> 16.77265211 | P48: =-PMT(Inputs!$D$4,$D48,F48) -> 16.77265211
A51: =A44+1 -> 7 | B51: 2x20W Fluorescent | C51: RLMIN | N51: 2x20W Fluorescent
B52: Bracket UNIT price | D52: 40 | E52: =SUMIF(Inputs!$C$69:$C$124,B51,Inputs!$AH$69:$AH$124) -> 102.5264572 | F52: =E52 -> 102.5264572 | N52: =B52 -> Bracket UNIT price | O52: =-PMT(Inputs!$D$4,$D52,E52) -> 5.324060786 | P52: =-PMT(Inputs!$D$4,$D52,F52) -> 5.324060786
B53: CAPEX Installation costs | C53: Bracket (40yrs) | D53: 40 | F53: 0 | N53: =B53 -> CAPEX Installation costs | O53: =-PMT(Inputs!$D$4,$D53,E53) -> 0 | P53: =-PMT(Inputs!$D$4,$D53,F53) -> 0
B54: Luminaire UNIT price | D54: 20 | E54: =SUMIF(Inputs!$C$69:$C$124,B51,Inputs!$X$69:$X$124) -> 253.5599244 | F54: 253.5599244 | N54: =B54 -> Luminaire UNIT price | O54: =-PMT(Inputs!$D$4,$D54,E54) -> 18.96557833 | P54: =-PMT(Inputs!$D$4,$D54,F54) -> 18.96557833
B55: CAPEX Installation costs | C55: Luminaire (20yrs) | D55: 20 | E55: =SUMIF(Inputs!$C$69:$C$124,B51,Inputs!$Y$69:$Y$124) -> 224.2416407 | F55: 224.2416407 | N55: =B55 -> CAPEX Installation costs | O55: =-PMT(Inputs!$D$4,$D55,E55) -> 16.77265211 | P55: =-PMT(Inputs!$D$4,$D55,F55) -> 16.77265211
A58: =A51+1 -> 8 | B58: 2x24W Fluorescent | C58: RLMIN | N58: 2x24W Fluorescent
B59: Bracket UNIT price | D59: 40 | E59: =SUMIF(Inputs!$C$69:$C$124,B58,Inputs!$AH$69:$AH$124) -> 102.5264572 | F59: =E59 -> 102.5264572 | N59: =B59 -> Bracket UNIT price | O59: =-PMT(Inputs!$D$4,$D59,E59) -> 5.324060786 | P59: =-PMT(Inputs!$D$4,$D59,F59) -> 5.324060786
B60: CAPEX Installation costs | C60: Bracket (40yrs) | D60: 40 | F60: 0 | N60: =B60 -> CAPEX Installation costs | O60: =-PMT(Inputs!$D$4,$D60,E60) -> 0 | P60: =-PMT(Inputs!$D$4,$D60,F60) -> 0
B61: Luminaire UNIT price | D61: 20 | E61: =SUMIF(Inputs!$C$69:$C$124,B58,Inputs!$X$69:$X$124) -> 258.6058348 | F61: 258.6058348 | N61: =B61 -> Luminaire UNIT price | O61: =-PMT(Inputs!$D$4,$D61,E61) -> 19.34299841 | P61: =-PMT(Inputs!$D$4,$D61,F61) -> 19.34299841
B62: CAPEX Installation costs | C62: Luminaire (20yrs) | D62: 20 | E62: =SUMIF(Inputs!$C$69:$C$124,B58,Inputs!$Y$69:$Y$124) -> 224.2416407 | F62: 224.2416407 | N62: =B62 -> CAPEX Installation costs | O62: =-PMT(Inputs!$D$4,$D62,E62) -> 16.77265211 | P62: =-PMT(Inputs!$D$4,$D62,F62) -> 16.77265211
A65: =A58+1 -> 9 | B65: T5 Fluorescent 2 x 24W | C65: RLMIN | N65: T5 Fluorescent 2 x 24W
B66: Bracket UNIT price | D66: 40 | E66: =SUMIF(Inputs!$C$69:$C$124,B65,Inputs!$AH$69:$AH$124) -> 102.5264572 | F66: =E66 -> 102.5264572 | N66: =B66 -> Bracket UNIT price | O66: =-PMT(Inputs!$D$4,$D66,E66) -> 5.324060786 | P66: =-PMT(Inputs!$D$4,$D66,F66) -> 5.324060786
B67: CAPEX Installation costs | C67: Bracket (40yrs) | D67: 40 | F67: 0 | N67: =B67 -> CAPEX Installation costs | O67: =-PMT(Inputs!$D$4,$D67,E67) -> 0 | P67: =-PMT(Inputs!$D$4,$D67,F67) -> 0
B68: Luminaire UNIT price | D68: 20 | E68: =SUMIF(Inputs!$C$69:$C$124,B65,Inputs!$X$69:$X$124) -> 253.5599244 | F68: 253.5599244 | N68: =B68 -> Luminaire UNIT price | O68: =-PMT(Inputs!$D$4,$D68,E68) -> 18.96557833 | P68: =-PMT(Inputs!$D$4,$D68,F68) -> 18.96557833
B69: CAPEX Installation costs | C69: Luminaire (20yrs) | D69: 20 | E69: =SUMIF(Inputs!$C$69:$C$124,B65,Inputs!$Y$69:$Y$124) -> 224.2416407 | F69: 224.2416407 | N69: =B69 -> CAPEX Installation costs | O69: =-PMT(Inputs!$D$4,$D69,E69) -> 16.77265211 | P69: =-PMT(Inputs!$D$4,$D69,F69) -> 16.77265211
A72: =A65+1 -> 10 | B72: 20 Fluorescent 1X20FL | C72: RLMIN | N72: 20 Fluorescent 1X20FL
B73: Bracket UNIT price | D73: 40 | E73: =SUMIF(Inputs!$C$69:$C$124,B72,Inputs!$AH$69:$AH$124) -> 102.5264572 | F73: =E73 -> 102.5264572 | N73: =B73 -> Bracket UNIT price | O73: =-PMT(Inputs!$D$4,$D73,E73) -> 5.324060786 | P73: =-PMT(Inputs!$D$4,$D73,F73) -> 5.324060786
B74: CAPEX Installation costs | C74: Bracket (40yrs) | D74: 40 | F74: 0 | N74: =B74 -> CAPEX Installation costs | O74: =-PMT(Inputs!$D$4,$D74,E74) -> 0 | P74: =-PMT(Inputs!$D$4,$D74,F74) -> 0
B75: Luminaire UNIT price | D75: 20 | E75: =SUMIF(Inputs!$C$69:$C$124,B72,Inputs!$X$69:$X$124) -> 253.5599244 | F75: 253.5599244 | N75: =B75 -> Luminaire UNIT price | O75: =-PMT(Inputs!$D$4,$D75,E75) -> 18.96557833 | P75: =-PMT(Inputs!$D$4,$D75,F75) -> 18.96557833
B76: CAPEX Installation costs | C76: Luminaire (20yrs) | D76: 20 | E76: =SUMIF(Inputs!$C$69:$C$124,B72,Inputs!$Y$69:$Y$124) -> 224.2416407 | F76: 224.2416407 | N76: =B76 -> CAPEX Installation costs | O76: =-PMT(Inputs!$D$4,$D76,E76) -> 16.77265211 | P76: =-PMT(Inputs!$D$4,$D76,F76) -> 16.77265211
A79: =A72+1 -> 11 | B79: 2x40W Fluorescent | C79: RLMIN | N79: 2x40W Fluorescent
B80: Bracket UNIT price | D80: 40 | E80: =SUMIF(Inputs!$C$69:$C$124,B79,Inputs!$AH$69:$AH$124) -> 102.5264572 | F80: =E80 -> 102.5264572 | N80: =B80 -> Bracket UNIT price | O80: =-PMT(Inputs!$D$4,$D80,E80) -> 5.324060786 | P80: =-PMT(Inputs!$D$4,$D80,F80) -> 5.324060786
B81: CAPEX Installation costs | C81: Bracket (40yrs) | D81: 40 | F81: 0 | N81: =B81 -> CAPEX Installation costs | O81: =-PMT(Inputs!$D$4,$D81,E81) -> 0 | P81: =-PMT(Inputs!$D$4,$D81,F81) -> 0
B82: Luminaire UNIT price | D82: 20 | E82: =SUMIF(Inputs!$C$69:$C$124,B79,Inputs!$X$69:$X$124) -> 198.6754048 | F82: 198.6754048 | N82: =B82 -> Luminaire UNIT price | O82: =-PMT(Inputs!$D$4,$D82,E82) -> 14.86036865 | P82: =-PMT(Inputs!$D$4,$D82,F82) -> 14.86036865
B83: CAPEX Installation costs | C83: Luminaire (20yrs) | D83: 20 | E83: =SUMIF(Inputs!$C$69:$C$124,B79,Inputs!$Y$69:$Y$124) -> 224.2416407 | F83: 224.2416407 | N83: =B83 -> CAPEX Installation costs | O83: =-PMT(Inputs!$D$4,$D83,E83) -> 16.77265211 | P83: =-PMT(Inputs!$D$4,$D83,F83) -> 16.77265211
A86: =A79+1 -> 12 | B86: 3x40W Fluorescent | C86: RLMAJ | N86: 3x40W Fluorescent
B87: Bracket UNIT price | D87: 40 | E87: =SUMIF(Inputs!$C$69:$C$124,B86,Inputs!$AH$69:$AH$124) -> 102.5264572 | F87: =E87 -> 102.5264572 | N87: =B87 -> Bracket UNIT price | O87: =-PMT(Inputs!$D$4,$D87,E87) -> 5.324060786 | P87: =-PMT(Inputs!$D$4,$D87,F87) -> 5.324060786
B88: CAPEX Installation costs | C88: Bracket (40yrs) | D88: 40 | F88: 0 | N88: =B88 -> CAPEX Installation costs | O88: =-PMT(Inputs!$D$4,$D88,E88) -> 0 | P88: =-PMT(Inputs!$D$4,$D88,F88) -> 0
B89: Luminaire UNIT price | D89: 20 | E89: =SUMIF(Inputs!$C$69:$C$124,B86,Inputs!$X$69:$X$124) -> 198.6754048 | F89: 198.6754048 | N89: =B89 -> Luminaire UNIT price | O89: =-PMT(Inputs!$D$4,$D89,E89) -> 14.86036865 | P89: =-PMT(Inputs!$D$4,$D89,F89) -> 14.86036865
B90: CAPEX Installation costs | C90: Luminaire (20yrs) | D90: 20 | E90: =SUMIF(Inputs!$C$69:$C$124,B86,Inputs!$Y$69:$Y$124) -> 484.5275382 | F90: 484.5275382 | N90: =B90 -> CAPEX Installation costs | O90: =-PMT(Inputs!$D$4,$D90,E90) -> 36.24131454 | P90: =-PMT(Inputs!$D$4,$D90,F90) -> 36.24131454
A93: =A86+1 -> 13 | B93: 4x20 Fluorescent | C93: RLMIN | N93: 4x20 Fluorescent
B94: Bracket UNIT price | D94: 40 | E94: =SUMIF(Inputs!$C$69:$C$124,B93,Inputs!$AH$69:$AH$124) -> 102.5264572 | F94: =E94 -> 102.5264572 | N94: =B94 -> Bracket UNIT price | O94: =-PMT(Inputs!$D$4,$D94,E94) -> 5.324060786 | P94: =-PMT(Inputs!$D$4,$D94,F94) -> 5.324060786
B95: CAPEX Installation costs | C95: Bracket (40yrs) | D95: 40 | F95: 0 | N95: =B95 -> CAPEX Installation costs | O95: =-PMT(Inputs!$D$4,$D95,E95) -> 0 | P95: =-PMT(Inputs!$D$4,$D95,F95) -> 0
B96: Luminaire UNIT price | D96: 20 | E96: =SUMIF(Inputs!$C$69:$C$124,B93,Inputs!$X$69:$X$124) -> 253.5599244 | F96: 253.5599244 | N96: =B96 -> Luminaire UNIT price | O96: =-PMT(Inputs!$D$4,$D96,E96) -> 18.96557833 | P96: =-PMT(Inputs!$D$4,$D96,F96) -> 18.96557833
B97: CAPEX Installation costs | C97: Luminaire (20yrs) | D97: 20 | E97: =SUMIF(Inputs!$C$69:$C$124,B93,Inputs!$Y$69:$Y$124) -> 224.2416407 | F97: 224.2416407 | N97: =B97 -> CAPEX Installation costs | O97: =-PMT(Inputs!$D$4,$D97,E97) -> 16.77265211 | P97: =-PMT(Inputs!$D$4,$D97,F97) -> 16.77265211
A100: =A93+1 -> 14 | B100: 4x40W Fluorescent | C100: RLMAJ | N100: 4x40W Fluorescent
B101: Bracket UNIT price | D101: 40 | E101: =SUMIF(Inputs!$C$69:$C$124,B100,Inputs!$AH$69:$AH$124) -> 102.5264572 | F101: =E101 -> 102.5264572 | N101: =B101 -> Bracket UNIT price | O101: =-PMT(Inputs!$D$4,$D101,E101) -> 5.324060786 | P101: =-PMT(Inputs!$D$4,$D101,F101) -> 5.324060786
B102: CAPEX Installation costs | C102: Bracket (40yrs) | D102: 40 | F102: 0 | N102: =B102 -> CAPEX Installation costs | O102: =-PMT(Inputs!$D$4,$D102,E102) -> 0 | P102: =-PMT(Inputs!$D$4,$D102,F102) -> 0
B103: Luminaire UNIT price | D103: 20 | E103: =SUMIF(Inputs!$C$69:$C$124,B100,Inputs!$X$69:$X$124) -> 253.5599244 | F103: 253.5599244 | N103: =B103 -> Luminaire UNIT price | O103: =-PMT(Inputs!$D$4,$D103,E103) -> 18.96557833 | P103: =-PMT(Inputs!$D$4,$D103,F103) -> 18.96557833
B104: CAPEX Installation costs | C104: Luminaire (20yrs) | D104: 20 | E104: =SUMIF(Inputs!$C$69:$C$124,B100,Inputs!$Y$69:$Y$124) -> 484.5275382 | F104: 484.5275382 | N104: =B104 -> CAPEX Installation costs | O104: =-PMT(Inputs!$D$4,$D104,E104) -> 36.24131454 | P104: =-PMT(Inputs!$D$4,$D104,F104) -> 36.24131454
A107: =A100+1 -> 15 | B107: 100W Sodium Vapour | C107: RLMAJ | N107: 100W Sodium Vapour
B108: Bracket UNIT price | D108: 40 | E108: =SUMIF(Inputs!$C$69:$C$124,B107,Inputs!$AH$69:$AH$124) -> 93.01362477 | F108: =E108 -> 93.01362477 | N108: =B108 -> Bracket UNIT price | O108: =-PMT(Inputs!$D$4,$D108,E108) -> 4.830072215 | P108: =-PMT(Inputs!$D$4,$D108,F108) -> 4.830072215
B109: CAPEX Installation costs | C109: Bracket (40yrs) | D109: 40 | F109: 0 | N109: =B109 -> CAPEX Installation costs | O109: =-PMT(Inputs!$D$4,$D109,E109) -> 0 | P109: =-PMT(Inputs!$D$4,$D109,F109) -> 0
B110: Luminaire UNIT price | D110: 20 | E110: =SUMIF(Inputs!$C$69:$C$124,B107,Inputs!$X$69:$X$124) -> 158.2551685 | F110: 158.2551685 | N110: =B110 -> Luminaire UNIT price | O110: =-PMT(Inputs!$D$4,$D110,E110) -> 11.8370472 | P110: =-PMT(Inputs!$D$4,$D110,F110) -> 11.8370472
B111: CAPEX Installation costs | C111: Luminaire (20yrs) | D111: 20 | E111: =SUMIF(Inputs!$C$69:$C$124,B107,Inputs!$Y$69:$Y$124) -> 484.5275382 | F111: 484.5275382 | N111: =B111 -> CAPEX Installation costs | O111: =-PMT(Inputs!$D$4,$D111,E111) -> 36.24131454 | P111: =-PMT(Inputs!$D$4,$D111,F111) -> 36.24131454
A114: =A107+1 -> 16 | B114: 150W Sodium Vapour | C114: RLMAJ | N114: 150W Sodium Vapour
B115: Bracket UNIT price | D115: 40 | E115: =SUMIF(Inputs!$C$69:$C$124,B114,Inputs!$AH$69:$AH$124) -> 160.1121861 | F115: =E115 -> 160.1121861 | N115: =B115 -> Bracket UNIT price | O115: =-PMT(Inputs!$D$4,$D115,E115) -> 8.314410102 | P115: =-PMT(Inputs!$D$4,$D115,F115) -> 8.314410102
B116: CAPEX Installation costs | C116: Bracket (40yrs) | D116: 40 | F116: 0 | N116: =B116 -> CAPEX Installation costs | O116: =-PMT(Inputs!$D$4,$D116,E116) -> 0 | P116: =-PMT(Inputs!$D$4,$D116,F116) -> 0
B117: Luminaire UNIT price | D117: 20 | E117: =SUMIF(Inputs!$C$69:$C$124,B114,Inputs!$X$69:$X$124) -> 221.4912359 | F117: 221.4912359 | N117: =B117 -> Luminaire UNIT price | O117: =-PMT(Inputs!$D$4,$D117,E117) -> 16.56692946 | P117: =-PMT(Inputs!$D$4,$D117,F117) -> 16.56692946
B118: CAPEX Installation costs | C118: Luminaire (20yrs) | D118: 20 | E118: =SUMIF(Inputs!$C$69:$C$124,B114,Inputs!$Y$69:$Y$124) -> 484.5275382 | F118: 484.5275382 | N118: =B118 -> CAPEX Installation costs | O118: =-PMT(Inputs!$D$4,$D118,E118) -> 36.24131454 | P118: =-PMT(Inputs!$D$4,$D118,F118) -> 36.24131454
A121: =A114+1 -> 17 | B121: 250W Sodium Vapour | C121: RLMAJ | N121: 250W Sodium Vapour
B122: Bracket UNIT price | D122: 40 | E122: =SUMIF(Inputs!$C$69:$C$124,B121,Inputs!$AH$69:$AH$124) -> 205.46031 | F122: =E122 -> 205.46031 | N122: =B122 -> Bracket UNIT price | O122: =-PMT(Inputs!$D$4,$D122,E122) -> 10.66927708 | P122: =-PMT(Inputs!$D$4,$D122,F122) -> 10.66927708
B123: CAPEX Installation costs | C123: Bracket (40yrs) | D123: 40 | F123: 0 | N123: =B123 -> CAPEX Installation costs | O123: =-PMT(Inputs!$D$4,$D123,E123) -> 0 | P123: =-PMT(Inputs!$D$4,$D123,F123) -> 0
